Workbook

Sheet To Do (hidden)
A5: General
B6: 1. Embed user's manual in the spreadsheet comments. Button on each sheet to expand all comments
B7: 2. Show and hide rows for simplified version. Make sure hidden rows aren't included in totals. White out unused sensitivity factors
B8: 3. Write brief Overview sheet
B9: 4. Hiding if HeatMap is not selected
B10: 5. Blanker and defaults
B11: 6. Change True/False to Yes/No throughout
B12: 7. Protection macro. Red message about ensuring macros are enabled. Button to lock and unlock.

Sheet Overview
C1: RELCOST | F1: =IF(ErrorLine1<>"",ErrorLine1,"") -> ENABLE MACROS
C2: Financial Analysis of Energy Projects | F2: =IF(ErrorLine2<>"",ErrorLine2,"") -> Enable macros on Excel ribbon above
C3: ©2009 Washington State University Extension Energy Program
B8: About RELCOST | F8: Getting Around...
B9: The RELCOST Financial model is spreadsheet template used to evaluate the financial viability of energy projects. RELCOST provides three general methods to evaluate the viability of a project: life cycle cost analysis, use of pro forma statements, and use of financial ratios. RELCOST is available for free download at the Northwest CHP Technical Assistance Partnership (http://www.northwestchptap.org) and is open-source software under a GNU General Public License. | F9: Tabs that are primarily used for data input are Yellow
B10: Input tabs (Yellow): Flexible user inputs include capital costs for construction, funding (equity, grants, and loans), operating costs (purchased fuels, labor, materials/expendables, etc.), taxes and fees (depreciation, tax credits, franchise costs, tax rates, etc.), cost escalation factors, revenues from from sales and savings, production-based incentives. | F10: Tabs and cells primarily used for results are Green. Reports and pro formas begin with O_
B11: Inputs can be made in any year of the project with project lives of up to 30 years. Space is provided for detailed, comprehensive analysis of complex projects, although preliminary analyses with a minimum of inputs can be performed. | F11: See Index
B12: WhatIf tab: Life cycle cost results and financial ratios are displayed on a Financial Scorecard in a stop-light chart (Red-Yellow-Green) for quick assessment. A palette of sensitivity factors for inputs is side by side with the Financial Scorecard to facilitate conducting “What If” evaluations. The “WhatIf” tab also contains graphs of information from pro forma statements.
B13: Pro formas and Reports (Green tabs beginning with O_): Pro forma financial statements (Income Statement, Cash Flow Statement, Balance Sheet, and Sources/Uses of Funds Statement) show financial details over a 30-year analysis period. | F13: Tool Tips...
B14: Spider Diagram: A “spider diagram” is a useful way to explore the sensitivity of project viability to uncertainty. A measure of life cycle cost (such as internal rate of return) is plotted as selected inputs (e.g. capital costs) are varied one by one. The more sensitive a project is to a parameter, the more attention that should be paid to narrowing its uncertainty. | F14: To open all comments to see tips on using this tool and background on topics, click...
B15: Decision Matrix: The Decision Matrix tab allows you to view life cycle cost results when up to three parameters at a time are varied. The Spider Diagram, in contrast, allows you to vary only one at a time. | F15: ... or hover your mouse over cells with a red triangle to see tool tips one at a time.
B16: Incentive Summary: Financial incentives that may be modeled are: grants, loans and equity investments, production-based incentives, investment tax credits and production tax credits. These are tabulated by source on the Incentve Summary tab.
B17: Scenarios
B18: Inputs for up to 10 scenarios can be defined on the Scenarios tab (optional feature). On most input sheets and on the WhatIf tab, a drop down "Scenario" menu allows you to easily switch between the scenarios you have defined.
B19: Note entries on the Scenarios tab do not automatically load into your input tabs. On each tab, you must make references that set up how you want inputs to vary in each scenario. For more, click on the "Show Tips" button at the top of the Scenarios sheet. | F19: Viewing Options...
B20: If you are considering only one case, we suggest you click the button "Hide Scenarios Option" on the General tab. This button will hide the Scenarios tab and hide all the scenario sections on input sheets. | F20: Buttons on the General tab are:
B21: Updates | F21: To hide or show the Scenarios tab and scenarios sections on input sheets, click...
B22: RELCOST is updated frequently. Start each project with the latest version available online by clicking on "RELCOST".
B23: http://www.northwestchptap.org/ResourcesSoftwareLinks/Software.aspx
B24: Getting Started | F24: To change the zoom of all sheets and go to the top of each sheet, click...
B25: Enable Macros
B26: By default macros are disabled in Excel unless you choose to enable them. Operation of RELCOST requres macros to be enabled. | F26: To select alternative cell colors, toggling between yellow or blue inputs and green or orange outputs, click...
B27: Each time you open RELCOST, you should see a message in red reminding you to enable macros and telling you how. This message will disappear once macros are enabled. When you close RELCOST, the reminder will reappear. Save again so the reminder will be there when you next open.
B29: Input Tabs | E29: Top | F29: To protect calculations from being overwritten (recommended), click...
B30: WORKSHEET | C30: INPUTS | D30: CALCULATED VALUES ON SHEET...
B31: General | C31: Enter project description, project life, discount rate, and inflation rate. | D31: Plant operating factors
C32: Enter dispatch factor and availabilty to determine plant operating factors for each year of the project.
B33: Capital Expenditures | C33: Enter capital expenditures in up to three user-defined categories in any year. | D33: Sub-totals of expenditures by category | F33: Utilities...
C34: Enter below-the-line expenses (contractor profit factor, contingency, value-added taxes) for each category as percents. | D34: Total expenditures , including inflation, escalation, plant operating factors, and sensitivity factor | F34: Buttons at the top of many sheets are:
B35: Funding Plan | C35: Enter amounts, source, schedule and other details for borrowed funds, equity investments, and grants. | D35: Funding totals by source | F35: To copy number formats from those you chose on the Scenarios tab to the scenarios sections on input sheets, click...
B36: Purchases | C36: Enter quantities and unit costs of purchases and if quantities should be multiplied by the operating factor. Identify quantities as fuel or non-fuel purchases for reporting. | D36: Purchase costs
B37: Sales & Savings | C37: Enter revenues (sales or savings) in up to nine user-defined categories. Identify if revenues are taxable and if quantities should be multiplied by the plant operating factor. | D37: Revenues from sales, including inflation, escalation, plant operating factors, and sensitivity factor | F37: To print pro formas and other forms over the life of the project, click...
B38: Production Incentives | C38: Enter production-based incentives (not tax credits), such as carbon offsets and renewable energy credits | D38: Revenues from production incentives, including inflation, escalation, plant operating factors | F38: To hide and show workspace near the top of the sheet for your custom calculations, click...
B39: O&M | C39: Enter non-fuel operation and maintenance expenses in up to fFour user-defined categories. | D39: Total O&M costs, including inflation, escalation, plant operating factors, and sensitivity factor | E39: Top
C40: Costs of operating labor, insurance, and property taxes may be entered separately. | F40: Workspace is also available below input areas.
C41: Enter deposits and withdrawals from the operating reserve account for accounting on the "Cash Accounts" tab
B42: Major Expenses | C42: Enter periodic expenses such as major overhauls | D42: Total major expenses, including inflation, escalation, plant operating factors, and sensitivity factor | F42: Hot Keys for Copying Between Files...
B43: Taxes & Fees | C43: Enter federal, state and local tax rates | D43: Income tax payments | F43: CTRL+N Paste copied formulas and number formats to a range.
C44: Enter franchise fees and royalty payments | F44: Removes any links to other files in formulas.
B45: Tax Credits | C45: Enter information on investment and production tax credits | F45: CTRL+M Paste copied values to a range
B46: Depreciation | C46: Enter depreciation base and salvage value. Select depreciation schedule from menu. | D46: Annual depreciation for tax and shareholder purposes | F46: CTRL+O Copy number format of a cell
C47: Depreciation schedules are defined on "Depreciation Factors" tab. | F47: CTRL+P Paste copied number format to a cell
C48: U.S. MACRS factors are built-in. Custom schedules can be defined on Depreciation Factors. | F48: CTRL+R Remove all links to other files in formulas.
B49: Dividends | C49: Enter maximum payout of dividends | D49: Dividend payments
C50: and percent of net profit after taxes
B51: Cost Escalation | C51: Enter escalation factors for likely, conservative and aggressive forecasts | D51: Total escalation factors including forecast factors & general inflation | F51: When Closing...
B52: Cost Allocation | C52: Enter allocation of costs to multiple revenue streams (used in calculating levelized costs on the WhatIf tab) | D52: -- | F52: Why does the red ENABLE MACROS message reappear when I close?
B53: Depreciation Factors | C53: Optionally enter depreciation factors of user-defined depreciation schedules. U.S. MACRS and straight-line factors are built-in. | F53: This reminder is restored when your file is closed, so it will be there the next time you open the file.
F54: Save the file again to save the reminder.
B56: Analyzing Results | E56: Top
B57: WORKSHEET | C57: RESULTS
B58: WhatIf | C58: The financial scorecard shows life cycle cost results, financial ratios and financial margins...
C59: Sensitivity factors on the palette to the left of results are used to easily change inputs and view results immediately to play "What If" sensitivity studies
C60: Save life cycle cost results using "Save As" buttons.
C61: The WhatIf tab includes graphs of data from pro-formas (such as the cash flow statement) and forms (such as the operating costs summary)
B62: Stop-Light Indicators | C62: Values at which the red-yellow-green stoplight colors change are set on the "Stop-Light Indicators" tab.
B63: Spider Diagram | C63: In a spider diagram, the selected measure of viability (e.g. internal rate of return) appears on the horizontal axis and the percent variation in parameters (e.g. capital costs) on the vertical axis. The flatter a line, the more sensitive project performance is to changes in that parameter and the more attention that should be paid to it. | E63: Top
C64: In the work area below the diagram select the performance measure used to assess project viability and up to five parameters to vary.
C65: Enter sensitivity factors for each parameter to determine how they vary from the most likely values entered elsewhere in the workbook.
B66: Decision Matrix | C66: The Decision Matrix allows investigating project performance when up to three parameters are varied at a time. | E66: Top
B68: Incentive Summary | C68: A summary of incentives by source gathered from several locations in the workbook...Grants and loans from the Funding Plan tab; Renewable Energy Credits, Carbon Offsets and other production-based incentives from the Prod Incentives tab. Investment and production tax credits from the Tax Credits tab. | E68: Top
B69: Funding Schedule | C69: • Amounts borrowed and annual payments on interest and principal of borrowed funds
C70: • Amounts of equity investments and grants
B71: Cash Accounts | C71: • Deposits, withdrawals and balances of cash account and operating reserve account
B74: Pro Formas and Reports | E74: Top
B75: WORKSHEET | C75: RESULTS
B76: Purchases Report | C76: Quantities and costs of purchases
C77: (escalated and non-escalated)
B78: Operating Costs Report | C78: Variable and fixed operating costs, including fuel purchases
C79: (escalated and non-escalated)
B80: Operating Income Report | C80: Income from sales, environmental credits and production incentives (escalated and non-escalated, with and without sensitivity factors)
B81: Income Statement (Tax) | C81: Income statement: gross income, operating income, net profit before and after tax with:
B82: Income Statement (Shareholders) | C82: • Sales income detail
C83: • Cost of sales detail
C84: • Operating expenses detail
B85: Balance Sheet (Tax) | C85: Assets, liabilities and shareholder funds
B86: BalanceSheet (Shareholders)
B87: Use of Funds | C87: Sources of funds
C88: Uses of funds
B89: Cash Flow | C89: Cash flow summary for operations and financing activities
B90: * The names of worksheets intended to be printed out as forms begin with “O_”.
B94: References | E94: Top
B95: "Financial Intelligence for Entrepreneurs" by Karen Berman and Joe Knight, Harvard Business Review Press, 2008
B97: "Finance" by A.A. Gropppelli and Ehsan Nikbakht, Barron's, 2006
B99: FAQs, Energy Information Agency, U.S. DOE
B100: http://www.eia.gov/tools/faqs/
B102: Online References on Financial Terms:
B103: Investopedia | C103: www.investopedia.com
B104: Business Dictionary | C104: http://www.businessdictionary.com/
B106: "Investment Analysis", Energy Star Building Manual: Chapter 3, U.S. Environmental Protection Agency, Revised July 2007
B107: A good summary of the fundamentals of financial analysis of energy projects.
B108: www.energystar.gov/buildings/sites/default/uploads/tools/EPA_BUM_CH3_InvestAnalysis.pdf
B110: "Best Practices Guide: Economic & Financial Evaluation of Renewable Energy Projects", United States Agency for International Development , June 2002
B111: http://pdf.usaid.gov/pdf_docs/PNADB613.pdf
B113: "Renewable Energy Cost Modeling: A Toolkit for Establishing Cost-Based Incentives in the United States", National Renewable Energy Laboratory, May 2011
B114: http://www.nrel.gov/docs/fy11osti/51093.pdf
B116: Database of State Incentives for Renewables and Efficiency (DSIRE)
B117: www.dsireusa.org
B119: "How to Depreciate Property", U.S. Internal Revenue Service
B120: http://www.irs.gov/publications/p946/index.html
B121: http://www.irs.gov/publications/p946/ar02.html
B123: Cost allocation for energy projects can be calculated in the same manner as emissions allocation.
B124: "Cogeneration: Options to Calculate Facility-Specific Efficiency Values", California Air Resources Board
B125: http://www.arb.ca.gov/cc/ccei/presentations/CogenerationOptions.pdf
B127: "Comparative Costs of California Central Station Electricity Generation", California Energy Commision, 2009
B128: Includes good review of cost analysis of energy projects, in addition to cost data
B129: http://www.energy.ca.gov/2009publications/CEC-200-2009-017/CEC-200-2009-017-SD.PDF
B131: "A Guide to Funding Resources", The U.S. Department of Agriculture
B132: www.nal.usda.gov/ric/ricpubs/fundguide.html
B134: "FASB Learning Guide", Financial Accounting Standards Board
B135: https://asc.fasb.org/cs/ContentServer?site=FAF&c=Document_C&sitepfx=FAF&pagename=FAF/Document_C/CodDocumentPage&cid=1175805121281
B137: "Development of Distributed Generation in the United States" , November 20, 2012
B138: http://www.hks.harvard.edu/hepg/Papers/2013/EPEBritEmb111912(JO)-2.pdf
B140: "Distributed Generation Primer", U.S. Department of Energy, May 2002
B141: http://www.casfcc.org/2/StationaryFuelCells/PDF/Distributed%20Generation%20Primer.pdf
B143: Renewable Energy Certificates website, U.S. Department of Energy
B144: http://apps3.eere.energy.gov/greenpower/markets/certificates.shtml?page=0
B146: GHG Offset Marketers website, U.S. Department of Energy
B147: http://apps3.eere.energy.gov/greenpower/markets/carbon.shtml?page=2
A176: Calculation Area
B177: Toggle_Comments | C177: Hidden
B180: Copied | C180: No
B181: Project

Sheet General
D1: RELCOST
D2: Financial Analysis of Energy Projects | J2: ENABLE MACROS
D3: Updated December 2015 | J3: Enable macros on Excel ribbon above
D4: ©2009 Washington State University Extension Energy Program | J4: Macros must be enabled for this tool to function properly.
C5: INPUT (Edit) | P5: CTRL-N = Paste formulas & number formats (without links to other sheets)
C6: RESULTS (No Edits) | P6: Do not cut and paste to move cells. Always copy and paste to maintain formulas.
C8: PROJECT SUMMARY | T8: =IF(Toggle_Scenario="Hidden","SCENARIOS - Click Show Scenarios button to show this option","SCENARIOS") -> SCENARIOS
C9: Plant Name | D9: Hotel Example | T9: =IF(Scenarios!B9="","",IFERROR(CONCATENATE(Scenarios!A9," ",VLOOKUP(Scenarios!A9,Scenarios!$A$9:$B$18,2,FALSE)),"")) -> 1 Riverside Hotel
C10: Location | D10: ='Incentive Model'!F88 ->  | T10: =IF(Scenarios!B10="","",IFERROR(CONCATENATE(Scenarios!A10," ",VLOOKUP(Scenarios!A10,Scenarios!$A$9:$B$18,2,FALSE)),"")) -> 2 Warm Springs Hospital, Recips
C11: Project Description | D11: CHP at 300 room hotel | T11: =IF(Scenarios!B11="","",IFERROR(CONCATENATE(Scenarios!A11," ",VLOOKUP(Scenarios!A11,Scenarios!$A$9:$B$18,2,FALSE)),"")) -> 3 Darrington, Annual Analysis, Thermal, No CHP, 20% ECMs
D12: Two 150 kW reciprocating engines | T12: =IF(Scenarios!B12="","",IFERROR(CONCATENATE(Scenarios!A12," ",VLOOKUP(Scenarios!A12,Scenarios!$A$9:$B$18,2,FALSE)),"")) -> 4 Darrington, Monthly Analysis, Stirling Engines, 20% ECMs
T13: =IF(Scenarios!B13="","",IFERROR(CONCATENATE(Scenarios!A13," ",VLOOKUP(Scenarios!A13,Scenarios!$A$9:$B$18,2,FALSE)),"")) -> 0
C14: Model Notes: | T14: =IF(Scenarios!B14="","",IFERROR(CONCATENATE(Scenarios!A14," ",VLOOKUP(Scenarios!A14,Scenarios!$A$9:$B$18,2,FALSE)),"")) -> 0
T15: =IF(Scenarios!B15="","",IFERROR(CONCATENATE(Scenarios!A15," ",VLOOKUP(Scenarios!A15,Scenarios!$A$9:$B$18,2,FALSE)),"")) -> 0
T16: =IF(Scenarios!B16="","",IFERROR(CONCATENATE(Scenarios!A16," ",VLOOKUP(Scenarios!A16,Scenarios!$A$9:$B$18,2,FALSE)),"")) -> 0
T17: =IF(Scenarios!B17="","",IFERROR(CONCATENATE(Scenarios!A17," ",VLOOKUP(Scenarios!A17,Scenarios!$A$9:$B$18,2,FALSE)),"")) -> 0
T18: =IF(Scenarios!B18="","",IFERROR(CONCATENATE(Scenarios!A18," ",VLOOKUP(Scenarios!A18,Scenarios!$A$9:$B$18,2,FALSE)),"")) -> 0
C19: GENERAL
C20: Project Life | D20: 15 | E20: years
C21: First Year of Project | D21: 2015
C22: Taxable entity? | D22: True
C25: FINANCIAL ASSUMPTIONS
C26: Discount rate | D26: 0.1
C27: General inflation rate | D27: 0.025
D29: =+D21 -> 2015 | E29: =+D29+1 -> 2016 | F29: =+E29+1 -> 2017 | G29: 2018 | H29: 2019 | I29: =+H29+1 -> 2020 | J29: =+I29+1 -> 2021 | K29: 2022 | L29: 2023 | M29: 2024 | N29: 2025 | O29: 2026 | P29: 2027 | Q29: 2028 | R29: 2029 | S29: 2030 | T29: 2031 | U29: 2032 | V29: =+U29+1 -> 2033 | W29: 2034 | X29: 2035 | Y29: 2036 | Z29: 2037 | AA29: 2038 | AB29: 2039 | AC29: 2040 | AD29: 2041 | AE29: 2042 | AF29: 2043 | AG29: 2044 | AH29: 2045
C30: Project Year | D30: 1 | E30: =+D30+1 -> 2 | F30: 3 | G30: 4 | H30: 5 | I30: =+H30+1 -> 6 | J30: 7 | K30: 8 | L30: 9 | M30: 10 | N30: 11 | O30: 12 | P30: 13 | Q30: 14 | R30: 15 | S30: 16 | T30: 17 | U30: 18 | V30: 19 | W30: 20 | X30: 21 | Y30: 22 | Z30: 23 | AA30: 24 | AB30: 25 | AC30: 26 | AD30: 27 | AE30: 28 | AF30: 29 | AG30: 30 | AH30: 31
C31: PLANT OPERATING FACTOR
C32: Dispatch Factor (a) | D32: 1 | E32: 1 | F32: =E32 -> 1 | G32: 1 | H32: 1 | I32: 1 | J32: 1 | K32: 1 | L32: 1 | M32: 1 | N32: 1 | O32: 1 | P32: 1 | Q32: 1 | R32: 1 | S32: 1 | T32: 1 | U32: 1 | V32: 1 | W32: 1 | X32: 1 | Y32: 1 | Z32: 1 | AA32: 1 | AB32: 1 | AC32: 1 | AD32: 1 | AE32: 1 | AF32: 1 | AG32: 1 | AH32: 1
C33: Availability (capacity) Factor (b) | D33: 1 | E33: =D33 -> 1 | F33: =E33 -> 1 | G33: 1 | H33: 1 | I33: 1 | J33: 1 | K33: 1 | L33: 1 | M33: 1 | N33: 1 | O33: 1 | P33: 1 | Q33: 1 | R33: 1 | S33: 1 | T33: 1 | U33: 1 | V33: 1 | W33: 1 | X33: 1 | Y33: 1 | Z33: 1 | AA33: 1 | AB33: 1 | AC33: 1 | AD33: 1 | AE33: 1 | AF33: 1 | AG33: 1 | AH33: 1
C34: Plant Operating Factor | D34: =D$32*D$33 -> 1 | E34: =E$32*E$33 -> 1 | F34: 1 | G34: 1 | H34: 1 | I34: 1 | J34: 1 | K34: 1 | L34: 1 | M34: 1 | N34: 1 | O34: 1 | P34: 1 | Q34: 1 | R34: 1 | S34: 1 | T34: 1 | U34: 1 | V34: 1 | W34: 1 | X34: 1 | Y34: 1 | Z34: 1 | AA34: 1 | AB34: 1 | AC34: 1 | AD34: 1 | AE34: 1 | AF34: 1 | AG34: 1 | AH34: 1
C35: Plant Operating Factor (with sensitivity) | D35: =D$32*D$33*Sens_PlantOpFactor -> 1 | E35: 1 | F35: 1 | G35: 1 | H35: 1 | I35: 1 | J35: 1 | K35: 1 | L35: 1 | M35: 1 | N35: 1 | O35: 1 | P35: 1 | Q35: 1 | R35: 1 | S35: 1 | T35: 1 | U35: 1 | V35: 1 | W35: 1 | X35: 1 | Y35: 1 | Z35: 1 | AA35: 1 | AB35: 1 | AC35: 1 | AD35: 1 | AE35: 1 | AF35: 1 | AG35: 1 | AH35: 1
C37: Notes
A40: S | C40: FACTORS AFFECTING DISPATCH FACTOR (Optional, use in formulas above)
A41: S | C41: Curtailment factor (a)
A42: S
A43: S | C43: FACTORS AFFECTING AVAILABILITY (Optional, use in formulas above)
A44: S | C44: Parasitic plant losses (b)
A45: S | C45: Partial year operation factor (b)
A46: S | C46: Resource depletion (b)
A47: S | C47: Transmission loss (b)
A48: S | C48: Scheduled maintenance (b)
A49: S | C49: Dispatch Factor = 1- Curtailment Factor
A50: S | C50: Availability = (1-Parasitic Plant Losses) * Partial Year Operation Factor * (1-Resource Depletion) * (1-Transmission Loss) * (1-Scheduled Maintenance)
C53: LIFE CYCLE COST ANALYSIS - Summary
C54: Net Present Value | D54: =IFERROR(+WhatIf!H16,"") -> 151025.6954
C55: Project IRR | D55: =IFERROR(+WhatIf!H15,"") -> 0.1889079917
C56: Discounted Payback (After-Tax, years) | D56: =IFERROR(+WhatIf!H18,"") -> 5.41473636
C57: Benefit-to-Cost Ratio (After Tax) | D57: =IFERROR(+WhatIf!H17,"") -> 1.275694953
C60: REFERENCES
C61: Construction times: Comparative Costs of California Central Station Electricity Generation, California Energy Commission, August 2009, | E61: http://www.energy.ca.gov/2009publications/CEC-200-2009-017/CEC-200-2009-017-SD.PDF
C62: Plant operating factors of community scale RE projects: Building and Community Scale Renewable Technology Costs, KEMA, 2009, | E62: http://www.energy.ca.gov/2009_energypolicy/documents/2009-08-25_workshop/presentations/05_KEMA_Building_and_Community_Scale_Renewable_Technology_Costs.PDF
C63: Federal discount rate | E63: www.newyorkfed.org/markets/statistics/dlyrates/fedrate.html
C64: General inflation rate | E64: ftp://ftp.bls.gov/pub/special.requests/cpi/cpiai.txt
C65: Availability: Technology Characterization: Gas Turbines", EPA, 2013, p. 15 | E65: http://www.meede.org/wp-content/uploads/Commercial-and-Industrial-CHP-Technology-Cost-and-Performance-Data-Analysis-for-EIA_June-2010.pdf
C66: Availability: Technology Characterization: Reciprocating Engines", EPA, 2008, p. 19 | E66: http://www.epa.gov/chp/documents/catalog_chptech_reciprocating_engines.pdf
C70: WORKSPACE & MODEL NOTES
C135: CALCULATION AREA
C136: Toggle_Comments | D136: Hidden
C137: Toggle_Scenario | D137: Showing
C138: Toggle_ProtectIntermediateCalcs | D138: Unprotected
C139: Copied | D139: No
D140: MacroRunning_ProjectOrOption
C141: Project or Option Macro Running | D141: Not Running
C144: Discount rate | D144: =D26*WhatIf!B67 -> 0.1
C145: General inflation rate | D145: =D27*WhatIf!B68 -> 0.025
C146: Project Life | D146: =ROUND(D20*WhatIf!B69,0) -> 15

Sheet Project Database (hidden)
B1: RELCOST: Summary Results & Sensitivities | J1: =IF(ErrorLine1="","","ENABLE MACROS") -> ENABLE MACROS | P1: INPUT (Edit) | Q1: RESULTS (No Edits)
E3: POPULATE DROP DOWN MENU WITH COMPLETED PROTOTYPES
F4: Items to Appear on Drop Down Menus (must match top row of database)
F5: =X20 -> 0
F6: =X20 -> 0
F7: =Z20 -> 0
F9: =AB20 -> 0
F10: =AD20 -> 0
F11: =AG20 -> 0
E17: Copy values only from other tools into light yellow cells. Edit yellow cells as needed. Link to top line from drop down area to menu item to place on menus.
E18: To expand database, insert columns near end of range and copy columns across. Be sure to insert entire columns. Be sure to copy all fields down to orange line
E19: PROTOTYPE | I19: 1 | J19: =I19+1 -> 2 | K19: =J19+1 -> 3 | L19: 4 | M19: 5 | N19: 6 | O19: 7 | P19: 8 | Q19: 9 | R19: 10 | S19: 11 | T19: 12 | U19: 13 | V19: 14 | W19: 15 | X19: 16 | Y19: =X19+1 -> 17 | Z19: =Y19+1 -> 18 | AA19: =Z19+1 -> 19 | AB19: =AA19+1 -> 20 | AC19: =AB19+1 -> 21 | AD19: =AC19+1 -> 22 | AE19: =AD19+1 -> 23 | AF19: =AE19+1 -> 24 | AG19: 25 | AH19: 26 | AI19: 27 | AJ19: 28 | AK19: 29 | AL19: 30 | AM19: 31 | AN19: 32 | AO19: 33 | AP19: 34 | AQ19: 35 | AR19: 36 | AS19: 37 | AT19: 38 | AU19: 39 | AV19: 40 | AW19: 41 | AX19: 42
B20: 1 | C20: =C19+1 -> 1 | E20: General | F20: Name to Appear on Scenario Menus | I20: Oregon Convention Center | J20: AmericInn Lodge and Suites, monthly | K20: AmericInn Lodge and Suites, annual | M20: Denny Trangle Convention Center | N20: Navy Recreation Center, monthly | O20: Warm Springs Hospital | Q20: Madison Memorial, Monthly analysis | R20: Monroe Correctional Complex, monthly | S20: Port of Seattle, Five 2 MW Engines with Buy All-Sell All Electricity Sales | T20: Capitol Campus, Alternative 1 | U20: Capitol Campus, Alternative 2 | W20: Days Inn, Richfield, UT
C21: 2 | F21: Scenario Description for Subtitles on Graphs, Tables and Proformas | I21: Two 150 kW Reciprocating Engines | J21: AmericInn Lodge and Suites | K21: AmericInn Lodge and Suites | N21: 20 kW Reciprocating Engine CHP with Absorption Chilling | O21: Warm Springs Hospital | Q21: =Q23 -> 6 kW Recip Engine | R21: Two 2 MW Engines with Power Sales | S21: Five 2 MW Engines with Power Sales | T21: Two 1000 kW Recip Engines | U21: Two 1000 kW Recip Engines (considers avoided cost of boilers) | W21: 20 kW Engine plus 50 kW Solar
B22: 2 | C22: 3 | D22: Paste from CHP Screening Tool Inputs & Results | F22: Facility Name | I22: Oregon Convention Center | J22: AmericInn Lodge and Suites | K22: AmericInn Lodge and Suites | M22: Denny Trangle Convention Center | N22: Navy Recreation Center | O22: Warm Springs Hospital | Q22: Madison Memorial | R22: Monroe Correctional Complex | S22: Port of Seattle | T22: Capitol Campus | U22: Capitol Campus | W22: Days Inn, Richfield, UT
C23: 4 | F23: CHP Alternative Description | I23: Natural gas fueled CHP system sized to meet the annual average heating thermal load, with estimated incentives and avoided costs | J23: Natural gas fueled CHP system sized to meet the peak thermal load | K23: Natural gas fueled CHP system sized to meet the peak thermal load | M23: CHP sized to meet peak thermal and electric for off-grid community | O23: Two recips sized at 75% each of annual average electric and 100% of thermal. Avoided costs and incentives, and redundant prime mover | Q23: 6 kW Recip Engine | R23: Two 2,000 kW recip engines size to meet annual average thermal load selling excess electricity to SnoPUD with elimination in demand charges | S23: CHP at $0.06/kWh and avoided cost of standby genset, Buy All-Sell All @0.06/kWh | T23: Two recips sized to meet annual average thermal | U23: Two recips sized to meet annual average thermal and include avoided cost of boilers | W23: CHP, 25% reduction in demand, avoided cost of boiler, with 50 kW solar @ $160k and elimination of demand charges
C24: 5 | F24: Location (City, State) | I24: Portland, Oregon | J24: Rexburg, ID 83440 | K24: Rexburg, ID 83440 | M24: Seattle, WA | N24: Everett, WA | O24: Warm Springs MT 59756 | Q24: Resburg, Idaho 83440 | R24: Monroe, WA 98272 | S24: SeaTac, WA | T24: Olympia, WA 98501 | U24: Olympia, WA 98501 | W24: Richfield, UT
B25: 3 | C25: 6 | F25: Altitude of location (feet) | I25: 0 | J25: 4865 | K25: 4865 | M25: 0 | N25: 0 | O25: 4885 | Q25: 1483 | R25: 0 | S25: 0 | T25: 0 | U25: 0 | W25: 1632
C26: 7 | F26: Facility Type | I26: Hotel | J26: Hotel | K26: Hotel | M26: Hotel | N26: Government, Federal | O26: Hospital | Q26: Healthcare Facility | R26: Correctional Facility | S26: Other | T26: College or University | U26: College or University | W26: Hotel
C27: 8 | F27: Electric Utility | I27: Portland General Electric | J27: Rocky Mountain Power | K27: Rocky Mountain Power | M27: PSE | N27: Puget Sound Energy | O27: 0 | Q27: Rocky Mountain Power | R27: 0 | S27: Gary, please find out | T27: Puget Sound Energy | U27: Puget Sound Energy | W27: 0
C28: 9 | F28: Fuel Utility | I28: Intermountain Gas Company | J28: Intermountain Gas Company | K28: Intermountain Gas Company | M28: PSE | N28: Puget Sound Energy | O28: 0 | Q28: Intermountain Gas | R28: 0 | S28: Gary, please find out | T28: Puget Sound Energy | U28: Puget Sound Energy | W28: 0
C29: 10 | F29: Average Demand / Peak Demand | I29: 0 / 0 | J29: 54 / 78 | K29: 54 / 78 | M29: 0 / 0 | N29: 0 / 0 | O29: 713 / 876 | Q29: 0 / 0 | R29: 1791 / 2104 | S29: 0 / 0 | T29: 0 / 0 | U29: 0 / 0 | W29: 74 / 93
C30: 11 | F30: Floor Area, # of Units, or Other Indication of Size) | J30: 0 | N30: 12000 | Q30: 12000 | R30: 12000 | W30: 12000
C31: 12 | F31: If WWTF, Treatment Volume, MGD | I31: 600 | J31: 0 | K31: 0 | M31: 0 | N31: 0 | O31: 0 | Q31: 0 | T31: 0 | U31: 0
C32: 13 | F32: Analysis Type | I32: Annual | J32: Monthly Analysis | K32: Annual | M32: Annual | N32: Monthly Analysis | O32: Annual | Q32: Monthly Analysis | R32: Monthly Analysis | S32: Annual | T32: Annual | U32: Annual | W32: Monthly Analysis
B33: 18 | C33: 14 | E33: CHP System & Performance | F33: Prime Mover Technology | I33: Recip Engine | J33: Gas Turbine | K33: Recip Engine | M33: Recip Engine | N33: Recip Engine | O33: Recip Engine | Q33: Recip Engine | R33: Recip Engine | S33: Recip Engine | T33: Recip Engine | U33: Recip Engine | W33: Recip Engine
C34: 15 | F34: Prime Mover Description | I34: 150 kW | J34: 20 kW Micro | K34: 20 kW XRGI | M34: 150 kW | N34: 20 kW XRGI | O34: 250 kW | Q34: 6 kW XRGI | R34: 2000 kW | S34: 2000 kW | T34: 1000 kW | U34: 1000 kW | W34: 20 kW XRGI
B35: 19 | C35: 16 | F35: Number of Units | I35: 2 | J35: 2 | K35: 1 | M35: 2 | N35: 2 | O35: 2 | Q35: 1 | R35: 2 | S35: 5 | T35: 2 | U35: 2 | W35: 1
B36: 20 | C36: 17 | F36: CHP Rated Capacity, kW | I36: 300 | J36: 40 | K36: 20 | M36: 300 | N36: 40 | O36: 500 | Q36: 6 | R36: 4000 | S36: 10000 | T36: 2000 | U36: 2000 | W36: 20
C37: 18 | F37: CHP Net Electric Output, kW (derated) | I37: 300 | J37: 40 | K37: 20 | M37: 300 | N37: 40 | O37: 500 | Q37: 6 | R37: 4000 | S37: 10000 | T37: 2000 | U37: 2000 | W37: 20
B38: 21 | C38: 19 | F38: Electric Heat Rate, Btu/kWh | I38: 12294.375 | J38: 13259.23411 | K38: 13259.23411 | M38: 12362.9 | N38: 13259.23411 | O38: 11609.125 | Q38: 13716.44908 | R38: 8911.826087 | S38: 8911.826087 | T38: 9264 | U38: 9264 | W38: 13259.23411 | AY38: =F38 -> Electric Heat Rate, Btu/kWh
B39: 22 | C39: 20 | F39: Thermal Output, Btu/kWh | I39: 6225 | J39: 6824 | K39: 6824 | M39: 5873.333333 | N39: 6824 | O39: 5406.12 | Q39: 7677 | R39: 3540.434783 | S39: 3540.434783 | T39: 4320 | U39: 4320 | W39: 6824 | AY39: Thermal Output, Btu/kWh
C40: 21 | F40: Electric Efficiency, % | I40: 0.277525291 | J40: 0.2573300971 | K40: 0.2573300971 | M40: 0.2759870257 | N40: 0.2573300971 | O40: 0.2939067329 | Q40: 0.2487524272 | R40: 0.3828620495 | S40: 0.3828620495 | T40: 0.3683074266 | U40: 0.3683074266 | W40: 0.2573300971 | AY40: Electric Efficiency, %
C41: 22 | F41: CHP Efficiency (%) | I41: 0.783854405 | J41: 0.7719902913 | K41: 0.7719902913 | M41: 0.7510643404 | N41: 0.7719902913 | O41: 0.7595852401 | Q41: 0.8084453883 | R41: 0.7801358234 | S41: 0.7801358234 | T41: 0.8346286701 | U41: 0.8346286701 | W41: 0.7719902913 | AY41: CHP Efficiency (%)
C42: 23 | E42: Loads | F42: Thermal Needs Served By CHP | I42: Space Heating | J42: Space Heating / Hot Water | K42: Space Heating / Hot Water | M42: Space Heating / Hot Water | N42: Space Heating | O42: Space Heating / Potable Hot Water | Q42: Space Heating | R42: Space Heating / Potable Hot Water | S42: Space Heating / Potable Hot Water | T42: Space Heating / Potable Hot Water | U42: Space Heating / Potable Hot Water | W42: Space Heating / Potable Hot Water
C43: 24 | F43: Average Hourly Electric Demand (kW) | I43: 0 | J43: 54.39013697 | K43: 54.39013697 | M43: 0 | N43: 0 | O43: 712.5833333 | Q43: 0 | R43: 1791.45 | S43: 0 | T43: 0 | U43: 0 | W43: 74
C44: 25 | F44: Maximum Electric Demand | I44: 0 | J44: 78.33333333 | K44: 78.33333333 | M44: 0 | N44: 0 | O44: 876 | Q44: 0 | R44: 2103.6 | S44: 0 | T44: 0 | U44: 0 | W44: 93
C45: 26 | F45: Minimum Electric Demand | I45: 0 | J45: 37.68817204 | K45: 37.68817204 | M45: 0 | N45: 0 | O45: 595 | Q45: 0 | R45: 1597.8 | S45: 0 | T45: 0 | U45: 0 | W45: 54
C46: 27 | F46: Average Hourly Thermal Demand (MMBtu/hr) | I46: 1.945479452 | J46: 0.1080821918 | K46: 0.1080821918 | M46: 1.945479452 | N46: 0.2562071918 | O46: 2.325 | Q46: 0.06162557078 | R46: 14.76575897 | S46: 34.82191781 | T46: 7.302858447 | U46: 7.302858447 | W46: 0.1245205479
C47: 28 | F47: Minimum Average Hourly Thermal Demand (MMBtu/hr) | I47: 1.5 | J47: 0.08333333333 | K47: 0.08333333333 | M47: 1.5 | N47: 0.05020833333 | O47: 0.8975 | Q47: 0.01595698925 | R47: 7.363436882 | S47: 34.16666667 | T47: 0.9375555556 | U47: 0.9375555556 | W47: 0.04677419355
C48: 29 | E48: Operation | F48: Operating Hours | I48: 8760 | J48: 8760 | K48: 8760 | M48: 8760 | N48: 8760 | O48: 8760 | Q48: 3128.571429 | R48: 8760 | S48: 8760 | T48: 8760 | U48: 8760 | W48: 8760
C49: 30 | F49: CHP Availability (%) | I49: 1 | J49: 0.98 | K49: 0.98 | M49: 1 | N49: 1 | O49: 1 | Q49: 1 | R49: 1 | S49: 1 | T49: 1 | U49: 1 | W49: 1
A50: Added | C50: 31 | F50: Operation in First Year (%) | I50: 1 | J50: 1 | K50: 1 | M50: 1 | N50: 1 | O50: 1 | Q50: 1 | R50: 1 | S50: 1 | W50: 1
C51: 32 | F51: Offsetting Boiler Efficiency (%) | I51: 0.9 | J51: 0.5 | K51: 0.5 | M51: 0.9 | N51: 0.75 | O51: 0.9 | Q51: 0.8 | R51: 0.8 | S51: 0.82 | T51: 0.8 | U51: 0.8 | W51: 0.8
C52: 33 | F52: Operating Strategy | I52: Meet Thermal Loads | K52: Meet Thermal Loads | M52: Operate at 100% Rated Power | O52: Operate at 100% Rated Power | S52: Operate at 100% Rated Power
C53: 34 | F53: Average operation as percent of derated installed capacity | I53: 1 | J53: 0.5541666667 | K53: 1.003338387 | M53: 1 | N53: 0.9462700354 | O53: 1 | Q53: 0.8121895428 | R53: 0.8275389346 | S53: 1 | T53: 0.8452382462 | U53: 0.8452382462 | W53: 0.8202046958
C54: 35 | F54: Percent Electrical Loads Met | I54: 0.5222575517 | J54: 0.2919287849 | K54: 0.2978815576 | M54: 0.5222575517 | N54: 0.4778289518 | O54: 0.8511719305 | Q54: 0.08541206723 | R54: 2.371706673 | S54: 0.0008333333333 | T54: 0.3584520958 | U54: 0.3584520958 | W54: 0.7792611269
C55: 36 | F55: Percent Thermal Loads Met | I55: 0.9599176172 | J55: 1 | K55: 1 | M55: 0.9056893395 | N55: 0.7004801809 | O55: 0.935433151 | Q55: 0.5702078686 | R55: 0.792635204 | S55: 1.01672596 | T55: 1 | U55: 1 | W55: 0.8395665478
B56: 23 | C56: 37 | E56: Capital Costs | F56: CHP Plant Capital Cost $/kW | I56: 2760.202008 | J56: 4631.578947 | K56: 4631.578947 | M56: 2760.202008 | N56: 4631.578947 | O56: 2250 | Q56: 4631.578947 | R56: 1584 | S56: 1584 | T56: 1810 | U56: 1810 | W56: 4631.578947
A57: Added 5/17/15 | C57: 38 | F57: Capital Cost of Non-CHP Biomass Boiler | I57: 0 | J57: 0 | K57: 0 | M57: 0 | N57: 0 | O57: 0 | Q57: 0 | R57: 0 | S57: 0 | W57: 0
A58: Added 5/19/15 | C58: 39 | F58: Capital Cost of Solar Energy Equipment | I58: 0 | J58: 0 | K58: 0 | M58: 0 | N58: 0 | O58: 0 | Q58: 0 | R58: 0 | S58: 0 | W58: 0
C59: 40 | F59: Other Capital Costs, $ | I59: 0 | J59: 10000 | K59: 90000 | M59: 0 | N59: 150000 | O59: 562500 | Q59: 0 | R59: 0 | S59: 0 | T59: 0 | U59: -1500000 | W59: 0
C60: 41 | F60: Avoided Capital, $ (monthly only, included with other capital for annual)) | I60: 250000 | J60: 25000 | K60: 25000 | M60: 500000 | N60: 300000 | O60: 700000 | Q60: 15000 | R60: 2000000 | S60: 7920000 | T60: 0 | U60: 0 | W60: 30000
C61: 42 | F61: Total Installed Costs | I61: 578060.6024 | J61: 170263.1579 | K61: 157631.5789 | M61: 828060.6024 | N61: 35263.15789 | O61: 987500 | Q61: 12789.47368 | R61: 4336000 | S61: 7920000 | T61: 3620000 | U61: 2120000 | W61: 224331.5789
B62: 24 | C62: 43 | E62: O&M Costs | F62: Variable O&M Costs, $/kWh | I62: 0.022 | J62: 0.006 | K62: 0.006 | M62: 0.022 | N62: 0.006 | O62: 0.02 | Q62: 0.006 | R62: 0.014 | S62: 0.014 | T62: 0.005 | U62: 0.005 | W62: 0.006
C63: 44 | F63: Other Variable Costs, $ per year | I63: 0 | J63: 0 | K63: 0 | M63: 0 | N63: 0 | O63: 0 | Q63: 0 | R63: 0 | S63: 0 | T63: 0 | U63: 0 | W63: 0
C64: 45 | F64: Fixed O&M Costs, $ per year | I64: 0 | J64: 0 | K64: 0 | M64: 0 | N64: 0 | O64: 0 | Q64: 0 | S64: 0 | T64: 0 | U64: 0
C65: 46 | F65: Other Fixed Annual Costs, $ per year | I65: 0 | J65: 0 | K65: 0 | M65: 0 | N65: 0 | O65: 0 | Q65: 0 | R65: 0 | S65: 0 | T65: 0 | U65: 0 | W65: 0
C66: 47 | E66: Demand & Standby Costs | F66: Baseline Demand Charges, $ | I66: 0 | J66: 0 | K66: 0 | M66: 0 | N66: 0 | O66: 0 | Q66: 0 | R66: 98152.06 | S66: 0 | T66: 0 | U66: 0 | W66: 12911.52
C67: 48 | F67: Alternative Demand Charges, $ | I67: 0 | J67: 0 | K67: 0 | M67: 0 | N67: 0 | O67: 0 | Q67: 0 | R67: 98152.06 | S67: 0 | T67: 0 | U67: 0 | W67: 0 | AY67: Check
C68: 49 | F68: Standby Charges, $ | I68: 0 | J68: 0 | K68: 0 | M68: 0 | N68: 0 | O68: 0 | Q68: 0 | R68: 0 | S68: 0 | T68: 0 | U68: 0 | W68: 0
C69: 50 | E69: Baseline Energy | F69: Baseline Heating Source | I69: Natural Gas | J69: Natural Gas | K69: Natural Gas | M69: Natural Gas | N69: Natural Gas | O69: Natural Gas | Q69: Natural Gas | R69: Natural Gas | S69: Natural Gas | T69: Natural Gas | U69: Natural Gas | W69: Natural Gas
B70: 29 | C70: 51 | F70: Baseline: Purchased Electricity (kWh) | I70: 5032000 | J70: 475280 | K70: 475280 | M70: 5032000 | N70: 974841 | O70: 4140348 | Q70: 176840 | R70: 12210000 | S70: 105120000000 | T70: 41312561 | U70: 41312561 | W70: 328480 | AY70: =F70 -> Baseline: Purchased Electricity (kWh)
B71: 30 | C71: 52 | F71: Baseline: Boiler Fuel Use (MMBtu) | I71: 18936 | J71: 1893.6 | K71: 1893.6 | M71: 18936 | N71: 2992.5 | O71: 22630 | Q71: 241 | R71: 161685.0607 | S71: 372000 | T71: 79966.3 | U71: 79966.3 | W71: 1363.5 | AY71: =F71 -> Baseline: Boiler Fuel Use (MMBtu)
C72: 53 | E72: CHP Energy Results | F72: CHP Fuel Source | I72: Natural Gas | J72: Natural Gas | K72: Natural Gas | M72: Natural Gas | N72: Natural Gas | O72: Natural Gas | Q72: Natural Gas | R72: Natural Gas | S72: Natural Gas | T72: Natural Gas | U72: Natural Gas | W72: Natural Gas | AY72: =F72 -> CHP Fuel Source
A73: Added | C73: 54 | F73: Fuel Source, Unmet Thermal Needs, Biomass Boiler | I73: Natural Gas | J73: Natural Gas | K73: Natural Gas | M73: Natural Gas | N73: Natural Gas | O73: Natural Gas | Q73: Natural Gas | R73: Natural Gas | S73: Natural Gas | T73: Natural Gas | U73: Natural Gas | W73: Natural Gas
C74: 55 | F74: Fuel Source, Unmet Thermal Needs, Supplemental Fuel | I74: Natural Gas | J74: Natural Gas | K74: Natural Gas | M74: Natural Gas | N74: Natural Gas | O74: Natural Gas | Q74: Natural Gas | R74: Natural Gas | S74: Natural Gas | T74: Natural Gas | U74: Natural Gas | W74: Natural Gas | AY74: Fuel Source, Unmet Thermal Needs, Supplemental Fuel
C75: 56 | F75: Fuel Source, Back-Up Heat (Not Used) | I75: Natural Gas | J75: Natural Gas | K75: Natural Gas | M75: Natural Gas | N75: Natural Gas | Q75: Natural Gas | T75: Natural Gas | U75: Natural Gas | AY75: Fuel Source, Back-Up Heat (Not Used)
B76: 31 | C76: 57 | F76: Generated Electricity (kWh) | I76: 2628000 | J76: 154044.5411 | K76: 138745.6038 | M76: 2628000 | N76: 372645.8026 | O76: 3524148 | Q76: 14320.18719 | R76: 28958538.47 | S76: 87600000 | T76: 14808574.07 | U76: 14808574.07 | W76: 134202.6949 | AY76: Generated Electricity (kWh)
B77: 32 | C77: 58 | F77: Purchased Electricity (kWh) (primary system) | I77: 2404000 | J77: 321235.4589 | K77: 336534.3962 | M77: 2404000 | N77: 414822.7528 | O77: 616200 | Q77: 153339.8128 | R77: 0 | S77: 105120000000 | T77: 26503986.93 | U77: 26503986.93 | W77: 76149.3413 | AY77: Purchased Electricity (kWh) (primary system)
C78: 59 | F78: Dispatched Electricity Sales (kWh) | I78: 0 | J78: 0 | K78: 0 | M78: 0 | N78: 0 | O78: 0 | Q78: 0 | R78: 16748538 | S78: 87600000 | T78: 0 | U78: 0 | W78: 0 | AY78: Dispatched Electricity Sales (kWh)
B79: 33 | C79: 60 | F79: Purchased Fuel for CHP Plant (MMBtu) | I79: 32309.6175 | J79: 2042.512633 | K79: 1839.660441 | M79: 32489.7012 | N79: 4940.997935 | O79: 40912.27465 | Q79: 196.4221184 | R79: 258073.4586 | S79: 780675.9652 | T79: 137186.6302 | U79: 137186.6302 | W79: 1779.42495 | AY79: Purchased Fuel for CHP Plant (MMBtu)
B80: 34 | C80: 61 | F80: Purchased Fuel for Back-up Heat (MMBtu) | I80: 0 | J80: 19.71678467 | K80: 37.872 | M80: 0 | N80: 0 | Q80: 0 | T80: 0 | U80: 0 | AY80: Purchased Fuel for Back-up Heat (MMBtu)
A81: Added | C81: 62 | F81: Purchased Fuel for Unmet Needs, Biomass Boiler (Thermal Only) (MMBtu) | I81: 0 | K81: 0 | M81: 0 | O81: 0 | S81: 0 | T81: 0 | U81: 0
B82: 35 | C82: 63 | F82: Purchased Fuel for Unmet Needs, Supplmental Fuel (MMBtu) | I82: 759 | J82: 849.15 | K82: 0 | M82: 1785.866667 | N82: 1449.785331 | O82: 1461.147794 | Q82: 103.5799037 | R82: 33527.78962 | S82: 0 | T82: 0 | U82: 0 | W82: 194.4453441 | AY82: Purchased Fuel for Unmet Needs, Supplmental Fuel (MMBtu)
B83: 37 | C83: 64 | F83: Total Purchased Fuel, (MMBtu) (primary system) | I83: 33068.6175 | J83: 2911.379417 | K83: 1877.532441 | M83: 34275.56787 | N83: 6390.783266 | O83: 42373.42244 | Q83: 300.002022 | R83: 291601.2482 | S83: 780675.9652 | T83: 137186.6302 | U83: 137186.6302 | W83: 1973.870294 | AY83: =F83 -> Total Purchased Fuel, (MMBtu) (primary system)
C84: 65 | F84: Annual Heat Recovered by CHP (MMBTU/yr) | I84: 16359.3 | J84: 1051.199948 | K84: 946.8 | M84: 15435.12 | N84: 2542.934957 | O84: 19051.96699 | Q84: 109.9360771 | R84: 102525.8169 | S84: 305040 | T84: 63973.04 | U84: 63973.04 | W84: 915.7991903 | AY84: =F84 -> Annual Heat Recovered by CHP (MMBTU/yr)
B85: 38 | C85: 66 | F85: Annual Electricity Savings (kWh/yr) | I85: 2628000 | J85: 154044.5411 | K85: 138745.6038 | M85: 2628000 | N85: 560018.2472 | O85: 3524148 | Q85: 23500.18719 | R85: 12210000 | S85: 0 | T85: 14808574.07 | U85: 14808574.07 | W85: 252330.6587 | AY85: Annual Electricity Savings (kWh/yr)
B86: 39 | C86: 67 | F86: Increased Fuel Use (MMBtu) | I86: 14132.6175 | J86: 1017.779417 | K86: -16.06755857 | M86: 15339.56787 | N86: 3398.283266 | O86: 19743.42244 | Q86: 59.00202203 | R86: 129916.1875 | S86: 408675.9652 | T86: 57220.33022 | U86: 57220.33022 | W86: 610.3702942 | AY86: Increased Fuel Use (MMBtu)
C87: 68 | E87: Energy Costs (From CHP Screening Tool) | F87: Baseline Electricity Purchase Price, $/kWh | I87: 0.08 | J87: 0.09791243057 | K87: 0.09791243057 | M87: 0.08 | N87: 0.07071 | O87: 0.08887498104 | Q87: 0.09875376046 | R87: 0.06452343489 | S87: 0.03 | T87: 0.07354511356 | U87: 0.07354511356 | W87: 0.09590233804 | AY87: Baseline Electricity Purchase Price, $/kWh
C88: 69 | F88: Alternative Electricity Purchase Price, $/kWh | I88: 0.08 | J88: 0.09791243057 | K88: 0.09791243057 | M88: 0.08 | N88: 0.07071 | O88: 0.08887498104 | Q88: 0.09875376046 | R88: 0.06452343489 | S88: 0.03 | T88: 0.07354511356 | U88: 0.07354511356 | W88: 0.09590233804 | AY88: Alternative Electricity Purchase Price, $/kWh
C89: 70 | F89: Electricity Sales Price, $/kWh | I89: 0.06 | J89: 0.13 | K89: 0.13 | M89: 0.13 | N89: 0.13 | O89: 0.13 | Q89: 0.13 | R89: 0.0645 | S89: 0.06 | T89: 0 | U89: 0 | W89: 0.0645 | AY89: Electricity Sales Price, $/kWh
C90: 71 | F90: Baseline Fuel Price, $/MMBtu | I90: 8 | J90: 7.889549007 | K90: 7.889549007 | M90: 8 | N90: 8.89 | O90: 8.72 | Q90: 7.814979253 | R90: 7 | S90: 5 | T90: 6.688682983 | U90: 6.688682983 | W90: 12.36376971 | AY90: Baseline Fuel Price, $/MMBtu
C91: 72 | F91: CHP Fuel Price, $/MMBtu | I91: 8 | J91: 7.889549007 | K91: 7.889549007 | M91: 8 | N91: 8.89 | O91: 8.72 | Q91: 7.814979253 | R91: 6.454725412 | S91: 5 | T91: 6.688682983 | U91: 6.688682983 | W91: 12.36376971 | AY91: CHP Fuel Price, $/MMBtu
C92: 73 | F92: Fuel Price, Unmet Needs, Biomass Boiler Fuel | I92: 8 | J92: 7.889549007 | K92: 7.889549007 | M92: 8 | N92: 8.89 | O92: 8.72 | Q92: 7.814979253 | R92: 6.454725412 | S92: 5 | T92: 6.688682983 | U92: 6.688682983 | W92: 12.36376971
C93: 74 | F93: Fuel Price, Unmet Needs, Supplemental Fuel | I93: 8 | J93: 7.889549007 | K93: 7.889549007 | M93: 8 | N93: 8.89 | O93: 8.72 | Q93: 7.814979253 | R93: 7 | S93: 5 | T93: 6.688682983 | U93: 6.688682983 | W93: 12.36376971 | AY93: Fuel Price, Unmet Needs, Supplemental Fuel
C94: 75 | F94: Fuel Price, Back Up Heat | I94: 8 | J94: 7.889549007 | K94: 7.889549007 | M94: 8 | N94: 8.89 | O94: 8.72 | Q94: 7.814979253 | T94: 6.688682983 | U94: 6.688682983 | AY94: Fuel Price, Back Up Heat
C95: 76 | E95: Second System | F95: Description of 2nd system, Electricity | I95: Solar Pv | J95: Solar Pv | K95: Solar Pv | M95: 0 | N95: 0 | O95: 0 | Q95: 0 | W95: Solar
C96: 77 | F96: Capital Cost of 2nd System, Electricity | I96: 0 | M96: 0 | N96: 0 | O96: 0 | Q96: 0 | W96: 161700
C97: 78 | F97: Generated Electricity (kWh) (second system) | I97: 0 | M97: 0 | N97: 0 | O97: 0 | Q97: 0 | R97: 0 | S97: 0 | W97: 121769
C98: 79 | F98: Electricity savings or uses of second system (baseline) (kWh) | I98: 0 | M98: 0 | N98: 0 | O98: 0 | Q98: 0 | R98: 0 | S98: 0 | W98: 0
C99: 80 | F99: Electricity savings or uses of second system (alternative) (kWh) | I99: 0 | M99: 0 | N99: 0 | O99: 0 | Q99: 0 | R99: 0 | S99: 0 | W99: 0
C100: 81 | F100: Sales price or production incentives of generation, second system ($/kWh) | I100: 0 | M100: 0 | N100: 0 | O100: 0 | Q100: 0 | R100: 0 | W100: 0.09590233804
C101: 82 | F101: Description of 2nd system, Thermal | I101: Solar thermal | J101: Solar thermal | K101: Solar thermal | M101: 0 | N101: 0 | O101: 0 | Q101: 0 | R101: 0 | S101: 0 | W101: 0
C102: 83 | F102: Capital Cost of 2nd System, Thermal | I102: 0 | M102: 0 | N102: 0 | O102: 0 | Q102: 0 | R102: 0 | S102: 0 | W102: 0
C103: 84 | F103: Thermal Energy Source | I103: Natural Gas | J103: Natural Gas | K103: Natural Gas | M103: Natural Gas | N103: Natural Gas | O103: Natural Gas | Q103: Natural Gas | R103: Natural Gas | S103: Natural Gas | T103: Natural Gas | U103: Natural Gas | W103: Natural Gas
C104: 85 | F104: Heat Savings or Generation (MMBtu) | I104: 0 | M104: 0 | N104: 0 | O104: 0 | Q104: 0 | R104: 0 | S104: 0 | W104: 0
C105: 86 | F105: Price of Heat Savings or Generation ($/MMBtu) | I105: 0 | M105: 0 | N105: 0 | O105: 0 | Q105: 0 | R105: 0 | S105: 0 | W105: 0
C106: 87 | E106: Financial (CHP Screening Tool) | F106: Simple Payback, Years | I106: 2 | J106: 39.23026987 | K106: 8 | M106: 12.7 | N106: 4.9 | O106: 8.4 | Q106: 6 | R106: 5.9 | S106: 4.6 | T106: 5.7 | U106: 3.4 | W106: 4.2 | AY106: Simple Payback, Years
C107: 88 | F107: Payback Includes Incentives? | I107: No | J107: Yes | K107: No | M107: No | N107: No | O107: No | Q107: No | R107: No | S107: No | T107: No | U107: No | W107: Yes | AY107: Payback Includes Incentives?
C108: 89 | F108: Grants | I108: 497493 | J108: 55170.83333 | K108: 55170.83333 | M108: 82600 | N108: 82600 | O108: 393750 | Q108: 6947.368421 | R108: 0 | S108: 0 | T108: 0 | U108: 0 | W108: 54338.15789 | AY108: Grants
C109: 90 | F109: Production Incentives, $ per kWh | I109: 0 | J109: 0 | K109: 0 | M109: 0 | N109: 0 | O109: 0 | Q109: 0 | R109: 0 | S109: 0 | T109: 0 | U109: 0 | W109: 0 | AY109: Production Incentives, $ per kWh
C110: =C109+1 -> 91 | F110: Sector | I110: Commercial | J110: Commercial | K110: Commercial | M110: Commercial | N110: Commercial | O110: Commercial | Q110: Commercial | R110: Institutional | S110: Institutional | T110: Government | U110: Government | W110: Commercial | AY110: Sector
C111: 92 | F111: Discount Rate | I111: 0.05 | J111: 0.05 | K111: 0.05 | M111: 0.05 | N111: 0.05 | O111: 0.05 | Q111: 0.05 | R111: 0.05 | S111: 0.05 | T111: 0.05 | U111: 0.05 | W111: 0.1 | AY111: =F111 -> Discount Rate
C112: 93 | F112: Project Life | I112: 15 | J112: 15 | K112: 15 | M112: 15 | N112: 15 | O112: 15 | Q112: 15 | R112: 15 | S112: 15 | T112: 20 | U112: 20 | W112: 15 | AY112: =F112 -> Project Life
C113: 94 | F113: General Inflation | I113: 0.025 | J113: 0.025 | K113: 0.025 | M113: 0.025 | N113: 0.025 | O113: 0.025 | Q113: 0.025 | R113: 0.025 | S113: 0.025 | T113: 0.025 | U113: 0.025 | W113: 0.025 | AY113: General Inflation
C114: 95 | F114: First Year of Project | I114: 2015 | J114: 2015 | K114: 2015 | M114: 2015 | N114: 2015 | O114: 2015 | Q114: 2015 | R114: 2015 | S114: 2015 | T114: 2016 | U114: 2016 | W114: 2015 | AY114: First Year of Project
C115: 96 | F115: Contingencies | I115: 0 | J115: 0 | K115: 0 | M115: 0 | N115: 0 | O115: 0 | Q115: 0 | R115: 0 | S115: 0 | T115: 0 | U115: 0 | W115: 0 | AY115: Contingencies
C116: 97 | F116: Taxable Entity? | I116: True | J116: True | K116: True | M116: True | N116: True | O116: True | Q116: False | R116: False | S116: False | T116: False | U116: False | W116: True | AY116: Taxable Entity?
C117: 98 | F117: Federal Tax Rate | I117: 0.35 | J117: 0.35 | K117: 0.35 | M117: 0.35 | N117: 0.35 | O117: 0.35 | Q117: 0.35 | R117: 0.35 | S117: 0.35 | T117: 0.35 | U117: 0.35 | W117: 0.35 | AY117: Federal Tax Rate
C118: 99 | F118: State Tax Rate | I118: 0.076 | J118: 0.076 | K118: 0.076 | M118: 0.076 | N118: 0.076 | O118: 0.076 | Q118: 0.076 | R118: 0.065 | S118: 0.065 | T118: 0.076 | U118: 0.076 | W118: 0.047 | AY118: State Tax Rate
C119: 100 | F119: Federal Bonus Depreciation, Asset Class (Year) | I119: 5 | J119: 5 | K119: 5 | M119: 5 | N119: 5 | O119: 5 | Q119: 5 | R119: 5 | S119: 5 | T119: 5 | U119: 5 | W119: 5 | AY119: Federal Bonus Depreciation, Asset Class (Year)
C120: 101 | F120: Percent Depreciable | I120: 0.5 | J120: 0.5 | K120: 0.5 | M120: 0.5 | N120: 0.5 | O120: 0.5 | Q120: 0.5 | R120: 0.5 | S120: 0.5 | T120: 0.5 | U120: 0.5 | W120: 0.5 | AY120: Percent Depreciable
C121: 102 | F121: Salvage Value at End of Project | I121: 0.2 | J121: 0.2 | K121: 0.2 | M121: 0.2 | N121: 0.2 | O121: 0.2 | Q121: 0.2 | R121: 0.2 | S121: 0.2 | T121: 0.2 | U121: 0.2 | W121: 0.2 | AY121: Salvage Value at End of Project
C122: 103 | F122: Viability Criteria: Before-Tax Simple Payback | I122: 5 | J122: 5 | K122: 5 | M122: 5 | N122: 5 | O122: 5 | Q122: 5 | T122: 5 | U122: 5 | AY122: Viability Criteria: Before-Tax Simple Payback
C123: 104 | F123: Viability Criteria: Project IRR | I123: 0.1 | J123: 0.1 | K123: 0.1 | M123: 0.1 | N123: 0.1 | O123: 0.1 | Q123: 0.1 | R123: 0.05 | S123: 0.05 | T123: 0.05 | U123: 0.05 | W123: 0.1 | AY123: Viability Criteria: Project IRR
C124: 105 | E124: Contacts | F124: Contact Name: | I124: Jason Shaw, Clint Valiton | M124: John Payne, CEM CMVP | N124: John Payne, CEM CMVP | O124: Chris Batson, Senior Energy Engineer | Q124: Clyde Stucki | R124: Kent Nugen / Stephen Sinclair | S124: Mike Smith, Manager Mechanical Systems | W124: Wesley Fine
C125: 106 | F125: Email Address: | I125: jshaw@jhkelly.com, clint.valiton@oregon-electric.com | N125: john@rjdtech.com | Q125: clyde.stucki@mmhnet.org | R125: kdnugen@DOC1.WA.GOV / sdsinclair@DOC1.WA.GOV | W125: finewesleyf@yahoo.com
C126: 107 | F126: Phone No. | I126: 360-759-3329, 503-535-2629 | N126: 425-361-3051 | Q126: 00:00:00 | R126: (360)725-8396 | W126: 8015604642
C127: 108 | F127: Fax No. | I127: 0 | N127: RJD Technologies, Inc, Naval Station Everett | Q127: 00:00:00 | R127: 00:00:00 | W127: 00:00:00
C128: 109 | E128: Analysis Version | F128: CHP Screening Tool Version/Filename | I128: RELCOST_20150708~AmericInn.xlsm | J128: RELCOST_20150520~AmericInn.xlsm | K128: CHP150706~MASTER (AmericInn).xlsm | M128: RELCOST_20150730 b~MASTER.xlsm | N128: CHP150804 a~(MASTER) Navy.xlsm | O128: RELCOST_20150805~Navy Physical Fitness.xlsm | Q128: RELCOST_20150805~Navy Physical Fitness.xlsm | R128: RELCOST_20150811~MASTER.xlsm | S128: RELCOST_20150812~MASTER.xlsm | T128: CHP150511~Capitol Campus.xlsm | U128: RELCOST_20150519~Oregon Freeze Dry.xlsm | W128: CHP150814~Days Inn.xlsm
C129: 110 | F129: CHP Screening Tool Transfer Date | I129: 2015-07-10 | J129: 2015-06-22 | K129: 2015-07-08 | M129: 2015-07-30 | N129: 2015-08-04 | O129: 2015-08-10 | Q129: 2015-08-10 | R129: 2015-08-12 | S129: 2015-08-12 | T129: 2015-05-20 | U129: 2015-05-20 | W129: 2015-08-14
C130: 111 | F130: Time | I130: 42195.59969 | J130: 42177.59771 | K130: 42193.58583 | M130: 42215.79622 | N130: 42220.69788 | O130: 42226.53676 | Q130: 42226.60934 | R130: 42228.4867 | S130: 42228.64771 | T130: 42144.42386 | U130: 42144.42494 | W130: 42230.46676
C131: 112 | F131: Total O&M Costs | I131: 56659.68 | J131: =(J62+J63)*J76+J64+J65 -> 924.2672463 | K131: =(K62+K63)*K76+K64+K65 -> 832.4736225 | L131: =(L62+L63)*L76+L64+L65 -> 0 | M131: 42121.45743 | N131: =(N62+N63)*N76+N64+N65 -> 2235.874815 | O131: 70482.96 | P131: 0 | Q131: 85.92112315 | R131: 405419.5386 | S131: 1226400 | T131: 74042.87037 | U131: 74042.87037 | V131: 0 | W131: 805.2161697 | X131: 0 | Y131: 0 | AF131: =(AF62+AF63)*AF76+AF64+AF65 -> 0 | AG131: 0 | AH131: 0 | AI131: 0 | AJ131: 0 | AK131: 0 | AL131: 0 | AM131: 0 | AN131: 0 | AO131: 0 | AP131: 0 | AQ131: 0 | AR131: 0 | AS131: 0 | AT131: 0 | AU131: 0 | AV131: 0 | AW131: 0 | AX131: 0
C132: 113 | I132: =I20 -> Oregon Convention Center | J132: AmericInn Lodge and Suites, monthly | K132: AmericInn Lodge and Suites, annual | L132: 0 | M132: Denny Trangle Convention Center | N132: Navy Recreation Center, monthly | O132: Warm Springs Hospital | P132: 0 | Q132: Madison Memorial, Monthly analysis | R132: Monroe Correctional Complex, monthly | S132: Port of Seattle, Five 2 MW Engines with Buy All-Sell All Electricity Sales | T132: Capitol Campus, Alternative 1 | U132: Capitol Campus, Alternative 2 | V132: 0 | W132: Days Inn, Richfield, UT | X132: 0 | Y132: 0 | Z132: 0 | AA132: 0 | AB132: 0 | AC132: 0 | AD132: 0 | AE132: 0 | AF132: 0 | AG132: 0 | AH132: 0 | AI132: 0 | AJ132: 0 | AK132: 0 | AL132: 0 | AM132: 0 | AN132: 0 | AO132: 0 | AP132: 0 | AQ132: 0 | AR132: 0 | AS132: 0 | AT132: 0 | AU132: 0 | AV132: 0 | AW132: 0 | AX132: 0
B133: 49 | C133: 114 | E133: GHG EMISSIONS REDUCTIONS
C134: 115 | D134: WSU GHG Calculator | E134: Copy to CO2 Calculator | F134: =F70 -> Baseline: Purchased Electricity (kWh) | I134: =I70 -> 5032000 | J134: 475280 | K134: 475280 | L134: 0 | M134: 5032000 | N134: 974841 | O134: 4140348 | P134: 0 | Q134: 176840 | R134: 12210000 | S134: 105120000000 | T134: 41312561 | U134: 41312561 | V134: 0 | W134: 328480 | X134: 0 | Y134: 0 | Z134: 0 | AA134: 0 | AB134: 0 | AC134: 0 | AD134: 0 | AE134: 0 | AF134: 0 | AG134: 0 | AH134: 0 | AI134: 0 | AJ134: 0 | AK134: 0 | AL134: 0 | AM134: 0 | AN134: 0 | AO134: 0 | AP134: 0 | AQ134: 0 | AR134: 0 | AS134: 0 | AT134: 0 | AU134: 0 | AV134: 0 | AW134: 0 | AX134: 0
C135: 116 | F135: Baseline Boiler Fuel | I135: =I69 -> Natural Gas | J135: Natural Gas | K135: Natural Gas | L135: 0 | M135: Natural Gas | N135: Natural Gas | O135: Natural Gas | P135: 0 | Q135: Natural Gas | R135: Natural Gas | S135: Natural Gas | T135: Natural Gas | U135: Natural Gas | V135: 0 | W135: Natural Gas | X135: 0 | Y135: 0 | Z135: 0 | AA135: 0 | AB135: 0 | AC135: 0 | AD135: 0 | AE135: 0 | AF135: 0 | AG135: 0 | AH135: 0 | AI135: 0 | AJ135: 0 | AK135: 0 | AL135: 0 | AM135: 0 | AN135: 0 | AO135: 0 | AP135: 0 | AQ135: 0 | AR135: 0 | AS135: 0 | AT135: 0 | AU135: 0 | AV135: 0 | AW135: 0 | AX135: 0
C136: 117 | F136: Baseline Boiler Fuel Use | I136: =I71 -> 18936 | J136: 1893.6 | K136: 1893.6 | L136: 0 | M136: 18936 | N136: 2992.5 | O136: 22630 | P136: 0 | Q136: 241 | R136: 161685.0607 | S136: 372000 | T136: 79966.3 | U136: 79966.3 | V136: 0 | W136: 1363.5 | X136: =X71-X82-X80 -> 0 | Y136: =Y71-Y82-Y80 -> 0 | Z136: =Z71 -> 0 | AA136: 0 | AB136: 0 | AC136: 0 | AD136: 0 | AE136: 0 | AF136: 0 | AG136: 0 | AH136: 0 | AI136: 0 | AJ136: 0 | AK136: 0 | AL136: 0 | AM136: 0 | AN136: 0 | AO136: 0 | AP136: 0 | AQ136: 0 | AR136: 0 | AS136: 0 | AT136: 0 | AU136: 0 | AV136: 0 | AW136: 0 | AX136: 0
C137: 118 | F137: =F77 -> Purchased Electricity (kWh) (primary system) | I137: =I77 -> 2404000 | J137: 321235.4589 | K137: 336534.3962 | L137: 0 | M137: 2404000 | N137: 414822.7528 | O137: 616200 | P137: 0 | Q137: 153339.8128 | R137: 0 | S137: 105120000000 | T137: 26503986.93 | U137: 26503986.93 | V137: 0 | W137: 76149.3413 | X137: 0 | Y137: 0 | Z137: 0 | AA137: 0 | AB137: 0 | AC137: 0 | AD137: 0 | AE137: 0 | AF137: 0 | AG137: 0 | AH137: 0 | AI137: 0 | AJ137: 0 | AK137: 0 | AL137: 0 | AM137: 0 | AN137: 0 | AO137: 0 | AP137: 0 | AQ137: 0 | AR137: 0 | AS137: 0 | AT137: 0 | AU137: 0 | AV137: 0 | AW137: 0 | AX137: 0
C138: 119 | F138: Electricity Sales, kWh (primary system) | N138: =N78 -> 0 | O138: 0 | P138: 0 | Q138: 0 | R138: 16748538 | S138: 87600000 | T138: 0 | U138: 0
C139: 120 | F139: CHP Fuel | I139: =I72 -> Natural Gas | J139: Natural Gas | K139: Natural Gas | L139: 0 | M139: Natural Gas | N139: Natural Gas | O139: Natural Gas | P139: 0 | Q139: Natural Gas | R139: Natural Gas | S139: Natural Gas | T139: Natural Gas | U139: Natural Gas | V139: 0 | W139: Natural Gas | X139: 0 | Y139: 0 | Z139: 0 | AA139: 0 | AB139: 0 | AC139: 0 | AD139: 0 | AE139: 0 | AF139: 0 | AG139: 0 | AH139: 0 | AI139: 0 | AJ139: 0 | AK139: 0 | AL139: 0 | AM139: 0 | AN139: 0 | AO139: 0 | AP139: 0 | AQ139: 0 | AR139: 0 | AS139: 0 | AT139: 0 | AU139: 0 | AV139: 0 | AW139: 0 | AX139: 0 | AZ139: CHP Screening Tool Version/Filename
C140: 121 | F140: CHP Fuel Use | I140: =I79 -> 32309.6175 | J140: 2042.512633 | K140: 1839.660441 | L140: 0 | M140: 32489.7012 | N140: 4940.997935 | O140: 40912.27465 | P140: 0 | Q140: 196.4221184 | R140: 258073.4586 | S140: 780675.9652 | T140: 137186.6302 | U140: 137186.6302 | V140: 0 | W140: 1779.42495 | X140: 0 | Y140: 0 | Z140: 0 | AA140: 0 | AB140: 0 | AC140: 0 | AD140: 0 | AE140: 0 | AF140: 0 | AG140: 0 | AH140: 0 | AI140: 0 | AJ140: 0 | AK140: 0 | AL140: 0 | AM140: 0 | AN140: 0 | AO140: 0 | AP140: 0 | AQ140: 0 | AR140: 0 | AS140: 0 | AT140: 0 | AU140: 0 | AV140: 0 | AW140: 0 | AX140: 0 | AZ140: CHP Screening Tool Transfer Date
A141: Added | C141: 122 | F141: Alternative Biomass Boiler Fuel, Unmet Needs | I141: =I73 -> Natural Gas | J141: Natural Gas | K141: Natural Gas | L141: 0 | M141: Natural Gas | N141: Natural Gas | O141: Natural Gas | P141: 0 | Q141: Natural Gas | R141: Natural Gas | S141: Natural Gas | T141: Natural Gas | U141: Natural Gas | V141: 0 | W141: Natural Gas | X141: 0 | Y141: 0 | Z141: 0 | AA141: 0 | AB141: 0 | AC141: 0 | AD141: 0 | AE141: 0 | AF141: 0 | AG141: 0 | AH141: 0 | AI141: 0 | AJ141: 0 | AK141: 0 | AL141: 0 | AM141: 0 | AN141: 0 | AO141: 0 | AP141: 0 | AQ141: 0 | AR141: 0 | AS141: 0 | AT141: 0 | AU141: 0 | AV141: 0 | AW141: 0 | AX141: 0 | AZ141: CHP Screening Tool Transfer Time
A142: Added | C142: 123 | F142: Alternative Biomass Boiler Fuel Use, Unmet Needs (MMbtu) | I142: =I81 -> 0 | J142: 0 | K142: 0 | L142: 0 | M142: 0 | N142: 0 | O142: 0 | P142: 0 | Q142: 0 | R142: 0 | S142: 0 | T142: 0 | U142: 0 | V142: 0 | W142: 0 | X142: 0 | Y142: 0 | Z142: 0 | AA142: 0 | AB142: 0 | AC142: 0 | AD142: 0 | AE142: 0 | AF142: 0 | AG142: 0 | AH142: 0 | AI142: 0 | AJ142: 0 | AK142: 0 | AL142: 0 | AM142: 0 | AN142: 0 | AO142: 0 | AP142: 0 | AQ142: 0 | AR142: 0 | AS142: 0 | AT142: 0 | AU142: 0 | AV142: 0 | AW142: 0 | AX142: 0
C143: 124 | F143: Alternative Supplemental Fuel, Unmet Needs | I143: =I74 -> Natural Gas | J143: Natural Gas | K143: Natural Gas | L143: 0 | M143: Natural Gas | N143: Natural Gas | O143: Natural Gas | P143: 0 | Q143: Natural Gas | R143: Natural Gas | S143: Natural Gas | T143: Natural Gas | U143: Natural Gas | V143: 0 | W143: Natural Gas | X143: 0 | Y143: 0 | Z143: 0 | AA143: 0 | AB143: 0 | AC143: 0 | AD143: 0 | AE143: 0 | AF143: 0 | AG143: 0 | AH143: 0 | AI143: 0 | AJ143: 0 | AK143: 0 | AL143: 0 | AM143: 0 | AN143: 0 | AO143: 0 | AP143: 0 | AQ143: 0 | AR143: 0 | AS143: 0 | AT143: 0 | AU143: 0 | AV143: 0 | AW143: 0 | AX143: 0
C144: 125 | F144: Alternative Supplemental Fuel Use, Unmet Needs (MMbtu) | I144: =I82 -> 759 | J144: 849.15 | K144: 0 | L144: 0 | M144: 1785.866667 | N144: 1449.785331 | O144: 1461.147794 | P144: 0 | Q144: 103.5799037 | R144: 33527.78962 | S144: 0 | T144: 0 | U144: 0 | V144: 0 | W144: 194.4453441 | X144: 0 | Y144: 0 | Z144: 0 | AA144: 0 | AB144: 0 | AC144: 0 | AD144: 0 | AE144: 0 | AF144: 0 | AG144: 0 | AH144: 0 | AI144: 0 | AJ144: 0 | AK144: 0 | AL144: 0 | AM144: 0 | AN144: 0 | AO144: 0 | AP144: 0 | AQ144: 0 | AR144: 0 | AS144: 0 | AT144: 0 | AU144: 0 | AV144: 0 | AW144: 0 | AX144: 0
C145: 126 | F145: Alternative Fuel, Back-Up Heat (Not Used) | I145: =I74 -> Natural Gas | J145: Natural Gas | K145: Natural Gas | L145: 0 | M145: Natural Gas | N145: Natural Gas | O145: Natural Gas | P145: 0 | Q145: Natural Gas | R145: Natural Gas | S145: Natural Gas | T145: Natural Gas | U145: Natural Gas | V145: 0 | W145: Natural Gas | X145: 0 | Y145: 0 | Z145: 0 | AA145: 0 | AB145: 0 | AC145: 0 | AD145: 0 | AE145: 0 | AF145: 0 | AG145: 0 | AH145: 0 | AI145: 0 | AJ145: 0 | AK145: 0 | AL145: 0 | AM145: 0 | AN145: 0 | AO145: 0 | AP145: 0 | AQ145: 0 | AR145: 0 | AS145: 0 | AT145: 0 | AU145: 0 | AV145: 0 | AW145: 0 | AX145: 0
C146: 127 | F146: Alternative Fuel Use, Back-Up Heat (MMBtu) | I146: =I80 -> 0 | J146: 19.71678467 | K146: 37.872 | L146: 0 | M146: 0 | N146: 0 | O146: 0 | P146: 0 | Q146: 0 | R146: 0 | S146: 0 | T146: 0 | U146: 0 | V146: 0 | W146: 0 | X146: 0 | Y146: 0 | Z146: 0 | AA146: 0 | AB146: 0 | AC146: 0 | AD146: 0 | AE146: 0 | AF146: 0 | AG146: 0 | AH146: 0 | AI146: 0 | AJ146: 0 | AK146: 0 | AL146: 0 | AM146: 0 | AN146: 0 | AO146: 0 | AP146: 0 | AQ146: 0 | AR146: 0 | AS146: 0 | AT146: 0 | AU146: 0 | AV146: 0 | AW146: 0 | AX146: 0
C147: 128 | E147: Paste from Calculator | F147: CO2e Emissions, Baseline (lbs CO2e) | I147: 6741627.625 | L147: =+I147*10 -> 67416276.25 | M147: 1.857205117e+11 | N147: 1602433.305 | O147: 8247030.975 | P147: 48950293.16 | Q147: 246836.0462 | R147: 38114444.96
C148: 129 | F148: CO2e Emissions, Alternative (lbs CO2e) | I148: 6237561.084 | L148: =+I148*10 -> 62375610.84 | M148: 1.699834105e+11 | N148: 1465824.641 | O148: 7162537.949 | P148: 48925583.2 | Q148: 229460.0381 | R148: 44502638.43
C149: 130 | F149: CO2 Emissions, Baseline (lbs CO2) | I149: 6739237.152 | L149: 67392371.52 | M149: 1.636277034e+11 | N149: 1550718.091 | O149: 7855948.174 | P149: 47684539.76 | Q149: 242671.1785 | R149: 35320267.04
C150: 131 | F150: CO2 Emissions, Alternative (lbs CO2) | I150: 6023765.858 | L150: 60237658.58 | M150: 1.47264933e+11 | N150: 1314870.705 | O150: 6161653.604 | P150: 47579262.03 | Q150: 222073.8177 | R150: 37323249.8
C151: 132 | F151: CH4 Emissions, Baseline (lbs CH4) | I151: 45.96116505 | L151: 459.6116505 | M151: 876883106.8 | N151: 2052.622573 | O151: 15522.42233 | P151: 50238.87204 | Q151: 165.3072816 | R151: 110903.3936
C152: 133 | F152: CH4 Emissions, Alternative (lbs CH4) | I152: 7605.782025 | L152: 76057.82025 | M152: 845158928.2 | N152: 5837.94949 | O152: 38707.91571 | P152: 53436.67803 | Q152: 286.0504717 | R152: 278040.3746
C153: 134 | F153: N2O Emissions, Baseline (lbs N2O) | I153: 4.16592 | L153: 41.6592 | M153: 572921.7864 | N153: 1.341104854 | O153: 10.14175534 | P153: 32.82415192 | Q153: 0.1080054369 | R153: 72.46002332
C154: 135 | F154: N2O Emissions, Alternative (lbs N2O) | I154: 79.364682 | L154: 793.64682 | M154: 5333906.796 | N154: 16.79597117 | O154: 111.3639365 | P154: 34.91347569 | Q154: 0.7884519162 | R154: 766.3733776
C155: 136 | F155: NOx Emissions, Baseline (lb NOx) | I155: 8211.309251 | L155: 82113.09251 | M155: 148195106.8 | N155: 1975.841563 | O155: 9541.778768 | P155: 61933.05507 | Q155: 323.4341423 | R155: 39145.62708
C156: 137 | F156: NOx Emissions, Alternative (lb NOx) | I156: 4274.84535 | L156: 42748.4535 | M156: 66643116.12 | N156: 1037.768225 | O156: 3314.534188 | P156: 61494.20551 | Q156: 272.4052254 | R156: 15723.81876
C157: 138 | F157: SOx Emissions, Baseline (lb SOx) | I157: 3602.737925 | L157: 36027.37925 | M157: 1515005776 | N157: 4472.276795 | O157: 30750.9479 | P157: 117176.436 | Q157: 453.570823 | R157: 203207.0034
C158: 139 | F158: SOx Emissions, Alternative (lb SOx) | I158: 1735.074303 | L158: 17350.74303 | M158: 1363505198 | N158: 7967.431441 | O158: 50800.0753 | P158: 122144.693 | Q158: 501.1642287 | R158: 345563.2313
C159: 140 | F159: Electricity Emissions Factor Source | I159: NWPPC Marginal Emission Factors 2015 | L159: NWPPC Marginal Emission Factors 2015 | M159: Fossil Fuel Output Emissions Factors (EPA eGRID 2010) | N159: NWPPC Marginal Emission Factors 2015 | O159: NWPPC Marginal Emission Factors 2015 | P159: NWPPC Marginal Emission Factors 2015 | Q159: NWPPC Marginal Emission Factors 2015 | R159: NWPPC Marginal Emission Factors 2015
C160: 141 | F160: EPA eGrid Subregion | I160: AKMS | L160: NWPP | M160: NWPP | N160: NWPP | O160: NWPP | P160: NWPP | Q160: NWPP | R160: NWPP
C161: 142 | F161: Emissions Time Horizon | I161: 100 year (Kyoto) | L161: 100 year (Kyoto) | M161: 100 year (Kyoto) | N161: 100 year (Kyoto) | O161: 100 year (Kyoto) | P161: 100 year (Kyoto) | Q161: 100 year (Kyoto) | R161: 100 year (Kyoto)
C162: 143 | F162: Upstream Electricity Emissions | I162: 0 | L162: 0.2625243243 | M162: 0.2572702588 | N162: 0.2625243243 | O162: 0.2625243243 | P162: 0.2625243243 | Q162: 0.2625243243 | R162: 0.2625243243
C163: 144 | F163: Transmission and Distribution Losses | I163: Not Included | L163: 0.0684 | M163: 0.0684 | N163: 0.0684 | O163: 0.0684 | P163: 0.0684 | Q163: 0.0684 | R163: 0.0684
C164: 145 | F164: Off-site GHG Emissions of Natural Gas | I164: Not Included | L164: 0.1011393677 | M164: 0.1011433918 | N164: 0.1010090264 | O164: 0.1010090264 | P164: 0.1011393677 | Q164: 0.1009779919 | R164: 0.1009779919
C165: =C164+1 -> 146 | E165: Analysis Version | F165: GHG Calculator Version/Filename | I165: GHG_20150709 c (EPA AP42)~Oregon Convention Center.xlsm | L165: GHG_20150324~AmericInn.xlsm | M165: GHG_20150731 (starting EPA update)~MASTER.xlsm | N165: RELCOST_20150730 b~Navy Physical Fitness.xlsm | O165: RELCOST_20150805~Navy Physical Fitness.xlsm | P165: GHG_20150324~MASTER.xlsm | Q165: RELCOST_20150811~Madison Memorial.xlsm | R165: GHG_20150807~Monroe Corrections.xlsm
C166: 147 | F166: GHG Calculator Transfer Date | I166: 2015-07-10 | L166: 2015-06-22 | M166: 2015-08-03 | N166: 2015-08-05 | O166: 2015-08-10 | P166: 2015-05-19 | Q166: 2015-08-11 | R166: 2015-08-12
C167: 148 | E167: Equipment | F167: Baseline Fossil Fuel Technology | I167: Existing Boiler | L167: Existing Boiler | M167: Existing Boiler | N167: Existing Boiler | O167: Existing Boiler 0 | P167: Existing Boiler | Q167: Existing Boiler 0 | R167: Existing Boiler 0
C168: 149 | F168: Alternative Fossil Fuel Technology | I168: Stationary Reciprocating Engine - Rich Burn, 4-Stroke (<500 kW) | L168: Existing Boiler | M168: Gas Turbine (NWN) | N168: Stationary Reciprocating Engine - Rich Burn, 4-Stroke (<500 kW) | O168: Stationary Reciprocating Engine - Rich Burn, 4-Stroke (<500 kW) No SCR | P168: Existing Boiler | Q168: Stationary Reciprocating Engine - Rich Burn, 4-Stroke (<500 kW), <90% Load No SCR | R168: Stationary Reciprocating Engine - Rich Burn, 4-Stroke (<500 kW), <90% Load No SCR
C169: 150 | E169: Reductions | F169: CO2 Emissions Reductions, lb CO2e | I169: =IFERROR((I$147-I$148),"") -> 504066.5414 | J169: 0 | K169: 0 | L169: 5040665.414 | M169: 1.573710127e+10 | N169: 136608.6632 | O169: 1084493.026 | P169: 24709.9599 | Q169: 17376.00805 | R169: -6388193.471 | S169: 0 | T169: 0 | U169: 0 | V169: 0 | W169: 0 | X169: =IFERROR((X$147-X$148),"") -> 0 | Y169: 0 | Z169: 0 | AA169: 0 | AB169: 0 | AC169: 0 | AD169: 0 | AE169: 0 | AF169: 0 | AG169: 0 | AH169: 0 | AI169: 0 | AJ169: 0 | AK169: 0 | AL169: 0 | AM169: 0 | AN169: 0 | AO169: 0 | AP169: =IFERROR((AP$147-AP$148),"") -> 0 | AQ169: 0 | AR169: 0 | AS169: 0 | AT169: 0 | AU169: 0 | AV169: 0 | AW169: 0 | AX169: 0
C170: 151 | F170: CO2 Emissions Reductions, short tons CO2e | I170: =IFERROR((I$147-I$148)/2000,"") -> 252.0332707 | J170: 0 | K170: 0 | L170: 2520.332707 | M170: 7868550.635 | N170: 68.30433159 | O170: 542.2465129 | P170: 12.35497995 | Q170: 8.688004026 | R170: -3194.096735 | S170: 0 | T170: 0 | U170: 0 | V170: 0 | W170: 0 | X170: 0 | Y170: 0 | Z170: 0 | AA170: 0 | AB170: 0 | AC170: 0 | AD170: 0 | AE170: 0 | AF170: 0 | AG170: 0 | AH170: 0 | AI170: 0 | AJ170: 0 | AK170: 0 | AL170: 0 | AM170: 0 | AN170: 0 | AO170: 0 | AP170: =IFERROR((AP$147-AP$148)/2000,"") -> 0 | AQ170: 0 | AR170: 0 | AS170: 0 | AT170: 0 | AU170: 0 | AV170: 0 | AW170: 0 | AX170: 0
C171: 152 | F171: CO2 Emissions Reductions, metric tons CO2e (tonnes) | I171: =IFERROR((I$147-I$148)/2200,"") -> 229.1211552 | J171: 0 | K171: 0 | L171: 2291.211552 | M171: 7153227.85 | N171: 62.0948469 | O171: 492.9513754 | P171: 11.23179996 | Q171: 7.898185478 | R171: -2903.724305 | S171: 0 | T171: 0 | U171: 0 | V171: 0 | W171: 0 | X171: 0 | Y171: 0 | Z171: 0 | AA171: 0 | AB171: 0 | AC171: 0 | AD171: 0 | AE171: 0 | AF171: 0 | AG171: 0 | AH171: 0 | AI171: 0 | AJ171: 0 | AK171: 0 | AL171: 0 | AM171: 0 | AN171: 0 | AO171: 0 | AP171: =IFERROR((AP$147-AP$148)/2200,"") -> 0 | AQ171: 0 | AR171: 0 | AS171: 0 | AT171: 0 | AU171: 0 | AV171: 0 | AW171: 0 | AX171: 0
C172: 153 | F172: CO2 Emissions Percent Reduction | I172: =IFERROR((I147-I148)/I147,"") -> 0.07476926485 | L172: =IFERROR((L147-L148)/L147,"") -> 0.07476926485 | M172: 0.08473539688 | N172: 0.08525076381 | O172: 0.1315010249 | P172: 0.0005047969748 | Q172: 0.07039493753 | R172: -0.1676055752 | X172: =IFERROR((X147-X148)/X147,"") ->  | Z172: =IFERROR((Z147-Z148)/Z147,"") ->  | AE172: =IFERROR((AE147-AE148)/AE147,"") ->  | AI172: =IFERROR((AI147-AI148)/AI147,"") ->  | AK172: =IFERROR((AK147-AK148)/AK147,"") ->  | AL172: =IFERROR((AL147-AL148)/AL147,"") ->  | AP172: =IFERROR((AP147-AP148)/AP147,"") ->  | AT172: =IFERROR((AT147-AT148)/AT147,"") -> 
C173: 154
C174: 155
C175: 156
C176: 157 | I176: =I20 -> Oregon Convention Center | J176: =J20 -> AmericInn Lodge and Suites, monthly | K176: =K20 -> AmericInn Lodge and Suites, annual | L176: =L20 -> 0 | M176: WWTF Digester Gas CHP with FOG & Pasteurizer (150 kW) | N176: =N20 -> Navy Recreation Center, monthly | O176: Warm Springs Hospital | P176: 0 | Q176: Madison Memorial, Monthly analysis | R176: Monroe Correctional Complex, monthly | S176: Port of Seattle, Five 2 MW Engines with Buy All-Sell All Electricity Sales | T176: Capitol Campus, Alternative 1 | U176: Capitol Campus, Alternative 2 | V176: 0 | W176: Days Inn, Richfield, UT | X176: 0 | Y176: 0 | Z176: 0 | AA176: 0 | AB176: 0 | AC176: 0 | AD176: 0 | AE176: 0 | AF176: 0 | AG176: 0 | AH176: 0 | AI176: 0 | AJ176: 0 | AK176: 0 | AL176: 0 | AM176: 0 | AN176: 0 | AO176: 0 | AP176: 0 | AQ176: 0 | AR176: 0 | AS176: 0 | AT176: 0 | AU176: 0 | AV176: 0 | AW176: 0 | AX176: 0
C177: 158 | E177: BILLING RECORDS
B178: 50 | C178: 159 | F178: Electricity Energy Use | G178: kWh | H178: 2013-14
C179: 160 | D179: 1 | H179: Jan | I179: 3192000 | J179: 3192000 | K179: 3192000
C180: =C179+1 -> 161 | D180: 2 | H180: Feb | I180: 1952000 | J180: 1952000 | K180: 1952000
C181: 162 | D181: 3 | H181: Mar | I181: 2104000 | J181: 2104000 | K181: 2104000
C182: 163 | D182: 4 | H182: Apr | I182: 1808000 | J182: 1808000 | K182: 1808000
C183: 164 | D183: 5 | H183: May | I183: 2192000 | J183: 2192000 | K183: 2192000
C184: 165 | D184: 6 | H184: Jun | I184: 2080000 | J184: 2080000 | K184: 2080000
C185: 166 | D185: 7 | H185: Jul | I185: 2288000 | J185: 2288000 | K185: 2288000
C186: 167 | D186: 8 | H186: Aug | I186: 2264000 | J186: 2264000 | K186: 2264000
C187: 168 | D187: 9 | H187: Sep | I187: 2080000 | J187: 2080000 | K187: 2080000
C188: 169 | D188: 10 | H188: Oct | I188: 2040000 | J188: 2040000 | K188: 2040000
C189: 170 | D189: 11 | H189: Nov | I189: 1968000 | J189: 1968000 | K189: 1968000
C190: 171 | D190: 12 | H190: Dec | I190: 2048000 | J190: 2048000 | K190: 2048000
C191: 172 | F191: Billed Electricity Demand | G191: kW | H191: 2013-14
C192: 173 | D192: 1 | H192: Jan | I192: 0 | J192: 0 | K192: 0
C193: 174 | D193: 2 | H193: Feb | I193: 0 | J193: 0 | K193: 0
C194: 175 | D194: 3 | H194: Mar | I194: 0 | J194: 0 | K194: 0
C195: 176 | D195: 4 | H195: Apr | I195: 0 | J195: 0 | K195: 0
C196: 177 | D196: 5 | H196: May | I196: 0 | J196: 0 | K196: 0
C197: 178 | D197: 6 | H197: Jun | I197: 0 | J197: 0 | K197: 0
C198: 179 | D198: 7 | H198: Jul | I198: 0 | J198: 0 | K198: 0
C199: 180 | D199: 8 | H199: Aug | I199: 0 | J199: 0 | K199: 0
C200: 181 | D200: 9 | H200: Sep | I200: 0 | J200: 0 | K200: 0
C201: 182 | D201: 10 | H201: Oct | I201: 0 | J201: 0 | K201: 0
C202: 183 | D202: 11 | H202: Nov | I202: 0 | J202: 0 | K202: 0
C203: 184 | D203: 12 | H203: Dec | I203: 0 | J203: 0 | K203: 0
C204: 185 | F204: Baseline Heating Source | G204: (therms) | H204: 2013-14
C205: 186 | D205: 1 | F205: Natural Gas | H205: Jan | I205: 15000 | J205: 97500 | K205: 65600
C206: 187 | D206: 2 | H206: Feb | I206: 15000 | J206: 97500 | K206: 48000
C207: 188 | D207: 3 | H207: Mar | I207: 15000 | J207: 97500 | K207: 43200
... 35 more rows

Sheet Incentive Model (hidden)
C1: RELCOST: Oregon CO2 Incentives | I1: =IF(ErrorLine1="","","ENABLE MACROS") -> ENABLE MACROS | L1: INPUT (Edit) | M1: RESULTS (No Edits) | N1: INFO (No Edits)
D3: SELECT SCENARIO | F3: 1 | H3: =F14 -> Riverside Hotel | L3: Scenario: | M3: Include on Menu? | P3: Scenario: | Q3: Include on Menu?
E4: Equity IRR | F4: =WhatIf!H14 -> 0.1889079917 | L4: 1 | M4: Yes | P4: =L7+1 -> 5 | Q4: No
E5: Project IRR | F5: =WhatIf!H15 -> 0.1889079917 | L5: =L4+1 -> 2 | M5: Yes | P5: =P4+1 -> 6 | Q5: No
E6: Net Present Value | F6: =WhatIf!H16 -> 151025.6954 | L6: 3 | M6: Yes | P6: =P5+1 -> 7 | Q6: No
E7: Benefit Cost Ratio (After Tax) | F7: =WhatIf!H17 -> 1.275694953 | L7: 4 | M7: Yes | P7: =P6+1 -> 8 | Q7: No
E8: After-Tax Discounted Payback | F8: =WhatIf!H18 -> 5.41473636 | P8: =P7+1 -> 9 | Q8: No
E9: Before-Tax Non-Discounted Payback | F9: =WhatIf!H21 -> 11.58383231 | P9: 10 | Q9: No
E10: Before-Tax Simple Payback | F10: =WhatIf!H22 -> 13.24982537
D13: SELECT PROJECTS & SET FINANCIAL PARAMETERS | F13: Selected Scenario | H13: Scenario 1 | I13: Scenario 2 | J13: Scenario 3 | K13: Scenario 4 | P13: Scenario 5 | Q13: Scenario 6 | R13: Scenario 7 | S13: Scenario 8 | T13: Scenario 9 | U13: Scenario 10
B14: 1 | D14: Project | E14: Project Title | F14: =IFERROR(Scenarios!B2,"") -> Riverside Hotel | H14: Riverside Hotel | I14: Warm Springs Hospital, Recips | J14: Darrington, Annual Analysis, Thermal, No CHP, 20% ECMs | K14: Darrington, Monthly Analysis, Stirling Engines, 20% ECMs | X14: The 4 industrial prototypes and 5 commercial prototypes will appear on menu
B15: =B14+1 -> 2 | E15: Facility Name (to appear on Pro Forma titles) | F15: =IFERROR(HLOOKUP($F$14,$H$14:$K$70,B15,FALSE),"") ->  | H15: =IFERROR(HLOOKUP(H$14,PrototypeResults,'Project Database'!$C22,FALSE),"") ->  | I15: =IFERROR(HLOOKUP(I$14,PrototypeResults,'Project Database'!$C22,FALSE),"") ->  | J15: =IFERROR(HLOOKUP(J$14,PrototypeResults,'Project Database'!$C22,FALSE),"") ->  | K15: =IFERROR(HLOOKUP(K$14,PrototypeResults,'Project Database'!$C22,FALSE),"") ->  | P15: =IFERROR(HLOOKUP(P$14,PrototypeResults,'Project Database'!$C22,FALSE),"") ->  | Q15: =IFERROR(HLOOKUP(Q$14,PrototypeResults,'Project Database'!$C22,FALSE),"") ->  | R15: =IFERROR(HLOOKUP(R$14,PrototypeResults,'Project Database'!$C22,FALSE),"") ->  | S15: =IFERROR(HLOOKUP(S$14,PrototypeResults,'Project Database'!$C22,FALSE),"") ->  | T15: =IFERROR(HLOOKUP(T$14,PrototypeResults,'Project Database'!$C22,FALSE),"") ->  | U15: =IFERROR(HLOOKUP(U$14,PrototypeResults,'Project Database'!$C22,FALSE),"") -> 
B16: =B15+1 -> 3 | E16: Scenario Desription (for subtitles on figures, tables and graphs) | F16: =IFERROR(HLOOKUP($F$14,$H$14:$K$70,B16,FALSE),"") ->  | H16: =IFERROR(HLOOKUP(H$14,PrototypeResults,'Project Database'!$C$21,FALSE),"") ->  | I16: =IFERROR(HLOOKUP(I$14,PrototypeResults,'Project Database'!$C$21,FALSE),"") ->  | J16: =IFERROR(HLOOKUP(J$14,PrototypeResults,'Project Database'!$C$21,FALSE),"") ->  | K16: =IFERROR(HLOOKUP(K$14,PrototypeResults,'Project Database'!$C$21,FALSE),"") ->  | P16: =IFERROR(HLOOKUP(P$14,PrototypeResults,'Project Database'!$C$21,FALSE),"") ->  | Q16: =IFERROR(HLOOKUP(Q$14,PrototypeResults,'Project Database'!$C$21,FALSE),"") ->  | R16: =IFERROR(HLOOKUP(R$14,PrototypeResults,'Project Database'!$C$21,FALSE),"") ->  | S16: =IFERROR(HLOOKUP(S$14,PrototypeResults,'Project Database'!$C$21,FALSE),"") ->  | T16: =IFERROR(HLOOKUP(T$14,PrototypeResults,'Project Database'!$C$21,FALSE),"") ->  | U16: =IFERROR(HLOOKUP(U$14,PrototypeResults,'Project Database'!$C$21,FALSE),"") -> 
B17: 4 | E17: Location | F17: =IFERROR(HLOOKUP($F$14,$H$14:$K$70,B17,FALSE),"") ->  | H17: =IFERROR(HLOOKUP(H$14,PrototypeResults,'Project Database'!$C$24,FALSE),"") ->  | I17: =IFERROR(HLOOKUP(I$14,PrototypeResults,'Project Database'!$C$24,FALSE),"") ->  | J17: =IFERROR(HLOOKUP(J$14,PrototypeResults,'Project Database'!$C$24,FALSE),"") ->  | K17: =IFERROR(HLOOKUP(K$14,PrototypeResults,'Project Database'!$C$24,FALSE),"") ->  | P17: =IFERROR(HLOOKUP(P$14,PrototypeResults,'Project Database'!$C$24,FALSE),"") ->  | Q17: =IFERROR(HLOOKUP(Q$14,PrototypeResults,'Project Database'!$C$24,FALSE),"") ->  | R17: =IFERROR(HLOOKUP(R$14,PrototypeResults,'Project Database'!$C$24,FALSE),"") ->  | S17: =IFERROR(HLOOKUP(S$14,PrototypeResults,'Project Database'!$C$24,FALSE),"") ->  | T17: =IFERROR(HLOOKUP(T$14,PrototypeResults,'Project Database'!$C$24,FALSE),"") ->  | U17: =IFERROR(HLOOKUP(U$14,PrototypeResults,'Project Database'!$C$24,FALSE),"") -> 
B18: 5 | E18: CHP System Capacity (kW) | F18: =IFERROR(HLOOKUP($F$14,$H$14:$K$70,B18,FALSE),"") ->  | H18: =IFERROR(HLOOKUP(H$14,PrototypeResults,'Project Database'!$C36,FALSE),"") ->  | I18: =IFERROR(HLOOKUP(I$14,PrototypeResults,'Project Database'!$C36,FALSE),"") ->  | J18: =IFERROR(HLOOKUP(J$14,PrototypeResults,'Project Database'!$C36,FALSE),"") ->  | K18: =IFERROR(HLOOKUP(K$14,PrototypeResults,'Project Database'!$C36,FALSE),"") ->  | P18: =IFERROR(HLOOKUP(P$14,PrototypeResults,'Project Database'!$C36,FALSE),"") ->  | Q18: =IFERROR(HLOOKUP(Q$14,PrototypeResults,'Project Database'!$C36,FALSE),"") ->  | R18: =IFERROR(HLOOKUP(R$14,PrototypeResults,'Project Database'!$C36,FALSE),"") ->  | S18: =IFERROR(HLOOKUP(S$14,PrototypeResults,'Project Database'!$C36,FALSE),"") ->  | T18: =IFERROR(HLOOKUP(T$14,PrototypeResults,'Project Database'!$C36,FALSE),"") ->  | U18: =IFERROR(HLOOKUP(U$14,PrototypeResults,'Project Database'!$C36,FALSE),"") -> 
A19: =A18+1 -> 1 | B19: 6 | D19: Fuels | E19: Baseline Fuel | F19: =F133 ->  | H19: =H133 ->  | P19: =P133 -> 
A20: 2 | B20: 7 | E20: CHP Fuel | F20: =F136 ->  | H20: =H136 ->  | P20: =P136 -> 
A21: 3 | B21: 8 | D21: Unit Costs | E21: Avoided Electricity Rate, $/kWh | F21: =F151 ->  | H21: =H151 ->  | P21: =P151 -> 
A22: 4 | B22: 9 | E22: Avoided Fuel (Baseline) Unit Cost ($/MMBtu) | F22: =F154 ->  | H22: =H154 ->  | P22: =P154 -> 
A23: 5 | B23: =B22+1 -> 10 | E23: Electricity Sales Price, $/kWh | F23: =F153 ->  | H23: =H153 ->  | P23: =P153 -> 
A24: 6 | B24: =B23+1 -> 11 | E24: CHP Fuel Unit Cost, $/MMBtu | F24: =F155 ->  | H24: =H155 ->  | P24: =P155 -> 
A25: =#REF!+1 ->  | B25: 12 | H25: 0
B26: 13 | D26: DEFINE INCENTIVES
B27: 14 | D27: CHP Capacity Grant | E27: =CONCATENATE(G28," Grant ($",ROUND(G30,0),"/kW)") -> Grant ($100/kW) | F27: Yes | G27: =IFERROR(HLOOKUP($F$14,$H$14:$K$70,B27,FALSE),"") -> 0 | H27: =H230 -> 0 | I27: =I230 -> 0 | J27: =J230 -> 0 | K27: =K230 -> 0
B28: 15 | E28: Funder/Description
B29: 16 | E29: Grant Order | G29: 6
B30: 17 | E30: Grant $ per kW | G30: 100 | L30: ='Grants & Loans'!H57 -> 0
B31: 18 | E31: Applies to Up to First kW | G31: 50
B32: 19 | E32: Maximum Amount | G32: 5000000
B33: 20 | D33: CO2e Grant | E33: =CONCATENATE(G34," CO2e Grant") -> CO2e Grant | F33: No | G33: =IFERROR(HLOOKUP($F$14,$H$14:$K$70,B33,FALSE),"") -> 0 | H33: =H231 -> 0 | I33: 0 | J33: 0 | K33: 0
A34: =A33+1 ->  | B34: 21 | E34: Funder/Description
B35: 22 | E35: Grant Order | G35: 4
B36: 23 | E36: =CONCATENATE(G34," Grant $/metric tons CO2e") -> Grant $/metric tons CO2e | G36: 100 | L36: ='Grants & Loans'!H63 -> 0
B37: =B36+1 -> 24 | E37: CO2e Grant (Maximum) | G37: 0 | L37: =L36 -> 0
B38: 25 | D38: Production Incentive | E38: =CONCATENATE(G39," Production Incentive ") -> Electricity Production Incentive | F38: No | G38: =IFERROR(IF(HLOOKUP($F$14,$H$14:$K$70,B38,FALSE)<>"",HLOOKUP($F$14,$H$14:$K$70,B38,FALSE),0),0) -> 0 | H38: =IFERROR(IF(MIN('Prod Incentives'!$G$57:$AK$57)=10^9,"",IF(Project=H316,MIN('Prod Incentives'!$G$57:$AK$57),"")),"") ->  | I38: =IFERROR(IF(MIN('Prod Incentives'!$G$57:$AK$57)=10^9,"",IF(Project=I316,MIN('Prod Incentives'!$G$57:$AK$57),"")),"") ->  | J38: =IFERROR(IF(MIN('Prod Incentives'!$G$57:$AK$57)=10^9,"",IF(Project=J316,MIN('Prod Incentives'!$G$57:$AK$57),"")),"") ->  | K38: =IFERROR(IF(MIN('Prod Incentives'!$G$57:$AK$57)=10^9,"",IF(Project=K316,MIN('Prod Incentives'!$G$57:$AK$57),"")),"") -> 
B39: 26 | E39: Funder/Description | G39: Electricity | H39: =IF(Project=H316,"per year","") -> per year | I39: =IF(Project=I316,"per year","") ->  | J39: =IF(Project=J316,"per year","") ->  | K39: =IF(Project=K316,"per year","") -> 
A40: =A39+1 -> 1 | B40: 27 | E40: =CONCATENATE(G39, " $ per ",VLOOKUP('Prod Incentives'!$E$12,Table_QuantityProductionIncentive,$H$373,FALSE)," Production Incentive") ->  | G40: 0.011 | L40: ='Grants & Loans'!H94 -> 0
A41: =A40+1 -> 2 | B41: 28 | E41: =CONCATENATE(G39," Production Incentive, Annual Maximum") -> Electricity Production Incentive, Annual Maximum | G41: 0 | L41: ='Grants & Loans'!H95 -> 0
A42: =A41+1 -> 3 | B42: 29 | E42: Starting Year | G42: 1
A43: =A42+1 -> 4 | B43: 30 | E43: =CONCATENATE("Number of Years, Starting in Year ",'Grants & Loans'!C96) -> Number of Years, Starting in Year 1 | G43: 10
A44: =A43+1 -> 5 | B44: 31 | E44: =CONCATENATE("Quantity (",IFERROR(VLOOKUP($G$44,Table_QuantityProductionIncentive,$H$373,FALSE),"-"),")") -> Quantity (kWh) | F44: =VLOOKUP('Prod Incentives'!$E$12,Table_QuantityProductionIncentive,'Incentive Model'!$G$373,FALSE) ->  | G44: Generated Electricity (kWh) (primary system)
A45: =A44+1 -> 6 | B45: 32 | D45: Energy Savings With Respect to Grid | E45: =CONCATENATE(G46," Grant (wrt grid)" ) -> ETO CHP Grant (wrt grid) | F45: No | G45: =IFERROR(HLOOKUP($F$14,$H$14:$K$70,B45,FALSE),"") -> 0 | H45: =H228 -> 0 | I45: =I228 -> 0 | J45: =J228 -> 0 | K45: =K228 -> 0
A46: =A45+1 -> 7 | B46: 33 | E46: Funder/Description | G46: ETO CHP
A47: =A46+1 -> 8 | B47: 34 | E47: Grant Order | G47: 2
A48: =A47+1 -> 9 | B48: 35 | E48: $ per kWh electricity savings with respect to grid | G48: 0.2 | L48: ='Grants & Loans'!H51 -> 0
A49: =A48+1 -> 10 | B49: 36 | E49: =CONCATENATE(G46," Grant (Maximum)") -> ETO CHP Grant (Maximum) | G49: 500000 | L49: ='Grants & Loans'!H52 -> 0
A50: =A49+1 -> 11 | B50: 37 | E50: =CONCATENATE(G46," Grant (Maximum Percent)") -> ETO CHP Grant (Maximum Percent) | G50: 0.5
A51: =A50+1 -> 12 | B51: 38 | E51: Years Taken Over | G51: 4
A52: =A51+1 -> 13 | B52: 39 | D52: State Investment Tax Credit | E52: =CONCATENATE(G53," State Tax Credit") -> ODOE EIP State Tax Credit | F52: No | G52: =IFERROR(HLOOKUP($F$14,$H$14:$K$70,B52,FALSE),"") -> 0 | H52: =H229 -> 0 | I52: =I229 -> 0 | J52: =J229 -> 0 | K52: =K229 -> 0 | L52: ='Grants & Loans'!H43 -> 0
A53: =A52+1 -> 14 | B53: 40 | E53: Funder/Description | G53: ODOE EIP
A54: =A53+1 -> 15 | B54: 41 | E54: Grant Order | G54: 3
A55: =A54+1 -> 16 | B55: 42 | E55: Maximum % of Installed Cost Over 5 Years | F55: =SUM(G55:K55) -> 0.35 | G55: 0.1 | H55: 0.1 | I55: 0.05 | J55: 0.05 | K55: 0.05
A56: =A55+1 -> 17 | B56: 43 | E56: =CONCATENATE(G53," Tax Credit (Maximum)") -> ODOE EIP Tax Credit (Maximum) | G56: 5000000 | L56: ='Grants & Loans'!H43 -> 0
A57: =A56+1 -> 18 | B57: 44 | E57: Carry Forward (Years) | G57: 5
B58: 45 | D58: Federal Investment Tax Credit | E58: Federal ITC As Grant | F58: Yes | G58: =IFERROR(HLOOKUP($F$14,$H$14:$K$70,B58,FALSE),"") -> 0 | H58: =H227 -> 0 | I58: =I227 -> 0 | J58: =J227 -> 0 | K58: =K227 -> 0 | L58: ='Grants & Loans'!H33 -> 0
B59: 46 | E59: Funder/Description | G59: 1
B60: 47 | E60: Maximum % of Installed Cost | G60: 0.1
B61: 48 | E61: Applicable Capacity (kW) per 26 USC § 48 | G61: 15000 | L61: ='Grants & Loans'!H31 -> 1
B62: 49 | E62: Federal ITC Maximum Size (kW) | G62: 50000 | L62: ='Grants & Loans'!H32 -> 0
B63: 50 | D63: Lump Sum Grant | E63: =CONCATENATE(G64," Grant") -> Grant | F63: No | G63: =IFERROR(HLOOKUP($F$14,$H$14:$K$70,B63,FALSE),"") -> 0 | H63: =H232 -> 0 | I63: =I232 -> 0 | J63: =J232 -> 0 | K63: =K232 -> 0 | L63: ='Grants & Loans'!H71 -> 0
B64: 51 | E64: Funder/Description
B65: 52 | E65: Grant Order | G65: 5
B66: 53 | E66: =CONCATENATE(E63," Amount") -> Grant Amount | G66: 379250
B67: 54 | D67: Percent Grant | E67: =CONCATENATE(G68," Grant (",ROUND(G70*100,0),"%)") -> Grant (10%) | F67: No | G67: =IFERROR(HLOOKUP($F$14,$H$14:$K$70,B67,FALSE),"") -> 0 | H67: =H233 -> 0 | I67: 0 | J67: 0 | K67: 0
B68: 55 | E68: Funder/Description
B69: 56 | E69: Grant Order | G69: 7
B70: 57 | E70: Percent of Installed Cost | G70: 0.1 | L70: ='Grants & Loans'!H85 -> 0
C72: ='Cost Escalation'!B16 -> ESCALATION RATES ARE RELATIVE TO INFLATION | X72: Button will update all four sensitivity plots, also
D73: COST ESCALATION | F73: =F178 ->  | G73: =F73+1 ->  | H73: =G73+1 ->  | M73: =L73+1 ->  | N73: =M73+1 ->  | O73: =N73+1 ->  | P73: =O73+1 ->  | AF73: Average
C74: Selected Forecast Relative to Inflation | E74: Electricity | F74: =F78 -> 0 | G74: 0 | H74: 0 | I74: 0 | J74: 0 | K74: 0 | L74: 0 | M74: 0 | N74: 0 | O74: 0 | P74: 0 | Q74: 0 | R74: 0 | S74: 0 | T74: 0 | U74: 0 | V74: 0 | W74: 0 | X74: 0 | Y74: 0 | Z74: 0 | AA74: 0 | AB74: 0 | AC74: 0 | AD74: 0 | AE74: 0 | AF74: =AVERAGE(F74:AE74) -> 0
E75: Natural Gas | F75: =F79 -> 0 | G75: 0 | H75: =G75 -> 0 | I75: =H75 -> 0 | J75: 0 | K75: 0 | L75: 0 | M75: 0 | N75: 0 | O75: 0 | P75: 0 | Q75: 0 | R75: 0 | S75: 0 | T75: 0 | U75: 0 | V75: 0 | W75: 0 | X75: 0 | Y75: 0 | Z75: 0 | AA75: 0 | AB75: 0 | AC75: 0 | AD75: 0 | AE75: 0 | AF75: 0
C76: =IF(H405="Industrial","EIA Forecast Relative to General Inflation (Industry)","EIA Forecast Relative to General Inflation (Commercial)") -> EIA Forecast Relative to General Inflation (Commercial) | E76: Electricity | F76: 0 | G76: =IFERROR(G253-General!$D$27,"") ->  | H76: =IFERROR(H253-General!$D$27,"") ->  | I76: =IFERROR(I253-General!$D$27,"") ->  | J76: =IFERROR(J253-General!$D$27,"") ->  | K76: =IFERROR(K253-General!$D$27,"") ->  | L76: =IFERROR(L253-General!$D$27,"") ->  | M76: =IFERROR(M253-General!$D$27,"") ->  | N76: =IFERROR(N253-General!$D$27,"") ->  | O76: =IFERROR(O253-General!$D$27,"") ->  | P76: =IFERROR(P253-General!$D$27,"") ->  | Q76: =IFERROR(Q253-General!$D$27,"") ->  | R76: =IFERROR(R253-General!$D$27,"") ->  | S76: =IFERROR(S253-General!$D$27,"") ->  | T76: =IFERROR(T253-General!$D$27,"") ->  | U76: =IFERROR(U253-General!$D$27,"") ->  | V76: =IFERROR(V253-General!$D$27,"") ->  | W76: =IFERROR(W253-General!$D$27,"") ->  | X76: =IFERROR(X253-General!$D$27,"") ->  | Y76: =IFERROR(Y253-General!$D$27,"") ->  | Z76: =IFERROR(Z253-General!$D$27,"") ->  | AA76: =IFERROR(AA253-General!$D$27,"") ->  | AB76: =IFERROR(AB253-General!$D$27,"") ->  | AC76: =IFERROR(AC253-General!$D$27,"") ->  | AD76: =IFERROR(AD253-General!$D$27,"") ->  | AE76: =IFERROR(AE253-General!$D$27,"") ->  | AF76: 0
E77: Natural Gas | F77: 0 | G77: =IFERROR(G254-General!$D$27,"") ->  | H77: =IFERROR(H254-General!$D$27,"") ->  | I77: =IFERROR(I254-General!$D$27,"") ->  | J77: =IFERROR(J254-General!$D$27,"") ->  | K77: =IFERROR(K254-General!$D$27,"") ->  | L77: =IFERROR(L254-General!$D$27,"") ->  | M77: =IFERROR(M254-General!$D$27,"") ->  | N77: =IFERROR(N254-General!$D$27,"") ->  | O77: =IFERROR(O254-General!$D$27,"") ->  | P77: =IFERROR(P254-General!$D$27,"") ->  | Q77: =IFERROR(Q254-General!$D$27,"") ->  | R77: =IFERROR(R254-General!$D$27,"") ->  | S77: =IFERROR(S254-General!$D$27,"") ->  | T77: =IFERROR(T254-General!$D$27,"") ->  | U77: =IFERROR(U254-General!$D$27,"") ->  | V77: =IFERROR(V254-General!$D$27,"") ->  | W77: =IFERROR(W254-General!$D$27,"") ->  | X77: =IFERROR(X254-General!$D$27,"") ->  | Y77: =IFERROR(Y254-General!$D$27,"") ->  | Z77: =IFERROR(Z254-General!$D$27,"") ->  | AA77: =IFERROR(AA254-General!$D$27,"") ->  | AB77: =IFERROR(AB254-General!$D$27,"") ->  | AC77: =IFERROR(AC254-General!$D$27,"") ->  | AD77: =IFERROR(AD254-General!$D$27,"") ->  | AE77: =IFERROR(AE254-General!$D$27,"") ->  | AF77: 0
C78: =CONCATENATE(C76,", 5 yr ave.") -> EIA Forecast Relative to General Inflation (Commercial), 5 yr ave. | E78: Electricity | F78: 0 | G78: =IFERROR(AVERAGE(G76:K76),"") ->  | H78: =G78 ->  | I78: =H78 ->  | K78: =J78 ->  | L78: =IFERROR(AVERAGE(L76:P76),"") ->  | M78: =L78 ->  | N78: =M78 ->  | O78: =N78 ->  | P78: =O78 ->  | Q78: =IFERROR(AVERAGE(Q76:U76),"") ->  | R78: =Q78 ->  | S78: =R78 ->  | T78: =S78 ->  | U78: =T78 ->  | V78: =IFERROR(AVERAGE(V76:Z76),"") ->  | W78: =V78 ->  | X78: =W78 ->  | Y78: =X78 ->  | Z78: =Y78 ->  | AA78: =IFERROR(AVERAGE(AA76:AE76),"") ->  | AB78: =AA78 ->  | AC78: =AB78 ->  | AD78: =AC78 ->  | AE78: =AD78 ->  | AF78: 0
E79: Natural Gas | F79: 0 | G79: =IFERROR(AVERAGE(G77:K77),"") ->  | H79: =G79 ->  | K79: =J79 ->  | L79: =IFERROR(AVERAGE(L77:P77),"") ->  | P79: =O79 ->  | Q79: =IFERROR(AVERAGE(Q77:U77),"") ->  | R79: =Q79 ->  | U79: =T79 ->  | V79: =IFERROR(AVERAGE(V77:Z77),"") ->  | W79: =V79 ->  | Z79: =Y79 ->  | AA79: =IFERROR(AVERAGE(AA77:AE77),"") ->  | AB79: =AA79 ->  | AE79: =AD79 ->  | AF79: 0
B81: 1 | D81: CHP ANALYSIS | E81: Selected | F81: =CONCATENATE("Scenario ",Scenarios!C19) -> Scenario 1 | H81: Scenario 1 | I81: Scenario 2 | J81: Scenario 3 | K81: Scenario 4 | P81: =P13 -> Scenario 5 | Q81: Scenario 6 | R81: Scenario 7 | S81: Scenario 8 | T81: Scenario 9 | U81: Scenario 10 | X81: Make gray out and state Needs Updating when changed
B82: =B81+1 -> 2 | D82: Project | E82: Project Title | F82: =HLOOKUP($F$81,$H$81:$U$219,B82,FALSE) -> Riverside Hotel | H82: =H14 -> Riverside Hotel | I82: Warm Springs Hospital, Recips | J82: Darrington, Annual Analysis, Thermal, No CHP, 20% ECMs | K82: Darrington, Monthly Analysis, Stirling Engines, 20% ECMs | P82: 0 | Q82: 0 | R82: 0 | S82: 0 | T82: 0 | U82: 0
B83: =B82+1 -> 3 | E83: Description
B84: 4 | E84: Location | H84: =H17 ->  | P84: =P17 -> 
B85: 5 | E85: CHP System Capacity (kW) | X85: Yes
B86: 6 | D86: General | E86: Facility Name | H86: =IFERROR(HLOOKUP(H$14,PrototypeResults,'Project Database'!$C22,FALSE),"") ->  | I86: =IFERROR(HLOOKUP(I$14,PrototypeResults,'Project Database'!$C22,FALSE),"") ->  | J86: =IFERROR(HLOOKUP(J$14,PrototypeResults,'Project Database'!$C22,FALSE),"") ->  | K86: =IFERROR(HLOOKUP(K$14,PrototypeResults,'Project Database'!$C22,FALSE),"") ->  | P86: =IFERROR(HLOOKUP(P$14,PrototypeResults,'Project Database'!$C22,FALSE),"") ->  | Q86: =IFERROR(HLOOKUP(Q$14,PrototypeResults,'Project Database'!$C22,FALSE),"") ->  | R86: =IFERROR(HLOOKUP(R$14,PrototypeResults,'Project Database'!$C22,FALSE),"") ->  | S86: =IFERROR(HLOOKUP(S$14,PrototypeResults,'Project Database'!$C22,FALSE),"") ->  | T86: =IFERROR(HLOOKUP(T$14,PrototypeResults,'Project Database'!$C22,FALSE),"") ->  | U86: =IFERROR(HLOOKUP(U$14,PrototypeResults,'Project Database'!$C22,FALSE),"") -> 
B87: 7 | E87: Alternative Descriptions | H87: =IFERROR(HLOOKUP(H$14,PrototypeResults,'Project Database'!$C23,FALSE),"") ->  | I87: =IFERROR(HLOOKUP(I$14,PrototypeResults,'Project Database'!$C23,FALSE),"") ->  | J87: =IFERROR(HLOOKUP(J$14,PrototypeResults,'Project Database'!$C23,FALSE),"") ->  | K87: =IFERROR(HLOOKUP(K$14,PrototypeResults,'Project Database'!$C23,FALSE),"") ->  | P87: =IFERROR(HLOOKUP(P$14,PrototypeResults,'Project Database'!$C23,FALSE),"") ->  | Q87: =IFERROR(HLOOKUP(Q$14,PrototypeResults,'Project Database'!$C23,FALSE),"") ->  | R87: =IFERROR(HLOOKUP(R$14,PrototypeResults,'Project Database'!$C23,FALSE),"") ->  | S87: =IFERROR(HLOOKUP(S$14,PrototypeResults,'Project Database'!$C23,FALSE),"") ->  | T87: =IFERROR(HLOOKUP(T$14,PrototypeResults,'Project Database'!$C23,FALSE),"") ->  | U87: =IFERROR(HLOOKUP(U$14,PrototypeResults,'Project Database'!$C23,FALSE),"") -> 
B88: 8 | E88: Location (City, State) | H88: =IFERROR(HLOOKUP(H$14,PrototypeResults,'Project Database'!$C24,FALSE),"") ->  | I88: =IFERROR(HLOOKUP(I$14,PrototypeResults,'Project Database'!$C24,FALSE),"") ->  | J88: =IFERROR(HLOOKUP(J$14,PrototypeResults,'Project Database'!$C24,FALSE),"") ->  | K88: =IFERROR(HLOOKUP(K$14,PrototypeResults,'Project Database'!$C24,FALSE),"") ->  | P88: =IFERROR(HLOOKUP(P$14,PrototypeResults,'Project Database'!$C24,FALSE),"") ->  | Q88: =IFERROR(HLOOKUP(Q$14,PrototypeResults,'Project Database'!$C24,FALSE),"") ->  | R88: =IFERROR(HLOOKUP(R$14,PrototypeResults,'Project Database'!$C24,FALSE),"") ->  | S88: =IFERROR(HLOOKUP(S$14,PrototypeResults,'Project Database'!$C24,FALSE),"") ->  | T88: =IFERROR(HLOOKUP(T$14,PrototypeResults,'Project Database'!$C24,FALSE),"") ->  | U88: =IFERROR(HLOOKUP(U$14,PrototypeResults,'Project Database'!$C24,FALSE),"") -> 
B89: 9 | E89: Altitude of location (feet) | H89: =IFERROR(HLOOKUP(H$14,PrototypeResults,'Project Database'!$C25,FALSE),"") ->  | I89: =IFERROR(HLOOKUP(I$14,PrototypeResults,'Project Database'!$C25,FALSE),"") ->  | J89: =IFERROR(HLOOKUP(J$14,PrototypeResults,'Project Database'!$C25,FALSE),"") ->  | K89: =IFERROR(HLOOKUP(K$14,PrototypeResults,'Project Database'!$C25,FALSE),"") ->  | P89: =IFERROR(HLOOKUP(P$14,PrototypeResults,'Project Database'!$C25,FALSE),"") ->  | Q89: =IFERROR(HLOOKUP(Q$14,PrototypeResults,'Project Database'!$C25,FALSE),"") ->  | R89: =IFERROR(HLOOKUP(R$14,PrototypeResults,'Project Database'!$C25,FALSE),"") ->  | S89: =IFERROR(HLOOKUP(S$14,PrototypeResults,'Project Database'!$C25,FALSE),"") ->  | T89: =IFERROR(HLOOKUP(T$14,PrototypeResults,'Project Database'!$C25,FALSE),"") ->  | U89: =IFERROR(HLOOKUP(U$14,PrototypeResults,'Project Database'!$C25,FALSE),"") -> 
B90: 10 | E90: Facility Type | H90: =IFERROR(HLOOKUP(H$14,PrototypeResults,'Project Database'!$C26,FALSE),"") ->  | I90: =IFERROR(HLOOKUP(I$14,PrototypeResults,'Project Database'!$C26,FALSE),"") ->  | J90: =IFERROR(HLOOKUP(J$14,PrototypeResults,'Project Database'!$C26,FALSE),"") ->  | K90: =IFERROR(HLOOKUP(K$14,PrototypeResults,'Project Database'!$C26,FALSE),"") ->  | P90: =IFERROR(HLOOKUP(P$14,PrototypeResults,'Project Database'!$C26,FALSE),"") ->  | Q90: =IFERROR(HLOOKUP(Q$14,PrototypeResults,'Project Database'!$C26,FALSE),"") ->  | R90: =IFERROR(HLOOKUP(R$14,PrototypeResults,'Project Database'!$C26,FALSE),"") ->  | S90: =IFERROR(HLOOKUP(S$14,PrototypeResults,'Project Database'!$C26,FALSE),"") ->  | T90: =IFERROR(HLOOKUP(T$14,PrototypeResults,'Project Database'!$C26,FALSE),"") ->  | U90: =IFERROR(HLOOKUP(U$14,PrototypeResults,'Project Database'!$C26,FALSE),"") -> 
B91: 11 | E91: Electric Utility | H91: =IFERROR(HLOOKUP(H$14,PrototypeResults,'Project Database'!$C27,FALSE),"") ->  | I91: =IFERROR(HLOOKUP(I$14,PrototypeResults,'Project Database'!$C27,FALSE),"") ->  | J91: =IFERROR(HLOOKUP(J$14,PrototypeResults,'Project Database'!$C27,FALSE),"") ->  | K91: =IFERROR(HLOOKUP(K$14,PrototypeResults,'Project Database'!$C27,FALSE),"") ->  | P91: =IFERROR(HLOOKUP(P$14,PrototypeResults,'Project Database'!$C27,FALSE),"") ->  | Q91: =IFERROR(HLOOKUP(Q$14,PrototypeResults,'Project Database'!$C27,FALSE),"") ->  | R91: =IFERROR(HLOOKUP(R$14,PrototypeResults,'Project Database'!$C27,FALSE),"") ->  | S91: =IFERROR(HLOOKUP(S$14,PrototypeResults,'Project Database'!$C27,FALSE),"") ->  | T91: =IFERROR(HLOOKUP(T$14,PrototypeResults,'Project Database'!$C27,FALSE),"") ->  | U91: =IFERROR(HLOOKUP(U$14,PrototypeResults,'Project Database'!$C27,FALSE),"") -> 
B92: 12 | E92: Fuel Utility | H92: =IFERROR(HLOOKUP(H$14,PrototypeResults,'Project Database'!$C28,FALSE),"") ->  | I92: =IFERROR(HLOOKUP(I$14,PrototypeResults,'Project Database'!$C28,FALSE),"") ->  | J92: =IFERROR(HLOOKUP(J$14,PrototypeResults,'Project Database'!$C28,FALSE),"") ->  | K92: =IFERROR(HLOOKUP(K$14,PrototypeResults,'Project Database'!$C28,FALSE),"") ->  | P92: =IFERROR(HLOOKUP(P$14,PrototypeResults,'Project Database'!$C28,FALSE),"") ->  | Q92: =IFERROR(HLOOKUP(Q$14,PrototypeResults,'Project Database'!$C28,FALSE),"") ->  | R92: =IFERROR(HLOOKUP(R$14,PrototypeResults,'Project Database'!$C28,FALSE),"") ->  | S92: =IFERROR(HLOOKUP(S$14,PrototypeResults,'Project Database'!$C28,FALSE),"") ->  | T92: =IFERROR(HLOOKUP(T$14,PrototypeResults,'Project Database'!$C28,FALSE),"") ->  | U92: =IFERROR(HLOOKUP(U$14,PrototypeResults,'Project Database'!$C28,FALSE),"") -> 
B93: 13 | E93: Average Demand / Peak Demand | H93: =IFERROR(HLOOKUP(H$14,PrototypeResults,'Project Database'!$C29,FALSE),"") ->  | I93: =IFERROR(HLOOKUP(I$14,PrototypeResults,'Project Database'!$C29,FALSE),"") ->  | J93: =IFERROR(HLOOKUP(J$14,PrototypeResults,'Project Database'!$C29,FALSE),"") ->  | K93: =IFERROR(HLOOKUP(K$14,PrototypeResults,'Project Database'!$C29,FALSE),"") ->  | P93: =IFERROR(HLOOKUP(P$14,PrototypeResults,'Project Database'!$C29,FALSE),"") ->  | Q93: =IFERROR(HLOOKUP(Q$14,PrototypeResults,'Project Database'!$C29,FALSE),"") ->  | R93: =IFERROR(HLOOKUP(R$14,PrototypeResults,'Project Database'!$C29,FALSE),"") ->  | S93: =IFERROR(HLOOKUP(S$14,PrototypeResults,'Project Database'!$C29,FALSE),"") ->  | T93: =IFERROR(HLOOKUP(T$14,PrototypeResults,'Project Database'!$C29,FALSE),"") ->  | U93: =IFERROR(HLOOKUP(U$14,PrototypeResults,'Project Database'!$C29,FALSE),"") -> 
B94: 14 | E94: ='Project Database'!F30 -> Floor Area, # of Units, or Other Indication of Size) | H94: =IFERROR(HLOOKUP(H$14,PrototypeResults,'Project Database'!$C30,FALSE),"") ->  | I94: =IFERROR(HLOOKUP(I$14,PrototypeResults,'Project Database'!$C30,FALSE),"") ->  | J94: =IFERROR(HLOOKUP(J$14,PrototypeResults,'Project Database'!$C30,FALSE),"") ->  | K94: =IFERROR(HLOOKUP(K$14,PrototypeResults,'Project Database'!$C30,FALSE),"") ->  | P94: =IFERROR(HLOOKUP(P$14,PrototypeResults,'Project Database'!$C30,FALSE),"") ->  | Q94: =IFERROR(HLOOKUP(Q$14,PrototypeResults,'Project Database'!$C30,FALSE),"") ->  | R94: =IFERROR(HLOOKUP(R$14,PrototypeResults,'Project Database'!$C30,FALSE),"") ->  | S94: =IFERROR(HLOOKUP(S$14,PrototypeResults,'Project Database'!$C30,FALSE),"") ->  | T94: =IFERROR(HLOOKUP(T$14,PrototypeResults,'Project Database'!$C30,FALSE),"") ->  | U94: =IFERROR(HLOOKUP(U$14,PrototypeResults,'Project Database'!$C30,FALSE),"") -> 
B95: 15 | E95: If WWTF, Treatment Volume, MGD | H95: =IFERROR(HLOOKUP(H$14,PrototypeResults,'Project Database'!$C31,FALSE),"") ->  | I95: =IFERROR(HLOOKUP(I$14,PrototypeResults,'Project Database'!$C31,FALSE),"") ->  | J95: =IFERROR(HLOOKUP(J$14,PrototypeResults,'Project Database'!$C31,FALSE),"") ->  | K95: =IFERROR(HLOOKUP(K$14,PrototypeResults,'Project Database'!$C31,FALSE),"") ->  | P95: =IFERROR(HLOOKUP(P$14,PrototypeResults,'Project Database'!$C31,FALSE),"") ->  | Q95: =IFERROR(HLOOKUP(Q$14,PrototypeResults,'Project Database'!$C31,FALSE),"") ->  | R95: =IFERROR(HLOOKUP(R$14,PrototypeResults,'Project Database'!$C31,FALSE),"") ->  | S95: =IFERROR(HLOOKUP(S$14,PrototypeResults,'Project Database'!$C31,FALSE),"") ->  | T95: =IFERROR(HLOOKUP(T$14,PrototypeResults,'Project Database'!$C31,FALSE),"") ->  | U95: =IFERROR(HLOOKUP(U$14,PrototypeResults,'Project Database'!$C31,FALSE),"") -> 
B96: 16 | E96: Analysis | H96: =IFERROR(HLOOKUP(H$14,PrototypeResults,'Project Database'!$C32,FALSE),"") ->  | I96: =IFERROR(HLOOKUP(I$14,PrototypeResults,'Project Database'!$C32,FALSE),"") ->  | J96: =IFERROR(HLOOKUP(J$14,PrototypeResults,'Project Database'!$C32,FALSE),"") ->  | K96: =IFERROR(HLOOKUP(K$14,PrototypeResults,'Project Database'!$C32,FALSE),"") ->  | P96: =IFERROR(HLOOKUP(P$14,PrototypeResults,'Project Database'!$C32,FALSE),"") ->  | Q96: =IFERROR(HLOOKUP(Q$14,PrototypeResults,'Project Database'!$C32,FALSE),"") ->  | R96: =IFERROR(HLOOKUP(R$14,PrototypeResults,'Project Database'!$C32,FALSE),"") ->  | S96: =IFERROR(HLOOKUP(S$14,PrototypeResults,'Project Database'!$C32,FALSE),"") ->  | T96: =IFERROR(HLOOKUP(T$14,PrototypeResults,'Project Database'!$C32,FALSE),"") ->  | U96: =IFERROR(HLOOKUP(U$14,PrototypeResults,'Project Database'!$C32,FALSE),"") -> 
B97: 17 | C97: CHP Screening Tool Inputs & Results | D97: CHP System & Performance | E97: Prime Mover Technology | H97: =IFERROR(HLOOKUP(H$14,PrototypeResults,'Project Database'!$C33,FALSE),"") ->  | I97: =IFERROR(HLOOKUP(I$14,PrototypeResults,'Project Database'!$C33,FALSE),"") ->  | J97: =IFERROR(HLOOKUP(J$14,PrototypeResults,'Project Database'!$C33,FALSE),"") ->  | K97: =IFERROR(HLOOKUP(K$14,PrototypeResults,'Project Database'!$C33,FALSE),"") ->  | P97: =IFERROR(HLOOKUP(P$14,PrototypeResults,'Project Database'!$C33,FALSE),"") ->  | Q97: =IFERROR(HLOOKUP(Q$14,PrototypeResults,'Project Database'!$C33,FALSE),"") ->  | R97: =IFERROR(HLOOKUP(R$14,PrototypeResults,'Project Database'!$C33,FALSE),"") ->  | S97: =IFERROR(HLOOKUP(S$14,PrototypeResults,'Project Database'!$C33,FALSE),"") ->  | T97: =IFERROR(HLOOKUP(T$14,PrototypeResults,'Project Database'!$C33,FALSE),"") ->  | U97: =IFERROR(HLOOKUP(U$14,PrototypeResults,'Project Database'!$C33,FALSE),"") -> 
B98: 18 | E98: Prime Mover Description | H98: =IFERROR(HLOOKUP(H$14,PrototypeResults,'Project Database'!$C34,FALSE),"") ->  | I98: =IFERROR(HLOOKUP(I$14,PrototypeResults,'Project Database'!$C34,FALSE),"") ->  | J98: =IFERROR(HLOOKUP(J$14,PrototypeResults,'Project Database'!$C34,FALSE),"") ->  | K98: =IFERROR(HLOOKUP(K$14,PrototypeResults,'Project Database'!$C34,FALSE),"") ->  | P98: =IFERROR(HLOOKUP(P$14,PrototypeResults,'Project Database'!$C34,FALSE),"") ->  | Q98: =IFERROR(HLOOKUP(Q$14,PrototypeResults,'Project Database'!$C34,FALSE),"") ->  | R98: =IFERROR(HLOOKUP(R$14,PrototypeResults,'Project Database'!$C34,FALSE),"") ->  | S98: =IFERROR(HLOOKUP(S$14,PrototypeResults,'Project Database'!$C34,FALSE),"") ->  | T98: =IFERROR(HLOOKUP(T$14,PrototypeResults,'Project Database'!$C34,FALSE),"") ->  | U98: =IFERROR(HLOOKUP(U$14,PrototypeResults,'Project Database'!$C34,FALSE),"") -> 
B99: 19 | E99: Number of Units | H99: =IFERROR(HLOOKUP(H$14,PrototypeResults,'Project Database'!$C35,FALSE),"") ->  | I99: =IFERROR(HLOOKUP(I$14,PrototypeResults,'Project Database'!$C35,FALSE),"") ->  | J99: =IFERROR(HLOOKUP(J$14,PrototypeResults,'Project Database'!$C35,FALSE),"") ->  | K99: =IFERROR(HLOOKUP(K$14,PrototypeResults,'Project Database'!$C35,FALSE),"") ->  | P99: =IFERROR(HLOOKUP(P$14,PrototypeResults,'Project Database'!$C35,FALSE),"") ->  | Q99: =IFERROR(HLOOKUP(Q$14,PrototypeResults,'Project Database'!$C35,FALSE),"") ->  | R99: =IFERROR(HLOOKUP(R$14,PrototypeResults,'Project Database'!$C35,FALSE),"") ->  | S99: =IFERROR(HLOOKUP(S$14,PrototypeResults,'Project Database'!$C35,FALSE),"") ->  | T99: =IFERROR(HLOOKUP(T$14,PrototypeResults,'Project Database'!$C35,FALSE),"") ->  | U99: =IFERROR(HLOOKUP(U$14,PrototypeResults,'Project Database'!$C35,FALSE),"") -> 
B100: 20 | E100: CHP Rated Capacity, kW | H100: =IFERROR(HLOOKUP(H$14,PrototypeResults,'Project Database'!$C36,FALSE),"") ->  | I100: =IFERROR(HLOOKUP(I$14,PrototypeResults,'Project Database'!$C36,FALSE),"") ->  | J100: =IFERROR(HLOOKUP(J$14,PrototypeResults,'Project Database'!$C36,FALSE),"") ->  | K100: =IFERROR(HLOOKUP(K$14,PrototypeResults,'Project Database'!$C36,FALSE),"") ->  | P100: =IFERROR(HLOOKUP(P$14,PrototypeResults,'Project Database'!$C36,FALSE),"") ->  | Q100: =IFERROR(HLOOKUP(Q$14,PrototypeResults,'Project Database'!$C36,FALSE),"") ->  | R100: =IFERROR(HLOOKUP(R$14,PrototypeResults,'Project Database'!$C36,FALSE),"") ->  | S100: =IFERROR(HLOOKUP(S$14,PrototypeResults,'Project Database'!$C36,FALSE),"") ->  | T100: =IFERROR(HLOOKUP(T$14,PrototypeResults,'Project Database'!$C36,FALSE),"") ->  | U100: =IFERROR(HLOOKUP(U$14,PrototypeResults,'Project Database'!$C36,FALSE),"") -> 
B101: 21 | E101: CHP Net Electric OUtput, kW (derated) | H101: =IFERROR(HLOOKUP(H$14,PrototypeResults,'Project Database'!$C37,FALSE),"") ->  | I101: =IFERROR(HLOOKUP(I$14,PrototypeResults,'Project Database'!$C37,FALSE),"") ->  | J101: =IFERROR(HLOOKUP(J$14,PrototypeResults,'Project Database'!$C37,FALSE),"") ->  | K101: =IFERROR(HLOOKUP(K$14,PrototypeResults,'Project Database'!$C37,FALSE),"") ->  | P101: =IFERROR(HLOOKUP(P$14,PrototypeResults,'Project Database'!$C37,FALSE),"") ->  | Q101: =IFERROR(HLOOKUP(Q$14,PrototypeResults,'Project Database'!$C37,FALSE),"") ->  | R101: =IFERROR(HLOOKUP(R$14,PrototypeResults,'Project Database'!$C37,FALSE),"") ->  | S101: =IFERROR(HLOOKUP(S$14,PrototypeResults,'Project Database'!$C37,FALSE),"") ->  | T101: =IFERROR(HLOOKUP(T$14,PrototypeResults,'Project Database'!$C37,FALSE),"") ->  | U101: =IFERROR(HLOOKUP(U$14,PrototypeResults,'Project Database'!$C37,FALSE),"") -> 
B102: 22 | E102: Electric Heat Rate, Btu/kWh | H102: =IFERROR(HLOOKUP(H$14,PrototypeResults,'Project Database'!$C38,FALSE),"") ->  | I102: =IFERROR(HLOOKUP(I$14,PrototypeResults,'Project Database'!$C38,FALSE),"") ->  | J102: =IFERROR(HLOOKUP(J$14,PrototypeResults,'Project Database'!$C38,FALSE),"") ->  | K102: =IFERROR(HLOOKUP(K$14,PrototypeResults,'Project Database'!$C38,FALSE),"") ->  | P102: =IFERROR(HLOOKUP(P$14,PrototypeResults,'Project Database'!$C38,FALSE),"") ->  | Q102: =IFERROR(HLOOKUP(Q$14,PrototypeResults,'Project Database'!$C38,FALSE),"") ->  | R102: =IFERROR(HLOOKUP(R$14,PrototypeResults,'Project Database'!$C38,FALSE),"") ->  | S102: =IFERROR(HLOOKUP(S$14,PrototypeResults,'Project Database'!$C38,FALSE),"") ->  | T102: =IFERROR(HLOOKUP(T$14,PrototypeResults,'Project Database'!$C38,FALSE),"") ->  | U102: =IFERROR(HLOOKUP(U$14,PrototypeResults,'Project Database'!$C38,FALSE),"") -> 
B103: 23 | E103: Thermal Output, Btu/kWh | H103: =IFERROR(HLOOKUP(H$14,PrototypeResults,'Project Database'!$C39,FALSE),"") ->  | I103: =IFERROR(HLOOKUP(I$14,PrototypeResults,'Project Database'!$C39,FALSE),"") ->  | J103: =IFERROR(HLOOKUP(J$14,PrototypeResults,'Project Database'!$C39,FALSE),"") ->  | K103: =IFERROR(HLOOKUP(K$14,PrototypeResults,'Project Database'!$C39,FALSE),"") ->  | P103: =IFERROR(HLOOKUP(P$14,PrototypeResults,'Project Database'!$C39,FALSE),"") ->  | Q103: =IFERROR(HLOOKUP(Q$14,PrototypeResults,'Project Database'!$C39,FALSE),"") ->  | R103: =IFERROR(HLOOKUP(R$14,PrototypeResults,'Project Database'!$C39,FALSE),"") ->  | S103: =IFERROR(HLOOKUP(S$14,PrototypeResults,'Project Database'!$C39,FALSE),"") ->  | T103: =IFERROR(HLOOKUP(T$14,PrototypeResults,'Project Database'!$C39,FALSE),"") ->  | U103: =IFERROR(HLOOKUP(U$14,PrototypeResults,'Project Database'!$C39,FALSE),"") -> 
B104: 24 | E104: Electric Efficiency, % | H104: =IFERROR(HLOOKUP(H$14,PrototypeResults,'Project Database'!$C40,FALSE),"") ->  | I104: =IFERROR(HLOOKUP(I$14,PrototypeResults,'Project Database'!$C40,FALSE),"") ->  | J104: =IFERROR(HLOOKUP(J$14,PrototypeResults,'Project Database'!$C40,FALSE),"") ->  | K104: =IFERROR(HLOOKUP(K$14,PrototypeResults,'Project Database'!$C40,FALSE),"") ->  | P104: =IFERROR(HLOOKUP(P$14,PrototypeResults,'Project Database'!$C40,FALSE),"") ->  | Q104: =IFERROR(HLOOKUP(Q$14,PrototypeResults,'Project Database'!$C40,FALSE),"") ->  | R104: =IFERROR(HLOOKUP(R$14,PrototypeResults,'Project Database'!$C40,FALSE),"") ->  | S104: =IFERROR(HLOOKUP(S$14,PrototypeResults,'Project Database'!$C40,FALSE),"") ->  | T104: =IFERROR(HLOOKUP(T$14,PrototypeResults,'Project Database'!$C40,FALSE),"") ->  | U104: =IFERROR(HLOOKUP(U$14,PrototypeResults,'Project Database'!$C40,FALSE),"") -> 
B105: 25 | E105: CHP Efficiency (%) | H105: =IFERROR(HLOOKUP(H$14,PrototypeResults,'Project Database'!$C41,FALSE),"") ->  | I105: =IFERROR(HLOOKUP(I$14,PrototypeResults,'Project Database'!$C41,FALSE),"") ->  | J105: =IFERROR(HLOOKUP(J$14,PrototypeResults,'Project Database'!$C41,FALSE),"") ->  | K105: =IFERROR(HLOOKUP(K$14,PrototypeResults,'Project Database'!$C41,FALSE),"") ->  | P105: =IFERROR(HLOOKUP(P$14,PrototypeResults,'Project Database'!$C41,FALSE),"") ->  | Q105: =IFERROR(HLOOKUP(Q$14,PrototypeResults,'Project Database'!$C41,FALSE),"") ->  | R105: =IFERROR(HLOOKUP(R$14,PrototypeResults,'Project Database'!$C41,FALSE),"") ->  | S105: =IFERROR(HLOOKUP(S$14,PrototypeResults,'Project Database'!$C41,FALSE),"") ->  | T105: =IFERROR(HLOOKUP(T$14,PrototypeResults,'Project Database'!$C41,FALSE),"") ->  | U105: =IFERROR(HLOOKUP(U$14,PrototypeResults,'Project Database'!$C41,FALSE),"") -> 
B106: 26 | D106: Loads | E106: Thermal Needs Served by CHP | H106: =IFERROR(HLOOKUP(H$14,PrototypeResults,'Project Database'!$C42,FALSE),"") ->  | I106: =IFERROR(HLOOKUP(I$14,PrototypeResults,'Project Database'!$C42,FALSE),"") ->  | J106: =IFERROR(HLOOKUP(J$14,PrototypeResults,'Project Database'!$C42,FALSE),"") ->  | K106: =IFERROR(HLOOKUP(K$14,PrototypeResults,'Project Database'!$C42,FALSE),"") ->  | P106: =IFERROR(HLOOKUP(P$14,PrototypeResults,'Project Database'!$C42,FALSE),"") ->  | Q106: =IFERROR(HLOOKUP(Q$14,PrototypeResults,'Project Database'!$C42,FALSE),"") ->  | R106: =IFERROR(HLOOKUP(R$14,PrototypeResults,'Project Database'!$C42,FALSE),"") ->  | S106: =IFERROR(HLOOKUP(S$14,PrototypeResults,'Project Database'!$C42,FALSE),"") ->  | T106: =IFERROR(HLOOKUP(T$14,PrototypeResults,'Project Database'!$C42,FALSE),"") ->  | U106: =IFERROR(HLOOKUP(U$14,PrototypeResults,'Project Database'!$C42,FALSE),"") -> 
B107: 27 | E107: Average Hourly Electric Demand (kW) | H107: =IFERROR(HLOOKUP(H$14,PrototypeResults,'Project Database'!$C43,FALSE),"") ->  | I107: =IFERROR(HLOOKUP(I$14,PrototypeResults,'Project Database'!$C43,FALSE),"") ->  | J107: =IFERROR(HLOOKUP(J$14,PrototypeResults,'Project Database'!$C43,FALSE),"") ->  | K107: =IFERROR(HLOOKUP(K$14,PrototypeResults,'Project Database'!$C43,FALSE),"") ->  | P107: =IFERROR(HLOOKUP(P$14,PrototypeResults,'Project Database'!$C43,FALSE),"") ->  | Q107: =IFERROR(HLOOKUP(Q$14,PrototypeResults,'Project Database'!$C43,FALSE),"") ->  | R107: =IFERROR(HLOOKUP(R$14,PrototypeResults,'Project Database'!$C43,FALSE),"") ->  | S107: =IFERROR(HLOOKUP(S$14,PrototypeResults,'Project Database'!$C43,FALSE),"") ->  | T107: =IFERROR(HLOOKUP(T$14,PrototypeResults,'Project Database'!$C43,FALSE),"") ->  | U107: =IFERROR(HLOOKUP(U$14,PrototypeResults,'Project Database'!$C43,FALSE),"") -> 
B108: 28 | E108: Maximum Electric Demand | H108: =IFERROR(HLOOKUP(H$14,PrototypeResults,'Project Database'!$C44,FALSE),"") ->  | I108: =IFERROR(HLOOKUP(I$14,PrototypeResults,'Project Database'!$C44,FALSE),"") ->  | J108: =IFERROR(HLOOKUP(J$14,PrototypeResults,'Project Database'!$C44,FALSE),"") ->  | K108: =IFERROR(HLOOKUP(K$14,PrototypeResults,'Project Database'!$C44,FALSE),"") ->  | P108: =IFERROR(HLOOKUP(P$14,PrototypeResults,'Project Database'!$C44,FALSE),"") ->  | Q108: =IFERROR(HLOOKUP(Q$14,PrototypeResults,'Project Database'!$C44,FALSE),"") ->  | R108: =IFERROR(HLOOKUP(R$14,PrototypeResults,'Project Database'!$C44,FALSE),"") ->  | S108: =IFERROR(HLOOKUP(S$14,PrototypeResults,'Project Database'!$C44,FALSE),"") ->  | T108: =IFERROR(HLOOKUP(T$14,PrototypeResults,'Project Database'!$C44,FALSE),"") ->  | U108: =IFERROR(HLOOKUP(U$14,PrototypeResults,'Project Database'!$C44,FALSE),"") -> 
B109: 29 | E109: Minimum Electric Demand | H109: =IFERROR(HLOOKUP(H$14,PrototypeResults,'Project Database'!$C45,FALSE),"") ->  | I109: =IFERROR(HLOOKUP(I$14,PrototypeResults,'Project Database'!$C45,FALSE),"") ->  | J109: =IFERROR(HLOOKUP(J$14,PrototypeResults,'Project Database'!$C45,FALSE),"") ->  | K109: =IFERROR(HLOOKUP(K$14,PrototypeResults,'Project Database'!$C45,FALSE),"") ->  | P109: =IFERROR(HLOOKUP(P$14,PrototypeResults,'Project Database'!$C45,FALSE),"") ->  | Q109: =IFERROR(HLOOKUP(Q$14,PrototypeResults,'Project Database'!$C45,FALSE),"") ->  | R109: =IFERROR(HLOOKUP(R$14,PrototypeResults,'Project Database'!$C45,FALSE),"") ->  | S109: =IFERROR(HLOOKUP(S$14,PrototypeResults,'Project Database'!$C45,FALSE),"") ->  | T109: =IFERROR(HLOOKUP(T$14,PrototypeResults,'Project Database'!$C45,FALSE),"") ->  | U109: =IFERROR(HLOOKUP(U$14,PrototypeResults,'Project Database'!$C45,FALSE),"") -> 
B110: 30 | E110: Average Hourly Thermal Demand (MMBtu/hr) | H110: =IFERROR(HLOOKUP(H$14,PrototypeResults,'Project Database'!$C46,FALSE),"") ->  | I110: =IFERROR(HLOOKUP(I$14,PrototypeResults,'Project Database'!$C46,FALSE),"") ->  | J110: =IFERROR(HLOOKUP(J$14,PrototypeResults,'Project Database'!$C46,FALSE),"") ->  | K110: =IFERROR(HLOOKUP(K$14,PrototypeResults,'Project Database'!$C46,FALSE),"") ->  | P110: =IFERROR(HLOOKUP(P$14,PrototypeResults,'Project Database'!$C46,FALSE),"") ->  | Q110: =IFERROR(HLOOKUP(Q$14,PrototypeResults,'Project Database'!$C46,FALSE),"") ->  | R110: =IFERROR(HLOOKUP(R$14,PrototypeResults,'Project Database'!$C46,FALSE),"") ->  | S110: =IFERROR(HLOOKUP(S$14,PrototypeResults,'Project Database'!$C46,FALSE),"") ->  | T110: =IFERROR(HLOOKUP(T$14,PrototypeResults,'Project Database'!$C46,FALSE),"") ->  | U110: =IFERROR(HLOOKUP(U$14,PrototypeResults,'Project Database'!$C46,FALSE),"") -> 
B111: 31 | E111: Minimum Average Hourly Thermal Demand (MMBtu/hr) | H111: =IFERROR(HLOOKUP(H$14,PrototypeResults,'Project Database'!$C47,FALSE),"") ->  | I111: =IFERROR(HLOOKUP(I$14,PrototypeResults,'Project Database'!$C47,FALSE),"") ->  | J111: =IFERROR(HLOOKUP(J$14,PrototypeResults,'Project Database'!$C47,FALSE),"") ->  | K111: =IFERROR(HLOOKUP(K$14,PrototypeResults,'Project Database'!$C47,FALSE),"") ->  | P111: =IFERROR(HLOOKUP(P$14,PrototypeResults,'Project Database'!$C47,FALSE),"") ->  | Q111: =IFERROR(HLOOKUP(Q$14,PrototypeResults,'Project Database'!$C47,FALSE),"") ->  | R111: =IFERROR(HLOOKUP(R$14,PrototypeResults,'Project Database'!$C47,FALSE),"") ->  | S111: =IFERROR(HLOOKUP(S$14,PrototypeResults,'Project Database'!$C47,FALSE),"") ->  | T111: =IFERROR(HLOOKUP(T$14,PrototypeResults,'Project Database'!$C47,FALSE),"") ->  | U111: =IFERROR(HLOOKUP(U$14,PrototypeResults,'Project Database'!$C47,FALSE),"") -> 
B112: 32 | D112: Operation | E112: Operating Hours | H112: =IFERROR(HLOOKUP(H$14,PrototypeResults,'Project Database'!$C48,FALSE),"") ->  | I112: =IFERROR(HLOOKUP(I$14,PrototypeResults,'Project Database'!$C48,FALSE),"") ->  | J112: =IFERROR(HLOOKUP(J$14,PrototypeResults,'Project Database'!$C48,FALSE),"") ->  | K112: =IFERROR(HLOOKUP(K$14,PrototypeResults,'Project Database'!$C48,FALSE),"") ->  | P112: =IFERROR(HLOOKUP(P$14,PrototypeResults,'Project Database'!$C48,FALSE),"") ->  | Q112: =IFERROR(HLOOKUP(Q$14,PrototypeResults,'Project Database'!$C48,FALSE),"") ->  | R112: =IFERROR(HLOOKUP(R$14,PrototypeResults,'Project Database'!$C48,FALSE),"") ->  | S112: =IFERROR(HLOOKUP(S$14,PrototypeResults,'Project Database'!$C48,FALSE),"") ->  | T112: =IFERROR(HLOOKUP(T$14,PrototypeResults,'Project Database'!$C48,FALSE),"") ->  | U112: =IFERROR(HLOOKUP(U$14,PrototypeResults,'Project Database'!$C48,FALSE),"") -> 
B113: 33 | E113: CHP Availability (%) | H113: =IFERROR(HLOOKUP(H$14,PrototypeResults,'Project Database'!$C49,FALSE),"") ->  | I113: =IFERROR(HLOOKUP(I$14,PrototypeResults,'Project Database'!$C49,FALSE),"") ->  | J113: =IFERROR(HLOOKUP(J$14,PrototypeResults,'Project Database'!$C49,FALSE),"") ->  | K113: =IFERROR(HLOOKUP(K$14,PrototypeResults,'Project Database'!$C49,FALSE),"") ->  | P113: =IFERROR(HLOOKUP(P$14,PrototypeResults,'Project Database'!$C49,FALSE),"") ->  | Q113: =IFERROR(HLOOKUP(Q$14,PrototypeResults,'Project Database'!$C49,FALSE),"") ->  | R113: =IFERROR(HLOOKUP(R$14,PrototypeResults,'Project Database'!$C49,FALSE),"") ->  | S113: =IFERROR(HLOOKUP(S$14,PrototypeResults,'Project Database'!$C49,FALSE),"") ->  | T113: =IFERROR(HLOOKUP(T$14,PrototypeResults,'Project Database'!$C49,FALSE),"") ->  | U113: =IFERROR(HLOOKUP(U$14,PrototypeResults,'Project Database'!$C49,FALSE),"") -> 
B114: 34 | E114: Operation in First Year (%) | F114: =HLOOKUP($F$81,$H$81:$U$219,B114,FALSE) ->  | H114: =IFERROR(HLOOKUP(H$14,PrototypeResults,'Project Database'!$C50,FALSE),"") ->  | I114: =IFERROR(HLOOKUP(I$14,PrototypeResults,'Project Database'!$C50,FALSE),"") ->  | J114: =IFERROR(HLOOKUP(J$14,PrototypeResults,'Project Database'!$C50,FALSE),"") ->  | K114: =IFERROR(HLOOKUP(K$14,PrototypeResults,'Project Database'!$C50,FALSE),"") ->  | P114: =IFERROR(HLOOKUP(P$14,PrototypeResults,'Project Database'!$C50,FALSE),"") ->  | Q114: =IFERROR(HLOOKUP(Q$14,PrototypeResults,'Project Database'!$C50,FALSE),"") ->  | R114: =IFERROR(HLOOKUP(R$14,PrototypeResults,'Project Database'!$C50,FALSE),"") ->  | S114: =IFERROR(HLOOKUP(S$14,PrototypeResults,'Project Database'!$C50,FALSE),"") ->  | T114: =IFERROR(HLOOKUP(T$14,PrototypeResults,'Project Database'!$C50,FALSE),"") ->  | U114: =IFERROR(HLOOKUP(U$14,PrototypeResults,'Project Database'!$C50,FALSE),"") -> 
B115: 35 | E115: Offsetting Boiler Efficiency (%) | H115: =IFERROR(HLOOKUP(H$14,PrototypeResults,'Project Database'!$C51,FALSE),"") ->  | I115: =IFERROR(HLOOKUP(I$14,PrototypeResults,'Project Database'!$C51,FALSE),"") ->  | J115: =IFERROR(HLOOKUP(J$14,PrototypeResults,'Project Database'!$C51,FALSE),"") ->  | K115: =IFERROR(HLOOKUP(K$14,PrototypeResults,'Project Database'!$C51,FALSE),"") ->  | P115: =IFERROR(HLOOKUP(P$14,PrototypeResults,'Project Database'!$C51,FALSE),"") ->  | Q115: =IFERROR(HLOOKUP(Q$14,PrototypeResults,'Project Database'!$C51,FALSE),"") ->  | R115: =IFERROR(HLOOKUP(R$14,PrototypeResults,'Project Database'!$C51,FALSE),"") ->  | S115: =IFERROR(HLOOKUP(S$14,PrototypeResults,'Project Database'!$C51,FALSE),"") ->  | T115: =IFERROR(HLOOKUP(T$14,PrototypeResults,'Project Database'!$C51,FALSE),"") ->  | U115: =IFERROR(HLOOKUP(U$14,PrototypeResults,'Project Database'!$C51,FALSE),"") -> 
B116: 36 | E116: Operating Strategy | H116: =IFERROR(HLOOKUP(H$14,PrototypeResults,'Project Database'!$C52,FALSE),"") ->  | I116: =IFERROR(HLOOKUP(I$14,PrototypeResults,'Project Database'!$C52,FALSE),"") ->  | J116: =IFERROR(HLOOKUP(J$14,PrototypeResults,'Project Database'!$C52,FALSE),"") ->  | K116: =IFERROR(HLOOKUP(K$14,PrototypeResults,'Project Database'!$C52,FALSE),"") ->  | P116: =IFERROR(HLOOKUP(P$14,PrototypeResults,'Project Database'!$C52,FALSE),"") ->  | Q116: =IFERROR(HLOOKUP(Q$14,PrototypeResults,'Project Database'!$C52,FALSE),"") ->  | R116: =IFERROR(HLOOKUP(R$14,PrototypeResults,'Project Database'!$C52,FALSE),"") ->  | S116: =IFERROR(HLOOKUP(S$14,PrototypeResults,'Project Database'!$C52,FALSE),"") ->  | T116: =IFERROR(HLOOKUP(T$14,PrototypeResults,'Project Database'!$C52,FALSE),"") ->  | U116: =IFERROR(HLOOKUP(U$14,PrototypeResults,'Project Database'!$C52,FALSE),"") -> 
B117: 37 | E117: Average operation as percent of derated installed capacity | H117: =IFERROR(HLOOKUP(H$14,PrototypeResults,'Project Database'!$C53,FALSE),"") ->  | I117: =IFERROR(HLOOKUP(I$14,PrototypeResults,'Project Database'!$C53,FALSE),"") ->  | J117: =IFERROR(HLOOKUP(J$14,PrototypeResults,'Project Database'!$C53,FALSE),"") ->  | K117: =IFERROR(HLOOKUP(K$14,PrototypeResults,'Project Database'!$C53,FALSE),"") ->  | P117: =IFERROR(HLOOKUP(P$14,PrototypeResults,'Project Database'!$C53,FALSE),"") ->  | Q117: =IFERROR(HLOOKUP(Q$14,PrototypeResults,'Project Database'!$C53,FALSE),"") ->  | R117: =IFERROR(HLOOKUP(R$14,PrototypeResults,'Project Database'!$C53,FALSE),"") ->  | S117: =IFERROR(HLOOKUP(S$14,PrototypeResults,'Project Database'!$C53,FALSE),"") ->  | T117: =IFERROR(HLOOKUP(T$14,PrototypeResults,'Project Database'!$C53,FALSE),"") ->  | U117: =IFERROR(HLOOKUP(U$14,PrototypeResults,'Project Database'!$C53,FALSE),"") -> 
B118: 38 | E118: Percent Electrical Loads Met | H118: =IFERROR(HLOOKUP(H$14,PrototypeResults,'Project Database'!$C54,FALSE),"") ->  | I118: =IFERROR(HLOOKUP(I$14,PrototypeResults,'Project Database'!$C54,FALSE),"") ->  | J118: =IFERROR(HLOOKUP(J$14,PrototypeResults,'Project Database'!$C54,FALSE),"") ->  | K118: =IFERROR(HLOOKUP(K$14,PrototypeResults,'Project Database'!$C54,FALSE),"") ->  | P118: =IFERROR(HLOOKUP(P$14,PrototypeResults,'Project Database'!$C54,FALSE),"") ->  | Q118: =IFERROR(HLOOKUP(Q$14,PrototypeResults,'Project Database'!$C54,FALSE),"") ->  | R118: =IFERROR(HLOOKUP(R$14,PrototypeResults,'Project Database'!$C54,FALSE),"") ->  | S118: =IFERROR(HLOOKUP(S$14,PrototypeResults,'Project Database'!$C54,FALSE),"") ->  | T118: =IFERROR(HLOOKUP(T$14,PrototypeResults,'Project Database'!$C54,FALSE),"") ->  | U118: =IFERROR(HLOOKUP(U$14,PrototypeResults,'Project Database'!$C54,FALSE),"") -> 
B119: 39 | E119: Percent Thermal Loads Met | H119: =IFERROR(HLOOKUP(H$14,PrototypeResults,'Project Database'!$C55,FALSE),"") ->  | I119: =IFERROR(HLOOKUP(I$14,PrototypeResults,'Project Database'!$C55,FALSE),"") ->  | J119: =IFERROR(HLOOKUP(J$14,PrototypeResults,'Project Database'!$C55,FALSE),"") ->  | K119: =IFERROR(HLOOKUP(K$14,PrototypeResults,'Project Database'!$C55,FALSE),"") ->  | P119: =IFERROR(HLOOKUP(P$14,PrototypeResults,'Project Database'!$C55,FALSE),"") ->  | Q119: =IFERROR(HLOOKUP(Q$14,PrototypeResults,'Project Database'!$C55,FALSE),"") ->  | R119: =IFERROR(HLOOKUP(R$14,PrototypeResults,'Project Database'!$C55,FALSE),"") ->  | S119: =IFERROR(HLOOKUP(S$14,PrototypeResults,'Project Database'!$C55,FALSE),"") ->  | T119: =IFERROR(HLOOKUP(T$14,PrototypeResults,'Project Database'!$C55,FALSE),"") ->  | U119: =IFERROR(HLOOKUP(U$14,PrototypeResults,'Project Database'!$C55,FALSE),"") -> 
B120: 40 | D120: Capital Costs | E120: CHP Plant Capital Cost $/kW | H120: =IFERROR(HLOOKUP(H$14,PrototypeResults,'Project Database'!$C56,FALSE),"") ->  | I120: =IFERROR(HLOOKUP(I$14,PrototypeResults,'Project Database'!$C56,FALSE),"") ->  | J120: =IFERROR(HLOOKUP(J$14,PrototypeResults,'Project Database'!$C56,FALSE),"") ->  | K120: =IFERROR(HLOOKUP(K$14,PrototypeResults,'Project Database'!$C56,FALSE),"") ->  | P120: =IFERROR(HLOOKUP(P$14,PrototypeResults,'Project Database'!$C56,FALSE),"") ->  | Q120: =IFERROR(HLOOKUP(Q$14,PrototypeResults,'Project Database'!$C56,FALSE),"") ->  | R120: =IFERROR(HLOOKUP(R$14,PrototypeResults,'Project Database'!$C56,FALSE),"") ->  | S120: =IFERROR(HLOOKUP(S$14,PrototypeResults,'Project Database'!$C56,FALSE),"") ->  | T120: =IFERROR(HLOOKUP(T$14,PrototypeResults,'Project Database'!$C56,FALSE),"") ->  | U120: =IFERROR(HLOOKUP(U$14,PrototypeResults,'Project Database'!$C56,FALSE),"") -> 
B121: 41 | E121: Capital Cost of Non-CHP Biomass Boiler | H121: =IFERROR(HLOOKUP(H$14,PrototypeResults,'Project Database'!$C57,FALSE),"") ->  | I121: =IFERROR(HLOOKUP(I$14,PrototypeResults,'Project Database'!$C57,FALSE),"") ->  | J121: =IFERROR(HLOOKUP(J$14,PrototypeResults,'Project Database'!$C57,FALSE),"") ->  | K121: =IFERROR(HLOOKUP(K$14,PrototypeResults,'Project Database'!$C57,FALSE),"") ->  | P121: =IFERROR(HLOOKUP(P$14,PrototypeResults,'Project Database'!$C57,FALSE),"") ->  | Q121: =IFERROR(HLOOKUP(Q$14,PrototypeResults,'Project Database'!$C57,FALSE),"") ->  | R121: =IFERROR(HLOOKUP(R$14,PrototypeResults,'Project Database'!$C57,FALSE),"") ->  | S121: =IFERROR(HLOOKUP(S$14,PrototypeResults,'Project Database'!$C57,FALSE),"") ->  | T121: =IFERROR(HLOOKUP(T$14,PrototypeResults,'Project Database'!$C57,FALSE),"") ->  | U121: =IFERROR(HLOOKUP(U$14,PrototypeResults,'Project Database'!$C57,FALSE),"") -> 
B122: 42 | E122: Solar Energy Equipment | H122: =IFERROR(HLOOKUP(H$14,PrototypeResults,'Project Database'!$C58,FALSE),"") ->  | I122: =IFERROR(HLOOKUP(I$14,PrototypeResults,'Project Database'!$C58,FALSE),"") ->  | J122: =IFERROR(HLOOKUP(J$14,PrototypeResults,'Project Database'!$C58,FALSE),"") ->  | K122: =IFERROR(HLOOKUP(K$14,PrototypeResults,'Project Database'!$C58,FALSE),"") ->  | P122: =IFERROR(HLOOKUP(P$14,PrototypeResults,'Project Database'!$C58,FALSE),"") ->  | Q122: =IFERROR(HLOOKUP(Q$14,PrototypeResults,'Project Database'!$C58,FALSE),"") ->  | R122: =IFERROR(HLOOKUP(R$14,PrototypeResults,'Project Database'!$C58,FALSE),"") ->  | S122: =IFERROR(HLOOKUP(S$14,PrototypeResults,'Project Database'!$C58,FALSE),"") ->  | T122: =IFERROR(HLOOKUP(T$14,PrototypeResults,'Project Database'!$C58,FALSE),"") ->  | U122: =IFERROR(HLOOKUP(U$14,PrototypeResults,'Project Database'!$C58,FALSE),"") -> 
B123: 43 | E123: Other Capital Costs, $ | H123: =IFERROR(HLOOKUP(H$14,PrototypeResults,'Project Database'!$C59,FALSE),"") ->  | I123: =IFERROR(HLOOKUP(I$14,PrototypeResults,'Project Database'!$C59,FALSE),"") ->  | J123: =IFERROR(HLOOKUP(J$14,PrototypeResults,'Project Database'!$C59,FALSE),"") ->  | K123: =IFERROR(HLOOKUP(K$14,PrototypeResults,'Project Database'!$C59,FALSE),"") ->  | P123: =IFERROR(HLOOKUP(P$14,PrototypeResults,'Project Database'!$C59,FALSE),"") ->  | Q123: =IFERROR(HLOOKUP(Q$14,PrototypeResults,'Project Database'!$C59,FALSE),"") ->  | R123: =IFERROR(HLOOKUP(R$14,PrototypeResults,'Project Database'!$C59,FALSE),"") ->  | S123: =IFERROR(HLOOKUP(S$14,PrototypeResults,'Project Database'!$C59,FALSE),"") ->  | T123: =IFERROR(HLOOKUP(T$14,PrototypeResults,'Project Database'!$C59,FALSE),"") ->  | U123: =IFERROR(HLOOKUP(U$14,PrototypeResults,'Project Database'!$C59,FALSE),"") -> 
B124: 44 | E124: Avoided Capital Costs, $ | H124: =IFERROR(HLOOKUP(H$14,PrototypeResults,'Project Database'!$C60,FALSE),"") ->  | I124: =IFERROR(HLOOKUP(I$14,PrototypeResults,'Project Database'!$C60,FALSE),"") ->  | J124: =IFERROR(HLOOKUP(J$14,PrototypeResults,'Project Database'!$C60,FALSE),"") ->  | K124: =IFERROR(HLOOKUP(K$14,PrototypeResults,'Project Database'!$C60,FALSE),"") ->  | P124: =IFERROR(HLOOKUP(P$14,PrototypeResults,'Project Database'!$C60,FALSE),"") ->  | Q124: =IFERROR(HLOOKUP(Q$14,PrototypeResults,'Project Database'!$C60,FALSE),"") ->  | R124: =IFERROR(HLOOKUP(R$14,PrototypeResults,'Project Database'!$C60,FALSE),"") ->  | S124: =IFERROR(HLOOKUP(S$14,PrototypeResults,'Project Database'!$C60,FALSE),"") ->  | T124: =IFERROR(HLOOKUP(T$14,PrototypeResults,'Project Database'!$C60,FALSE),"") ->  | U124: =IFERROR(HLOOKUP(U$14,PrototypeResults,'Project Database'!$C60,FALSE),"") -> 
B125: 45 | E125: Total Installed Costs ($) | H125: =IFERROR(HLOOKUP(H$14,PrototypeResults,'Project Database'!$C61,FALSE),"") ->  | I125: =IFERROR(HLOOKUP(I$14,PrototypeResults,'Project Database'!$C61,FALSE),"") ->  | J125: =IFERROR(HLOOKUP(J$14,PrototypeResults,'Project Database'!$C61,FALSE),"") ->  | K125: =IFERROR(HLOOKUP(K$14,PrototypeResults,'Project Database'!$C61,FALSE),"") ->  | P125: =IFERROR(HLOOKUP(P$14,PrototypeResults,'Project Database'!$C61,FALSE),"") ->  | Q125: =IFERROR(HLOOKUP(Q$14,PrototypeResults,'Project Database'!$C61,FALSE),"") ->  | R125: =IFERROR(HLOOKUP(R$14,PrototypeResults,'Project Database'!$C61,FALSE),"") ->  | S125: =IFERROR(HLOOKUP(S$14,PrototypeResults,'Project Database'!$C61,FALSE),"") ->  | T125: =IFERROR(HLOOKUP(T$14,PrototypeResults,'Project Database'!$C61,FALSE),"") ->  | U125: =IFERROR(HLOOKUP(U$14,PrototypeResults,'Project Database'!$C61,FALSE),"") -> 
B126: 46 | D126: O&M Costs | E126: Variable O&M Costs, $/kWh | H126: =IFERROR(HLOOKUP(H$14,PrototypeResults,'Project Database'!$C62,FALSE),"") ->  | I126: =IFERROR(HLOOKUP(I$14,PrototypeResults,'Project Database'!$C62,FALSE),"") ->  | J126: =IFERROR(HLOOKUP(J$14,PrototypeResults,'Project Database'!$C62,FALSE),"") ->  | K126: =IFERROR(HLOOKUP(K$14,PrototypeResults,'Project Database'!$C62,FALSE),"") ->  | P126: =IFERROR(HLOOKUP(P$14,PrototypeResults,'Project Database'!$C62,FALSE),"") ->  | Q126: =IFERROR(HLOOKUP(Q$14,PrototypeResults,'Project Database'!$C62,FALSE),"") ->  | R126: =IFERROR(HLOOKUP(R$14,PrototypeResults,'Project Database'!$C62,FALSE),"") ->  | S126: =IFERROR(HLOOKUP(S$14,PrototypeResults,'Project Database'!$C62,FALSE),"") ->  | T126: =IFERROR(HLOOKUP(T$14,PrototypeResults,'Project Database'!$C62,FALSE),"") ->  | U126: =IFERROR(HLOOKUP(U$14,PrototypeResults,'Project Database'!$C62,FALSE),"") -> 
B127: 47 | E127: Other Variable Costs, $ per year | H127: =IFERROR(HLOOKUP(H$14,PrototypeResults,'Project Database'!$C63,FALSE),"") ->  | I127: =IFERROR(HLOOKUP(I$14,PrototypeResults,'Project Database'!$C63,FALSE),"") ->  | J127: =IFERROR(HLOOKUP(J$14,PrototypeResults,'Project Database'!$C63,FALSE),"") ->  | K127: =IFERROR(HLOOKUP(K$14,PrototypeResults,'Project Database'!$C63,FALSE),"") ->  | P127: =IFERROR(HLOOKUP(P$14,PrototypeResults,'Project Database'!$C63,FALSE),"") ->  | Q127: =IFERROR(HLOOKUP(Q$14,PrototypeResults,'Project Database'!$C63,FALSE),"") ->  | R127: =IFERROR(HLOOKUP(R$14,PrototypeResults,'Project Database'!$C63,FALSE),"") ->  | S127: =IFERROR(HLOOKUP(S$14,PrototypeResults,'Project Database'!$C63,FALSE),"") ->  | T127: =IFERROR(HLOOKUP(T$14,PrototypeResults,'Project Database'!$C63,FALSE),"") ->  | U127: =IFERROR(HLOOKUP(U$14,PrototypeResults,'Project Database'!$C63,FALSE),"") -> 
B128: 48 | E128: Fixed O&M Costs, $ per year | H128: =IFERROR(HLOOKUP(H$14,PrototypeResults,'Project Database'!$C64,FALSE),"") ->  | I128: =IFERROR(HLOOKUP(I$14,PrototypeResults,'Project Database'!$C64,FALSE),"") ->  | J128: =IFERROR(HLOOKUP(J$14,PrototypeResults,'Project Database'!$C64,FALSE),"") ->  | K128: =IFERROR(HLOOKUP(K$14,PrototypeResults,'Project Database'!$C64,FALSE),"") ->  | P128: =IFERROR(HLOOKUP(P$14,PrototypeResults,'Project Database'!$C64,FALSE),"") ->  | Q128: =IFERROR(HLOOKUP(Q$14,PrototypeResults,'Project Database'!$C64,FALSE),"") ->  | R128: =IFERROR(HLOOKUP(R$14,PrototypeResults,'Project Database'!$C64,FALSE),"") ->  | S128: =IFERROR(HLOOKUP(S$14,PrototypeResults,'Project Database'!$C64,FALSE),"") ->  | T128: =IFERROR(HLOOKUP(T$14,PrototypeResults,'Project Database'!$C64,FALSE),"") ->  | U128: =IFERROR(HLOOKUP(U$14,PrototypeResults,'Project Database'!$C64,FALSE),"") -> 
B129: 49 | E129: Other Fixed Annual Costs, $ per year | H129: =IFERROR(HLOOKUP(H$14,PrototypeResults,'Project Database'!$C65,FALSE),"") ->  | I129: =IFERROR(HLOOKUP(I$14,PrototypeResults,'Project Database'!$C65,FALSE),"") ->  | J129: =IFERROR(HLOOKUP(J$14,PrototypeResults,'Project Database'!$C65,FALSE),"") ->  | K129: =IFERROR(HLOOKUP(K$14,PrototypeResults,'Project Database'!$C65,FALSE),"") ->  | P129: =IFERROR(HLOOKUP(P$14,PrototypeResults,'Project Database'!$C65,FALSE),"") ->  | Q129: =IFERROR(HLOOKUP(Q$14,PrototypeResults,'Project Database'!$C65,FALSE),"") ->  | R129: =IFERROR(HLOOKUP(R$14,PrototypeResults,'Project Database'!$C65,FALSE),"") ->  | S129: =IFERROR(HLOOKUP(S$14,PrototypeResults,'Project Database'!$C65,FALSE),"") ->  | T129: =IFERROR(HLOOKUP(T$14,PrototypeResults,'Project Database'!$C65,FALSE),"") ->  | U129: =IFERROR(HLOOKUP(U$14,PrototypeResults,'Project Database'!$C65,FALSE),"") -> 
B130: 50 | D130: Demand & Standby Costs | E130: Baseline Demand Charges, $ | H130: =IFERROR(HLOOKUP(H$14,PrototypeResults,'Project Database'!$C66,FALSE),"") ->  | I130: =IFERROR(HLOOKUP(I$14,PrototypeResults,'Project Database'!$C66,FALSE),"") ->  | J130: =IFERROR(HLOOKUP(J$14,PrototypeResults,'Project Database'!$C66,FALSE),"") ->  | K130: =IFERROR(HLOOKUP(K$14,PrototypeResults,'Project Database'!$C66,FALSE),"") ->  | P130: =IFERROR(HLOOKUP(P$14,PrototypeResults,'Project Database'!$C66,FALSE),"") ->  | Q130: =IFERROR(HLOOKUP(Q$14,PrototypeResults,'Project Database'!$C66,FALSE),"") ->  | R130: =IFERROR(HLOOKUP(R$14,PrototypeResults,'Project Database'!$C66,FALSE),"") ->  | S130: =IFERROR(HLOOKUP(S$14,PrototypeResults,'Project Database'!$C66,FALSE),"") ->  | T130: =IFERROR(HLOOKUP(T$14,PrototypeResults,'Project Database'!$C66,FALSE),"") ->  | U130: =IFERROR(HLOOKUP(U$14,PrototypeResults,'Project Database'!$C66,FALSE),"") -> 
B131: 51 | E131: Alternative Demand Charges, $ | H131: =IFERROR(HLOOKUP(H$14,PrototypeResults,'Project Database'!$C67,FALSE),"") ->  | I131: =IFERROR(HLOOKUP(I$14,PrototypeResults,'Project Database'!$C67,FALSE),"") ->  | J131: =IFERROR(HLOOKUP(J$14,PrototypeResults,'Project Database'!$C67,FALSE),"") ->  | K131: =IFERROR(HLOOKUP(K$14,PrototypeResults,'Project Database'!$C67,FALSE),"") ->  | P131: =IFERROR(HLOOKUP(P$14,PrototypeResults,'Project Database'!$C67,FALSE),"") ->  | Q131: =IFERROR(HLOOKUP(Q$14,PrototypeResults,'Project Database'!$C67,FALSE),"") ->  | R131: =IFERROR(HLOOKUP(R$14,PrototypeResults,'Project Database'!$C67,FALSE),"") ->  | S131: =IFERROR(HLOOKUP(S$14,PrototypeResults,'Project Database'!$C67,FALSE),"") ->  | T131: =IFERROR(HLOOKUP(T$14,PrototypeResults,'Project Database'!$C67,FALSE),"") ->  | U131: =IFERROR(HLOOKUP(U$14,PrototypeResults,'Project Database'!$C67,FALSE),"") -> 
B132: 52 | E132: Standby Charges, $ | H132: =IFERROR(HLOOKUP(H$14,PrototypeResults,'Project Database'!$C68,FALSE),"") ->  | I132: =IFERROR(HLOOKUP(I$14,PrototypeResults,'Project Database'!$C68,FALSE),"") ->  | J132: =IFERROR(HLOOKUP(J$14,PrototypeResults,'Project Database'!$C68,FALSE),"") ->  | K132: =IFERROR(HLOOKUP(K$14,PrototypeResults,'Project Database'!$C68,FALSE),"") ->  | P132: =IFERROR(HLOOKUP(P$14,PrototypeResults,'Project Database'!$C68,FALSE),"") ->  | Q132: =IFERROR(HLOOKUP(Q$14,PrototypeResults,'Project Database'!$C68,FALSE),"") ->  | R132: =IFERROR(HLOOKUP(R$14,PrototypeResults,'Project Database'!$C68,FALSE),"") ->  | S132: =IFERROR(HLOOKUP(S$14,PrototypeResults,'Project Database'!$C68,FALSE),"") ->  | T132: =IFERROR(HLOOKUP(T$14,PrototypeResults,'Project Database'!$C68,FALSE),"") ->  | U132: =IFERROR(HLOOKUP(U$14,PrototypeResults,'Project Database'!$C68,FALSE),"") -> 
B133: 53 | D133: Baseline Energy | E133: Baseline Heating Source | H133: =IFERROR(HLOOKUP(H$14,PrototypeResults,'Project Database'!$C69,FALSE),"") ->  | I133: =IFERROR(HLOOKUP(I$14,PrototypeResults,'Project Database'!$C69,FALSE),"") ->  | J133: =IFERROR(HLOOKUP(J$14,PrototypeResults,'Project Database'!$C69,FALSE),"") ->  | K133: =IFERROR(HLOOKUP(K$14,PrototypeResults,'Project Database'!$C69,FALSE),"") ->  | P133: =IFERROR(HLOOKUP(P$14,PrototypeResults,'Project Database'!$C69,FALSE),"") ->  | Q133: =IFERROR(HLOOKUP(Q$14,PrototypeResults,'Project Database'!$C69,FALSE),"") ->  | R133: =IFERROR(HLOOKUP(R$14,PrototypeResults,'Project Database'!$C69,FALSE),"") ->  | S133: =IFERROR(HLOOKUP(S$14,PrototypeResults,'Project Database'!$C69,FALSE),"") ->  | T133: =IFERROR(HLOOKUP(T$14,PrototypeResults,'Project Database'!$C69,FALSE),"") ->  | U133: =IFERROR(HLOOKUP(U$14,PrototypeResults,'Project Database'!$C69,FALSE),"") -> 
B134: 54 | E134: Baseline: Purchased Electricity (kWh) | H134: =IFERROR(HLOOKUP(H$14,PrototypeResults,'Project Database'!$C70,FALSE),"") ->  | I134: =IFERROR(HLOOKUP(I$14,PrototypeResults,'Project Database'!$C70,FALSE),"") ->  | J134: =IFERROR(HLOOKUP(J$14,PrototypeResults,'Project Database'!$C70,FALSE),"") ->  | K134: =IFERROR(HLOOKUP(K$14,PrototypeResults,'Project Database'!$C70,FALSE),"") ->  | P134: =IFERROR(HLOOKUP(P$14,PrototypeResults,'Project Database'!$C70,FALSE),"") ->  | Q134: =IFERROR(HLOOKUP(Q$14,PrototypeResults,'Project Database'!$C70,FALSE),"") ->  | R134: =IFERROR(HLOOKUP(R$14,PrototypeResults,'Project Database'!$C70,FALSE),"") ->  | S134: =IFERROR(HLOOKUP(S$14,PrototypeResults,'Project Database'!$C70,FALSE),"") ->  | T134: =IFERROR(HLOOKUP(T$14,PrototypeResults,'Project Database'!$C70,FALSE),"") ->  | U134: =IFERROR(HLOOKUP(U$14,PrototypeResults,'Project Database'!$C70,FALSE),"") -> 
B135: 55 | E135: Baseline: Boiler Fuel Use (MMBtu) | H135: =IFERROR(HLOOKUP(H$14,PrototypeResults,'Project Database'!$C71,FALSE),"") ->  | I135: =IFERROR(HLOOKUP(I$14,PrototypeResults,'Project Database'!$C71,FALSE),"") ->  | J135: =IFERROR(HLOOKUP(J$14,PrototypeResults,'Project Database'!$C71,FALSE),"") ->  | K135: =IFERROR(HLOOKUP(K$14,PrototypeResults,'Project Database'!$C71,FALSE),"") ->  | P135: =IFERROR(HLOOKUP(P$14,PrototypeResults,'Project Database'!$C71,FALSE),"") ->  | Q135: =IFERROR(HLOOKUP(Q$14,PrototypeResults,'Project Database'!$C71,FALSE),"") ->  | R135: =IFERROR(HLOOKUP(R$14,PrototypeResults,'Project Database'!$C71,FALSE),"") ->  | S135: =IFERROR(HLOOKUP(S$14,PrototypeResults,'Project Database'!$C71,FALSE),"") ->  | T135: =IFERROR(HLOOKUP(T$14,PrototypeResults,'Project Database'!$C71,FALSE),"") ->  | U135: =IFERROR(HLOOKUP(U$14,PrototypeResults,'Project Database'!$C71,FALSE),"") -> 
B136: 56 | D136: CHP Energy Results | E136: CHP Fuel | H136: =IFERROR(HLOOKUP(H$14,PrototypeResults,'Project Database'!$C72,FALSE),"") ->  | I136: =IFERROR(HLOOKUP(I$14,PrototypeResults,'Project Database'!$C72,FALSE),"") ->  | J136: =IFERROR(HLOOKUP(J$14,PrototypeResults,'Project Database'!$C72,FALSE),"") ->  | K136: =IFERROR(HLOOKUP(K$14,PrototypeResults,'Project Database'!$C72,FALSE),"") ->  | P136: =IFERROR(HLOOKUP(P$14,PrototypeResults,'Project Database'!$C72,FALSE),"") ->  | Q136: =IFERROR(HLOOKUP(Q$14,PrototypeResults,'Project Database'!$C72,FALSE),"") ->  | R136: =IFERROR(HLOOKUP(R$14,PrototypeResults,'Project Database'!$C72,FALSE),"") ->  | S136: =IFERROR(HLOOKUP(S$14,PrototypeResults,'Project Database'!$C72,FALSE),"") ->  | T136: =IFERROR(HLOOKUP(T$14,PrototypeResults,'Project Database'!$C72,FALSE),"") ->  | U136: =IFERROR(HLOOKUP(U$14,PrototypeResults,'Project Database'!$C72,FALSE),"") -> 
B137: 57 | E137: Fuel, Unmet Thermal Needs, Biomass Boiler | H137: =IFERROR(HLOOKUP(H$14,PrototypeResults,'Project Database'!$C73,FALSE),"") ->  | I137: =IFERROR(HLOOKUP(I$14,PrototypeResults,'Project Database'!$C73,FALSE),"") ->  | J137: =IFERROR(HLOOKUP(J$14,PrototypeResults,'Project Database'!$C73,FALSE),"") ->  | K137: =IFERROR(HLOOKUP(K$14,PrototypeResults,'Project Database'!$C73,FALSE),"") ->  | P137: =IFERROR(HLOOKUP(P$14,PrototypeResults,'Project Database'!$C73,FALSE),"") ->  | Q137: =IFERROR(HLOOKUP(Q$14,PrototypeResults,'Project Database'!$C73,FALSE),"") ->  | R137: =IFERROR(HLOOKUP(R$14,PrototypeResults,'Project Database'!$C73,FALSE),"") ->  | S137: =IFERROR(HLOOKUP(S$14,PrototypeResults,'Project Database'!$C73,FALSE),"") ->  | T137: =IFERROR(HLOOKUP(T$14,PrototypeResults,'Project Database'!$C73,FALSE),"") ->  | U137: =IFERROR(HLOOKUP(U$14,PrototypeResults,'Project Database'!$C73,FALSE),"") -> 
B138: 58 | E138: Fuel, Unmet Thermal Needs, Supplemental Fuel | H138: =IFERROR(HLOOKUP(H$14,PrototypeResults,'Project Database'!$C74,FALSE),"") ->  | I138: =IFERROR(HLOOKUP(I$14,PrototypeResults,'Project Database'!$C74,FALSE),"") ->  | J138: =IFERROR(HLOOKUP(J$14,PrototypeResults,'Project Database'!$C74,FALSE),"") ->  | K138: =IFERROR(HLOOKUP(K$14,PrototypeResults,'Project Database'!$C74,FALSE),"") ->  | P138: =IFERROR(HLOOKUP(P$14,PrototypeResults,'Project Database'!$C74,FALSE),"") ->  | Q138: =IFERROR(HLOOKUP(Q$14,PrototypeResults,'Project Database'!$C74,FALSE),"") ->  | R138: =IFERROR(HLOOKUP(R$14,PrototypeResults,'Project Database'!$C74,FALSE),"") ->  | S138: =IFERROR(HLOOKUP(S$14,PrototypeResults,'Project Database'!$C74,FALSE),"") ->  | T138: =IFERROR(HLOOKUP(T$14,PrototypeResults,'Project Database'!$C74,FALSE),"") ->  | U138: =IFERROR(HLOOKUP(U$14,PrototypeResults,'Project Database'!$C74,FALSE),"") -> 
B139: 59 | E139: Fuel, Back-Up Heat (Not Used) | H139: =IFERROR(HLOOKUP(H$14,PrototypeResults,'Project Database'!$C75,FALSE),"") ->  | I139: =IFERROR(HLOOKUP(I$14,PrototypeResults,'Project Database'!$C75,FALSE),"") ->  | J139: =IFERROR(HLOOKUP(J$14,PrototypeResults,'Project Database'!$C75,FALSE),"") ->  | K139: =IFERROR(HLOOKUP(K$14,PrototypeResults,'Project Database'!$C75,FALSE),"") ->  | P139: =IFERROR(HLOOKUP(P$14,PrototypeResults,'Project Database'!$C75,FALSE),"") ->  | Q139: =IFERROR(HLOOKUP(Q$14,PrototypeResults,'Project Database'!$C75,FALSE),"") ->  | R139: =IFERROR(HLOOKUP(R$14,PrototypeResults,'Project Database'!$C75,FALSE),"") ->  | S139: =IFERROR(HLOOKUP(S$14,PrototypeResults,'Project Database'!$C75,FALSE),"") ->  | T139: =IFERROR(HLOOKUP(T$14,PrototypeResults,'Project Database'!$C75,FALSE),"") ->  | U139: =IFERROR(HLOOKUP(U$14,PrototypeResults,'Project Database'!$C75,FALSE),"") -> 
B140: 60 | E140: Generated Electricity (kWh) (primary system) | H140: =IFERROR(HLOOKUP(H$14,PrototypeResults,'Project Database'!$C76,FALSE),"") ->  | I140: =IFERROR(HLOOKUP(I$14,PrototypeResults,'Project Database'!$C76,FALSE),"") ->  | J140: =IFERROR(HLOOKUP(J$14,PrototypeResults,'Project Database'!$C76,FALSE),"") ->  | K140: =IFERROR(HLOOKUP(K$14,PrototypeResults,'Project Database'!$C76,FALSE),"") ->  | P140: =IFERROR(HLOOKUP(P$14,PrototypeResults,'Project Database'!$C76,FALSE),"") ->  | Q140: =IFERROR(HLOOKUP(Q$14,PrototypeResults,'Project Database'!$C76,FALSE),"") ->  | R140: =IFERROR(HLOOKUP(R$14,PrototypeResults,'Project Database'!$C76,FALSE),"") ->  | S140: =IFERROR(HLOOKUP(S$14,PrototypeResults,'Project Database'!$C76,FALSE),"") ->  | T140: =IFERROR(HLOOKUP(T$14,PrototypeResults,'Project Database'!$C76,FALSE),"") ->  | U140: =IFERROR(HLOOKUP(U$14,PrototypeResults,'Project Database'!$C76,FALSE),"") -> 
B141: 61 | E141: Purchased Electricity (kWh) | H141: =IFERROR(HLOOKUP(H$14,PrototypeResults,'Project Database'!$C77,FALSE),"") ->  | I141: =IFERROR(HLOOKUP(I$14,PrototypeResults,'Project Database'!$C77,FALSE),"") ->  | J141: =IFERROR(HLOOKUP(J$14,PrototypeResults,'Project Database'!$C77,FALSE),"") ->  | K141: =IFERROR(HLOOKUP(K$14,PrototypeResults,'Project Database'!$C77,FALSE),"") ->  | P141: =IFERROR(HLOOKUP(P$14,PrototypeResults,'Project Database'!$C77,FALSE),"") ->  | Q141: =IFERROR(HLOOKUP(Q$14,PrototypeResults,'Project Database'!$C77,FALSE),"") ->  | R141: =IFERROR(HLOOKUP(R$14,PrototypeResults,'Project Database'!$C77,FALSE),"") ->  | S141: =IFERROR(HLOOKUP(S$14,PrototypeResults,'Project Database'!$C77,FALSE),"") ->  | T141: =IFERROR(HLOOKUP(T$14,PrototypeResults,'Project Database'!$C77,FALSE),"") ->  | U141: =IFERROR(HLOOKUP(U$14,PrototypeResults,'Project Database'!$C77,FALSE),"") -> 
B142: 62 | E142: Dispatched Electricity Sales (kWh) (primary system) | H142: =IFERROR(HLOOKUP(H$14,PrototypeResults,'Project Database'!$C78,FALSE),"") ->  | I142: =IFERROR(HLOOKUP(I$14,PrototypeResults,'Project Database'!$C78,FALSE),"") ->  | J142: =IFERROR(HLOOKUP(J$14,PrototypeResults,'Project Database'!$C78,FALSE),"") ->  | K142: =IFERROR(HLOOKUP(K$14,PrototypeResults,'Project Database'!$C78,FALSE),"") ->  | P142: =IFERROR(HLOOKUP(P$14,PrototypeResults,'Project Database'!$C78,FALSE),"") ->  | Q142: =IFERROR(HLOOKUP(Q$14,PrototypeResults,'Project Database'!$C78,FALSE),"") ->  | R142: =IFERROR(HLOOKUP(R$14,PrototypeResults,'Project Database'!$C78,FALSE),"") ->  | S142: =IFERROR(HLOOKUP(S$14,PrototypeResults,'Project Database'!$C78,FALSE),"") ->  | T142: =IFERROR(HLOOKUP(T$14,PrototypeResults,'Project Database'!$C78,FALSE),"") ->  | U142: =IFERROR(HLOOKUP(U$14,PrototypeResults,'Project Database'!$C78,FALSE),"") -> 
B143: 63 | E143: Purchased Fuel for CHP Plant (MMBtu) | H143: =IFERROR(HLOOKUP(H$14,PrototypeResults,'Project Database'!$C79,FALSE),"") ->  | I143: =IFERROR(HLOOKUP(I$14,PrototypeResults,'Project Database'!$C79,FALSE),"") ->  | J143: =IFERROR(HLOOKUP(J$14,PrototypeResults,'Project Database'!$C79,FALSE),"") ->  | K143: =IFERROR(HLOOKUP(K$14,PrototypeResults,'Project Database'!$C79,FALSE),"") ->  | P143: =IFERROR(HLOOKUP(P$14,PrototypeResults,'Project Database'!$C79,FALSE),"") ->  | Q143: =IFERROR(HLOOKUP(Q$14,PrototypeResults,'Project Database'!$C79,FALSE),"") ->  | R143: =IFERROR(HLOOKUP(R$14,PrototypeResults,'Project Database'!$C79,FALSE),"") ->  | S143: =IFERROR(HLOOKUP(S$14,PrototypeResults,'Project Database'!$C79,FALSE),"") ->  | T143: =IFERROR(HLOOKUP(T$14,PrototypeResults,'Project Database'!$C79,FALSE),"") ->  | U143: =IFERROR(HLOOKUP(U$14,PrototypeResults,'Project Database'!$C79,FALSE),"") -> 
B144: 64 | E144: Purchased Fuel for Back-up Heat (MMBtu) (Not Used) | H144: =IFERROR(HLOOKUP(H$14,PrototypeResults,'Project Database'!$C80,FALSE),"") ->  | I144: =IFERROR(HLOOKUP(I$14,PrototypeResults,'Project Database'!$C80,FALSE),"") ->  | J144: =IFERROR(HLOOKUP(J$14,PrototypeResults,'Project Database'!$C80,FALSE),"") ->  | K144: =IFERROR(HLOOKUP(K$14,PrototypeResults,'Project Database'!$C80,FALSE),"") ->  | P144: =IFERROR(HLOOKUP(P$14,PrototypeResults,'Project Database'!$C80,FALSE),"") ->  | Q144: =IFERROR(HLOOKUP(Q$14,PrototypeResults,'Project Database'!$C80,FALSE),"") ->  | R144: =IFERROR(HLOOKUP(R$14,PrototypeResults,'Project Database'!$C80,FALSE),"") ->  | S144: =IFERROR(HLOOKUP(S$14,PrototypeResults,'Project Database'!$C80,FALSE),"") ->  | T144: =IFERROR(HLOOKUP(T$14,PrototypeResults,'Project Database'!$C80,FALSE),"") ->  | U144: =IFERROR(HLOOKUP(U$14,PrototypeResults,'Project Database'!$C80,FALSE),"") -> 
B145: 65 | E145: Purchased Fuel for Unmet Needs, Biomass Boiler (MMBtu) | H145: =IFERROR(HLOOKUP(H$14,PrototypeResults,'Project Database'!$C81,FALSE),"") ->  | I145: =IFERROR(HLOOKUP(I$14,PrototypeResults,'Project Database'!$C81,FALSE),"") ->  | J145: =IFERROR(HLOOKUP(J$14,PrototypeResults,'Project Database'!$C81,FALSE),"") ->  | K145: =IFERROR(HLOOKUP(K$14,PrototypeResults,'Project Database'!$C81,FALSE),"") ->  | P145: =IFERROR(HLOOKUP(P$14,PrototypeResults,'Project Database'!$C81,FALSE),"") ->  | Q145: =IFERROR(HLOOKUP(Q$14,PrototypeResults,'Project Database'!$C81,FALSE),"") ->  | R145: =IFERROR(HLOOKUP(R$14,PrototypeResults,'Project Database'!$C81,FALSE),"") ->  | S145: =IFERROR(HLOOKUP(S$14,PrototypeResults,'Project Database'!$C81,FALSE),"") ->  | T145: =IFERROR(HLOOKUP(T$14,PrototypeResults,'Project Database'!$C81,FALSE),"") ->  | U145: =IFERROR(HLOOKUP(U$14,PrototypeResults,'Project Database'!$C81,FALSE),"") -> 
B146: 66 | E146: Purchased Fuel for Unmet Needs, Supplemental Fuel (MMBtu) | F146: =HLOOKUP($F$81,$H$81:$U$219,B146,FALSE) ->  | H146: =IFERROR(HLOOKUP(H$14,PrototypeResults,'Project Database'!$C82,FALSE),"") ->  | I146: =IFERROR(HLOOKUP(I$14,PrototypeResults,'Project Database'!$C82,FALSE),"") ->  | J146: =IFERROR(HLOOKUP(J$14,PrototypeResults,'Project Database'!$C82,FALSE),"") ->  | K146: =IFERROR(HLOOKUP(K$14,PrototypeResults,'Project Database'!$C82,FALSE),"") ->  | P146: =IFERROR(HLOOKUP(P$14,PrototypeResults,'Project Database'!$C82,FALSE),"") ->  | Q146: =IFERROR(HLOOKUP(Q$14,PrototypeResults,'Project Database'!$C82,FALSE),"") ->  | R146: =IFERROR(HLOOKUP(R$14,PrototypeResults,'Project Database'!$C82,FALSE),"") ->  | S146: =IFERROR(HLOOKUP(S$14,PrototypeResults,'Project Database'!$C82,FALSE),"") ->  | T146: =IFERROR(HLOOKUP(T$14,PrototypeResults,'Project Database'!$C82,FALSE),"") ->  | U146: =IFERROR(HLOOKUP(U$14,PrototypeResults,'Project Database'!$C82,FALSE),"") -> 
B147: 67 | E147: Total Purchased Fuel, (MMBtu) | H147: =IFERROR(HLOOKUP(H$14,PrototypeResults,'Project Database'!$C83,FALSE),"") ->  | I147: =IFERROR(HLOOKUP(I$14,PrototypeResults,'Project Database'!$C83,FALSE),"") ->  | J147: =IFERROR(HLOOKUP(J$14,PrototypeResults,'Project Database'!$C83,FALSE),"") ->  | K147: =IFERROR(HLOOKUP(K$14,PrototypeResults,'Project Database'!$C83,FALSE),"") ->  | P147: =IFERROR(HLOOKUP(P$14,PrototypeResults,'Project Database'!$C83,FALSE),"") ->  | Q147: =IFERROR(HLOOKUP(Q$14,PrototypeResults,'Project Database'!$C83,FALSE),"") ->  | R147: =IFERROR(HLOOKUP(R$14,PrototypeResults,'Project Database'!$C83,FALSE),"") ->  | S147: =IFERROR(HLOOKUP(S$14,PrototypeResults,'Project Database'!$C83,FALSE),"") ->  | T147: =IFERROR(HLOOKUP(T$14,PrototypeResults,'Project Database'!$C83,FALSE),"") ->  | U147: =IFERROR(HLOOKUP(U$14,PrototypeResults,'Project Database'!$C83,FALSE),"") -> 
B148: 68 | E148: Annual Heat Recovered by CHP (MMBTU/yr) | H148: =IFERROR(HLOOKUP(H$14,PrototypeResults,'Project Database'!$C84,FALSE),"") ->  | I148: =IFERROR(HLOOKUP(I$14,PrototypeResults,'Project Database'!$C84,FALSE),"") ->  | J148: =IFERROR(HLOOKUP(J$14,PrototypeResults,'Project Database'!$C84,FALSE),"") ->  | K148: =IFERROR(HLOOKUP(K$14,PrototypeResults,'Project Database'!$C84,FALSE),"") ->  | P148: =IFERROR(HLOOKUP(P$14,PrototypeResults,'Project Database'!$C84,FALSE),"") ->  | Q148: =IFERROR(HLOOKUP(Q$14,PrototypeResults,'Project Database'!$C84,FALSE),"") ->  | R148: =IFERROR(HLOOKUP(R$14,PrototypeResults,'Project Database'!$C84,FALSE),"") ->  | S148: =IFERROR(HLOOKUP(S$14,PrototypeResults,'Project Database'!$C84,FALSE),"") ->  | T148: =IFERROR(HLOOKUP(T$14,PrototypeResults,'Project Database'!$C84,FALSE),"") ->  | U148: =IFERROR(HLOOKUP(U$14,PrototypeResults,'Project Database'!$C84,FALSE),"") -> 
B149: 69 | E149: Annual Electricity Energy Savings (kWh/yr) | H149: =IFERROR(HLOOKUP(H$14,PrototypeResults,'Project Database'!$C85,FALSE),"") ->  | I149: =IFERROR(HLOOKUP(I$14,PrototypeResults,'Project Database'!$C85,FALSE),"") ->  | J149: =IFERROR(HLOOKUP(J$14,PrototypeResults,'Project Database'!$C85,FALSE),"") ->  | K149: =IFERROR(HLOOKUP(K$14,PrototypeResults,'Project Database'!$C85,FALSE),"") ->  | P149: =IFERROR(HLOOKUP(P$14,PrototypeResults,'Project Database'!$C85,FALSE),"") ->  | Q149: =IFERROR(HLOOKUP(Q$14,PrototypeResults,'Project Database'!$C85,FALSE),"") ->  | R149: =IFERROR(HLOOKUP(R$14,PrototypeResults,'Project Database'!$C85,FALSE),"") ->  | S149: =IFERROR(HLOOKUP(S$14,PrototypeResults,'Project Database'!$C85,FALSE),"") ->  | T149: =IFERROR(HLOOKUP(T$14,PrototypeResults,'Project Database'!$C85,FALSE),"") ->  | U149: =IFERROR(HLOOKUP(U$14,PrototypeResults,'Project Database'!$C85,FALSE),"") -> 
B150: 70 | E150: Increased Fuel Use (MMBtu) | H150: =IFERROR(HLOOKUP(H$14,PrototypeResults,'Project Database'!$C86,FALSE),"") ->  | I150: =IFERROR(HLOOKUP(I$14,PrototypeResults,'Project Database'!$C86,FALSE),"") ->  | J150: =IFERROR(HLOOKUP(J$14,PrototypeResults,'Project Database'!$C86,FALSE),"") ->  | K150: =IFERROR(HLOOKUP(K$14,PrototypeResults,'Project Database'!$C86,FALSE),"") ->  | P150: =IFERROR(HLOOKUP(P$14,PrototypeResults,'Project Database'!$C86,FALSE),"") ->  | Q150: =IFERROR(HLOOKUP(Q$14,PrototypeResults,'Project Database'!$C86,FALSE),"") ->  | R150: =IFERROR(HLOOKUP(R$14,PrototypeResults,'Project Database'!$C86,FALSE),"") ->  | S150: =IFERROR(HLOOKUP(S$14,PrototypeResults,'Project Database'!$C86,FALSE),"") ->  | T150: =IFERROR(HLOOKUP(T$14,PrototypeResults,'Project Database'!$C86,FALSE),"") ->  | U150: =IFERROR(HLOOKUP(U$14,PrototypeResults,'Project Database'!$C86,FALSE),"") -> 
B151: 71 | D151: Unit Costs | E151: Baseline Electricity Purchase Price, $/kWh | H151: =IFERROR(HLOOKUP(H$14,PrototypeResults,'Project Database'!$C87,FALSE),"") ->  | I151: =IFERROR(HLOOKUP(I$14,PrototypeResults,'Project Database'!$C87,FALSE),"") ->  | J151: =IFERROR(HLOOKUP(J$14,PrototypeResults,'Project Database'!$C87,FALSE),"") ->  | K151: =IFERROR(HLOOKUP(K$14,PrototypeResults,'Project Database'!$C87,FALSE),"") ->  | P151: =IFERROR(HLOOKUP(P$14,PrototypeResults,'Project Database'!$C87,FALSE),"") ->  | Q151: =IFERROR(HLOOKUP(Q$14,PrototypeResults,'Project Database'!$C87,FALSE),"") ->  | R151: =IFERROR(HLOOKUP(R$14,PrototypeResults,'Project Database'!$C87,FALSE),"") ->  | S151: =IFERROR(HLOOKUP(S$14,PrototypeResults,'Project Database'!$C87,FALSE),"") ->  | T151: =IFERROR(HLOOKUP(T$14,PrototypeResults,'Project Database'!$C87,FALSE),"") ->  | U151: =IFERROR(HLOOKUP(U$14,PrototypeResults,'Project Database'!$C87,FALSE),"") -> 
B152: =B151+1 -> 72 | E152: Alternative Electricity Purchase Price, $/kWh | H152: =IFERROR(HLOOKUP(H$14,PrototypeResults,'Project Database'!$C88,FALSE),"") ->  | I152: =IFERROR(HLOOKUP(I$14,PrototypeResults,'Project Database'!$C88,FALSE),"") ->  | J152: =IFERROR(HLOOKUP(J$14,PrototypeResults,'Project Database'!$C88,FALSE),"") ->  | K152: =IFERROR(HLOOKUP(K$14,PrototypeResults,'Project Database'!$C88,FALSE),"") ->  | P152: =IFERROR(HLOOKUP(P$14,PrototypeResults,'Project Database'!$C88,FALSE),"") ->  | Q152: =IFERROR(HLOOKUP(Q$14,PrototypeResults,'Project Database'!$C88,FALSE),"") ->  | R152: =IFERROR(HLOOKUP(R$14,PrototypeResults,'Project Database'!$C88,FALSE),"") ->  | S152: =IFERROR(HLOOKUP(S$14,PrototypeResults,'Project Database'!$C88,FALSE),"") ->  | T152: =IFERROR(HLOOKUP(T$14,PrototypeResults,'Project Database'!$C88,FALSE),"") ->  | U152: =IFERROR(HLOOKUP(U$14,PrototypeResults,'Project Database'!$C88,FALSE),"") -> 
B153: 73 | E153: Electricity Sales Price, $/kWh | H153: =IFERROR(HLOOKUP(H$14,PrototypeResults,'Project Database'!$C89,FALSE),"") ->  | I153: =IFERROR(HLOOKUP(I$14,PrototypeResults,'Project Database'!$C89,FALSE),"") ->  | J153: =IFERROR(HLOOKUP(J$14,PrototypeResults,'Project Database'!$C89,FALSE),"") ->  | K153: =IFERROR(HLOOKUP(K$14,PrototypeResults,'Project Database'!$C89,FALSE),"") ->  | P153: =IFERROR(HLOOKUP(P$14,PrototypeResults,'Project Database'!$C89,FALSE),"") ->  | Q153: =IFERROR(HLOOKUP(Q$14,PrototypeResults,'Project Database'!$C89,FALSE),"") ->  | R153: =IFERROR(HLOOKUP(R$14,PrototypeResults,'Project Database'!$C89,FALSE),"") ->  | S153: =IFERROR(HLOOKUP(S$14,PrototypeResults,'Project Database'!$C89,FALSE),"") ->  | T153: =IFERROR(HLOOKUP(T$14,PrototypeResults,'Project Database'!$C89,FALSE),"") ->  | U153: =IFERROR(HLOOKUP(U$14,PrototypeResults,'Project Database'!$C89,FALSE),"") -> 
B154: 74 | E154: Baseline Fuel Price, $/MMBtu | H154: =IFERROR(HLOOKUP(H$14,PrototypeResults,'Project Database'!$C90,FALSE),"") ->  | I154: =IFERROR(HLOOKUP(I$14,PrototypeResults,'Project Database'!$C90,FALSE),"") ->  | J154: =IFERROR(HLOOKUP(J$14,PrototypeResults,'Project Database'!$C90,FALSE),"") ->  | K154: =IFERROR(HLOOKUP(K$14,PrototypeResults,'Project Database'!$C90,FALSE),"") ->  | P154: =IFERROR(HLOOKUP(P$14,PrototypeResults,'Project Database'!$C90,FALSE),"") ->  | Q154: =IFERROR(HLOOKUP(Q$14,PrototypeResults,'Project Database'!$C90,FALSE),"") ->  | R154: =IFERROR(HLOOKUP(R$14,PrototypeResults,'Project Database'!$C90,FALSE),"") ->  | S154: =IFERROR(HLOOKUP(S$14,PrototypeResults,'Project Database'!$C90,FALSE),"") ->  | T154: =IFERROR(HLOOKUP(T$14,PrototypeResults,'Project Database'!$C90,FALSE),"") ->  | U154: =IFERROR(HLOOKUP(U$14,PrototypeResults,'Project Database'!$C90,FALSE),"") -> 
B155: 75 | E155: CHP Fuel Price, $/MMBtu | H155: =IFERROR(HLOOKUP(H$14,PrototypeResults,'Project Database'!$C91,FALSE),"") ->  | I155: =IFERROR(HLOOKUP(I$14,PrototypeResults,'Project Database'!$C91,FALSE),"") ->  | J155: =IFERROR(HLOOKUP(J$14,PrototypeResults,'Project Database'!$C91,FALSE),"") ->  | K155: =IFERROR(HLOOKUP(K$14,PrototypeResults,'Project Database'!$C91,FALSE),"") ->  | P155: =IFERROR(HLOOKUP(P$14,PrototypeResults,'Project Database'!$C91,FALSE),"") ->  | Q155: =IFERROR(HLOOKUP(Q$14,PrototypeResults,'Project Database'!$C91,FALSE),"") ->  | R155: =IFERROR(HLOOKUP(R$14,PrototypeResults,'Project Database'!$C91,FALSE),"") ->  | S155: =IFERROR(HLOOKUP(S$14,PrototypeResults,'Project Database'!$C91,FALSE),"") ->  | T155: =IFERROR(HLOOKUP(T$14,PrototypeResults,'Project Database'!$C91,FALSE),"") ->  | U155: =IFERROR(HLOOKUP(U$14,PrototypeResults,'Project Database'!$C91,FALSE),"") -> 
B156: 76 | E156: Fuel Price, Unmet Needs, Biomass Boiler Fuel | H156: =IFERROR(HLOOKUP(H$14,PrototypeResults,'Project Database'!$C92,FALSE),"") ->  | I156: =IFERROR(HLOOKUP(I$14,PrototypeResults,'Project Database'!$C92,FALSE),"") ->  | J156: =IFERROR(HLOOKUP(J$14,PrototypeResults,'Project Database'!$C92,FALSE),"") ->  | K156: =IFERROR(HLOOKUP(K$14,PrototypeResults,'Project Database'!$C92,FALSE),"") ->  | P156: =IFERROR(HLOOKUP(P$14,PrototypeResults,'Project Database'!$C92,FALSE),"") ->  | Q156: =IFERROR(HLOOKUP(Q$14,PrototypeResults,'Project Database'!$C92,FALSE),"") ->  | R156: =IFERROR(HLOOKUP(R$14,PrototypeResults,'Project Database'!$C92,FALSE),"") ->  | S156: =IFERROR(HLOOKUP(S$14,PrototypeResults,'Project Database'!$C92,FALSE),"") ->  | T156: =IFERROR(HLOOKUP(T$14,PrototypeResults,'Project Database'!$C92,FALSE),"") ->  | U156: =IFERROR(HLOOKUP(U$14,PrototypeResults,'Project Database'!$C92,FALSE),"") -> 
B157: 77 | E157: Fuel Price, Unmet Needs, Supplemental Fuel | H157: =IFERROR(HLOOKUP(H$14,PrototypeResults,'Project Database'!$C93,FALSE),"") ->  | I157: =IFERROR(HLOOKUP(I$14,PrototypeResults,'Project Database'!$C93,FALSE),"") ->  | J157: =IFERROR(HLOOKUP(J$14,PrototypeResults,'Project Database'!$C93,FALSE),"") ->  | K157: =IFERROR(HLOOKUP(K$14,PrototypeResults,'Project Database'!$C93,FALSE),"") ->  | P157: =IFERROR(HLOOKUP(P$14,PrototypeResults,'Project Database'!$C93,FALSE),"") ->  | Q157: =IFERROR(HLOOKUP(Q$14,PrototypeResults,'Project Database'!$C93,FALSE),"") ->  | R157: =IFERROR(HLOOKUP(R$14,PrototypeResults,'Project Database'!$C93,FALSE),"") ->  | S157: =IFERROR(HLOOKUP(S$14,PrototypeResults,'Project Database'!$C93,FALSE),"") ->  | T157: =IFERROR(HLOOKUP(T$14,PrototypeResults,'Project Database'!$C93,FALSE),"") ->  | U157: =IFERROR(HLOOKUP(U$14,PrototypeResults,'Project Database'!$C93,FALSE),"") -> 
B158: 78 | E158: Fuel Price, Back Up Heat | H158: =IFERROR(HLOOKUP(H$14,PrototypeResults,'Project Database'!$C94,FALSE),"") ->  | I158: =IFERROR(HLOOKUP(I$14,PrototypeResults,'Project Database'!$C94,FALSE),"") ->  | J158: =IFERROR(HLOOKUP(J$14,PrototypeResults,'Project Database'!$C94,FALSE),"") ->  | K158: =IFERROR(HLOOKUP(K$14,PrototypeResults,'Project Database'!$C94,FALSE),"") ->  | P158: =IFERROR(HLOOKUP(P$14,PrototypeResults,'Project Database'!$C94,FALSE),"") ->  | Q158: =IFERROR(HLOOKUP(Q$14,PrototypeResults,'Project Database'!$C94,FALSE),"") ->  | R158: =IFERROR(HLOOKUP(R$14,PrototypeResults,'Project Database'!$C94,FALSE),"") ->  | S158: =IFERROR(HLOOKUP(S$14,PrototypeResults,'Project Database'!$C94,FALSE),"") ->  | T158: =IFERROR(HLOOKUP(T$14,PrototypeResults,'Project Database'!$C94,FALSE),"") ->  | U158: =IFERROR(HLOOKUP(U$14,PrototypeResults,'Project Database'!$C94,FALSE),"") -> 
B159: 79 | D159: Second System | E159: Description of 2nd system, Electricity | H159: =IFERROR(HLOOKUP(H$14,PrototypeResults,'Project Database'!$C95,FALSE),"") ->  | I159: =IFERROR(HLOOKUP(I$14,PrototypeResults,'Project Database'!$C95,FALSE),"") ->  | J159: =IFERROR(HLOOKUP(J$14,PrototypeResults,'Project Database'!$C95,FALSE),"") ->  | K159: =IFERROR(HLOOKUP(K$14,PrototypeResults,'Project Database'!$C95,FALSE),"") ->  | P159: =IFERROR(HLOOKUP(P$14,PrototypeResults,'Project Database'!$C95,FALSE),"") ->  | Q159: =IFERROR(HLOOKUP(Q$14,PrototypeResults,'Project Database'!$C95,FALSE),"") ->  | R159: =IFERROR(HLOOKUP(R$14,PrototypeResults,'Project Database'!$C95,FALSE),"") ->  | S159: =IFERROR(HLOOKUP(S$14,PrototypeResults,'Project Database'!$C95,FALSE),"") ->  | T159: =IFERROR(HLOOKUP(T$14,PrototypeResults,'Project Database'!$C95,FALSE),"") ->  | U159: =IFERROR(HLOOKUP(U$14,PrototypeResults,'Project Database'!$C95,FALSE),"") -> 
B160: 80 | E160: Capital Cost of 2nd System, Electricity | H160: =IFERROR(HLOOKUP(H$14,PrototypeResults,'Project Database'!$C96,FALSE),"") ->  | I160: =IFERROR(HLOOKUP(I$14,PrototypeResults,'Project Database'!$C96,FALSE),"") ->  | J160: =IFERROR(HLOOKUP(J$14,PrototypeResults,'Project Database'!$C96,FALSE),"") ->  | K160: =IFERROR(HLOOKUP(K$14,PrototypeResults,'Project Database'!$C96,FALSE),"") ->  | P160: =IFERROR(HLOOKUP(P$14,PrototypeResults,'Project Database'!$C96,FALSE),"") ->  | Q160: =IFERROR(HLOOKUP(Q$14,PrototypeResults,'Project Database'!$C96,FALSE),"") ->  | R160: =IFERROR(HLOOKUP(R$14,PrototypeResults,'Project Database'!$C96,FALSE),"") ->  | S160: =IFERROR(HLOOKUP(S$14,PrototypeResults,'Project Database'!$C96,FALSE),"") ->  | T160: =IFERROR(HLOOKUP(T$14,PrototypeResults,'Project Database'!$C96,FALSE),"") ->  | U160: =IFERROR(HLOOKUP(U$14,PrototypeResults,'Project Database'!$C96,FALSE),"") -> 
B161: 81 | E161: Generated Electricity (kWh) (second system) | H161: =IFERROR(HLOOKUP(H$14,PrototypeResults,'Project Database'!$C97,FALSE),"") ->  | I161: =IFERROR(HLOOKUP(I$14,PrototypeResults,'Project Database'!$C97,FALSE),"") ->  | J161: =IFERROR(HLOOKUP(J$14,PrototypeResults,'Project Database'!$C97,FALSE),"") ->  | K161: =IFERROR(HLOOKUP(K$14,PrototypeResults,'Project Database'!$C97,FALSE),"") ->  | P161: =IFERROR(HLOOKUP(P$14,PrototypeResults,'Project Database'!$C97,FALSE),"") ->  | Q161: =IFERROR(HLOOKUP(Q$14,PrototypeResults,'Project Database'!$C97,FALSE),"") ->  | R161: =IFERROR(HLOOKUP(R$14,PrototypeResults,'Project Database'!$C97,FALSE),"") ->  | S161: =IFERROR(HLOOKUP(S$14,PrototypeResults,'Project Database'!$C97,FALSE),"") ->  | T161: =IFERROR(HLOOKUP(T$14,PrototypeResults,'Project Database'!$C97,FALSE),"") ->  | U161: =IFERROR(HLOOKUP(U$14,PrototypeResults,'Project Database'!$C97,FALSE),"") -> 
B162: 82 | E162: Electricity savings or uses of second system (baseline) (kWh) | H162: =IFERROR(HLOOKUP(H$14,PrototypeResults,'Project Database'!$C98,FALSE),"") ->  | I162: =IFERROR(HLOOKUP(I$14,PrototypeResults,'Project Database'!$C98,FALSE),"") ->  | J162: =IFERROR(HLOOKUP(J$14,PrototypeResults,'Project Database'!$C98,FALSE),"") ->  | K162: =IFERROR(HLOOKUP(K$14,PrototypeResults,'Project Database'!$C98,FALSE),"") ->  | P162: =IFERROR(HLOOKUP(P$14,PrototypeResults,'Project Database'!$C98,FALSE),"") ->  | Q162: =IFERROR(HLOOKUP(Q$14,PrototypeResults,'Project Database'!$C98,FALSE),"") ->  | R162: =IFERROR(HLOOKUP(R$14,PrototypeResults,'Project Database'!$C98,FALSE),"") ->  | S162: =IFERROR(HLOOKUP(S$14,PrototypeResults,'Project Database'!$C98,FALSE),"") ->  | T162: =IFERROR(HLOOKUP(T$14,PrototypeResults,'Project Database'!$C98,FALSE),"") ->  | U162: =IFERROR(HLOOKUP(U$14,PrototypeResults,'Project Database'!$C98,FALSE),"") -> 
B163: 83 | E163: Electricity savings or uses of second system (alternative) (kWh) | H163: =IFERROR(HLOOKUP(H$14,PrototypeResults,'Project Database'!$C99,FALSE),"") ->  | I163: =IFERROR(HLOOKUP(I$14,PrototypeResults,'Project Database'!$C99,FALSE),"") ->  | J163: =IFERROR(HLOOKUP(J$14,PrototypeResults,'Project Database'!$C99,FALSE),"") ->  | K163: =IFERROR(HLOOKUP(K$14,PrototypeResults,'Project Database'!$C99,FALSE),"") ->  | P163: =IFERROR(HLOOKUP(P$14,PrototypeResults,'Project Database'!$C99,FALSE),"") ->  | Q163: =IFERROR(HLOOKUP(Q$14,PrototypeResults,'Project Database'!$C99,FALSE),"") ->  | R163: =IFERROR(HLOOKUP(R$14,PrototypeResults,'Project Database'!$C99,FALSE),"") ->  | S163: =IFERROR(HLOOKUP(S$14,PrototypeResults,'Project Database'!$C99,FALSE),"") ->  | T163: =IFERROR(HLOOKUP(T$14,PrototypeResults,'Project Database'!$C99,FALSE),"") ->  | U163: =IFERROR(HLOOKUP(U$14,PrototypeResults,'Project Database'!$C99,FALSE),"") -> 
B164: 84 | E164: Sales price or production incentives of generation, second system ($/kWh) | H164: =IFERROR(HLOOKUP(H$14,PrototypeResults,'Project Database'!$C100,FALSE),"") ->  | I164: =IFERROR(HLOOKUP(I$14,PrototypeResults,'Project Database'!$C100,FALSE),"") ->  | J164: =IFERROR(HLOOKUP(J$14,PrototypeResults,'Project Database'!$C100,FALSE),"") ->  | K164: =IFERROR(HLOOKUP(K$14,PrototypeResults,'Project Database'!$C100,FALSE),"") ->  | P164: =IFERROR(HLOOKUP(P$14,PrototypeResults,'Project Database'!$C100,FALSE),"") ->  | Q164: =IFERROR(HLOOKUP(Q$14,PrototypeResults,'Project Database'!$C100,FALSE),"") ->  | R164: =IFERROR(HLOOKUP(R$14,PrototypeResults,'Project Database'!$C100,FALSE),"") ->  | S164: =IFERROR(HLOOKUP(S$14,PrototypeResults,'Project Database'!$C100,FALSE),"") ->  | T164: =IFERROR(HLOOKUP(T$14,PrototypeResults,'Project Database'!$C100,FALSE),"") ->  | U164: =IFERROR(HLOOKUP(U$14,PrototypeResults,'Project Database'!$C100,FALSE),"") -> 
B165: 85 | E165: Description of 2nd system, Thermal | H165: =IFERROR(HLOOKUP(H$14,PrototypeResults,'Project Database'!$C101,FALSE),"") ->  | I165: =IFERROR(HLOOKUP(I$14,PrototypeResults,'Project Database'!$C101,FALSE),"") ->  | J165: =IFERROR(HLOOKUP(J$14,PrototypeResults,'Project Database'!$C101,FALSE),"") ->  | K165: =IFERROR(HLOOKUP(K$14,PrototypeResults,'Project Database'!$C101,FALSE),"") ->  | P165: =IFERROR(HLOOKUP(P$14,PrototypeResults,'Project Database'!$C101,FALSE),"") ->  | Q165: =IFERROR(HLOOKUP(Q$14,PrototypeResults,'Project Database'!$C101,FALSE),"") ->  | R165: =IFERROR(HLOOKUP(R$14,PrototypeResults,'Project Database'!$C101,FALSE),"") ->  | S165: =IFERROR(HLOOKUP(S$14,PrototypeResults,'Project Database'!$C101,FALSE),"") ->  | T165: =IFERROR(HLOOKUP(T$14,PrototypeResults,'Project Database'!$C101,FALSE),"") ->  | U165: =IFERROR(HLOOKUP(U$14,PrototypeResults,'Project Database'!$C101,FALSE),"") -> 
B166: 86 | E166: Capital Cost of 2nd System, Thermal | H166: =IFERROR(HLOOKUP(H$14,PrototypeResults,'Project Database'!$C102,FALSE),"") ->  | I166: =IFERROR(HLOOKUP(I$14,PrototypeResults,'Project Database'!$C102,FALSE),"") ->  | J166: =IFERROR(HLOOKUP(J$14,PrototypeResults,'Project Database'!$C102,FALSE),"") ->  | K166: =IFERROR(HLOOKUP(K$14,PrototypeResults,'Project Database'!$C102,FALSE),"") ->  | P166: =IFERROR(HLOOKUP(P$14,PrototypeResults,'Project Database'!$C102,FALSE),"") ->  | Q166: =IFERROR(HLOOKUP(Q$14,PrototypeResults,'Project Database'!$C102,FALSE),"") ->  | R166: =IFERROR(HLOOKUP(R$14,PrototypeResults,'Project Database'!$C102,FALSE),"") ->  | S166: =IFERROR(HLOOKUP(S$14,PrototypeResults,'Project Database'!$C102,FALSE),"") ->  | T166: =IFERROR(HLOOKUP(T$14,PrototypeResults,'Project Database'!$C102,FALSE),"") ->  | U166: =IFERROR(HLOOKUP(U$14,PrototypeResults,'Project Database'!$C102,FALSE),"") -> 
B167: 87 | E167: ='Project Database'!F103 -> Thermal Energy Source | H167: =IFERROR(HLOOKUP(H$14,PrototypeResults,'Project Database'!$C103,FALSE),"") ->  | I167: =IFERROR(HLOOKUP(I$14,PrototypeResults,'Project Database'!$C103,FALSE),"") ->  | J167: =IFERROR(HLOOKUP(J$14,PrototypeResults,'Project Database'!$C103,FALSE),"") ->  | K167: =IFERROR(HLOOKUP(K$14,PrototypeResults,'Project Database'!$C103,FALSE),"") ->  | P167: =IFERROR(HLOOKUP(P$14,PrototypeResults,'Project Database'!$C103,FALSE),"") ->  | Q167: =IFERROR(HLOOKUP(Q$14,PrototypeResults,'Project Database'!$C103,FALSE),"") ->  | R167: =IFERROR(HLOOKUP(R$14,PrototypeResults,'Project Database'!$C103,FALSE),"") ->  | S167: =IFERROR(HLOOKUP(S$14,PrototypeResults,'Project Database'!$C103,FALSE),"") ->  | T167: =IFERROR(HLOOKUP(T$14,PrototypeResults,'Project Database'!$C103,FALSE),"") ->  | U167: =IFERROR(HLOOKUP(U$14,PrototypeResults,'Project Database'!$C103,FALSE),"") -> 
B168: 88 | E168: Heat Savings or Generation (MMBtu) | H168: =IFERROR(HLOOKUP(H$14,PrototypeResults,'Project Database'!$C104,FALSE),"") ->  | I168: =IFERROR(HLOOKUP(I$14,PrototypeResults,'Project Database'!$C104,FALSE),"") ->  | J168: =IFERROR(HLOOKUP(J$14,PrototypeResults,'Project Database'!$C104,FALSE),"") ->  | K168: =IFERROR(HLOOKUP(K$14,PrototypeResults,'Project Database'!$C104,FALSE),"") ->  | P168: =IFERROR(HLOOKUP(P$14,PrototypeResults,'Project Database'!$C104,FALSE),"") ->  | Q168: =IFERROR(HLOOKUP(Q$14,PrototypeResults,'Project Database'!$C104,FALSE),"") ->  | R168: =IFERROR(HLOOKUP(R$14,PrototypeResults,'Project Database'!$C104,FALSE),"") ->  | S168: =IFERROR(HLOOKUP(S$14,PrototypeResults,'Project Database'!$C104,FALSE),"") ->  | T168: =IFERROR(HLOOKUP(T$14,PrototypeResults,'Project Database'!$C104,FALSE),"") ->  | U168: =IFERROR(HLOOKUP(U$14,PrototypeResults,'Project Database'!$C104,FALSE),"") -> 
B169: 89 | E169: Price of Heat Savings or Generation ($/MMBtu) | H169: =IFERROR(HLOOKUP(H$14,PrototypeResults,'Project Database'!$C105,FALSE),"") ->  | I169: =IFERROR(HLOOKUP(I$14,PrototypeResults,'Project Database'!$C105,FALSE),"") ->  | J169: =IFERROR(HLOOKUP(J$14,PrototypeResults,'Project Database'!$C105,FALSE),"") ->  | K169: =IFERROR(HLOOKUP(K$14,PrototypeResults,'Project Database'!$C105,FALSE),"") ->  | P169: =IFERROR(HLOOKUP(P$14,PrototypeResults,'Project Database'!$C105,FALSE),"") ->  | Q169: =IFERROR(HLOOKUP(Q$14,PrototypeResults,'Project Database'!$C105,FALSE),"") ->  | R169: =IFERROR(HLOOKUP(R$14,PrototypeResults,'Project Database'!$C105,FALSE),"") ->  | S169: =IFERROR(HLOOKUP(S$14,PrototypeResults,'Project Database'!$C105,FALSE),"") ->  | T169: =IFERROR(HLOOKUP(T$14,PrototypeResults,'Project Database'!$C105,FALSE),"") ->  | U169: =IFERROR(HLOOKUP(U$14,PrototypeResults,'Project Database'!$C105,FALSE),"") -> 
B170: 90 | D170: Financial (from CHP Analysis) | E170: Simple Payback (CHP Analysis), Years | H170: =IFERROR(HLOOKUP(H$14,PrototypeResults,'Project Database'!$C106,FALSE),"") ->  | I170: =IFERROR(HLOOKUP(I$14,PrototypeResults,'Project Database'!$C106,FALSE),"") ->  | J170: =IFERROR(HLOOKUP(J$14,PrototypeResults,'Project Database'!$C106,FALSE),"") ->  | K170: =IFERROR(HLOOKUP(K$14,PrototypeResults,'Project Database'!$C106,FALSE),"") ->  | P170: =IFERROR(HLOOKUP(P$14,PrototypeResults,'Project Database'!$C106,FALSE),"") ->  | Q170: =IFERROR(HLOOKUP(Q$14,PrototypeResults,'Project Database'!$C106,FALSE),"") ->  | R170: =IFERROR(HLOOKUP(R$14,PrototypeResults,'Project Database'!$C106,FALSE),"") ->  | S170: =IFERROR(HLOOKUP(S$14,PrototypeResults,'Project Database'!$C106,FALSE),"") ->  | T170: =IFERROR(HLOOKUP(T$14,PrototypeResults,'Project Database'!$C106,FALSE),"") ->  | U170: =IFERROR(HLOOKUP(U$14,PrototypeResults,'Project Database'!$C106,FALSE),"") -> 
B171: 91 | E171: Payback Includes Incentives? | H171: =IFERROR(HLOOKUP(H$14,PrototypeResults,'Project Database'!$C107,FALSE),"") ->  | I171: =IFERROR(HLOOKUP(I$14,PrototypeResults,'Project Database'!$C107,FALSE),"") ->  | J171: =IFERROR(HLOOKUP(J$14,PrototypeResults,'Project Database'!$C107,FALSE),"") ->  | K171: =IFERROR(HLOOKUP(K$14,PrototypeResults,'Project Database'!$C107,FALSE),"") ->  | P171: =IFERROR(HLOOKUP(P$14,PrototypeResults,'Project Database'!$C107,FALSE),"") ->  | Q171: =IFERROR(HLOOKUP(Q$14,PrototypeResults,'Project Database'!$C107,FALSE),"") ->  | R171: =IFERROR(HLOOKUP(R$14,PrototypeResults,'Project Database'!$C107,FALSE),"") ->  | S171: =IFERROR(HLOOKUP(S$14,PrototypeResults,'Project Database'!$C107,FALSE),"") ->  | T171: =IFERROR(HLOOKUP(T$14,PrototypeResults,'Project Database'!$C107,FALSE),"") ->  | U171: =IFERROR(HLOOKUP(U$14,PrototypeResults,'Project Database'!$C107,FALSE),"") -> 
B172: 92 | E172: Grants | H172: =IFERROR(HLOOKUP(H$14,PrototypeResults,'Project Database'!$C108,FALSE),"") ->  | I172: =IFERROR(HLOOKUP(I$14,PrototypeResults,'Project Database'!$C108,FALSE),"") ->  | J172: =IFERROR(HLOOKUP(J$14,PrototypeResults,'Project Database'!$C108,FALSE),"") ->  | K172: =IFERROR(HLOOKUP(K$14,PrototypeResults,'Project Database'!$C108,FALSE),"") ->  | P172: =IFERROR(HLOOKUP(P$14,PrototypeResults,'Project Database'!$C108,FALSE),"") ->  | Q172: =IFERROR(HLOOKUP(Q$14,PrototypeResults,'Project Database'!$C108,FALSE),"") ->  | R172: =IFERROR(HLOOKUP(R$14,PrototypeResults,'Project Database'!$C108,FALSE),"") ->  | S172: =IFERROR(HLOOKUP(S$14,PrototypeResults,'Project Database'!$C108,FALSE),"") ->  | T172: =IFERROR(HLOOKUP(T$14,PrototypeResults,'Project Database'!$C108,FALSE),"") ->  | U172: =IFERROR(HLOOKUP(U$14,PrototypeResults,'Project Database'!$C108,FALSE),"") -> 
B173: 93 | E173: Production Incentives, $ per kWh | H173: =IFERROR(HLOOKUP(H$14,PrototypeResults,'Project Database'!$C109,FALSE),"") ->  | I173: =IFERROR(HLOOKUP(I$14,PrototypeResults,'Project Database'!$C109,FALSE),"") ->  | J173: =IFERROR(HLOOKUP(J$14,PrototypeResults,'Project Database'!$C109,FALSE),"") ->  | K173: =IFERROR(HLOOKUP(K$14,PrototypeResults,'Project Database'!$C109,FALSE),"") ->  | P173: =IFERROR(HLOOKUP(P$14,PrototypeResults,'Project Database'!$C109,FALSE),"") ->  | Q173: =IFERROR(HLOOKUP(Q$14,PrototypeResults,'Project Database'!$C109,FALSE),"") ->  | R173: =IFERROR(HLOOKUP(R$14,PrototypeResults,'Project Database'!$C109,FALSE),"") ->  | S173: =IFERROR(HLOOKUP(S$14,PrototypeResults,'Project Database'!$C109,FALSE),"") ->  | T173: =IFERROR(HLOOKUP(T$14,PrototypeResults,'Project Database'!$C109,FALSE),"") ->  | U173: =IFERROR(HLOOKUP(U$14,PrototypeResults,'Project Database'!$C109,FALSE),"") -> 
B174: 94 | D174: Financial Assumptions | E174: Sector | H174: =IFERROR(HLOOKUP(H$14,PrototypeResults,'Project Database'!$C110,FALSE),"") ->  | I174: =IFERROR(HLOOKUP(I$14,PrototypeResults,'Project Database'!$C110,FALSE),"") ->  | J174: =IFERROR(HLOOKUP(J$14,PrototypeResults,'Project Database'!$C110,FALSE),"") ->  | K174: =IFERROR(HLOOKUP(K$14,PrototypeResults,'Project Database'!$C110,FALSE),"") ->  | P174: =IFERROR(HLOOKUP(P$14,PrototypeResults,'Project Database'!$C110,FALSE),"") ->  | Q174: =IFERROR(HLOOKUP(Q$14,PrototypeResults,'Project Database'!$C110,FALSE),"") ->  | R174: =IFERROR(HLOOKUP(R$14,PrototypeResults,'Project Database'!$C110,FALSE),"") ->  | S174: =IFERROR(HLOOKUP(S$14,PrototypeResults,'Project Database'!$C110,FALSE),"") ->  | T174: =IFERROR(HLOOKUP(T$14,PrototypeResults,'Project Database'!$C110,FALSE),"") ->  | U174: =IFERROR(HLOOKUP(U$14,PrototypeResults,'Project Database'!$C110,FALSE),"") -> 
B175: 95 | E175: Discount Rate | H175: =IFERROR(HLOOKUP(H$14,PrototypeResults,'Project Database'!$C111,FALSE),"") ->  | I175: =IFERROR(HLOOKUP(I$14,PrototypeResults,'Project Database'!$C111,FALSE),"") ->  | J175: =IFERROR(HLOOKUP(J$14,PrototypeResults,'Project Database'!$C111,FALSE),"") ->  | K175: =IFERROR(HLOOKUP(K$14,PrototypeResults,'Project Database'!$C111,FALSE),"") ->  | P175: =IFERROR(HLOOKUP(P$14,PrototypeResults,'Project Database'!$C111,FALSE),"") ->  | Q175: =IFERROR(HLOOKUP(Q$14,PrototypeResults,'Project Database'!$C111,FALSE),"") ->  | R175: =IFERROR(HLOOKUP(R$14,PrototypeResults,'Project Database'!$C111,FALSE),"") ->  | S175: =IFERROR(HLOOKUP(S$14,PrototypeResults,'Project Database'!$C111,FALSE),"") ->  | T175: =IFERROR(HLOOKUP(T$14,PrototypeResults,'Project Database'!$C111,FALSE),"") ->  | U175: =IFERROR(HLOOKUP(U$14,PrototypeResults,'Project Database'!$C111,FALSE),"") -> 
B176: 96 | E176: Project Life | H176: =IFERROR(HLOOKUP(H$14,PrototypeResults,'Project Database'!$C112,FALSE),"") ->  | I176: =IFERROR(HLOOKUP(I$14,PrototypeResults,'Project Database'!$C112,FALSE),"") ->  | J176: =IFERROR(HLOOKUP(J$14,PrototypeResults,'Project Database'!$C112,FALSE),"") ->  | K176: =IFERROR(HLOOKUP(K$14,PrototypeResults,'Project Database'!$C112,FALSE),"") ->  | P176: =IFERROR(HLOOKUP(P$14,PrototypeResults,'Project Database'!$C112,FALSE),"") ->  | Q176: =IFERROR(HLOOKUP(Q$14,PrototypeResults,'Project Database'!$C112,FALSE),"") ->  | R176: =IFERROR(HLOOKUP(R$14,PrototypeResults,'Project Database'!$C112,FALSE),"") ->  | S176: =IFERROR(HLOOKUP(S$14,PrototypeResults,'Project Database'!$C112,FALSE),"") ->  | T176: =IFERROR(HLOOKUP(T$14,PrototypeResults,'Project Database'!$C112,FALSE),"") ->  | U176: =IFERROR(HLOOKUP(U$14,PrototypeResults,'Project Database'!$C112,FALSE),"") -> 
B177: 97 | E177: General Inflation | H177: =IFERROR(HLOOKUP(H$14,PrototypeResults,'Project Database'!$C113,FALSE),"") ->  | I177: =IFERROR(HLOOKUP(I$14,PrototypeResults,'Project Database'!$C113,FALSE),"") ->  | J177: =IFERROR(HLOOKUP(J$14,PrototypeResults,'Project Database'!$C113,FALSE),"") ->  | K177: =IFERROR(HLOOKUP(K$14,PrototypeResults,'Project Database'!$C113,FALSE),"") ->  | P177: =IFERROR(HLOOKUP(P$14,PrototypeResults,'Project Database'!$C113,FALSE),"") ->  | Q177: =IFERROR(HLOOKUP(Q$14,PrototypeResults,'Project Database'!$C113,FALSE),"") ->  | R177: =IFERROR(HLOOKUP(R$14,PrototypeResults,'Project Database'!$C113,FALSE),"") ->  | S177: =IFERROR(HLOOKUP(S$14,PrototypeResults,'Project Database'!$C113,FALSE),"") ->  | T177: =IFERROR(HLOOKUP(T$14,PrototypeResults,'Project Database'!$C113,FALSE),"") ->  | U177: =IFERROR(HLOOKUP(U$14,PrototypeResults,'Project Database'!$C113,FALSE),"") -> 
B178: 98 | E178: First Year of Project | F178: =HLOOKUP($F$81,$H$81:$U$219,B178,FALSE) ->  | H178: =IFERROR(HLOOKUP(H$14,PrototypeResults,'Project Database'!$C114,FALSE),"") ->  | I178: =IFERROR(HLOOKUP(I$14,PrototypeResults,'Project Database'!$C114,FALSE),"") ->  | J178: =IFERROR(HLOOKUP(J$14,PrototypeResults,'Project Database'!$C114,FALSE),"") ->  | K178: =IFERROR(HLOOKUP(K$14,PrototypeResults,'Project Database'!$C114,FALSE),"") ->  | P178: =IFERROR(HLOOKUP(P$14,PrototypeResults,'Project Database'!$C114,FALSE),"") ->  | Q178: =IFERROR(HLOOKUP(Q$14,PrototypeResults,'Project Database'!$C114,FALSE),"") ->  | R178: =IFERROR(HLOOKUP(R$14,PrototypeResults,'Project Database'!$C114,FALSE),"") ->  | S178: =IFERROR(HLOOKUP(S$14,PrototypeResults,'Project Database'!$C114,FALSE),"") ->  | T178: =IFERROR(HLOOKUP(T$14,PrototypeResults,'Project Database'!$C114,FALSE),"") ->  | U178: =IFERROR(HLOOKUP(U$14,PrototypeResults,'Project Database'!$C114,FALSE),"") -> 
B179: 99 | E179: Contingencies | H179: =IFERROR(HLOOKUP(H$14,PrototypeResults,'Project Database'!$C115,FALSE),"") ->  | I179: =IFERROR(HLOOKUP(I$14,PrototypeResults,'Project Database'!$C115,FALSE),"") ->  | J179: =IFERROR(HLOOKUP(J$14,PrototypeResults,'Project Database'!$C115,FALSE),"") ->  | K179: =IFERROR(HLOOKUP(K$14,PrototypeResults,'Project Database'!$C115,FALSE),"") ->  | P179: =IFERROR(HLOOKUP(P$14,PrototypeResults,'Project Database'!$C115,FALSE),"") ->  | Q179: =IFERROR(HLOOKUP(Q$14,PrototypeResults,'Project Database'!$C115,FALSE),"") ->  | R179: =IFERROR(HLOOKUP(R$14,PrototypeResults,'Project Database'!$C115,FALSE),"") ->  | S179: =IFERROR(HLOOKUP(S$14,PrototypeResults,'Project Database'!$C115,FALSE),"") ->  | T179: =IFERROR(HLOOKUP(T$14,PrototypeResults,'Project Database'!$C115,FALSE),"") ->  | U179: =IFERROR(HLOOKUP(U$14,PrototypeResults,'Project Database'!$C115,FALSE),"") -> 
B180: 100 | E180: Taxable Entity? | H180: =IFERROR(HLOOKUP(H$14,PrototypeResults,'Project Database'!$C116,FALSE),"") ->  | I180: =IFERROR(HLOOKUP(I$14,PrototypeResults,'Project Database'!$C116,FALSE),"") ->  | J180: =IFERROR(HLOOKUP(J$14,PrototypeResults,'Project Database'!$C116,FALSE),"") ->  | K180: =IFERROR(HLOOKUP(K$14,PrototypeResults,'Project Database'!$C116,FALSE),"") ->  | P180: =IFERROR(HLOOKUP(P$14,PrototypeResults,'Project Database'!$C116,FALSE),"") ->  | Q180: =IFERROR(HLOOKUP(Q$14,PrototypeResults,'Project Database'!$C116,FALSE),"") ->  | R180: =IFERROR(HLOOKUP(R$14,PrototypeResults,'Project Database'!$C116,FALSE),"") ->  | S180: =IFERROR(HLOOKUP(S$14,PrototypeResults,'Project Database'!$C116,FALSE),"") ->  | T180: =IFERROR(HLOOKUP(T$14,PrototypeResults,'Project Database'!$C116,FALSE),"") ->  | U180: =IFERROR(HLOOKUP(U$14,PrototypeResults,'Project Database'!$C116,FALSE),"") -> 
B181: 101 | E181: Federal Tax Rate | H181: =IFERROR(HLOOKUP(H$14,PrototypeResults,'Project Database'!$C117,FALSE),"") ->  | I181: =IFERROR(HLOOKUP(I$14,PrototypeResults,'Project Database'!$C117,FALSE),"") ->  | J181: =IFERROR(HLOOKUP(J$14,PrototypeResults,'Project Database'!$C117,FALSE),"") ->  | K181: =IFERROR(HLOOKUP(K$14,PrototypeResults,'Project Database'!$C117,FALSE),"") ->  | P181: =IFERROR(HLOOKUP(P$14,PrototypeResults,'Project Database'!$C117,FALSE),"") ->  | Q181: =IFERROR(HLOOKUP(Q$14,PrototypeResults,'Project Database'!$C117,FALSE),"") ->  | R181: =IFERROR(HLOOKUP(R$14,PrototypeResults,'Project Database'!$C117,FALSE),"") ->  | S181: =IFERROR(HLOOKUP(S$14,PrototypeResults,'Project Database'!$C117,FALSE),"") ->  | T181: =IFERROR(HLOOKUP(T$14,PrototypeResults,'Project Database'!$C117,FALSE),"") ->  | U181: =IFERROR(HLOOKUP(U$14,PrototypeResults,'Project Database'!$C117,FALSE),"") -> 
B182: 102 | E182: State Tax Rate | H182: =IFERROR(HLOOKUP(H$14,PrototypeResults,'Project Database'!$C118,FALSE),"") ->  | I182: =IFERROR(HLOOKUP(I$14,PrototypeResults,'Project Database'!$C118,FALSE),"") ->  | J182: =IFERROR(HLOOKUP(J$14,PrototypeResults,'Project Database'!$C118,FALSE),"") ->  | K182: =IFERROR(HLOOKUP(K$14,PrototypeResults,'Project Database'!$C118,FALSE),"") ->  | P182: =IFERROR(HLOOKUP(P$14,PrototypeResults,'Project Database'!$C118,FALSE),"") ->  | Q182: =IFERROR(HLOOKUP(Q$14,PrototypeResults,'Project Database'!$C118,FALSE),"") ->  | R182: =IFERROR(HLOOKUP(R$14,PrototypeResults,'Project Database'!$C118,FALSE),"") ->  | S182: =IFERROR(HLOOKUP(S$14,PrototypeResults,'Project Database'!$C118,FALSE),"") ->  | T182: =IFERROR(HLOOKUP(T$14,PrototypeResults,'Project Database'!$C118,FALSE),"") ->  | U182: =IFERROR(HLOOKUP(U$14,PrototypeResults,'Project Database'!$C118,FALSE),"") -> 
B183: 103 | E183: Federal Bonus Depreciation, Asset Class (Year) | H183: =IFERROR(HLOOKUP(H$14,PrototypeResults,'Project Database'!$C119,FALSE),"") ->  | I183: =IFERROR(HLOOKUP(I$14,PrototypeResults,'Project Database'!$C119,FALSE),"") ->  | J183: =IFERROR(HLOOKUP(J$14,PrototypeResults,'Project Database'!$C119,FALSE),"") ->  | K183: =IFERROR(HLOOKUP(K$14,PrototypeResults,'Project Database'!$C119,FALSE),"") ->  | P183: =IFERROR(HLOOKUP(P$14,PrototypeResults,'Project Database'!$C119,FALSE),"") ->  | Q183: =IFERROR(HLOOKUP(Q$14,PrototypeResults,'Project Database'!$C119,FALSE),"") ->  | R183: =IFERROR(HLOOKUP(R$14,PrototypeResults,'Project Database'!$C119,FALSE),"") ->  | S183: =IFERROR(HLOOKUP(S$14,PrototypeResults,'Project Database'!$C119,FALSE),"") ->  | T183: =IFERROR(HLOOKUP(T$14,PrototypeResults,'Project Database'!$C119,FALSE),"") ->  | U183: =IFERROR(HLOOKUP(U$14,PrototypeResults,'Project Database'!$C119,FALSE),"") -> 
B184: 104 | E184: Percent CHP Plant Depreciable | H184: =IFERROR(HLOOKUP(H$14,PrototypeResults,'Project Database'!$C120,FALSE),"") ->  | I184: =IFERROR(HLOOKUP(I$14,PrototypeResults,'Project Database'!$C120,FALSE),"") ->  | J184: =IFERROR(HLOOKUP(J$14,PrototypeResults,'Project Database'!$C120,FALSE),"") ->  | K184: =IFERROR(HLOOKUP(K$14,PrototypeResults,'Project Database'!$C120,FALSE),"") ->  | P184: =IFERROR(HLOOKUP(P$14,PrototypeResults,'Project Database'!$C120,FALSE),"") ->  | Q184: =IFERROR(HLOOKUP(Q$14,PrototypeResults,'Project Database'!$C120,FALSE),"") ->  | R184: =IFERROR(HLOOKUP(R$14,PrototypeResults,'Project Database'!$C120,FALSE),"") ->  | S184: =IFERROR(HLOOKUP(S$14,PrototypeResults,'Project Database'!$C120,FALSE),"") ->  | T184: =IFERROR(HLOOKUP(T$14,PrototypeResults,'Project Database'!$C120,FALSE),"") ->  | U184: =IFERROR(HLOOKUP(U$14,PrototypeResults,'Project Database'!$C120,FALSE),"") -> 
B185: 105 | E185: Salvage Value at End of Project | H185: =IFERROR(HLOOKUP(H$14,PrototypeResults,'Project Database'!$C121,FALSE),"") ->  | I185: =IFERROR(HLOOKUP(I$14,PrototypeResults,'Project Database'!$C121,FALSE),"") ->  | J185: =IFERROR(HLOOKUP(J$14,PrototypeResults,'Project Database'!$C121,FALSE),"") ->  | K185: =IFERROR(HLOOKUP(K$14,PrototypeResults,'Project Database'!$C121,FALSE),"") ->  | P185: =IFERROR(HLOOKUP(P$14,PrototypeResults,'Project Database'!$C121,FALSE),"") ->  | Q185: =IFERROR(HLOOKUP(Q$14,PrototypeResults,'Project Database'!$C121,FALSE),"") ->  | R185: =IFERROR(HLOOKUP(R$14,PrototypeResults,'Project Database'!$C121,FALSE),"") ->  | S185: =IFERROR(HLOOKUP(S$14,PrototypeResults,'Project Database'!$C121,FALSE),"") ->  | T185: =IFERROR(HLOOKUP(T$14,PrototypeResults,'Project Database'!$C121,FALSE),"") ->  | U185: =IFERROR(HLOOKUP(U$14,PrototypeResults,'Project Database'!$C121,FALSE),"") -> 
B186: 106 | D186: Viability Criteria | E186: Viability Criteria: Before-Tax Simple Payback | H186: =IFERROR(HLOOKUP(H$14,PrototypeResults,'Project Database'!$C122,FALSE),"") ->  | I186: =IFERROR(HLOOKUP(I$14,PrototypeResults,'Project Database'!$C122,FALSE),"") ->  | J186: =IFERROR(HLOOKUP(J$14,PrototypeResults,'Project Database'!$C122,FALSE),"") ->  | K186: =IFERROR(HLOOKUP(K$14,PrototypeResults,'Project Database'!$C122,FALSE),"") ->  | P186: =IFERROR(HLOOKUP(P$14,PrototypeResults,'Project Database'!$C122,FALSE),"") ->  | Q186: =IFERROR(HLOOKUP(Q$14,PrototypeResults,'Project Database'!$C122,FALSE),"") ->  | R186: =IFERROR(HLOOKUP(R$14,PrototypeResults,'Project Database'!$C122,FALSE),"") ->  | S186: =IFERROR(HLOOKUP(S$14,PrototypeResults,'Project Database'!$C122,FALSE),"") ->  | T186: =IFERROR(HLOOKUP(T$14,PrototypeResults,'Project Database'!$C122,FALSE),"") ->  | U186: =IFERROR(HLOOKUP(U$14,PrototypeResults,'Project Database'!$C122,FALSE),"") -> 
B187: 107 | E187: Viability Criteria: Internal Rate of Return | H187: =IFERROR(HLOOKUP(H$14,PrototypeResults,'Project Database'!$C123,FALSE),"") ->  | I187: =IFERROR(HLOOKUP(I$14,PrototypeResults,'Project Database'!$C123,FALSE),"") ->  | J187: =IFERROR(HLOOKUP(J$14,PrototypeResults,'Project Database'!$C123,FALSE),"") ->  | K187: =IFERROR(HLOOKUP(K$14,PrototypeResults,'Project Database'!$C123,FALSE),"") ->  | P187: =IFERROR(HLOOKUP(P$14,PrototypeResults,'Project Database'!$C123,FALSE),"") ->  | Q187: =IFERROR(HLOOKUP(Q$14,PrototypeResults,'Project Database'!$C123,FALSE),"") ->  | R187: =IFERROR(HLOOKUP(R$14,PrototypeResults,'Project Database'!$C123,FALSE),"") ->  | S187: =IFERROR(HLOOKUP(S$14,PrototypeResults,'Project Database'!$C123,FALSE),"") ->  | T187: =IFERROR(HLOOKUP(T$14,PrototypeResults,'Project Database'!$C123,FALSE),"") ->  | U187: =IFERROR(HLOOKUP(U$14,PrototypeResults,'Project Database'!$C123,FALSE),"") -> 
B188: 108 | D188: CHP Cost Summary | E188: Annual Electric Cost Savings ($/yr to facility) | H188: =IFERROR(H149*H151,"") ->  | I188: =IFERROR(I149*I151,"") ->  | J188: =IFERROR(J149*J151,"") ->  | K188: =IFERROR(K149*K151,"") ->  | P188: =IFERROR(P149*P151,"") -> 
B189: 109 | E189: Fuel Cost ($/yr to facility) | H189: =IFERROR(H143*H155+H144+H158+H145*H156+H146*H157,"") ->  | I189: =IFERROR(I143*I155+I144+I158+I145*I156+I146*I157,"") ->  | J189: =IFERROR(J143*J155+J144+J158+J145*J156+J146*J157,"") ->  | K189: =IFERROR(K143*K155+K144+K158+K145*K156+K146*K157,"") ->  | P189: =IFERROR(P143*P155+P144+P158+P145*P156+P146*P157,"") -> 
B190: 110 | E190: Total O&M Cost ($/yr) | H190: =IFERROR(H126*H140+H127+H128+H129,"") ->  | I190: =IFERROR(I126*I140+I127+I128+I129,"") ->  | J190: =IFERROR(J126*J140+J127+J128+J129,"") ->  | K190: =IFERROR(K126*K140+K127+K128+K129,"") ->  | P190: =IFERROR(P126*P140+P127+P128+P129,"") -> 
B191: 111 | E191: Net Operating Cost Savings ($/yr) | H191: =IFERROR(H188+H189-H190,"") ->  | I191: =IFERROR(I188+I189-I190,"") ->  | J191: =IFERROR(J188+J189-J190,"") ->  | K191: =IFERROR(K188+K189-K190,"") ->  | P191: =IFERROR(P188+P189-P190,"") -> 
B192: =B191+1 -> 112 | E192: Total Installed Cost ($) (without avoided cost) | H192: =IFERROR(H120*H100+H123+H121+H160+H166,"") ->  | I192: =IFERROR(I120*I100+I123+I121,"") ->  | J192: =IFERROR(J120*J100+J123+J121,"") ->  | K192: =IFERROR(K120*K100+K123+K121,"") ->  | P192: =IFERROR(P120*P100+P123+P121+P160+P166,"") -> 
B193: 113 | E193: ='Project Database'!F124 -> Contact Name: | H193: =IFERROR(HLOOKUP(H$14,PrototypeResults,'Project Database'!$C124,FALSE),"") ->  | I193: =IFERROR(HLOOKUP(I$14,PrototypeResults,'Project Database'!$C124,FALSE),"") ->  | J193: =IFERROR(HLOOKUP(J$14,PrototypeResults,'Project Database'!$C124,FALSE),"") ->  | K193: =IFERROR(HLOOKUP(K$14,PrototypeResults,'Project Database'!$C124,FALSE),"") ->  | P193: =IFERROR(HLOOKUP(P$14,PrototypeResults,'Project Database'!$C124,FALSE),"") ->  | Q193: =IFERROR(HLOOKUP(Q$14,PrototypeResults,'Project Database'!$C124,FALSE),"") ->  | R193: =IFERROR(HLOOKUP(R$14,PrototypeResults,'Project Database'!$C124,FALSE),"") ->  | S193: =IFERROR(HLOOKUP(S$14,PrototypeResults,'Project Database'!$C124,FALSE),"") ->  | T193: =IFERROR(HLOOKUP(T$14,PrototypeResults,'Project Database'!$C124,FALSE),"") ->  | U193: =IFERROR(HLOOKUP(U$14,PrototypeResults,'Project Database'!$C124,FALSE),"") -> 
B194: 114 | E194: ='Project Database'!F125 -> Email Address: | H194: =IFERROR(HLOOKUP(H$14,PrototypeResults,'Project Database'!$C125,FALSE),"") ->  | I194: =IFERROR(HLOOKUP(I$14,PrototypeResults,'Project Database'!$C125,FALSE),"") ->  | J194: =IFERROR(HLOOKUP(J$14,PrototypeResults,'Project Database'!$C125,FALSE),"") ->  | K194: =IFERROR(HLOOKUP(K$14,PrototypeResults,'Project Database'!$C125,FALSE),"") ->  | P194: =IFERROR(HLOOKUP(P$14,PrototypeResults,'Project Database'!$C125,FALSE),"") ->  | Q194: =IFERROR(HLOOKUP(Q$14,PrototypeResults,'Project Database'!$C125,FALSE),"") ->  | R194: =IFERROR(HLOOKUP(R$14,PrototypeResults,'Project Database'!$C125,FALSE),"") ->  | S194: =IFERROR(HLOOKUP(S$14,PrototypeResults,'Project Database'!$C125,FALSE),"") ->  | T194: =IFERROR(HLOOKUP(T$14,PrototypeResults,'Project Database'!$C125,FALSE),"") ->  | U194: =IFERROR(HLOOKUP(U$14,PrototypeResults,'Project Database'!$C125,FALSE),"") -> 
B195: 115 | E195: ='Project Database'!F126 -> Phone No. | H195: =IFERROR(HLOOKUP(H$14,PrototypeResults,'Project Database'!$C126,FALSE),"") ->  | I195: =IFERROR(HLOOKUP(I$14,PrototypeResults,'Project Database'!$C126,FALSE),"") ->  | J195: =IFERROR(HLOOKUP(J$14,PrototypeResults,'Project Database'!$C126,FALSE),"") ->  | K195: =IFERROR(HLOOKUP(K$14,PrototypeResults,'Project Database'!$C126,FALSE),"") ->  | P195: =IFERROR(HLOOKUP(P$14,PrototypeResults,'Project Database'!$C126,FALSE),"") ->  | Q195: =IFERROR(HLOOKUP(Q$14,PrototypeResults,'Project Database'!$C126,FALSE),"") ->  | R195: =IFERROR(HLOOKUP(R$14,PrototypeResults,'Project Database'!$C126,FALSE),"") ->  | S195: =IFERROR(HLOOKUP(S$14,PrototypeResults,'Project Database'!$C126,FALSE),"") ->  | T195: =IFERROR(HLOOKUP(T$14,PrototypeResults,'Project Database'!$C126,FALSE),"") ->  | U195: =IFERROR(HLOOKUP(U$14,PrototypeResults,'Project Database'!$C126,FALSE),"") -> 
B196: 116 | E196: ='Project Database'!F127 -> Fax No. | H196: =IFERROR(HLOOKUP(H$14,PrototypeResults,'Project Database'!$C127,FALSE),"") ->  | I196: =IFERROR(HLOOKUP(I$14,PrototypeResults,'Project Database'!$C127,FALSE),"") ->  | J196: =IFERROR(HLOOKUP(J$14,PrototypeResults,'Project Database'!$C127,FALSE),"") ->  | K196: =IFERROR(HLOOKUP(K$14,PrototypeResults,'Project Database'!$C127,FALSE),"") ->  | P196: =IFERROR(HLOOKUP(P$14,PrototypeResults,'Project Database'!$C127,FALSE),"") ->  | Q196: =IFERROR(HLOOKUP(Q$14,PrototypeResults,'Project Database'!$C127,FALSE),"") ->  | R196: =IFERROR(HLOOKUP(R$14,PrototypeResults,'Project Database'!$C127,FALSE),"") ->  | S196: =IFERROR(HLOOKUP(S$14,PrototypeResults,'Project Database'!$C127,FALSE),"") ->  | T196: =IFERROR(HLOOKUP(T$14,PrototypeResults,'Project Database'!$C127,FALSE),"") ->  | U196: =IFERROR(HLOOKUP(U$14,PrototypeResults,'Project Database'!$C127,FALSE),"") -> 
B197: 117
B198: 118 | D198: ENERGY SAVINGS COMPARED TO GRID
B199: 119 | D199: FCP | E199: Fuel Chargeable to Power (FCP) Heat Rate (BTU/kWh) | F199: =IFERROR(HLOOKUP($F$81,$H$81:$U$219,B199,FALSE),"") ->  | H199: =IFERROR(IF(H143=0,0,( H143*10^6- (H148*10^6)/H115)/H140),"") ->  | I199: =IFERROR(IF(I143=0,0,( I143*10^6- (I148*10^6)/I115)/I140),"") ->  | J199: =IFERROR(IF(J143=0,0,( J143*10^6- (J148*10^6)/J115)/J140),"") ->  | K199: =IFERROR(IF(K143=0,0,( K143*10^6- (K148*10^6)/K115)/K140),"") ->  | P199: =IFERROR(IF(P143=0,0,( P143*10^6- (P148*10^6)/P115)/P140),"") -> 
B200: 120 | E200: FCP Efficiency (%) | F200: =IFERROR(HLOOKUP($F$81,$H$81:$U$219,B200,FALSE),"") ->  | H200: =IFERROR(3412/H199,"") ->  | I200: =IFERROR(3412/I199,"") ->  | J200: =IFERROR(3412/J199,"") ->  | K200: =IFERROR(3412/K199,1) -> 1 | P200: =IFERROR(3412/P199,1) -> 1 | Q200: 1 | R200: 1 | S200: 1 | T200: 1 | U200: 1
B201: 121 | E201: Total System Efficiency (%) | F201: =IFERROR(HLOOKUP($F$81,$H$81:$U$219,B201,FALSE),"") ->  | H201: =IFERROR(( H148*10^6/H115+H140*3412)/(H143*10*100000),"") ->  | I201: =IFERROR(( I148*10^6/I115+I140*3412)/(I143*10*100000),"") ->  | J201: =IFERROR(( J148*10^6/J115+J140*3412)/(J143*10*100000),"") ->  | K201: =IFERROR(( K148*10^6/K115+K140*3412)/(K143*10*100000),"") ->  | P201: =IFERROR(( P148*10^6/P115+P140*3412)/(P143*10*100000),"") -> 
B202: 122 | E202: Conventional generation heat rate (BTU/kWh) | F202: =IFERROR(HLOOKUP($F$81,$H$81:$U$219,B202,FALSE),"") -> 6800 | H202: 6800 | I202: 6800 | J202: 6800 | K202: 6800 | P202: 6800 | Q202: 6800 | R202: 6800 | S202: 6800 | T202: 6800 | U202: 6800
B203: 123 | E203: Annual Energy Savings Compared to Grid (kWh/yr) | F203: =IFERROR(HLOOKUP($F$81,$H$81:$U$219,B203,FALSE),"") ->  | H203: =IFERROR((1-H199/H202)*H140,"") ->  | I203: =IFERROR((1-I199/I202)*I140,"") ->  | J203: =IFERROR((1-J199/J202)*J140,"") ->  | K203: =IFERROR((1-K199/K202)*K140,"") ->  | P203: =IFERROR((1-P199/P202)*P140,"") -> 
B204: 124
B205: 125 | D205: GHG EMISSIONS REDUCTIONS
... 140 more rows

Sheet WhatIf
A1: RELCOST: Summary Results & Sensitivities | F1: =IF(ErrorLine1="","","ENABLE MACROS") -> ENABLE MACROS | L1: INPUT (Edit)
A2: =+General!C9 -> Plant Name | B2: ='Incentive Model'!F15 -> 
A3: Project Description | B3: ='Incentive Model'!F16 ->  | AH3: Project Year | AJ3: =+Scorecard_Year -> 5
A4: Scenario Description | B4: =IF(Scenarios!$B$19=""," ",Scenarios!$B$19) -> 1 Riverside Hotel
A6: SENSITIVITY FACTORS | F6: SELECT SCENARIO | K6: SAVE LCCA RESULTS OF SCENARIOS 1 to 4 | Q6: SB844 INCENTIVE
A7: Escalation Forecast Type | B7: Likely | F7: Project Description | G7: =IFERROR(VLOOKUP(WhatIf!Project,Scenarios!$A$9:$C$18,2,FALSE),General!D11) -> Riverside Hotel | Q7: =CONCATENATE("SB844 Annual Incentive, Scenario ",Project) -> SB844 Annual Incentive, Scenario 1 | R7: =IFERROR(IF(MIN('Prod Incentives'!$G$57:$AK$57)=10^9,"",MIN('Prod Incentives'!$G$57:$AK$57)),0) -> 
A8: Production Incentives | B8: 1.2 | C8: 1st Yr Unit Costs | E8: Notes | G8: ='Incentive Model'!F16 ->  | K8: SCENARIO | L8: =Scenario_FirstProjectNumber -> 1 | N8: SCENARIO | O8: =Scenarios!C11 -> 3 | Q8: SB844 Incentive Price | R8: ='Incentive Model'!G40*'Incentive Model'!L40 -> 0
A9: =IF(A423>0,A423,"") ->  | B9: 1 | C9: ='Prod Incentives'!G19 -> 0 | D9: =+'Prod Incentives'!F19 -> $/kWh | F9: Scenario | G9: 1 | K9: Riverside Hotel | N9: Darrington, Annual Analysis, Thermal, No CHP, 20% ECMs | Q9: =Target_ScenarioResults_1 -> Riverside Hotel | R9: 336.95
A10: =IF(A424>0,A424,"") ->  | B10: 1 | C10: =+'Prod Incentives'!G28*B10 -> 0 | D10: =+'Prod Incentives'!F28 -> $/kWh | K10: Equity IRR | L10: 0.1889079917 | N10: Equity IRR | O10: 0.4305243054 | Q10: =Target_ScenarioResults_2 -> St Alps with solar | R10: 2884.97
A11: Taxes | C11: 1st Yr | F11: LIFE CYCLE COST RESULTS | K11: Project IRR | L11: 0.1889079917 | N11: Project IRR | O11: 0.4305243054 | Q11: =Target_ScenarioResults_3 -> Darrington, Annual Analysis, Thermal, No CHP, 20% ECMs | R11: 27298.13
A12: Federal Tax Rate Applied | B12: 1 | C12: ='Taxes & Fees'!C30 -> 0.35 | F12: Project Life | G12: =+General!D146 -> 15 | H12: Years | K12: Net Present Value | L12: 151025.6954 | N12: Net Present Value | O12: 985919.4345 | Q12: =Target_ScenarioResults_4 -> Darrington, Monthly Analysis, Stirling Engines, 20% ECMs
A13: Depreciation Base | B13: 1 | C13: =IFERROR(Depreciation!D75,"") -> 1633600 | D13: 1st yr shareholder | F13: Life Cycle Cost Analysis | H13: Value | K13: =F17 -> Benefit Cost Ratio (After Tax) | L13: 1.275694953 | N13: Benefit Cost Ratio (After Tax) | O13: 3.63614822
A14: =A428 -> Federal PTC Description | B14: 1 | C14: ='Tax Credits'!D34*Sens_FedTaxCreditPTC -> 0 | D14: =+'Tax Credits'!C35 -> $/kWh | F14: Equity IRR | G14: =IFERROR('Stop-Light Indicators'!C10,"") -> G | H14: =IFERROR(IF(_Calcs_Life_Cycle_Cost!B11<0,"",_Calcs_Life_Cycle_Cost!B11),"") -> 0.1889079917 | K14: =F18 -> After-Tax Discounted Payback | L14: 5.41473636 | N14: =F18 -> After-Tax Discounted Payback | O14: 3.617774824
A15: State PTC Description | B15: 1 | C15: ='Tax Credits'!D44*Sens_StateTaxCreditPTC1 -> 0 | D15: =+'Tax Credits'!C44 -> $/kWh/yr | F15: Project IRR | G15: =+'Stop-Light Indicators'!C11 -> G | H15: =IFERROR(IF(_Calcs_Life_Cycle_Cost!B12<0,"",_Calcs_Life_Cycle_Cost!B12),"") -> 0.1889079917 | K15: =Payback_Desc_1 -> Before-Tax Non-Discounted Payback | L15: 11.58383231 | N15: Non-Discounted Payback | O15: 3.397629677
A16: State PTC Description | B16: 1 | C16: ='Tax Credits'!D53*Sens_StateTaxCreditPTC2 -> 0 | D16: ='Tax Credits'!C52 -> MMBtu/yr | F16: Net Present Value | H16: =IFERROR(_Calcs_Life_Cycle_Cost!B9,"") -> 151025.6954 | K16: Simple Payback, First Year Operation | L16: 13.24982537 | N16: Simple Payback, First Year Operation | O16: 3.503861498
A17: Federal ITC | B17: 1 | C17: =SUM('Tax Credits'!D66:M66)*Sens_FedTaxCredit -> 0 | F17: =IF(General!$D$22=FALSE,"Benefit Cost Ratio","Benefit Cost Ratio (After Tax)") -> Benefit Cost Ratio (After Tax) | H17: =IFERROR(_Calcs_Life_Cycle_Cost!B7,"") -> 1.275694953
A18: State ITC | B18: 1 | C18: =SUM('Tax Credits'!D69:M69)*Sens_StateTaxCredit -> 0 | F18: =IF(General!$D$22="False","Discounted Payback","After-Tax Discounted Payback") -> After-Tax Discounted Payback | H18: =IFERROR(_Calcs_Life_Cycle_Cost!B8,"") -> 5.41473636 | I18: =IF(H18="Exceeds Project Life","","years") -> years | K18: SCENARIO | L18: =Scenarios!C10 -> 2 | N18: SCENARIO | O18: =Scenarios!C12 -> 4
A19: Local ITC | B19: 1 | C19: =SUM('Tax Credits'!D71:M71)*Sens_LocalTaxCredit -> 0 | F19: Savings-to-Investment Ratio (SIR) | H19: =IFERROR(_Calcs_Life_Cycle_Cost!B17,"") -> 1.224501432 | K19: St Alps with solar | N19: Darrington, Monthly Analysis, Stirling Engines, 20% ECMs
A20: Sales & Savings | C20: 1st Yr | F20: Simple Paybacks & SIR | H20: Value | K20: Equity IRR | N20: Equity IRR | O20: 0.3360082083
A21: Avoided Electricity Purchases | B21: 1 | C21: =IFERROR('Sales & Savings'!G22/'Sales & Savings'!G19,0) -> 2340000 | D21: ='Sales & Savings'!F18 -> kWh | F21: =IF(General!$D$22="False","Non-Discounted Payback","Before-Tax Non-Discounted Payback") -> Before-Tax Non-Discounted Payback | H21: =IFERROR(_Calcs_Life_Cycle_Cost!B13,"") -> 11.58383231 | I21: years | K21: Project IRR | N21: Project IRR | O21: 0.3360082083
A22: Avoided Boiler Fuel Purchases | B22: 1 | C22: =IFERROR('Sales & Savings'!G29/'Sales & Savings'!G26,0) -> 27900 | D22: ='Sales & Savings'!F25 -> MMBtu | F22: =IF(General!$D$22="False","Simple Payback","Before-Tax Simple Payback") -> Before-Tax Simple Payback | H22: =_Calcs_Life_Cycle_Cost!K121 -> 13.24982537 | I22: years | K22: Net Present Value | L22: -3622654.265 | N22: Net Present Value | O22: 869719.7458
B23: 1 | C23: =IFERROR('Sales & Savings'!G36/'Sales & Savings'!G33,0) -> 0 | D23: ='Sales & Savings'!F32 -> kWh | F23: FINANCIAL SCORECARD | K23: Benefit Cost Ratio (After Tax) | L23: 0.384412207 | N23: Benefit Cost Ratio (After Tax) | O23: 3.02260406
B24: 1 | C24: =IFERROR('Sales & Savings'!G43/'Sales & Savings'!G40,0) -> 0 | D24: ='Sales & Savings'!F39 -> year | F24: Scorecard Year | G24: 5 | K24: After-Tax Discounted Payback | L24: Exceeds Project Life | N24: After-Tax Discounted Payback | O24: 4.391645917
A25: Electricity Sales, | B25: 1 | C25: =IFERROR('Sales & Savings'!G50/'Sales & Savings'!G47,0) -> 0 | D25: ='Sales & Savings'!F46 -> kWh | F25: Profitability Ratios (Margins) | H25: Value | K25: Before-Tax Non-Discounted Payback | N25: Non-Discounted Payback | O25: 4.056656997
B26: 1 | C26: =IFERROR('Sales & Savings'!G64/'Sales & Savings'!G61,0) -> 0 | D26: ='Sales & Savings'!F53 -> kWh | F26: Gross Margin | G26: =IFERROR(+'Stop-Light Indicators'!C17,"") -> Y | H26: =IFERROR(+'Stop-Light Indicators'!B17,"") -> 0.1377806474 | K26: Simple Payback, First Year Operation | L26: 33.14283966 | N26: Simple Payback, First Year Operation | O26: 4.215095667
B27: 1 | C27: =IFERROR('Sales & Savings'!G60,0) -> 0 | D27: ='Sales & Savings'!F60 -> MMBtu | F27: Operating Margin | G27: =IFERROR(+'Stop-Light Indicators'!C18,"") -> Y | H27: =IFERROR(+'Stop-Light Indicators'!B18,"") -> -0.1911784796
B28: 1 | C28: =IFERROR('Sales & Savings'!G71/'Sales & Savings'!G68,0) -> 0 | D28: ='Sales & Savings'!F67 -> 0 | F28: Pre - Tax Margin | G28: =IFERROR(+'Stop-Light Indicators'!C19,"") -> Y | H28: =IFERROR(+'Stop-Light Indicators'!B19,"") -> -0.1911784796
B29: 1 | C29: =IFERROR('Sales & Savings'!G78/'Sales & Savings'!G75,0) -> 0 | D29: ='Sales & Savings'!F74 -> 0 | F29: After - Tax Margin | G29: =IFERROR(+'Stop-Light Indicators'!C20,"") -> Y | H29: =IFERROR(+'Stop-Light Indicators'!B20,"") -> -0.1911784796
A30: Purchased Quantities | C30: 1st Yr | F30: Liquidity Measures | H30: Value
A31: Qty CHP Fuel | B31: 1 | C31: =IFERROR(Purchases!F67/Purchases!F32,0) -> 28941.82583 | D31: =Purchases!E21 -> MMBtu | F31: Current Ratio | G31: =IFERROR(+'Stop-Light Indicators'!C22,"") -> N/A | H31: =IFERROR(+'Stop-Light Indicators'!B22,"") -> N/A
A32: Qty Supplemental Fuel, Needs Unmet by CHP | B32: 1 | C32: =IFERROR(Purchases!F68/Purchases!F33,0) -> 10757.99388 | D32: =Purchases!E22 -> MMBtu | F32: Acid Test Ratio | G32: =IFERROR(+'Stop-Light Indicators'!C23,"") -> N/A | H32: =IFERROR(+'Stop-Light Indicators'!B23,"") -> N/A
B33: 1 | C33: =IFERROR(Purchases!F69/Purchases!F34,0) -> 0 | D33: =Purchases!E23 -> 0 | F33: Cash Flow Ratios | H33: Value
B34: 1 | C34: =IFERROR(Purchases!F70/Purchases!F35,0) -> 0 | D34: =Purchases!E24 -> 0 | F34: Debt Service Coverage Ratio | G34: =+'Stop-Light Indicators'!C25 -> N/A | H34: =+'Stop-Light Indicators'!B25 -> N/A
B35: 1 | C35: =IFERROR(Purchases!F71/Purchases!F36,0) -> 0 | D35: =Purchases!E25 -> 0 | F35: Leverage Ratios | H35: Value
B36: 1 | C36: =IFERROR(Purchases!F72/Purchases!F37,0) -> 0 | D36: =Purchases!E26 -> 0 | F36: Debt to Equity | G36: =IFERROR('Stop-Light Indicators'!C27,"") -> R | H36: =IFERROR('Stop-Light Indicators'!B27,"") -> NA
B37: 1 | C37: =IFERROR(Purchases!F73/Purchases!F38,0) -> 0 | D37: =Purchases!E27 -> 0 | F37: Debt Ratio | G37: =IFERROR(+'Stop-Light Indicators'!C28,"N/A") -> G | H37: =IFERROR(+'Stop-Light Indicators'!B28,"N/A ") -> 0
B38: 1 | C38: =IFERROR(Purchases!F74/Purchases!F39,0) -> 0 | D38: =Purchases!E28 -> 0 | F38: Equity Ratio | G38: =IFERROR(+'Stop-Light Indicators'!C29,"N/A") -> G | H38: =IFERROR(+'Stop-Light Indicators'!B29,"N/A ") -> 1
B39: 1 | C39: =IFERROR(Purchases!F75/Purchases!F40,0) -> 0 | D39: =Purchases!E29 -> 0 | F39: Debt-Asset Ratio | G39: =IFERROR(+'Stop-Light Indicators'!C30,"") -> G | H39: =IFERROR(+'Stop-Light Indicators'!B30,"") -> 1.095178575
B40: 1 | C40: =IFERROR(Purchases!F76/Purchases!F41,0) -> 0 | D40: =Purchases!E30 -> 0 | F40: =+'Stop-Light Indicators'!A31 -> Interest Coverage | G40: =+'Stop-Light Indicators'!C31 -> N/A | H40: =+'Stop-Light Indicators'!B31 -> N/A
A41: Expenses | F41: Cash Flow and Profit in Scorecard Year | H41: Value
A42: Capital Expenses | B42: 1 | C42: =IFERROR(+'Capital Expenditures'!H83,"") -> 792000 | D42: Total at Year 5 | F42: =O_CashFlow!B30 -> Net Cash Flow (Discounted) | H42: =IFERROR(HLOOKUP(Scorecard_Year,CashFlowStatement,24,FALSE),"") -> 31170.739
A43: Major Expenses | B43: 1 | C43: =+SUM('Major Expenses'!C36:G36) -> 0 | D43: Total | F43: =O_CashFlow!B32 -> Cash Balance | H43: =IFERROR(HLOOKUP(Scorecard_Year,CashFlowStatement,26,FALSE),"") -> -330477.407
A44: O&M (Cost of Sales) | B44: 1 | C44: =IFERROR('O&M'!E44+'O&M'!E55+'O&M'!E66+'O&M'!E77,"") -> 51500 | D44: 1st year | F44: ='O_IncomeStatement (Tax)'!B11 -> Gross Income (Profit) | H44: =HLOOKUP(Scorecard_Year,IncomeStatementSH,5,FALSE) -> 45637.07897
A45: Misc Operating Expenses | B45: 1 | C45: =IFERROR(+AVERAGE(O_Operating_Costs!C12:G12),"") ->  | D45: Ave. | F45: ='O_IncomeStatement (Tax)'!B15 -> Operating Income (EBIT) | H45: =HLOOKUP(Scorecard_Year,IncomeStatementSH,9,FALSE) -> -63324.04103
A46: =A460 -> Operating Labor | B46: 1 | C46: =IFERROR(+AVERAGE(O_Operating_Costs!C24:G24),"") -> 0 | D46: Ave. | F46: ='O_IncomeStatement (SH)'!B21 -> Net Profit After Taxes | H46: =IFERROR(HLOOKUP(Scorecard_Year,IncomeStatementSH,15,FALSE),"") -> -63324.04103
A47: Insurance Expense | B47: 1 | C47: =+AVERAGE(O_Operating_Costs!C26:G26) -> 0 | D47: Ave | F47: Levelized Costs (Taxes + franchise fees included)
A48: Property Taxes | B48: 1 | C48: =+AVERAGE(O_Operating_Costs!C25:G25) -> 0 | D48: Ave. | F48: =IF(A21="","",CONCATENATE("Levelized Cost: ",A21)) -> Levelized Cost: Avoided Electricity Purchases | G48: =IFERROR(+'Stop-Light Indicators'!C38,"") -> G | H48: =IFERROR(+'Stop-Light Indicators'!B38,"") -> 0 | I48: =IF(+'Calcs_Financial Indicators'!B38=0,"",'Calcs_Financial Indicators'!B38) -> $/kWh
A49: Operation | C49: 1st 5 Years | F49: Levelized Cost: Avoided Boiler Fuel Purchases | G49: =IFERROR(+'Stop-Light Indicators'!C39,"") -> Y | H49: =IFERROR(+'Stop-Light Indicators'!B39,"") -> 0 | I49: =IF(+'Calcs_Financial Indicators'!B39=0,"",'Calcs_Financial Indicators'!B39) -> $/MMBtu
A50: Plant Operating Factor | B50: 1 | C50: =AVERAGE(General!D35:W35) -> 1 | G50: =IFERROR(+'Stop-Light Indicators'!C40,"") -> Y | H50: =IFERROR(+'Stop-Light Indicators'!B40,"") -> 0 | I50: =IF(+'Calcs_Financial Indicators'!B40=0,"",'Calcs_Financial Indicators'!B40) -> $/kWh
A51: Borrowed Funds | G51: =IFERROR(+'Stop-Light Indicators'!C41,"") -> Y | H51: =IFERROR(+'Stop-Light Indicators'!B41,"") -> 0 | I51: =IF(+'Calcs_Financial Indicators'!B41=0,"",'Calcs_Financial Indicators'!B41) -> $/year
A52: Loan 1 | B52: 1 | C52: =+'Funding Plan'!C84 -> 0 | D52: =IF('Funding Plan'!C$20<>"",'Funding Plan'!C$20,"") ->  | F52: Levelized Cost: Electricity Sales, | G52: =IFERROR(+'Stop-Light Indicators'!C42,"") -> Y | H52: =IFERROR(+'Stop-Light Indicators'!B42,"") -> 0 | I52: =IF(+'Calcs_Financial Indicators'!B42=0,"",'Calcs_Financial Indicators'!B42) -> $/kWh
A53: Loan 2 | B53: 1 | C53: =+'Funding Plan'!D84 -> 0 | D53: =IF('Funding Plan'!D$20<>"",'Funding Plan'!D$20,"") ->  | G53: =+'Stop-Light Indicators'!C43 -> Y | H53: =+'Stop-Light Indicators'!B43 -> 0 | I53: =IF(+'Calcs_Financial Indicators'!B46=0,"",'Calcs_Financial Indicators'!B46) -> 
A54: Loan 3 | B54: 1 | C54: ='Funding Plan'!E84 -> 0 | D54: =IF('Funding Plan'!E$20<>"",'Funding Plan'!E$20,"") ->  | G54: =+'Stop-Light Indicators'!C44 -> Y | H54: =+'Stop-Light Indicators'!B44 -> 0
A55: Interest Rate, Loan 1 | B55: 1 | C55: =+'Funding Plan'!C87 -> 0 | D55: =IF(+'Funding Plan'!C$20<>"",+'Funding Plan'!C$20,"") ->  | G55: =+'Stop-Light Indicators'!C45 -> Y | H55: =+'Stop-Light Indicators'!B45 -> 0
A56: Interest Rate, Loan 2 | B56: 1 | C56: =+'Funding Plan'!D87 -> 0 | D56: =IF(+'Funding Plan'!D$20<>"",+'Funding Plan'!D$20,"") ->  | G56: =+'Stop-Light Indicators'!C46 -> Y | H56: =+'Stop-Light Indicators'!B46 -> 0
A57: Interest Rate, Loan 3 | B57: 1 | C57: ='Funding Plan'!E87 -> 0 | D57: =IF(+'Funding Plan'!E$20<>"",+'Funding Plan'!E$20,"") ->  | F57: Define red, yellow and green indicators on "Stop-Light Colors" tab
A58: Equity Investments
A59: Equity 1 | B59: 1 | C59: ='Funding Plan'!C85 -> 0 | D59: =IF('Funding Plan'!C$32<>"",'Funding Plan'!C$32,"") -> 
A60: Equity Investment 2 | B60: 1 | C60: =+'Funding Plan'!D85 -> 0 | D60: =IF('Funding Plan'!D$32<>"",'Funding Plan'!D$32,"") -> 
A61: Equity Investment 3 | B61: 1 | C61: ='Funding Plan'!E85 -> 0 | D61: =IF('Funding Plan'!E$32<>"",'Funding Plan'!E$32,"") -> 
A62: Grants
A63: Federal ITC | B63: 1 | C63: ='Funding Plan'!C86 -> 184200 | D63: =IF(+'Funding Plan'!C$40<>"",+'Funding Plan'!C$40,"") -> Federal ITC
A64: Grant ($100/kW) | B64: 1 | C64: ='Funding Plan'!D86 -> 60000 | D64: =IF(+'Funding Plan'!D$40<>"",+'Funding Plan'!D$40,"") -> Grant ($100/kW)
A65: Grant 3 | B65: 1 | C65: ='Funding Plan'!E86 -> 0 | D65: =IF(+'Funding Plan'!E$40<>"",+'Funding Plan'!E$40,"") -> 
A66: Financial Assumptions
A67: Discount Rate | B67: 1 | C67: =Discount_rate -> 0.1
A68: Inflation Rate | B68: 1 | C68: =Inflation -> 0.025
A69: Project Life | B69: 1 | C69: =ProjectLife -> 15 | D69: years | E69: Don't modify or move user-defined sensitivity factors. They must be re-defined to reorder.
A70: Prices: User-Defined Sensitivity Factors (Optional) | C70: 1st Year | E70: Don't link sensitivity factors with formulas here. They will be overwritten with values in spider, decision matrix and goal seek.
A71: Electricity Purchase Price | B71: 1 | C71: ='Sales & Savings'!G19 -> 0.066
A72: CHP Fuel Price | B72: 1 | C72: =Purchases!F32 -> 5.22
A81: Other User-Defined Sensitivity Factors (Optional) | C81: 1st Year
G82: =IF(AND(A82<>"",C82=""),"Value must be entered in 3rd column to appear on spider diagram. Link to where used.","") -> 
G87: =IF(AND(A87<>"",C87=""),"Value must be entered in 3rd column to appear on spider diagram. Link to where used.","") -> 
F93: =A93 -> 0
A104: User-Defined Multipliers and Values (Optional)
A105: Electricity Purchase Price | B105: 0.066
A106: Natural Gas Price | B106: 5.22
A115: Project | B115: 1
A116: Option | B116: B
A117: SAVE LCCA RESULTS OF SCENARIOS - ADDITIONAL SPACE
A121: SCENARIO A | F121: SCENARIO G | I121: Save at top
B123: =IF(L9<>"",L9,"") ->  | G123: =IF(O9<>"",O9,"") ->  | H123: =IF(P10<>"",P10,"") -> 
A124: =IF(K10<>"",K10,"") -> Equity IRR | B124: 0.1889079917 | F124: =IF(N10<>"",N10,"") -> Equity IRR | G124: 0.4305243054
A125: Project IRR | B125: 0.1889079917 | F125: Project IRR | G125: 0.4305243054
A126: Net Present Value | B126: 151025.6954 | F126: Net Present Value | G126: 985919.4345
A127: Benefit Cost Ratio (After Tax) | B127: 1.275694953 | F127: Benefit Cost Ratio (After Tax) | G127: 3.63614822
A128: After-Tax Discounted Payback | B128: 5.41473636 | F128: After-Tax Discounted Payback | G128: 3.617774824
A129: Before-Tax Non-Discounted Payback | B129: 11.58383231 | F129: Non-Discounted Payback | G129: 3.397629677
A130: Simple Payback, First Year Operation | B130: 13.24982537 | F130: Simple Payback, First Year Operation | G130: 3.503861498
B134: =IF(L19<>"",L19,"") ->  | G134: =IF(O19<>"",O19,"") ->  | H134: =IF(P21<>"",P21,"") -> 
A135: =IF(K20<>"",K20,"") -> Equity IRR | F135: =IF(N20<>"",N20,"") -> Equity IRR | G135: 0.3360082083
A136: Project IRR | F136: Project IRR | G136: 0.3360082083
A137: Net Present Value | B137: -3622654.265 | F137: Net Present Value | G137: 869719.7458
A138: Benefit Cost Ratio (After Tax) | B138: 0.384412207 | F138: Benefit Cost Ratio (After Tax) | G138: 3.02260406
A139: After-Tax Discounted Payback | B139: Exceeds Project Life | F139: After-Tax Discounted Payback | G139: 4.391645917
A140: Before-Tax Non-Discounted Payback | F140: Non-Discounted Payback | G140: 4.056656997
A141: Simple Payback, First Year Operation | B141: 33.14283966 | F141: Simple Payback, First Year Operation | G141: 4.215095667
A143: SCENARIO C | F143: SCENARIO I
A145: 3 500 kW Recip Engine, 8300 hrs/year
A146: Equity IRR | B146: R | C146: 0.02121228233 | F146: Equity IRR
A147: Project IRR | B147: R | C147: 0.02121228233 | F147: Project IRR
A148: Net Present Value | B148: R | C148: -338937.822 | F148: Net Present Value
A149: Benefit Cost Ratio (After Tax) | B149: R | C149: 0.6798913405 | F149: Benefit Cost Ratio (After Tax)
A150: After-Tax Discounted Payback | B150: Y | C150: 14.99721647 | F150: After-Tax Discounted Payback
A151: Before-Tax Non-Discounted Payback | B151: Y | C151: 7.976724032 | F151: Non-Discounted Payback
A152: Before-Tax Simple Payback | B152: Y | C152: 10.31484579 | F152: Simple Payback, First Year
A153: Before-Tax Simple Payback | B153: Y | C153: 10.31484579
A154: SCENARIO D | F154: SCENARIO J
A156: 4 Hospital: 800,000 sf, Two 800 kW Recip Engines
A157: Equity IRR | B157: R | C157: 0.04154580637 | F157: Equity IRR
A158: Project IRR | B158: R | C158: 0.04154580637 | F158: Project IRR
A159: Net Present Value | B159: R | C159: -682877.4363 | F159: Net Present Value
A160: Benefit Cost Ratio (After Tax) | B160: R | C160: 0.7581504122 | F160: Benefit Cost Ratio (After Tax)
A161: After-Tax Discounted Payback | B161: Y | C161: 13.10874952 | F161: After-Tax Discounted Payback
A162: Before-Tax Non-Discounted Payback | B162: Y | C162: 6.994766689 | F162: Non-Discounted Payback
A163: Before-Tax Simple Payback | B163: Y | C163: 8.903097246 | F163: Simple Payback, First Year
A164: Before-Tax Simple Payback | B164: Y | C164: 8.903097246
A165: SCENARIO E | F165: SCENARIO K
A168: Equity IRR | F168: Equity IRR
A169: Project IRR | F169: Project IRR
A170: Net Present Value | F170: Net Present Value
A171: Benefit Cost Ratio (After Tax) | F171: Benefit Cost Ratio (After Tax)
A172: After-Tax Discounted Payback | F172: After-Tax Discounted Payback
A173: Non-Discounted Payback | F173: Non-Discounted Payback
A174: Simple Payback, First Year | F174: Simple Payback, First Year
A176: SCENARIO F | F176: SCENARIO L
A179: Equity IRR | F179: Equity IRR
A180: Project IRR | F180: Project IRR
A181: Net Present Value | F181: Net Present Value
A182: Benefit Cost Ratio (After Tax) | F182: Benefit Cost Ratio (After Tax)
A183: After-Tax Discounted Payback | F183: After-Tax Discounted Payback
A184: Non-Discounted Payback | F184: Non-Discounted Payback
A185: Simple Payback, First Year | F185: Simple Payback, First Year | G185: Y | H185: 3.880012879
A206: REFERENCES
A207: Levelized Costs | B207: http://www.eia.gov/conference/2013/pdf/presentations/namovicz.pdf
A287: Chart Data Below this line
A288: Toggle_Comments | B288: Hidden
A289: CopyingEverywhere | B289: Yes
A290: Copied | B290: No
B305: 0 | C305: =+B305+1 -> 1 | D305: 2 | E305: =+D305+1 -> 3 | F305: =+E305+1 -> 4 | G305: 5 | H305: 6 | I305: =+H305+1 -> 7 | J305: =+I305+1 -> 8 | K305: =+J305+1 -> 9 | L305: =+K305+1 -> 10 | M305: 11 | N305: 12 | O305: 13 | P305: 14 | Q305: 15 | R305: 16 | S305: 17 | T305: =+S305+1 -> 18 | U305: 19 | V305: 20 | W305: 21 | X305: 22 | Y305: 23 | Z305: 24 | AA305: 25 | AB305: 26 | AC305: 27 | AD305: =+AC305+1 -> 28 | AE305: 29 | AF305: 30
A306: Discounted cash flow ($1000) | B306: =+O_CashFlow!C30/1000 -> -506.4550589 | C306: =+O_CashFlow!D30/1000 -> 38.52596786 | D306: =+O_CashFlow!E30/1000 -> 35.89919733 | E306: =+O_CashFlow!F30/1000 -> 33.45152478 | F306: =+O_CashFlow!G30/1000 -> 31.170739 | G306: =+O_CashFlow!H30/1000 -> 29.04546134 | H306: =+O_CashFlow!I30/1000 -> 15.9684025 | I306: =+O_CashFlow!J30/1000 -> 14.87964778 | J306: =+O_CashFlow!K30/1000 -> 13.86512634 | K306: =+O_CashFlow!L30/1000 -> 12.91977682 | L306: =+O_CashFlow!M30/1000 -> 12.03888294 | M306: =+O_CashFlow!N30/1000 -> 11.21805002 | N306: =+O_CashFlow!O30/1000 -> 10.45318297 | O306: =+O_CashFlow!P30/1000 -> 9.740465949 | P306: =+O_CashFlow!Q30/1000 -> 9.07634327 | Q306: =+O_CashFlow!R30/1000 -> 8.532041253 | R306: =+O_CashFlow!S30/1000 -> 8.076928876 | S306: =+O_CashFlow!T30/1000 -> 7.610235675 | T306: =+O_CashFlow!U30/1000 -> 7.168793483 | U306: =+O_CashFlow!V30/1000 -> 6.751234813 | V306: =+O_CashFlow!W30/1000 -> 6.356430862 | W306: =+O_CashFlow!X30/1000 -> 5.983288777 | X306: =+O_CashFlow!Y30/1000 -> 5.630753421 | Y306: =+O_CashFlow!Z30/1000 -> 5.297807752 | Z306: =+O_CashFlow!AA30/1000 -> 4.98347294 | AA306: =+O_CashFlow!AB30/1000 -> 4.68680826 | AB306: =+O_CashFlow!AC30/1000 -> 4.40691079 | AC306: =+O_CashFlow!AD30/1000 -> 4.142914951 | AD306: =+O_CashFlow!AE30/1000 -> 3.8939919 | AE306: =+O_CashFlow!AF30/1000 -> 3.659348815 | AF306: =+O_CashFlow!AG30/1000 -> 5.804833651
B307: =+B305 -> 0 | C307: 1 | D307: 2 | E307: 3 | F307: 4 | G307: 5 | H307: 6 | I307: 7 | J307: 8 | K307: =+K305 -> 9 | L307: 10 | M307: 11 | N307: 12 | O307: 13 | P307: 14 | Q307: 15 | R307: 16 | S307: 17 | T307: =+T305 -> 18 | U307: 19 | V307: 20 | W307: 21 | X307: 22 | Y307: 23 | Z307: 24 | AA307: 25 | AB307: 26 | AC307: 27 | AD307: 28 | AE307: 29 | AF307: =+AF305 -> 30
A308: Fixed Cost ($1000) | B308: =+O_Operating_Costs!C10/1000 -> 54.39888 | C308: =+O_Operating_Costs!D10/1000 -> 108.96112 | D308: =+O_Operating_Costs!E10/1000 -> 108.96112 | E308: =+O_Operating_Costs!F10/1000 -> 108.96112 | F308: =+O_Operating_Costs!G10/1000 -> 108.96112 | G308: =+O_Operating_Costs!H10/1000 -> 108.96112 | H308: =+O_Operating_Costs!I10/1000 -> 108.96112 | I308: =+O_Operating_Costs!J10/1000 -> 108.79776 | J308: =+O_Operating_Costs!K10/1000 -> 108.96112 | K308: =+O_Operating_Costs!L10/1000 -> 108.79776 | L308: =+O_Operating_Costs!M10/1000 -> 108.96112 | M308: =+O_Operating_Costs!N10/1000 -> 108.79776 | N308: =+O_Operating_Costs!O10/1000 -> 108.96112 | O308: =+O_Operating_Costs!P10/1000 -> 108.79776 | P308: =+O_Operating_Costs!Q10/1000 -> 108.96112 | Q308: =+O_Operating_Costs!R10/1000 -> 54.39888 | R308: =+O_Operating_Costs!S10/1000 -> 0 | S308: =+O_Operating_Costs!T10/1000 -> 0 | T308: =+O_Operating_Costs!U10/1000 -> 0 | U308: =+O_Operating_Costs!V10/1000 -> 0 | V308: =+O_Operating_Costs!W10/1000 -> 0 | W308: =+O_Operating_Costs!X10/1000 -> 0 | X308: =+O_Operating_Costs!Y10/1000 -> 0 | Y308: =+O_Operating_Costs!Z10/1000 -> 0 | Z308: =+O_Operating_Costs!AA10/1000 -> 0 | AA308: =+O_Operating_Costs!AB10/1000 -> 0 | AB308: =+O_Operating_Costs!AC10/1000 -> 0 | AC308: =+O_Operating_Costs!AD10/1000 -> 0 | AD308: =+O_Operating_Costs!AE10/1000 -> 0 | AE308: =+O_Operating_Costs!AF10/1000 -> 0 | AF308: =+O_Operating_Costs!AG10/1000 -> 0
A309: Variable Cost ($1000) | B309: =+O_Operating_Costs!C9/1000 -> 258.7330589 | C309: =+O_Operating_Costs!D9/1000 -> 265.2013854 | D309: =+O_Operating_Costs!E9/1000 -> 271.83142 | E309: =+O_Operating_Costs!F9/1000 -> 278.6272055 | F309: =+O_Operating_Costs!G9/1000 -> 285.5928856 | G309: =+O_Operating_Costs!H9/1000 -> 292.7327078 | H309: =+O_Operating_Costs!I9/1000 -> 300.0510255 | I309: =+O_Operating_Costs!J9/1000 -> 307.5523011 | J309: =+O_Operating_Costs!K9/1000 -> 315.2411086 | K309: =+O_Operating_Costs!L9/1000 -> 323.1221363 | L309: =+O_Operating_Costs!M9/1000 -> 331.2001897 | M309: =+O_Operating_Costs!N9/1000 -> 339.4801945 | N309: =+O_Operating_Costs!O9/1000 -> 347.9671994 | O309: =+O_Operating_Costs!P9/1000 -> 356.6663793 | P309: =+O_Operating_Costs!Q9/1000 -> 365.5830388 | Q309: =+O_Operating_Costs!R9/1000 -> 374.7226148 | R309: =+O_Operating_Costs!S9/1000 -> 384.0906802 | S309: =+O_Operating_Costs!T9/1000 -> 393.6929472 | T309: =+O_Operating_Costs!U9/1000 -> 403.5352708 | U309: =+O_Operating_Costs!V9/1000 -> 413.6236526 | V309: =+O_Operating_Costs!W9/1000 -> 423.9642439 | W309: =+O_Operating_Costs!X9/1000 -> 434.56335 | X309: =+O_Operating_Costs!Y9/1000 -> 445.4274338 | Y309: =+O_Operating_Costs!Z9/1000 -> 456.5631196 | Z309: =+O_Operating_Costs!AA9/1000 -> 467.9771976 | AA309: =+O_Operating_Costs!AB9/1000 -> 479.6766276 | AB309: =+O_Operating_Costs!AC9/1000 -> 491.6685432 | AC309: =+O_Operating_Costs!AD9/1000 -> 503.9602568 | AD309: =+O_Operating_Costs!AE9/1000 -> 516.5592632 | AE309: =+O_Operating_Costs!AF9/1000 -> 529.4732448 | AF309: =+O_Operating_Costs!AG9/1000 -> 542.7100759
B311: 1 | C311: 2 | D311: 3 | E311: 4 | F311: 5 | G311: 6 | H311: 7 | I311: 8 | J311: 9 | K311: 10 | L311: 11 | M311: 12 | N311: 13 | O311: 14 | P311: 15 | Q311: 16 | R311: 17 | S311: 18 | T311: 18 | U311: 18 | V311: 18 | W311: 18 | X311: 18 | Y311: 18 | Z311: 18 | AA311: 18 | AB311: 18 | AC311: 18 | AD311: 18 | AE311: 18 | AF311: 18
A312: =A386 -> Purchased Fuels | B312: =B386/1000 -> 207.2330589 | C312: =C386/1000 -> 212.4138854 | D312: 217.7242325 | E312: 223.1673383 | F312: 228.7465218 | G312: 234.4651848 | H312: 240.3268144 | I312: 246.3349848 | J312: 252.4933594 | K312: =K386/1000 -> 258.8056934 | L312: 265.2758357 | M312: 271.9077316 | N312: 278.7054249 | O312: 285.6730605 | P312: 292.814887 | Q312: 300.1352592 | R312: 307.6386407 | S312: 315.3296067 | T312: 323.2128469 | U312: 331.2931681 | V312: 339.5754973 | W312: 348.0648847 | X312: 356.7665068 | Y312: 365.6856695 | Z312: 374.8278112 | AA312: 384.1985065 | AB312: 393.8034692 | AC312: 403.6485559 | AD312: =AD386/1000 -> 413.7397698 | AE312: 424.083264 | AF312: 434.6853456
A313: =A387 -> Non-Fuel Purchases | B313: =B387/1000 -> 0 | C313: 0 | D313: 0 | E313: 0 | F313: 0 | G313: 0 | H313: 0 | I313: 0 | J313: 0 | K313: =K387/1000 -> 0 | L313: 0 | M313: 0 | N313: 0 | O313: 0 | P313: 0 | Q313: 0 | R313: 0 | S313: 0 | T313: 0 | U313: 0 | V313: 0 | W313: 0 | X313: 0 | Y313: 0 | Z313: 0 | AA313: 0 | AB313: 0 | AC313: 0 | AD313: 0 | AE313: 0 | AF313: 0
A315: Purchased Fuels
A316: =IF(Purchases!D228="","",Purchases!D228) -> CHP Fuel | B316: =Purchases!E228/1000 -> 151.0763308 | C316: =Purchases!F228/1000 -> 154.8532391 | D316: =Purchases!G228/1000 -> 158.7245701 | E316: =Purchases!H228/1000 -> 162.6926843 | F316: =Purchases!I228/1000 -> 166.7600014 | G316: =Purchases!J228/1000 -> 170.9290015 | H316: =Purchases!K228/1000 -> 175.2022265 | I316: =Purchases!L228/1000 -> 179.5822822 | J316: =Purchases!M228/1000 -> 184.0718392 | K316: =Purchases!N228/1000 -> 188.6736352 | L316: =Purchases!O228/1000 -> 193.3904761 | M316: =Purchases!P228/1000 -> 198.225238 | N316: =Purchases!Q228/1000 -> 203.1808689 | O316: =Purchases!R228/1000 -> 208.2603907 | P316: =Purchases!S228/1000 -> 213.4669004 | Q316: =Purchases!T228/1000 -> 218.8035729 | R316: =Purchases!U228/1000 -> 224.2736623 | S316: =Purchases!V228/1000 -> 229.8805038 | T316: =Purchases!W228/1000 -> 235.6275164 | U316: =Purchases!X228/1000 -> 241.5182043 | V316: =Purchases!Y228/1000 -> 247.5561594 | W316: =Purchases!Z228/1000 -> 253.7450634 | X316: =Purchases!AA228/1000 -> 260.08869 | Y316: =Purchases!AB228/1000 -> 266.5909073 | Z316: =Purchases!AC228/1000 -> 273.2556799 | AA316: =Purchases!AD228/1000 -> 280.0870719 | AB316: =Purchases!AE228/1000 -> 287.0892487 | AC316: =Purchases!AF228/1000 -> 294.2664799 | AD316: =Purchases!AG228/1000 -> 301.6231419 | AE316: =Purchases!AH228/1000 -> 309.1637205 | AF316: =Purchases!AI228/1000 -> 316.8928135
A317: =IF(Purchases!D229="","",Purchases!D229) -> Supplemental Fuel, Needs Unmet by CHP | B317: =Purchases!E229/1000 -> 56.15672805 | C317: =Purchases!F229/1000 -> 57.56064625 | D317: =Purchases!G229/1000 -> 58.99966241 | E317: =Purchases!H229/1000 -> 60.47465397 | F317: =Purchases!I229/1000 -> 61.98652032 | G317: =Purchases!J229/1000 -> 63.53618333 | H317: =Purchases!K229/1000 -> 65.12458791 | I317: =Purchases!L229/1000 -> 66.75270261 | J317: =Purchases!M229/1000 -> 68.42152018 | K317: =Purchases!N229/1000 -> 70.13205818 | L317: =Purchases!O229/1000 -> 71.88535963 | M317: =Purchases!P229/1000 -> 73.68249362 | N317: =Purchases!Q229/1000 -> 75.52455597 | O317: =Purchases!R229/1000 -> 77.41266986 | P317: =Purchases!S229/1000 -> 79.34798661 | Q317: =Purchases!T229/1000 -> 81.33168628 | R317: =Purchases!U229/1000 -> 83.36497843 | S317: =Purchases!V229/1000 -> 85.44910289 | T317: =Purchases!W229/1000 -> 87.58533047 | U317: =Purchases!X229/1000 -> 89.77496373 | V317: =Purchases!Y229/1000 -> 92.01933782 | W317: =Purchases!Z229/1000 -> 94.31982127 | X317: =Purchases!AA229/1000 -> 96.6778168 | Y317: =Purchases!AB229/1000 -> 99.09476222 | Z317: =Purchases!AC229/1000 -> 101.5721313 | AA317: =Purchases!AD229/1000 -> 104.1114346 | AB317: =Purchases!AE229/1000 -> 106.7142204 | AC317: =Purchases!AF229/1000 -> 109.3820759 | AD317: =Purchases!AG229/1000 -> 112.1166278 | AE317: =Purchases!AH229/1000 -> 114.9195435 | AF317: =Purchases!AI229/1000 -> 117.7925321
A318: =IF(Purchases!D230="","",Purchases!D230) ->  | B318: =Purchases!E230/1000 -> 0 | C318: =Purchases!F230/1000 -> 0 | D318: =Purchases!G230/1000 -> 0 | E318: =Purchases!H230/1000 -> 0 | F318: =Purchases!I230/1000 -> 0 | G318: =Purchases!J230/1000 -> 0 | H318: =Purchases!K230/1000 -> 0 | I318: =Purchases!L230/1000 -> 0 | J318: =Purchases!M230/1000 -> 0 | K318: =Purchases!N230/1000 -> 0 | L318: =Purchases!O230/1000 -> 0 | M318: =Purchases!P230/1000 -> 0 | N318: =Purchases!Q230/1000 -> 0 | O318: =Purchases!R230/1000 -> 0 | P318: =Purchases!S230/1000 -> 0 | Q318: =Purchases!T230/1000 -> 0 | R318: =Purchases!U230/1000 -> 0 | S318: =Purchases!V230/1000 -> 0 | T318: =Purchases!W230/1000 -> 0 | U318: =Purchases!X230/1000 -> 0 | V318: =Purchases!Y230/1000 -> 0 | W318: =Purchases!Z230/1000 -> 0 | X318: =Purchases!AA230/1000 -> 0 | Y318: =Purchases!AB230/1000 -> 0 | Z318: =Purchases!AC230/1000 -> 0 | AA318: =Purchases!AD230/1000 -> 0 | AB318: =Purchases!AE230/1000 -> 0 | AC318: =Purchases!AF230/1000 -> 0 | AD318: =Purchases!AG230/1000 -> 0 | AE318: =Purchases!AH230/1000 -> 0 | AF318: =Purchases!AI230/1000 -> 0
A319: =IF(Purchases!D231="","",Purchases!D231) ->  | B319: =Purchases!E231/1000 -> 0 | C319: =Purchases!F231/1000 -> 0 | D319: =Purchases!G231/1000 -> 0 | E319: =Purchases!H231/1000 -> 0 | F319: =Purchases!I231/1000 -> 0 | G319: =Purchases!J231/1000 -> 0 | H319: =Purchases!K231/1000 -> 0 | I319: =Purchases!L231/1000 -> 0 | J319: =Purchases!M231/1000 -> 0 | K319: =Purchases!N231/1000 -> 0 | L319: =Purchases!O231/1000 -> 0 | M319: =Purchases!P231/1000 -> 0 | N319: =Purchases!Q231/1000 -> 0 | O319: =Purchases!R231/1000 -> 0 | P319: =Purchases!S231/1000 -> 0 | Q319: =Purchases!T231/1000 -> 0 | R319: =Purchases!U231/1000 -> 0 | S319: =Purchases!V231/1000 -> 0 | T319: =Purchases!W231/1000 -> 0 | U319: =Purchases!X231/1000 -> 0 | V319: =Purchases!Y231/1000 -> 0 | W319: =Purchases!Z231/1000 -> 0 | X319: =Purchases!AA231/1000 -> 0 | Y319: =Purchases!AB231/1000 -> 0 | Z319: =Purchases!AC231/1000 -> 0 | AA319: =Purchases!AD231/1000 -> 0 | AB319: =Purchases!AE231/1000 -> 0 | AC319: =Purchases!AF231/1000 -> 0 | AD319: =Purchases!AG231/1000 -> 0 | AE319: =Purchases!AH231/1000 -> 0 | AF319: =Purchases!AI231/1000 -> 0
A320: =IF(Purchases!D232="","",Purchases!D232) ->  | B320: =Purchases!E232/1000 -> 0 | C320: =Purchases!F232/1000 -> 0 | D320: =Purchases!G232/1000 -> 0 | E320: =Purchases!H232/1000 -> 0 | F320: =Purchases!I232/1000 -> 0 | G320: =Purchases!J232/1000 -> 0 | H320: =Purchases!K232/1000 -> 0 | I320: =Purchases!L232/1000 -> 0 | J320: =Purchases!M232/1000 -> 0 | K320: =Purchases!N232/1000 -> 0 | L320: =Purchases!O232/1000 -> 0 | M320: =Purchases!P232/1000 -> 0 | N320: =Purchases!Q232/1000 -> 0 | O320: =Purchases!R232/1000 -> 0 | P320: =Purchases!S232/1000 -> 0 | Q320: =Purchases!T232/1000 -> 0 | R320: =Purchases!U232/1000 -> 0 | S320: =Purchases!V232/1000 -> 0 | T320: =Purchases!W232/1000 -> 0 | U320: =Purchases!X232/1000 -> 0 | V320: =Purchases!Y232/1000 -> 0 | W320: =Purchases!Z232/1000 -> 0 | X320: =Purchases!AA232/1000 -> 0 | Y320: =Purchases!AB232/1000 -> 0 | Z320: =Purchases!AC232/1000 -> 0 | AA320: =Purchases!AD232/1000 -> 0 | AB320: =Purchases!AE232/1000 -> 0 | AC320: =Purchases!AF232/1000 -> 0 | AD320: =Purchases!AG232/1000 -> 0 | AE320: =Purchases!AH232/1000 -> 0 | AF320: =Purchases!AI232/1000 -> 0
A321: =IF(OR(Purchases!D233="",Purchases!D233=0),"",Purchases!D233) ->  | B321: =Purchases!E233/1000 -> 0 | C321: =Purchases!F233/1000 -> 0 | D321: =Purchases!G233/1000 -> 0 | E321: =Purchases!H233/1000 -> 0 | F321: =Purchases!I233/1000 -> 0 | G321: =Purchases!J233/1000 -> 0 | H321: =Purchases!K233/1000 -> 0 | I321: =Purchases!L233/1000 -> 0 | J321: =Purchases!M233/1000 -> 0 | K321: =Purchases!N233/1000 -> 0 | L321: =Purchases!O233/1000 -> 0 | M321: =Purchases!P233/1000 -> 0 | N321: =Purchases!Q233/1000 -> 0 | O321: =Purchases!R233/1000 -> 0 | P321: =Purchases!S233/1000 -> 0 | Q321: =Purchases!T233/1000 -> 0 | R321: =Purchases!U233/1000 -> 0 | S321: =Purchases!V233/1000 -> 0 | T321: =Purchases!W233/1000 -> 0 | U321: =Purchases!X233/1000 -> 0 | V321: =Purchases!Y233/1000 -> 0 | W321: =Purchases!Z233/1000 -> 0 | X321: =Purchases!AA233/1000 -> 0 | Y321: =Purchases!AB233/1000 -> 0 | Z321: =Purchases!AC233/1000 -> 0 | AA321: =Purchases!AD233/1000 -> 0 | AB321: =Purchases!AE233/1000 -> 0 | AC321: =Purchases!AF233/1000 -> 0 | AD321: =Purchases!AG233/1000 -> 0 | AE321: =Purchases!AH233/1000 -> 0 | AF321: =Purchases!AI233/1000 -> 0
A322: =IF(OR(Purchases!D234="",Purchases!D234=0),"",Purchases!D234) ->  | B322: =Purchases!E234/1000 -> 0 | C322: =Purchases!F234/1000 -> 0 | D322: =Purchases!G234/1000 -> 0 | E322: =Purchases!H234/1000 -> 0 | F322: =Purchases!I234/1000 -> 0 | G322: =Purchases!J234/1000 -> 0 | H322: =Purchases!K234/1000 -> 0 | I322: =Purchases!L234/1000 -> 0 | J322: =Purchases!M234/1000 -> 0 | K322: =Purchases!N234/1000 -> 0 | L322: =Purchases!O234/1000 -> 0 | M322: =Purchases!P234/1000 -> 0 | N322: =Purchases!Q234/1000 -> 0 | O322: =Purchases!R234/1000 -> 0 | P322: =Purchases!S234/1000 -> 0 | Q322: =Purchases!T234/1000 -> 0 | R322: =Purchases!U234/1000 -> 0 | S322: =Purchases!V234/1000 -> 0 | T322: =Purchases!W234/1000 -> 0 | U322: =Purchases!X234/1000 -> 0 | V322: =Purchases!Y234/1000 -> 0 | W322: =Purchases!Z234/1000 -> 0 | X322: =Purchases!AA234/1000 -> 0 | Y322: =Purchases!AB234/1000 -> 0 | Z322: =Purchases!AC234/1000 -> 0 | AA322: =Purchases!AD234/1000 -> 0 | AB322: =Purchases!AE234/1000 -> 0 | AC322: =Purchases!AF234/1000 -> 0 | AD322: =Purchases!AG234/1000 -> 0 | AE322: =Purchases!AH234/1000 -> 0 | AF322: =Purchases!AI234/1000 -> 0
A323: =IF(OR(Purchases!D235="",Purchases!D235=0),"",Purchases!D235) ->  | B323: =Purchases!E235/1000 -> 0 | C323: =Purchases!F235/1000 -> 0 | D323: =Purchases!G235/1000 -> 0 | E323: =Purchases!H235/1000 -> 0 | F323: =Purchases!I235/1000 -> 0 | G323: =Purchases!J235/1000 -> 0 | H323: =Purchases!K235/1000 -> 0 | I323: =Purchases!L235/1000 -> 0 | J323: =Purchases!M235/1000 -> 0 | K323: =Purchases!N235/1000 -> 0 | L323: =Purchases!O235/1000 -> 0 | M323: =Purchases!P235/1000 -> 0 | N323: =Purchases!Q235/1000 -> 0 | O323: =Purchases!R235/1000 -> 0 | P323: =Purchases!S235/1000 -> 0 | Q323: =Purchases!T235/1000 -> 0 | R323: =Purchases!U235/1000 -> 0 | S323: =Purchases!V235/1000 -> 0 | T323: =Purchases!W235/1000 -> 0 | U323: =Purchases!X235/1000 -> 0 | V323: =Purchases!Y235/1000 -> 0 | W323: =Purchases!Z235/1000 -> 0 | X323: =Purchases!AA235/1000 -> 0 | Y323: =Purchases!AB235/1000 -> 0 | Z323: =Purchases!AC235/1000 -> 0 | AA323: =Purchases!AD235/1000 -> 0 | AB323: =Purchases!AE235/1000 -> 0 | AC323: =Purchases!AF235/1000 -> 0 | AD323: =Purchases!AG235/1000 -> 0 | AE323: =Purchases!AH235/1000 -> 0 | AF323: =Purchases!AI235/1000 -> 0
A324: =IF(OR(Purchases!D236="",Purchases!D236=0),"",Purchases!D236) ->  | B324: =Purchases!E236/1000 -> 0 | C324: =Purchases!F236/1000 -> 0 | D324: =Purchases!G236/1000 -> 0 | E324: =Purchases!H236/1000 -> 0 | F324: =Purchases!I236/1000 -> 0 | G324: =Purchases!J236/1000 -> 0 | H324: =Purchases!K236/1000 -> 0 | I324: =Purchases!L236/1000 -> 0 | J324: =Purchases!M236/1000 -> 0 | K324: =Purchases!N236/1000 -> 0 | L324: =Purchases!O236/1000 -> 0 | M324: =Purchases!P236/1000 -> 0 | N324: =Purchases!Q236/1000 -> 0 | O324: =Purchases!R236/1000 -> 0 | P324: =Purchases!S236/1000 -> 0 | Q324: =Purchases!T236/1000 -> 0 | R324: =Purchases!U236/1000 -> 0 | S324: =Purchases!V236/1000 -> 0 | T324: =Purchases!W236/1000 -> 0 | U324: =Purchases!X236/1000 -> 0 | V324: =Purchases!Y236/1000 -> 0 | W324: =Purchases!Z236/1000 -> 0 | X324: =Purchases!AA236/1000 -> 0 | Y324: =Purchases!AB236/1000 -> 0 | Z324: =Purchases!AC236/1000 -> 0 | AA324: =Purchases!AD236/1000 -> 0 | AB324: =Purchases!AE236/1000 -> 0 | AC324: =Purchases!AF236/1000 -> 0 | AD324: =Purchases!AG236/1000 -> 0 | AE324: =Purchases!AH236/1000 -> 0 | AF324: =Purchases!AI236/1000 -> 0
A325: =IF(OR(Purchases!D237="",Purchases!D237=0),"",Purchases!D237) ->  | B325: =Purchases!E237/1000 -> 0 | C325: =Purchases!F237/1000 -> 0 | D325: =Purchases!G237/1000 -> 0 | E325: =Purchases!H237/1000 -> 0 | F325: =Purchases!I237/1000 -> 0 | G325: =Purchases!J237/1000 -> 0 | H325: =Purchases!K237/1000 -> 0 | I325: =Purchases!L237/1000 -> 0 | J325: =Purchases!M237/1000 -> 0 | K325: =Purchases!N237/1000 -> 0 | L325: =Purchases!O237/1000 -> 0 | M325: =Purchases!P237/1000 -> 0 | N325: =Purchases!Q237/1000 -> 0 | O325: =Purchases!R237/1000 -> 0 | P325: =Purchases!S237/1000 -> 0 | Q325: =Purchases!T237/1000 -> 0 | R325: =Purchases!U237/1000 -> 0 | S325: =Purchases!V237/1000 -> 0 | T325: =Purchases!W237/1000 -> 0 | U325: =Purchases!X237/1000 -> 0 | V325: =Purchases!Y237/1000 -> 0 | W325: =Purchases!Z237/1000 -> 0 | X325: =Purchases!AA237/1000 -> 0 | Y325: =Purchases!AB237/1000 -> 0 | Z325: =Purchases!AC237/1000 -> 0 | AA325: =Purchases!AD237/1000 -> 0 | AB325: =Purchases!AE237/1000 -> 0 | AC325: =Purchases!AF237/1000 -> 0 | AD325: =Purchases!AG237/1000 -> 0 | AE325: =Purchases!AH237/1000 -> 0 | AF325: =Purchases!AI237/1000 -> 0
A327: Revenues
A328: =IF(O_Operating_Income!B37="","",O_Operating_Income!B37) -> Avoided Electricity Purchases | B328: =IF(O_Operating_Income!D22="",0,O_Operating_Income!D22)/1000 -> 154.44 | C328: =IF(O_Operating_Income!E22="",0,O_Operating_Income!E22)/1000 -> 158.301 | D328: =IF(O_Operating_Income!F22="",0,O_Operating_Income!F22)/1000 -> 162.258525 | E328: =IF(O_Operating_Income!G22="",0,O_Operating_Income!G22)/1000 -> 166.3149881 | F328: =IF(O_Operating_Income!H22="",0,O_Operating_Income!H22)/1000 -> 170.4728628 | G328: =IF(O_Operating_Income!I22="",0,O_Operating_Income!I22)/1000 -> 174.7346844 | H328: =IF(O_Operating_Income!J22="",0,O_Operating_Income!J22)/1000 -> 179.1030515 | I328: =IF(O_Operating_Income!K22="",0,O_Operating_Income!K22)/1000 -> 183.5806278 | J328: =IF(O_Operating_Income!L22="",0,O_Operating_Income!L22)/1000 -> 188.1701435 | K328: =IF(O_Operating_Income!M22="",0,O_Operating_Income!M22)/1000 -> 192.8743971 | L328: =IF(O_Operating_Income!N22="",0,O_Operating_Income!N22)/1000 -> 197.696257 | M328: =IF(O_Operating_Income!O22="",0,O_Operating_Income!O22)/1000 -> 202.6386634 | N328: =IF(O_Operating_Income!P22="",0,O_Operating_Income!P22)/1000 -> 207.70463 | O328: =IF(O_Operating_Income!Q22="",0,O_Operating_Income!Q22)/1000 -> 212.8972458 | P328: =IF(O_Operating_Income!R22="",0,O_Operating_Income!R22)/1000 -> 218.2196769 | Q328: =IF(O_Operating_Income!S22="",0,O_Operating_Income!S22)/1000 -> 223.6751688 | R328: =IF(O_Operating_Income!T22="",0,O_Operating_Income!T22)/1000 -> 229.2670481 | S328: =IF(O_Operating_Income!U22="",0,O_Operating_Income!U22)/1000 -> 234.9987243 | T328: =IF(O_Operating_Income!V22="",0,O_Operating_Income!V22)/1000 -> 240.8736924 | U328: =IF(O_Operating_Income!W22="",0,O_Operating_Income!W22)/1000 -> 246.8955347 | V328: =IF(O_Operating_Income!X22="",0,O_Operating_Income!X22)/1000 -> 253.067923 | W328: =IF(O_Operating_Income!Y22="",0,O_Operating_Income!Y22)/1000 -> 259.3946211 | X328: =IF(O_Operating_Income!Z22="",0,O_Operating_Income!Z22)/1000 -> 265.8794866 | Y328: =IF(O_Operating_Income!AA22="",0,O_Operating_Income!AA22)/1000 -> 272.5264738 | Z328: =IF(O_Operating_Income!AB22="",0,O_Operating_Income!AB22)/1000 -> 279.3396357 | AA328: =IF(O_Operating_Income!AC22="",0,O_Operating_Income!AC22)/1000 -> 286.3231265 | AB328: =IF(O_Operating_Income!AD22="",0,O_Operating_Income!AD22)/1000 -> 293.4812047 | AC328: =IF(O_Operating_Income!AE22="",0,O_Operating_Income!AE22)/1000 -> 300.8182348 | AD328: =IF(O_Operating_Income!AF22="",0,O_Operating_Income!AF22)/1000 -> 308.3386907 | AE328: =IF(O_Operating_Income!AG22="",0,O_Operating_Income!AG22)/1000 -> 316.047158 | AF328: =IF(O_Operating_Income!AH22="",0,O_Operating_Income!AH22)/1000 -> 323.9483369
A329: =IF(O_Operating_Income!B38="","",O_Operating_Income!B38) -> Avoided Boiler Fuel Purchases | B329: =IF(O_Operating_Income!D23="",0,O_Operating_Income!D23)/1000 -> 145.638 | C329: =IF(O_Operating_Income!E23="",0,O_Operating_Income!E23)/1000 -> 149.27895 | D329: =IF(O_Operating_Income!F23="",0,O_Operating_Income!F23)/1000 -> 153.0109237 | E329: =IF(O_Operating_Income!G23="",0,O_Operating_Income!G23)/1000 -> 156.8361968 | F329: =IF(O_Operating_Income!H23="",0,O_Operating_Income!H23)/1000 -> 160.7571018 | G329: =IF(O_Operating_Income!I23="",0,O_Operating_Income!I23)/1000 -> 164.7760293 | H329: =IF(O_Operating_Income!J23="",0,O_Operating_Income!J23)/1000 -> 168.89543 | I329: =IF(O_Operating_Income!K23="",0,O_Operating_Income!K23)/1000 -> 173.1178158 | J329: =IF(O_Operating_Income!L23="",0,O_Operating_Income!L23)/1000 -> 177.4457612 | K329: =IF(O_Operating_Income!M23="",0,O_Operating_Income!M23)/1000 -> 181.8819052 | L329: =IF(O_Operating_Income!N23="",0,O_Operating_Income!N23)/1000 -> 186.4289528 | M329: =IF(O_Operating_Income!O23="",0,O_Operating_Income!O23)/1000 -> 191.0896767 | N329: =IF(O_Operating_Income!P23="",0,O_Operating_Income!P23)/1000 -> 195.8669186 | O329: =IF(O_Operating_Income!Q23="",0,O_Operating_Income!Q23)/1000 -> 200.7635916 | P329: =IF(O_Operating_Income!R23="",0,O_Operating_Income!R23)/1000 -> 205.7826813 | Q329: =IF(O_Operating_Income!S23="",0,O_Operating_Income!S23)/1000 -> 210.9272484 | R329: =IF(O_Operating_Income!T23="",0,O_Operating_Income!T23)/1000 -> 216.2004296 | S329: =IF(O_Operating_Income!U23="",0,O_Operating_Income!U23)/1000 -> 221.6054403 | T329: =IF(O_Operating_Income!V23="",0,O_Operating_Income!V23)/1000 -> 227.1455763 | U329: =IF(O_Operating_Income!W23="",0,O_Operating_Income!W23)/1000 -> 232.8242157 | V329: =IF(O_Operating_Income!X23="",0,O_Operating_Income!X23)/1000 -> 238.6448211 | W329: =IF(O_Operating_Income!Y23="",0,O_Operating_Income!Y23)/1000 -> 244.6109417 | X329: =IF(O_Operating_Income!Z23="",0,O_Operating_Income!Z23)/1000 -> 250.7262152 | Y329: =IF(O_Operating_Income!AA23="",0,O_Operating_Income!AA23)/1000 -> 256.9943706 | Z329: =IF(O_Operating_Income!AB23="",0,O_Operating_Income!AB23)/1000 -> 263.4192298 | AA329: =IF(O_Operating_Income!AC23="",0,O_Operating_Income!AC23)/1000 -> 270.0047106 | AB329: =IF(O_Operating_Income!AD23="",0,O_Operating_Income!AD23)/1000 -> 276.7548284 | AC329: =IF(O_Operating_Income!AE23="",0,O_Operating_Income!AE23)/1000 -> 283.6736991 | AD329: =IF(O_Operating_Income!AF23="",0,O_Operating_Income!AF23)/1000 -> 290.7655415 | AE329: =IF(O_Operating_Income!AG23="",0,O_Operating_Income!AG23)/1000 -> 298.0346801 | AF329: =IF(O_Operating_Income!AH23="",0,O_Operating_Income!AH23)/1000 -> 305.4855471
A330: =IF(O_Operating_Income!B39="","",O_Operating_Income!B39) ->  | B330: =IF(O_Operating_Income!D24="",0,O_Operating_Income!D24)/1000 -> 0 | C330: =IF(O_Operating_Income!E24="",0,O_Operating_Income!E24)/1000 -> 0 | D330: =IF(O_Operating_Income!F24="",0,O_Operating_Income!F24)/1000 -> 0 | E330: =IF(O_Operating_Income!G24="",0,O_Operating_Income!G24)/1000 -> 0 | F330: =IF(O_Operating_Income!H24="",0,O_Operating_Income!H24)/1000 -> 0 | G330: =IF(O_Operating_Income!I24="",0,O_Operating_Income!I24)/1000 -> 0 | H330: =IF(O_Operating_Income!J24="",0,O_Operating_Income!J24)/1000 -> 0 | I330: =IF(O_Operating_Income!K24="",0,O_Operating_Income!K24)/1000 -> 0 | J330: =IF(O_Operating_Income!L24="",0,O_Operating_Income!L24)/1000 -> 0 | K330: =IF(O_Operating_Income!M24="",0,O_Operating_Income!M24)/1000 -> 0 | L330: =IF(O_Operating_Income!N24="",0,O_Operating_Income!N24)/1000 -> 0 | M330: =IF(O_Operating_Income!O24="",0,O_Operating_Income!O24)/1000 -> 0 | N330: =IF(O_Operating_Income!P24="",0,O_Operating_Income!P24)/1000 -> 0 | O330: =IF(O_Operating_Income!Q24="",0,O_Operating_Income!Q24)/1000 -> 0 | P330: =IF(O_Operating_Income!R24="",0,O_Operating_Income!R24)/1000 -> 0 | Q330: =IF(O_Operating_Income!S24="",0,O_Operating_Income!S24)/1000 -> 0 | R330: =IF(O_Operating_Income!T24="",0,O_Operating_Income!T24)/1000 -> 0 | S330: =IF(O_Operating_Income!U24="",0,O_Operating_Income!U24)/1000 -> 0 | T330: =IF(O_Operating_Income!V24="",0,O_Operating_Income!V24)/1000 -> 0 | U330: =IF(O_Operating_Income!W24="",0,O_Operating_Income!W24)/1000 -> 0 | V330: =IF(O_Operating_Income!X24="",0,O_Operating_Income!X24)/1000 -> 0 | W330: =IF(O_Operating_Income!Y24="",0,O_Operating_Income!Y24)/1000 -> 0 | X330: =IF(O_Operating_Income!Z24="",0,O_Operating_Income!Z24)/1000 -> 0 | Y330: =IF(O_Operating_Income!AA24="",0,O_Operating_Income!AA24)/1000 -> 0 | Z330: =IF(O_Operating_Income!AB24="",0,O_Operating_Income!AB24)/1000 -> 0 | AA330: =IF(O_Operating_Income!AC24="",0,O_Operating_Income!AC24)/1000 -> 0 | AB330: =IF(O_Operating_Income!AD24="",0,O_Operating_Income!AD24)/1000 -> 0 | AC330: =IF(O_Operating_Income!AE24="",0,O_Operating_Income!AE24)/1000 -> 0 | AD330: =IF(O_Operating_Income!AF24="",0,O_Operating_Income!AF24)/1000 -> 0 | AE330: =IF(O_Operating_Income!AG24="",0,O_Operating_Income!AG24)/1000 -> 0 | AF330: =IF(O_Operating_Income!AH24="",0,O_Operating_Income!AH24)/1000 -> 0
A331: =IF(O_Operating_Income!B40="","",O_Operating_Income!B40) ->  | B331: =IF(O_Operating_Income!D25="",0,O_Operating_Income!D25)/1000 -> 0 | C331: =IF(O_Operating_Income!E25="",0,O_Operating_Income!E25)/1000 -> 0 | D331: =IF(O_Operating_Income!F25="",0,O_Operating_Income!F25)/1000 -> 0 | E331: =IF(O_Operating_Income!G25="",0,O_Operating_Income!G25)/1000 -> 0 | F331: =IF(O_Operating_Income!H25="",0,O_Operating_Income!H25)/1000 -> 0 | G331: =IF(O_Operating_Income!I25="",0,O_Operating_Income!I25)/1000 -> 0 | H331: =IF(O_Operating_Income!J25="",0,O_Operating_Income!J25)/1000 -> 0 | I331: =IF(O_Operating_Income!K25="",0,O_Operating_Income!K25)/1000 -> 0 | J331: =IF(O_Operating_Income!L25="",0,O_Operating_Income!L25)/1000 -> 0 | K331: =IF(O_Operating_Income!M25="",0,O_Operating_Income!M25)/1000 -> 0 | L331: =IF(O_Operating_Income!N25="",0,O_Operating_Income!N25)/1000 -> 0 | M331: =IF(O_Operating_Income!O25="",0,O_Operating_Income!O25)/1000 -> 0 | N331: =IF(O_Operating_Income!P25="",0,O_Operating_Income!P25)/1000 -> 0 | O331: =IF(O_Operating_Income!Q25="",0,O_Operating_Income!Q25)/1000 -> 0 | P331: =IF(O_Operating_Income!R25="",0,O_Operating_Income!R25)/1000 -> 0 | Q331: =IF(O_Operating_Income!S25="",0,O_Operating_Income!S25)/1000 -> 0 | R331: =IF(O_Operating_Income!T25="",0,O_Operating_Income!T25)/1000 -> 0 | S331: =IF(O_Operating_Income!U25="",0,O_Operating_Income!U25)/1000 -> 0 | T331: =IF(O_Operating_Income!V25="",0,O_Operating_Income!V25)/1000 -> 0 | U331: =IF(O_Operating_Income!W25="",0,O_Operating_Income!W25)/1000 -> 0 | V331: =IF(O_Operating_Income!X25="",0,O_Operating_Income!X25)/1000 -> 0 | W331: =IF(O_Operating_Income!Y25="",0,O_Operating_Income!Y25)/1000 -> 0 | X331: =IF(O_Operating_Income!Z25="",0,O_Operating_Income!Z25)/1000 -> 0 | Y331: =IF(O_Operating_Income!AA25="",0,O_Operating_Income!AA25)/1000 -> 0 | Z331: =IF(O_Operating_Income!AB25="",0,O_Operating_Income!AB25)/1000 -> 0 | AA331: =IF(O_Operating_Income!AC25="",0,O_Operating_Income!AC25)/1000 -> 0 | AB331: =IF(O_Operating_Income!AD25="",0,O_Operating_Income!AD25)/1000 -> 0 | AC331: =IF(O_Operating_Income!AE25="",0,O_Operating_Income!AE25)/1000 -> 0 | AD331: =IF(O_Operating_Income!AF25="",0,O_Operating_Income!AF25)/1000 -> 0 | AE331: =IF(O_Operating_Income!AG25="",0,O_Operating_Income!AG25)/1000 -> 0 | AF331: =IF(O_Operating_Income!AH25="",0,O_Operating_Income!AH25)/1000 -> 0
A332: =IF(O_Operating_Income!B41="","",O_Operating_Income!B41) -> Electricity Sales, | B332: =IF(O_Operating_Income!D26="",0,O_Operating_Income!D26)/1000 -> 0 | C332: =IF(O_Operating_Income!E26="",0,O_Operating_Income!E26)/1000 -> 0 | D332: =IF(O_Operating_Income!F26="",0,O_Operating_Income!F26)/1000 -> 0 | E332: =IF(O_Operating_Income!G26="",0,O_Operating_Income!G26)/1000 -> 0 | F332: =IF(O_Operating_Income!H26="",0,O_Operating_Income!H26)/1000 -> 0 | G332: =IF(O_Operating_Income!I26="",0,O_Operating_Income!I26)/1000 -> 0 | H332: =IF(O_Operating_Income!J26="",0,O_Operating_Income!J26)/1000 -> 0 | I332: =IF(O_Operating_Income!K26="",0,O_Operating_Income!K26)/1000 -> 0 | J332: =IF(O_Operating_Income!L26="",0,O_Operating_Income!L26)/1000 -> 0 | K332: =IF(O_Operating_Income!M26="",0,O_Operating_Income!M26)/1000 -> 0 | L332: =IF(O_Operating_Income!N26="",0,O_Operating_Income!N26)/1000 -> 0 | M332: =IF(O_Operating_Income!O26="",0,O_Operating_Income!O26)/1000 -> 0 | N332: =IF(O_Operating_Income!P26="",0,O_Operating_Income!P26)/1000 -> 0 | O332: =IF(O_Operating_Income!Q26="",0,O_Operating_Income!Q26)/1000 -> 0 | P332: =IF(O_Operating_Income!R26="",0,O_Operating_Income!R26)/1000 -> 0 | Q332: =IF(O_Operating_Income!S26="",0,O_Operating_Income!S26)/1000 -> 0 | R332: =IF(O_Operating_Income!T26="",0,O_Operating_Income!T26)/1000 -> 0 | S332: =IF(O_Operating_Income!U26="",0,O_Operating_Income!U26)/1000 -> 0 | T332: =IF(O_Operating_Income!V26="",0,O_Operating_Income!V26)/1000 -> 0 | U332: =IF(O_Operating_Income!W26="",0,O_Operating_Income!W26)/1000 -> 0 | V332: =IF(O_Operating_Income!X26="",0,O_Operating_Income!X26)/1000 -> 0 | W332: =IF(O_Operating_Income!Y26="",0,O_Operating_Income!Y26)/1000 -> 0 | X332: =IF(O_Operating_Income!Z26="",0,O_Operating_Income!Z26)/1000 -> 0 | Y332: =IF(O_Operating_Income!AA26="",0,O_Operating_Income!AA26)/1000 -> 0 | Z332: =IF(O_Operating_Income!AB26="",0,O_Operating_Income!AB26)/1000 -> 0 | AA332: =IF(O_Operating_Income!AC26="",0,O_Operating_Income!AC26)/1000 -> 0 | AB332: =IF(O_Operating_Income!AD26="",0,O_Operating_Income!AD26)/1000 -> 0 | AC332: =IF(O_Operating_Income!AE26="",0,O_Operating_Income!AE26)/1000 -> 0 | AD332: =IF(O_Operating_Income!AF26="",0,O_Operating_Income!AF26)/1000 -> 0 | AE332: =IF(O_Operating_Income!AG26="",0,O_Operating_Income!AG26)/1000 -> 0 | AF332: =IF(O_Operating_Income!AH26="",0,O_Operating_Income!AH26)/1000 -> 0
A333: =IF(O_Operating_Income!B42="","",O_Operating_Income!B42) ->  | B333: =IF(O_Operating_Income!D27="",0,O_Operating_Income!D27)/1000 -> 0 | C333: =IF(O_Operating_Income!E27="",0,O_Operating_Income!E27)/1000 -> 0 | D333: =IF(O_Operating_Income!F27="",0,O_Operating_Income!F27)/1000 -> 0 | E333: =IF(O_Operating_Income!G27="",0,O_Operating_Income!G27)/1000 -> 0 | F333: =IF(O_Operating_Income!H27="",0,O_Operating_Income!H27)/1000 -> 0 | G333: =IF(O_Operating_Income!I27="",0,O_Operating_Income!I27)/1000 -> 0 | H333: =IF(O_Operating_Income!J27="",0,O_Operating_Income!J27)/1000 -> 0 | I333: =IF(O_Operating_Income!K27="",0,O_Operating_Income!K27)/1000 -> 0 | J333: =IF(O_Operating_Income!L27="",0,O_Operating_Income!L27)/1000 -> 0 | K333: =IF(O_Operating_Income!M27="",0,O_Operating_Income!M27)/1000 -> 0 | L333: =IF(O_Operating_Income!N27="",0,O_Operating_Income!N27)/1000 -> 0 | M333: =IF(O_Operating_Income!O27="",0,O_Operating_Income!O27)/1000 -> 0 | N333: =IF(O_Operating_Income!P27="",0,O_Operating_Income!P27)/1000 -> 0 | O333: =IF(O_Operating_Income!Q27="",0,O_Operating_Income!Q27)/1000 -> 0 | P333: =IF(O_Operating_Income!R27="",0,O_Operating_Income!R27)/1000 -> 0 | Q333: =IF(O_Operating_Income!S27="",0,O_Operating_Income!S27)/1000 -> 0 | R333: =IF(O_Operating_Income!T27="",0,O_Operating_Income!T27)/1000 -> 0 | S333: =IF(O_Operating_Income!U27="",0,O_Operating_Income!U27)/1000 -> 0 | T333: =IF(O_Operating_Income!V27="",0,O_Operating_Income!V27)/1000 -> 0 | U333: =IF(O_Operating_Income!W27="",0,O_Operating_Income!W27)/1000 -> 0 | V333: =IF(O_Operating_Income!X27="",0,O_Operating_Income!X27)/1000 -> 0 | W333: =IF(O_Operating_Income!Y27="",0,O_Operating_Income!Y27)/1000 -> 0 | X333: =IF(O_Operating_Income!Z27="",0,O_Operating_Income!Z27)/1000 -> 0 | Y333: =IF(O_Operating_Income!AA27="",0,O_Operating_Income!AA27)/1000 -> 0 | Z333: =IF(O_Operating_Income!AB27="",0,O_Operating_Income!AB27)/1000 -> 0 | AA333: =IF(O_Operating_Income!AC27="",0,O_Operating_Income!AC27)/1000 -> 0 | AB333: =IF(O_Operating_Income!AD27="",0,O_Operating_Income!AD27)/1000 -> 0 | AC333: =IF(O_Operating_Income!AE27="",0,O_Operating_Income!AE27)/1000 -> 0 | AD333: =IF(O_Operating_Income!AF27="",0,O_Operating_Income!AF27)/1000 -> 0 | AE333: =IF(O_Operating_Income!AG27="",0,O_Operating_Income!AG27)/1000 -> 0 | AF333: =IF(O_Operating_Income!AH27="",0,O_Operating_Income!AH27)/1000 -> 0
A334: =IF(O_Operating_Income!B43="","",O_Operating_Income!B43) ->  | B334: =IF(O_Operating_Income!D28="",0,O_Operating_Income!D28)/1000 -> 0 | C334: =IF(O_Operating_Income!E28="",0,O_Operating_Income!E28)/1000 -> 0 | D334: =IF(O_Operating_Income!F28="",0,O_Operating_Income!F28)/1000 -> 0 | E334: =IF(O_Operating_Income!G28="",0,O_Operating_Income!G28)/1000 -> 0 | F334: =IF(O_Operating_Income!H28="",0,O_Operating_Income!H28)/1000 -> 0 | G334: =IF(O_Operating_Income!I28="",0,O_Operating_Income!I28)/1000 -> 0 | H334: =IF(O_Operating_Income!J28="",0,O_Operating_Income!J28)/1000 -> 0 | I334: =IF(O_Operating_Income!K28="",0,O_Operating_Income!K28)/1000 -> 0 | J334: =IF(O_Operating_Income!L28="",0,O_Operating_Income!L28)/1000 -> 0 | K334: =IF(O_Operating_Income!M28="",0,O_Operating_Income!M28)/1000 -> 0 | L334: =IF(O_Operating_Income!N28="",0,O_Operating_Income!N28)/1000 -> 0 | M334: =IF(O_Operating_Income!O28="",0,O_Operating_Income!O28)/1000 -> 0 | N334: =IF(O_Operating_Income!P28="",0,O_Operating_Income!P28)/1000 -> 0 | O334: =IF(O_Operating_Income!Q28="",0,O_Operating_Income!Q28)/1000 -> 0 | P334: =IF(O_Operating_Income!R28="",0,O_Operating_Income!R28)/1000 -> 0 | Q334: =IF(O_Operating_Income!S28="",0,O_Operating_Income!S28)/1000 -> 0 | R334: =IF(O_Operating_Income!T28="",0,O_Operating_Income!T28)/1000 -> 0 | S334: =IF(O_Operating_Income!U28="",0,O_Operating_Income!U28)/1000 -> 0 | T334: =IF(O_Operating_Income!V28="",0,O_Operating_Income!V28)/1000 -> 0 | U334: =IF(O_Operating_Income!W28="",0,O_Operating_Income!W28)/1000 -> 0 | V334: =IF(O_Operating_Income!X28="",0,O_Operating_Income!X28)/1000 -> 0 | W334: =IF(O_Operating_Income!Y28="",0,O_Operating_Income!Y28)/1000 -> 0 | X334: =IF(O_Operating_Income!Z28="",0,O_Operating_Income!Z28)/1000 -> 0 | Y334: =IF(O_Operating_Income!AA28="",0,O_Operating_Income!AA28)/1000 -> 0 | Z334: =IF(O_Operating_Income!AB28="",0,O_Operating_Income!AB28)/1000 -> 0 | AA334: =IF(O_Operating_Income!AC28="",0,O_Operating_Income!AC28)/1000 -> 0 | AB334: =IF(O_Operating_Income!AD28="",0,O_Operating_Income!AD28)/1000 -> 0 | AC334: =IF(O_Operating_Income!AE28="",0,O_Operating_Income!AE28)/1000 -> 0 | AD334: =IF(O_Operating_Income!AF28="",0,O_Operating_Income!AF28)/1000 -> 0 | AE334: =IF(O_Operating_Income!AG28="",0,O_Operating_Income!AG28)/1000 -> 0 | AF334: =IF(O_Operating_Income!AH28="",0,O_Operating_Income!AH28)/1000 -> 0
A335: =IF(O_Operating_Income!B44="","",O_Operating_Income!B44) ->  | B335: =IF(O_Operating_Income!D29="",0,O_Operating_Income!D29)/1000 -> 0 | C335: =IF(O_Operating_Income!E29="",0,O_Operating_Income!E29)/1000 -> 0 | D335: =IF(O_Operating_Income!F29="",0,O_Operating_Income!F29)/1000 -> 0 | E335: =IF(O_Operating_Income!G29="",0,O_Operating_Income!G29)/1000 -> 0 | F335: =IF(O_Operating_Income!H29="",0,O_Operating_Income!H29)/1000 -> 0 | G335: =IF(O_Operating_Income!I29="",0,O_Operating_Income!I29)/1000 -> 0 | H335: =IF(O_Operating_Income!J29="",0,O_Operating_Income!J29)/1000 -> 0 | I335: =IF(O_Operating_Income!K29="",0,O_Operating_Income!K29)/1000 -> 0 | J335: =IF(O_Operating_Income!L29="",0,O_Operating_Income!L29)/1000 -> 0 | K335: =IF(O_Operating_Income!M29="",0,O_Operating_Income!M29)/1000 -> 0 | L335: =IF(O_Operating_Income!N29="",0,O_Operating_Income!N29)/1000 -> 0 | M335: =IF(O_Operating_Income!O29="",0,O_Operating_Income!O29)/1000 -> 0 | N335: =IF(O_Operating_Income!P29="",0,O_Operating_Income!P29)/1000 -> 0 | O335: =IF(O_Operating_Income!Q29="",0,O_Operating_Income!Q29)/1000 -> 0 | P335: =IF(O_Operating_Income!R29="",0,O_Operating_Income!R29)/1000 -> 0 | Q335: =IF(O_Operating_Income!S29="",0,O_Operating_Income!S29)/1000 -> 0 | R335: =IF(O_Operating_Income!T29="",0,O_Operating_Income!T29)/1000 -> 0 | S335: =IF(O_Operating_Income!U29="",0,O_Operating_Income!U29)/1000 -> 0 | T335: =IF(O_Operating_Income!V29="",0,O_Operating_Income!V29)/1000 -> 0 | U335: =IF(O_Operating_Income!W29="",0,O_Operating_Income!W29)/1000 -> 0 | V335: =IF(O_Operating_Income!X29="",0,O_Operating_Income!X29)/1000 -> 0 | W335: =IF(O_Operating_Income!Y29="",0,O_Operating_Income!Y29)/1000 -> 0 | X335: =IF(O_Operating_Income!Z29="",0,O_Operating_Income!Z29)/1000 -> 0 | Y335: =IF(O_Operating_Income!AA29="",0,O_Operating_Income!AA29)/1000 -> 0 | Z335: =IF(O_Operating_Income!AB29="",0,O_Operating_Income!AB29)/1000 -> 0 | AA335: =IF(O_Operating_Income!AC29="",0,O_Operating_Income!AC29)/1000 -> 0 | AB335: =IF(O_Operating_Income!AD29="",0,O_Operating_Income!AD29)/1000 -> 0 | AC335: =IF(O_Operating_Income!AE29="",0,O_Operating_Income!AE29)/1000 -> 0 | AD335: =IF(O_Operating_Income!AF29="",0,O_Operating_Income!AF29)/1000 -> 0 | AE335: =IF(O_Operating_Income!AG29="",0,O_Operating_Income!AG29)/1000 -> 0 | AF335: =IF(O_Operating_Income!AH29="",0,O_Operating_Income!AH29)/1000 -> 0
A336: =IF(O_Operating_Income!B45="","",O_Operating_Income!B45) ->  | B336: =IF(O_Operating_Income!D30="",0,O_Operating_Income!D30)/1000 -> 0 | C336: =IF(O_Operating_Income!E30="",0,O_Operating_Income!E30)/1000 -> 0 | D336: =IF(O_Operating_Income!F30="",0,O_Operating_Income!F30)/1000 -> 0 | E336: =IF(O_Operating_Income!G30="",0,O_Operating_Income!G30)/1000 -> 0 | F336: =IF(O_Operating_Income!H30="",0,O_Operating_Income!H30)/1000 -> 0 | G336: =IF(O_Operating_Income!I30="",0,O_Operating_Income!I30)/1000 -> 0 | H336: =IF(O_Operating_Income!J30="",0,O_Operating_Income!J30)/1000 -> 0 | I336: =IF(O_Operating_Income!K30="",0,O_Operating_Income!K30)/1000 -> 0 | J336: =IF(O_Operating_Income!L30="",0,O_Operating_Income!L30)/1000 -> 0 | K336: =IF(O_Operating_Income!M30="",0,O_Operating_Income!M30)/1000 -> 0 | L336: =IF(O_Operating_Income!N30="",0,O_Operating_Income!N30)/1000 -> 0 | M336: =IF(O_Operating_Income!O30="",0,O_Operating_Income!O30)/1000 -> 0 | N336: =IF(O_Operating_Income!P30="",0,O_Operating_Income!P30)/1000 -> 0 | O336: =IF(O_Operating_Income!Q30="",0,O_Operating_Income!Q30)/1000 -> 0 | P336: =IF(O_Operating_Income!R30="",0,O_Operating_Income!R30)/1000 -> 0 | Q336: =IF(O_Operating_Income!S30="",0,O_Operating_Income!S30)/1000 -> 0 | R336: =IF(O_Operating_Income!T30="",0,O_Operating_Income!T30)/1000 -> 0 | S336: =IF(O_Operating_Income!U30="",0,O_Operating_Income!U30)/1000 -> 0 | T336: =IF(O_Operating_Income!V30="",0,O_Operating_Income!V30)/1000 -> 0 | U336: =IF(O_Operating_Income!W30="",0,O_Operating_Income!W30)/1000 -> 0 | V336: =IF(O_Operating_Income!X30="",0,O_Operating_Income!X30)/1000 -> 0 | W336: =IF(O_Operating_Income!Y30="",0,O_Operating_Income!Y30)/1000 -> 0 | X336: =IF(O_Operating_Income!Z30="",0,O_Operating_Income!Z30)/1000 -> 0 | Y336: =IF(O_Operating_Income!AA30="",0,O_Operating_Income!AA30)/1000 -> 0 | Z336: =IF(O_Operating_Income!AB30="",0,O_Operating_Income!AB30)/1000 -> 0 | AA336: =IF(O_Operating_Income!AC30="",0,O_Operating_Income!AC30)/1000 -> 0 | AB336: =IF(O_Operating_Income!AD30="",0,O_Operating_Income!AD30)/1000 -> 0 | AC336: =IF(O_Operating_Income!AE30="",0,O_Operating_Income!AE30)/1000 -> 0 | AD336: =IF(O_Operating_Income!AF30="",0,O_Operating_Income!AF30)/1000 -> 0 | AE336: =IF(O_Operating_Income!AG30="",0,O_Operating_Income!AG30)/1000 -> 0 | AF336: =IF(O_Operating_Income!AH30="",0,O_Operating_Income!AH30)/1000 -> 0
A337: =IF(O_Operating_Income!B46="","",O_Operating_Income!B46) ->  | B337: =IF(O_Operating_Income!D31="",0,O_Operating_Income!D31)/1000 -> 0 | C337: =IF(O_Operating_Income!E31="",0,O_Operating_Income!E31)/1000 -> 0 | D337: =IF(O_Operating_Income!F31="",0,O_Operating_Income!F31)/1000 -> 0 | E337: =IF(O_Operating_Income!G31="",0,O_Operating_Income!G31)/1000 -> 0 | F337: =IF(O_Operating_Income!H31="",0,O_Operating_Income!H31)/1000 -> 0 | G337: =IF(O_Operating_Income!I31="",0,O_Operating_Income!I31)/1000 -> 0 | H337: =IF(O_Operating_Income!J31="",0,O_Operating_Income!J31)/1000 -> 0 | I337: =IF(O_Operating_Income!K31="",0,O_Operating_Income!K31)/1000 -> 0 | J337: =IF(O_Operating_Income!L31="",0,O_Operating_Income!L31)/1000 -> 0 | K337: =IF(O_Operating_Income!M31="",0,O_Operating_Income!M31)/1000 -> 0 | L337: =IF(O_Operating_Income!N31="",0,O_Operating_Income!N31)/1000 -> 0 | M337: =IF(O_Operating_Income!O31="",0,O_Operating_Income!O31)/1000 -> 0 | N337: =IF(O_Operating_Income!P31="",0,O_Operating_Income!P31)/1000 -> 0 | O337: =IF(O_Operating_Income!Q31="",0,O_Operating_Income!Q31)/1000 -> 0 | P337: =IF(O_Operating_Income!R31="",0,O_Operating_Income!R31)/1000 -> 0 | Q337: =IF(O_Operating_Income!S31="",0,O_Operating_Income!S31)/1000 -> 0 | R337: =IF(O_Operating_Income!T31="",0,O_Operating_Income!T31)/1000 -> 0 | S337: =IF(O_Operating_Income!U31="",0,O_Operating_Income!U31)/1000 -> 0 | T337: =IF(O_Operating_Income!V31="",0,O_Operating_Income!V31)/1000 -> 0 | U337: =IF(O_Operating_Income!W31="",0,O_Operating_Income!W31)/1000 -> 0 | V337: =IF(O_Operating_Income!X31="",0,O_Operating_Income!X31)/1000 -> 0 | W337: =IF(O_Operating_Income!Y31="",0,O_Operating_Income!Y31)/1000 -> 0 | X337: =IF(O_Operating_Income!Z31="",0,O_Operating_Income!Z31)/1000 -> 0 | Y337: =IF(O_Operating_Income!AA31="",0,O_Operating_Income!AA31)/1000 -> 0 | Z337: =IF(O_Operating_Income!AB31="",0,O_Operating_Income!AB31)/1000 -> 0 | AA337: =IF(O_Operating_Income!AC31="",0,O_Operating_Income!AC31)/1000 -> 0 | AB337: =IF(O_Operating_Income!AD31="",0,O_Operating_Income!AD31)/1000 -> 0 | AC337: =IF(O_Operating_Income!AE31="",0,O_Operating_Income!AE31)/1000 -> 0 | AD337: =IF(O_Operating_Income!AF31="",0,O_Operating_Income!AF31)/1000 -> 0 | AE337: =IF(O_Operating_Income!AG31="",0,O_Operating_Income!AG31)/1000 -> 0 | AF337: =IF(O_Operating_Income!AH31="",0,O_Operating_Income!AH31)/1000 -> 0
A338: =IF(O_Operating_Income!B47="","",O_Operating_Income!B47) ->  | B338: =IF(O_Operating_Income!D32="",0,O_Operating_Income!D32)/1000 -> 0 | C338: =IF(O_Operating_Income!E32="",0,O_Operating_Income!E32)/1000 -> 0 | D338: =IF(O_Operating_Income!F32="",0,O_Operating_Income!F32)/1000 -> 0 | E338: =IF(O_Operating_Income!G32="",0,O_Operating_Income!G32)/1000 -> 0 | F338: =IF(O_Operating_Income!H32="",0,O_Operating_Income!H32)/1000 -> 0 | G338: =IF(O_Operating_Income!I32="",0,O_Operating_Income!I32)/1000 -> 0 | H338: =IF(O_Operating_Income!J32="",0,O_Operating_Income!J32)/1000 -> 0 | I338: =IF(O_Operating_Income!K32="",0,O_Operating_Income!K32)/1000 -> 0 | J338: =IF(O_Operating_Income!L32="",0,O_Operating_Income!L32)/1000 -> 0 | K338: =IF(O_Operating_Income!M32="",0,O_Operating_Income!M32)/1000 -> 0 | L338: =IF(O_Operating_Income!N32="",0,O_Operating_Income!N32)/1000 -> 0 | M338: =IF(O_Operating_Income!O32="",0,O_Operating_Income!O32)/1000 -> 0 | N338: =IF(O_Operating_Income!P32="",0,O_Operating_Income!P32)/1000 -> 0 | O338: =IF(O_Operating_Income!Q32="",0,O_Operating_Income!Q32)/1000 -> 0 | P338: =IF(O_Operating_Income!R32="",0,O_Operating_Income!R32)/1000 -> 0 | Q338: =IF(O_Operating_Income!S32="",0,O_Operating_Income!S32)/1000 -> 0 | R338: =IF(O_Operating_Income!T32="",0,O_Operating_Income!T32)/1000 -> 0 | S338: =IF(O_Operating_Income!U32="",0,O_Operating_Income!U32)/1000 -> 0 | T338: =IF(O_Operating_Income!V32="",0,O_Operating_Income!V32)/1000 -> 0 | U338: =IF(O_Operating_Income!W32="",0,O_Operating_Income!W32)/1000 -> 0 | V338: =IF(O_Operating_Income!X32="",0,O_Operating_Income!X32)/1000 -> 0 | W338: =IF(O_Operating_Income!Y32="",0,O_Operating_Income!Y32)/1000 -> 0 | X338: =IF(O_Operating_Income!Z32="",0,O_Operating_Income!Z32)/1000 -> 0 | Y338: =IF(O_Operating_Income!AA32="",0,O_Operating_Income!AA32)/1000 -> 0 | Z338: =IF(O_Operating_Income!AB32="",0,O_Operating_Income!AB32)/1000 -> 0 | AA338: =IF(O_Operating_Income!AC32="",0,O_Operating_Income!AC32)/1000 -> 0 | AB338: =IF(O_Operating_Income!AD32="",0,O_Operating_Income!AD32)/1000 -> 0 | AC338: =IF(O_Operating_Income!AE32="",0,O_Operating_Income!AE32)/1000 -> 0 | AD338: =IF(O_Operating_Income!AF32="",0,O_Operating_Income!AF32)/1000 -> 0 | AE338: =IF(O_Operating_Income!AG32="",0,O_Operating_Income!AG32)/1000 -> 0 | AF338: =IF(O_Operating_Income!AH32="",0,O_Operating_Income!AH32)/1000 -> 0
A339: =IF(O_Operating_Income!B48="","",O_Operating_Income!B48) ->  | B339: =IF(O_Operating_Income!D33="",0,O_Operating_Income!D33)/1000 -> 0 | C339: =IF(O_Operating_Income!E33="",0,O_Operating_Income!E33)/1000 -> 0 | D339: =IF(O_Operating_Income!F33="",0,O_Operating_Income!F33)/1000 -> 0 | E339: =IF(O_Operating_Income!G33="",0,O_Operating_Income!G33)/1000 -> 0 | F339: =IF(O_Operating_Income!H33="",0,O_Operating_Income!H33)/1000 -> 0 | G339: =IF(O_Operating_Income!I33="",0,O_Operating_Income!I33)/1000 -> 0 | H339: =IF(O_Operating_Income!J33="",0,O_Operating_Income!J33)/1000 -> 0 | I339: =IF(O_Operating_Income!K33="",0,O_Operating_Income!K33)/1000 -> 0 | J339: =IF(O_Operating_Income!L33="",0,O_Operating_Income!L33)/1000 -> 0 | K339: =IF(O_Operating_Income!M33="",0,O_Operating_Income!M33)/1000 -> 0 | L339: =IF(O_Operating_Income!N33="",0,O_Operating_Income!N33)/1000 -> 0 | M339: =IF(O_Operating_Income!O33="",0,O_Operating_Income!O33)/1000 -> 0 | N339: =IF(O_Operating_Income!P33="",0,O_Operating_Income!P33)/1000 -> 0 | O339: =IF(O_Operating_Income!Q33="",0,O_Operating_Income!Q33)/1000 -> 0 | P339: =IF(O_Operating_Income!R33="",0,O_Operating_Income!R33)/1000 -> 0 | Q339: =IF(O_Operating_Income!S33="",0,O_Operating_Income!S33)/1000 -> 0 | R339: =IF(O_Operating_Income!T33="",0,O_Operating_Income!T33)/1000 -> 0 | S339: =IF(O_Operating_Income!U33="",0,O_Operating_Income!U33)/1000 -> 0 | T339: =IF(O_Operating_Income!V33="",0,O_Operating_Income!V33)/1000 -> 0 | U339: =IF(O_Operating_Income!W33="",0,O_Operating_Income!W33)/1000 -> 0 | V339: =IF(O_Operating_Income!X33="",0,O_Operating_Income!X33)/1000 -> 0 | W339: =IF(O_Operating_Income!Y33="",0,O_Operating_Income!Y33)/1000 -> 0 | X339: =IF(O_Operating_Income!Z33="",0,O_Operating_Income!Z33)/1000 -> 0 | Y339: =IF(O_Operating_Income!AA33="",0,O_Operating_Income!AA33)/1000 -> 0 | Z339: =IF(O_Operating_Income!AB33="",0,O_Operating_Income!AB33)/1000 -> 0 | AA339: =IF(O_Operating_Income!AC33="",0,O_Operating_Income!AC33)/1000 -> 0 | AB339: =IF(O_Operating_Income!AD33="",0,O_Operating_Income!AD33)/1000 -> 0 | AC339: =IF(O_Operating_Income!AE33="",0,O_Operating_Income!AE33)/1000 -> 0 | AD339: =IF(O_Operating_Income!AF33="",0,O_Operating_Income!AF33)/1000 -> 0 | AE339: =IF(O_Operating_Income!AG33="",0,O_Operating_Income!AG33)/1000 -> 0 | AF339: =IF(O_Operating_Income!AH33="",0,O_Operating_Income!AH33)/1000 -> 0
A340: =IF(O_Operating_Income!B49="","",O_Operating_Income!B49) ->  | B340: =IF(O_Operating_Income!D34="",0,O_Operating_Income!D34)/1000 -> 0 | C340: =IF(O_Operating_Income!E34="",0,O_Operating_Income!E34)/1000 -> 0 | D340: =IF(O_Operating_Income!F34="",0,O_Operating_Income!F34)/1000 -> 0 | E340: =IF(O_Operating_Income!G34="",0,O_Operating_Income!G34)/1000 -> 0 | F340: =IF(O_Operating_Income!H34="",0,O_Operating_Income!H34)/1000 -> 0 | G340: =IF(O_Operating_Income!I34="",0,O_Operating_Income!I34)/1000 -> 0 | H340: =IF(O_Operating_Income!J34="",0,O_Operating_Income!J34)/1000 -> 0 | I340: =IF(O_Operating_Income!K34="",0,O_Operating_Income!K34)/1000 -> 0 | J340: =IF(O_Operating_Income!L34="",0,O_Operating_Income!L34)/1000 -> 0 | K340: =IF(O_Operating_Income!M34="",0,O_Operating_Income!M34)/1000 -> 0 | L340: =IF(O_Operating_Income!N34="",0,O_Operating_Income!N34)/1000 -> 0 | M340: =IF(O_Operating_Income!O34="",0,O_Operating_Income!O34)/1000 -> 0 | N340: =IF(O_Operating_Income!P34="",0,O_Operating_Income!P34)/1000 -> 0 | O340: =IF(O_Operating_Income!Q34="",0,O_Operating_Income!Q34)/1000 -> 0 | P340: =IF(O_Operating_Income!R34="",0,O_Operating_Income!R34)/1000 -> 0 | Q340: =IF(O_Operating_Income!S34="",0,O_Operating_Income!S34)/1000 -> 0 | R340: =IF(O_Operating_Income!T34="",0,O_Operating_Income!T34)/1000 -> 0 | S340: =IF(O_Operating_Income!U34="",0,O_Operating_Income!U34)/1000 -> 0 | T340: =IF(O_Operating_Income!V34="",0,O_Operating_Income!V34)/1000 -> 0 | U340: =IF(O_Operating_Income!W34="",0,O_Operating_Income!W34)/1000 -> 0 | V340: =IF(O_Operating_Income!X34="",0,O_Operating_Income!X34)/1000 -> 0 | W340: =IF(O_Operating_Income!Y34="",0,O_Operating_Income!Y34)/1000 -> 0 | X340: =IF(O_Operating_Income!Z34="",0,O_Operating_Income!Z34)/1000 -> 0 | Y340: =IF(O_Operating_Income!AA34="",0,O_Operating_Income!AA34)/1000 -> 0 | Z340: =IF(O_Operating_Income!AB34="",0,O_Operating_Income!AB34)/1000 -> 0 | AA340: =IF(O_Operating_Income!AC34="",0,O_Operating_Income!AC34)/1000 -> 0 | AB340: =IF(O_Operating_Income!AD34="",0,O_Operating_Income!AD34)/1000 -> 0 | AC340: =IF(O_Operating_Income!AE34="",0,O_Operating_Income!AE34)/1000 -> 0 | AD340: =IF(O_Operating_Income!AF34="",0,O_Operating_Income!AF34)/1000 -> 0 | AE340: =IF(O_Operating_Income!AG34="",0,O_Operating_Income!AG34)/1000 -> 0 | AF340: =IF(O_Operating_Income!AH34="",0,O_Operating_Income!AH34)/1000 -> 0
A342: =IF(O_Operating_Income!#REF!="","",O_Operating_Income!#REF!) -> 
B344: =B305 -> 0 | C344: =C305 -> 1 | D344: 2 | E344: 3 | F344: 4 | G344: 5 | H344: 6 | I344: 7 | J344: 8 | K344: =K305 -> 9 | L344: 10 | M344: 11 | N344: 12 | O344: 13 | P344: 14 | Q344: 15 | R344: 16 | S344: 17 | T344: 18 | U344: 19 | V344: 20 | W344: 21 | X344: 22 | Y344: 23 | Z344: 24 | AA344: 25 | AB344: 26 | AC344: 27 | AD344: 28 | AE344: 29 | AF344: =AF305 -> 30
A345: Net Worth | B345: ='O_BalanceSheet (Tax)'!B34/1000 -> 224.2849411 | C345: ='O_BalanceSheet (Tax)'!C34/1000 -> -205.1201742 | D345: ='O_BalanceSheet (Tax)'!D34/1000 -> -491.8327055 | E345: ='O_BalanceSheet (Tax)'!E34/1000 -> -715.219126 | F345: ='O_BalanceSheet (Tax)'!F34/1000 -> -937.655807 | G345: ='O_BalanceSheet (Tax)'!G34/1000 -> -1125.299401 | H345: ='O_BalanceSheet (Tax)'!H34/1000 -> -1097.010402 | I345: ='O_BalanceSheet (Tax)'!I34/1000 -> -1068.014178 | J345: ='O_BalanceSheet (Tax)'!J34/1000 -> -1038.293048 | K345: ='O_BalanceSheet (Tax)'!K34/1000 -> -1007.82889 | L345: ='O_BalanceSheet (Tax)'!L34/1000 -> -976.6031285 | M345: ='O_BalanceSheet (Tax)'!M34/1000 -> -944.5967225 | N345: ='O_BalanceSheet (Tax)'!N34/1000 -> -911.7901565 | O345: ='O_BalanceSheet (Tax)'!O34/1000 -> -878.1634263 | P345: ='O_BalanceSheet (Tax)'!P34/1000 -> -843.6960278 | Q345: ='O_BalanceSheet (Tax)'!Q34/1000 -> -808.0555741 | R345: ='O_BalanceSheet (Tax)'!R34/1000 -> -770.9423041 | S345: ='O_BalanceSheet (Tax)'!S34/1000 -> -732.476594 | T345: ='O_BalanceSheet (Tax)'!T34/1000 -> -692.618695 | U345: ='O_BalanceSheet (Tax)'!U34/1000 -> -651.328757 | V345: ='O_BalanceSheet (Tax)'!V34/1000 -> -608.5658687 | W345: ='O_BalanceSheet (Tax)'!W34/1000 -> -564.2880362 | X345: ='O_BalanceSheet (Tax)'!X34/1000 -> -518.4521553 | Y345: ='O_BalanceSheet (Tax)'!Y34/1000 -> -471.0139824 | Z345: ='O_BalanceSheet (Tax)'!Z34/1000 -> -421.9281062 | AA345: ='O_BalanceSheet (Tax)'!AA34/1000 -> -371.1479169 | AB345: ='O_BalanceSheet (Tax)'!AB34/1000 -> -318.6255761 | AC345: ='O_BalanceSheet (Tax)'!AC34/1000 -> -264.3119851 | AD345: ='O_BalanceSheet (Tax)'!AD34/1000 -> -208.1567528 | AE345: ='O_BalanceSheet (Tax)'!AE34/1000 -> -150.1081624 | AF345: ='O_BalanceSheet (Tax)'!AF34/1000 -> 1584.782715
A365: Cash Balance | B365: =+O_CashFlow!C32/1000 -> -506.4550589 | C365: =+O_CashFlow!D32/1000 -> -464.0764942 | D365: =+O_CashFlow!E32/1000 -> -420.6384655 | E365: =+O_CashFlow!F32/1000 -> -376.114486 | F365: =+O_CashFlow!G32/1000 -> -330.477407 | G365: =+O_CashFlow!H32/1000 -> -283.6994011 | H365: =+O_CashFlow!I32/1000 -> -255.410402 | I365: =+O_CashFlow!J32/1000 -> -226.4141779 | J365: =+O_CashFlow!K32/1000 -> -196.6930482 | K365: =+O_CashFlow!L32/1000 -> -166.2288903 | L365: =+O_CashFlow!M32/1000 -> -135.0031285 | M365: =+O_CashFlow!N32/1000 -> -102.9967225 | N365: =+O_CashFlow!O32/1000 -> -70.19015649 | O365: =+O_CashFlow!P32/1000 -> -36.56342628 | P365: =+O_CashFlow!Q32/1000 -> -2.096027814 | Q365: =+O_CashFlow!R32/1000 -> 33.54442589 | R365: =+O_CashFlow!S32/1000 -> 70.65769589 | S365: =+O_CashFlow!T32/1000 -> 109.123406 | T365: =+O_CashFlow!U32/1000 -> 148.981305 | U365: =+O_CashFlow!V32/1000 -> 190.271243 | V365: =+O_CashFlow!W32/1000 -> 233.0341313 | W365: =+O_CashFlow!X32/1000 -> 277.3119638 | X365: =+O_CashFlow!Y32/1000 -> 323.1478447 | Y365: =+O_CashFlow!Z32/1000 -> 370.5860176 | Z365: =+O_CashFlow!AA32/1000 -> 419.6718938 | AA365: =+O_CashFlow!AB32/1000 -> 470.4520831 | AB365: =+O_CashFlow!AC32/1000 -> 522.9744239 | AC365: =+O_CashFlow!AD32/1000 -> 577.2880149 | AD365: =+O_CashFlow!AE32/1000 -> 633.4432472 | AE365: =+O_CashFlow!AF32/1000 -> 691.4918376 | AF365: =+O_CashFlow!AG32/1000 -> 792.7827151
A366: Shareholder Funds | B366: =+'O_BalanceSheet (Tax)'!B32/1000 -> 224.2849411 | C366: =+'O_BalanceSheet (Tax)'!C32/1000 -> -205.1201742 | D366: =+'O_BalanceSheet (Tax)'!D32/1000 -> -491.8327055 | E366: =+'O_BalanceSheet (Tax)'!E32/1000 -> -715.219126 | F366: =+'O_BalanceSheet (Tax)'!F32/1000 -> -937.655807 | G366: =+'O_BalanceSheet (Tax)'!G32/1000 -> -1125.299401 | H366: =+'O_BalanceSheet (Tax)'!H32/1000 -> -1097.010402 | I366: =+'O_BalanceSheet (Tax)'!I32/1000 -> -1068.014178 | J366: =+'O_BalanceSheet (Tax)'!J32/1000 -> -1038.293048 | K366: =+'O_BalanceSheet (Tax)'!K32/1000 -> -1007.82889 | L366: =+'O_BalanceSheet (Tax)'!L32/1000 -> -976.6031285 | M366: =+'O_BalanceSheet (Tax)'!M32/1000 -> -944.5967225 | N366: =+'O_BalanceSheet (Tax)'!N32/1000 -> -911.7901565 | O366: =+'O_BalanceSheet (Tax)'!O32/1000 -> -878.1634263 | P366: =+'O_BalanceSheet (Tax)'!P32/1000 -> -843.6960278 | Q366: =+'O_BalanceSheet (Tax)'!Q32/1000 -> -808.3669444 | R366: =+'O_BalanceSheet (Tax)'!R32/1000 -> -771.9709254 | S366: =+'O_BalanceSheet (Tax)'!S32/1000 -> -734.2464206 | T366: =+'O_BalanceSheet (Tax)'!T32/1000 -> -695.1566642 | U366: =+'O_BalanceSheet (Tax)'!U32/1000 -> -654.6625647 | V366: =+'O_BalanceSheet (Tax)'!V32/1000 -> -612.724003 | W366: =+'O_BalanceSheet (Tax)'!W32/1000 -> -569.2997982 | X366: =+'O_BalanceSheet (Tax)'!X32/1000 -> -524.3476805 | Y366: =+'O_BalanceSheet (Tax)'!Y32/1000 -> -477.824263 | Z366: =+'O_BalanceSheet (Tax)'!Z32/1000 -> -429.6850134 | AA366: =+'O_BalanceSheet (Tax)'!AA32/1000 -> -379.8842245 | AB366: =+'O_BalanceSheet (Tax)'!AB32/1000 -> -328.374984 | AC366: =+'O_BalanceSheet (Tax)'!AC32/1000 -> -275.1091439 | AD366: =+'O_BalanceSheet (Tax)'!AD32/1000 -> -220.0372885 | AE366: =+'O_BalanceSheet (Tax)'!AE32/1000 -> -163.1087025 | AF366: =+'O_BalanceSheet (Tax)'!AF32/1000 -> -63.38435431
A369: =+O_Operating_Costs!B28 -> Debt Interest | B369: =+O_Operating_Costs!C28 -> 0 | C369: =+O_Operating_Costs!D28 -> 0 | D369: =+O_Operating_Costs!E28 -> 0 | E369: =+O_Operating_Costs!F28 -> 0 | F369: =+O_Operating_Costs!G28 -> 0 | G369: =+O_Operating_Costs!H28 -> 0 | H369: =+O_Operating_Costs!I28 -> 0 | I369: =+O_Operating_Costs!J28 -> 0 | J369: =+O_Operating_Costs!K28 -> 0 | K369: =+O_Operating_Costs!L28 -> 0 | L369: =+O_Operating_Costs!M28 -> 0 | M369: =+O_Operating_Costs!N28 -> 0 | N369: =+O_Operating_Costs!O28 -> 0 | O369: =+O_Operating_Costs!P28 -> 0 | P369: =+O_Operating_Costs!Q28 -> 0 | Q369: =+O_Operating_Costs!R28 -> 0 | R369: =+O_Operating_Costs!S28 -> 0 | S369: =+O_Operating_Costs!T28 -> 0 | T369: =+O_Operating_Costs!U28 -> 0 | U369: =+O_Operating_Costs!V28 -> 0 | V369: =+O_Operating_Costs!W28 -> 0 | W369: =+O_Operating_Costs!X28 -> 0 | X369: =+O_Operating_Costs!Y28 -> 0 | Y369: =+O_Operating_Costs!Z28 -> 0 | Z369: =+O_Operating_Costs!AA28 -> 0 | AA369: =+O_Operating_Costs!AB28 -> 0 | AB369: =+O_Operating_Costs!AC28 -> 0 | AC369: =+O_Operating_Costs!AD28 -> 0 | AD369: =+O_Operating_Costs!AE28 -> 0 | AE369: =+O_Operating_Costs!AF28 -> 0 | AF369: =+O_Operating_Costs!AG28 -> 0
A370: =+O_Operating_Costs!B26 ->  | B370: =+O_Operating_Costs!C26 -> 0 | C370: =+O_Operating_Costs!D26 -> 0 | D370: =+O_Operating_Costs!E26 -> 0 | E370: =+O_Operating_Costs!F26 -> 0 | F370: =+O_Operating_Costs!G26 -> 0 | G370: =+O_Operating_Costs!H26 -> 0 | H370: =+O_Operating_Costs!I26 -> 0 | I370: =+O_Operating_Costs!J26 -> 0 | J370: =+O_Operating_Costs!K26 -> 0 | K370: =+O_Operating_Costs!L26 -> 0 | L370: =+O_Operating_Costs!M26 -> 0 | M370: =+O_Operating_Costs!N26 -> 0 | N370: =+O_Operating_Costs!O26 -> 0 | O370: =+O_Operating_Costs!P26 -> 0 | P370: =+O_Operating_Costs!Q26 -> 0 | Q370: =+O_Operating_Costs!R26 -> 0 | R370: =+O_Operating_Costs!S26 -> 0 | S370: =+O_Operating_Costs!T26 -> 0 | T370: =+O_Operating_Costs!U26 -> 0 | U370: =+O_Operating_Costs!V26 -> 0 | V370: =+O_Operating_Costs!W26 -> 0 | W370: =+O_Operating_Costs!X26 -> 0 | X370: =+O_Operating_Costs!Y26 -> 0 | Y370: =+O_Operating_Costs!Z26 -> 0 | Z370: =+O_Operating_Costs!AA26 -> 0 | AA370: =+O_Operating_Costs!AB26 -> 0 | AB370: =+O_Operating_Costs!AC26 -> 0 | AC370: =+O_Operating_Costs!AD26 -> 0 | AD370: =+O_Operating_Costs!AE26 -> 0 | AE370: =+O_Operating_Costs!AF26 -> 0 | AF370: =+O_Operating_Costs!AG26 -> 0
A371: =+O_Operating_Costs!B24 ->  | B371: =+O_Operating_Costs!C24 -> 0 | C371: =+O_Operating_Costs!D24 -> 0 | D371: =+O_Operating_Costs!E24 -> 0 | E371: =+O_Operating_Costs!F24 -> 0 | F371: =+O_Operating_Costs!G24 -> 0 | G371: =+O_Operating_Costs!H24 -> 0 | H371: =+O_Operating_Costs!I24 -> 0 | I371: =+O_Operating_Costs!J24 -> 0 | J371: =+O_Operating_Costs!K24 -> 0 | K371: =+O_Operating_Costs!L24 -> 0 | L371: =+O_Operating_Costs!M24 -> 0 | M371: =+O_Operating_Costs!N24 -> 0 | N371: =+O_Operating_Costs!O24 -> 0 | O371: =+O_Operating_Costs!P24 -> 0 | P371: =+O_Operating_Costs!Q24 -> 0 | Q371: =+O_Operating_Costs!R24 -> 0 | R371: =+O_Operating_Costs!S24 -> 0 | S371: =+O_Operating_Costs!T24 -> 0 | T371: =+O_Operating_Costs!U24 -> 0 | U371: =+O_Operating_Costs!V24 -> 0 | V371: =+O_Operating_Costs!W24 -> 0 | W371: =+O_Operating_Costs!X24 -> 0 | X371: =+O_Operating_Costs!Y24 -> 0 | Y371: =+O_Operating_Costs!Z24 -> 0 | Z371: =+O_Operating_Costs!AA24 -> 0 | AA371: =+O_Operating_Costs!AB24 -> 0 | AB371: =+O_Operating_Costs!AC24 -> 0 | AC371: =+O_Operating_Costs!AD24 -> 0 | AD371: =+O_Operating_Costs!AE24 -> 0 | AE371: =+O_Operating_Costs!AF24 -> 0 | AF371: =+O_Operating_Costs!AG24 -> 0
A372: Principal | B372: =-'Funding Schedule'!B71 -> 0 | C372: =-'Funding Schedule'!C71 -> 0 | D372: =-'Funding Schedule'!D71 -> 0 | E372: =-'Funding Schedule'!E71 -> 0 | F372: =-'Funding Schedule'!F71 -> 0 | G372: =-'Funding Schedule'!G71 -> 0 | H372: =-'Funding Schedule'!H71 -> 0 | I372: =-'Funding Schedule'!I71 -> 0 | J372: =-'Funding Schedule'!J71 -> 0 | K372: =-'Funding Schedule'!K71 -> 0 | L372: =-'Funding Schedule'!L71 -> 0 | M372: =-'Funding Schedule'!M71 -> 0 | N372: =-'Funding Schedule'!N71 -> 0 | O372: =-'Funding Schedule'!O71 -> 0 | P372: =-'Funding Schedule'!P71 -> 0 | Q372: =-'Funding Schedule'!Q71 -> 0 | R372: =-'Funding Schedule'!R71 -> 0 | S372: =-'Funding Schedule'!S71 -> 0 | T372: =-'Funding Schedule'!T71 -> 0 | U372: =-'Funding Schedule'!U71 -> 0 | V372: =-'Funding Schedule'!V71 -> 0 | W372: =-'Funding Schedule'!W71 -> 0 | X372: =-'Funding Schedule'!X71 -> 0 | Y372: =-'Funding Schedule'!Y71 -> 0 | Z372: =-'Funding Schedule'!Z71 -> 0 | AA372: =-'Funding Schedule'!AA71 -> 0 | AB372: =-'Funding Schedule'!AB71 -> 0 | AC372: =-'Funding Schedule'!AC71 -> 0 | AD372: =-'Funding Schedule'!AD71 -> 0 | AE372: =-'Funding Schedule'!AE71 -> 0 | AF372: =-'Funding Schedule'!AF71 -> 0
A373: =+O_Operating_Costs!B25 ->  | B373: =+O_Operating_Costs!C25 -> 0 | C373: =+O_Operating_Costs!D25 -> 0 | D373: =+O_Operating_Costs!E25 -> 0 | E373: =+O_Operating_Costs!F25 -> 0 | F373: =+O_Operating_Costs!G25 -> 0 | G373: =+O_Operating_Costs!H25 -> 0 | H373: =+O_Operating_Costs!I25 -> 0 | I373: =+O_Operating_Costs!J25 -> 0 | J373: =+O_Operating_Costs!K25 -> 0 | K373: =+O_Operating_Costs!L25 -> 0 | L373: =+O_Operating_Costs!M25 -> 0 | M373: =+O_Operating_Costs!N25 -> 0 | N373: =+O_Operating_Costs!O25 -> 0 | O373: =+O_Operating_Costs!P25 -> 0 | P373: =+O_Operating_Costs!Q25 -> 0 | Q373: =+O_Operating_Costs!R25 -> 0 | R373: =+O_Operating_Costs!S25 -> 0 | S373: =+O_Operating_Costs!T25 -> 0 | T373: =+O_Operating_Costs!U25 -> 0 | U373: =+O_Operating_Costs!V25 -> 0 | V373: =+O_Operating_Costs!W25 -> 0 | W373: =+O_Operating_Costs!X25 -> 0 | X373: =+O_Operating_Costs!Y25 -> 0 | Y373: =+O_Operating_Costs!Z25 -> 0 | Z373: =+O_Operating_Costs!AA25 -> 0 | AA373: =+O_Operating_Costs!AB25 -> 0 | AB373: =+O_Operating_Costs!AC25 -> 0 | AC373: =+O_Operating_Costs!AD25 -> 0 | AD373: =+O_Operating_Costs!AE25 -> 0 | AE373: =+O_Operating_Costs!AF25 -> 0 | AF373: =+O_Operating_Costs!AG25 -> 0
A375: =+A369 -> Debt Interest | B375: =VLOOKUP(A375,Table_FixedCosts,$AJ$3+1)/1000 -> 0
A376: =+A370 ->  | B376: =VLOOKUP(A376,Table_FixedCosts,$AJ$3+1)/1000 -> 
A377: =+A371 ->  | B377: =VLOOKUP(A377,Table_FixedCosts,$AJ$3+1)/1000 -> 
A378: =+A372 -> Principal | B378: =VLOOKUP(A378,Table_FixedCosts,$AJ$3+1)/1000 -> 0
A379: =+A373 ->  | B379: =VLOOKUP(A379,Table_FixedCosts,$AJ$3+1)/1000 -> 
A380: =+O_Operating_Costs!B19 ->  | B380: =+O_Operating_Costs!C19 -> 0 | C380: =+O_Operating_Costs!D19 -> 0 | D380: =+O_Operating_Costs!E19 -> 0 | E380: =+O_Operating_Costs!F19 -> 0 | F380: =+O_Operating_Costs!G19 -> 0 | G380: =+O_Operating_Costs!H19 -> 0 | H380: =+O_Operating_Costs!I19 -> 0 | I380: =+O_Operating_Costs!J19 -> 0 | J380: =+O_Operating_Costs!K19 -> 0 | K380: =+O_Operating_Costs!L19 -> 0 | L380: =+O_Operating_Costs!M19 -> 0 | M380: =+O_Operating_Costs!N19 -> 0 | N380: =+O_Operating_Costs!O19 -> 0 | O380: =+O_Operating_Costs!P19 -> 0 | P380: =+O_Operating_Costs!Q19 -> 0 | Q380: =+O_Operating_Costs!R19 -> 0 | R380: =+O_Operating_Costs!S19 -> 0 | S380: =+O_Operating_Costs!T19 -> 0 | T380: =+O_Operating_Costs!U19 -> 0 | U380: =+O_Operating_Costs!V19 -> 0 | V380: =+O_Operating_Costs!W19 -> 0 | W380: =+O_Operating_Costs!X19 -> 0 | X380: =+O_Operating_Costs!Y19 -> 0 | Y380: =+O_Operating_Costs!Z19 -> 0 | Z380: =+O_Operating_Costs!AA19 -> 0 | AA380: =+O_Operating_Costs!AB19 -> 0 | AB380: =+O_Operating_Costs!AC19 -> 0 | AC380: =+O_Operating_Costs!AD19 -> 0 | AD380: =+O_Operating_Costs!AE19 -> 0 | AE380: =+O_Operating_Costs!AF19 -> 0 | AF380: =+O_Operating_Costs!AG19 -> 0
A381: =+O_Operating_Costs!B20 ->  | B381: =+O_Operating_Costs!C20 -> 0 | C381: =+O_Operating_Costs!D20 -> 0 | D381: =+O_Operating_Costs!E20 -> 0 | E381: =+O_Operating_Costs!F20 -> 0 | F381: =+O_Operating_Costs!G20 -> 0 | G381: =+O_Operating_Costs!H20 -> 0 | H381: =+O_Operating_Costs!I20 -> 0 | I381: =+O_Operating_Costs!J20 -> 0 | J381: =+O_Operating_Costs!K20 -> 0 | K381: =+O_Operating_Costs!L20 -> 0 | L381: =+O_Operating_Costs!M20 -> 0 | M381: =+O_Operating_Costs!N20 -> 0 | N381: =+O_Operating_Costs!O20 -> 0 | O381: =+O_Operating_Costs!P20 -> 0 | P381: =+O_Operating_Costs!Q20 -> 0 | Q381: =+O_Operating_Costs!R20 -> 0 | R381: =+O_Operating_Costs!S20 -> 0 | S381: =+O_Operating_Costs!T20 -> 0 | T381: =+O_Operating_Costs!U20 -> 0 | U381: =+O_Operating_Costs!V20 -> 0 | V381: =+O_Operating_Costs!W20 -> 0 | W381: =+O_Operating_Costs!X20 -> 0 | X381: =+O_Operating_Costs!Y20 -> 0 | Y381: =+O_Operating_Costs!Z20 -> 0 | Z381: =+O_Operating_Costs!AA20 -> 0 | AA381: =+O_Operating_Costs!AB20 -> 0 | AB381: =+O_Operating_Costs!AC20 -> 0 | AC381: =+O_Operating_Costs!AD20 -> 0 | AD381: =+O_Operating_Costs!AE20 -> 0 | AE381: =+O_Operating_Costs!AF20 -> 0 | AF381: =+O_Operating_Costs!AG20 -> 0
A382: =+O_Operating_Costs!B21 ->  | B382: =+O_Operating_Costs!C21 -> 0 | C382: =+O_Operating_Costs!D21 -> 0 | D382: =+O_Operating_Costs!E21 -> 0 | E382: =+O_Operating_Costs!F21 -> 0 | F382: =+O_Operating_Costs!G21 -> 0 | G382: =+O_Operating_Costs!H21 -> 0 | H382: =+O_Operating_Costs!I21 -> 0 | I382: =+O_Operating_Costs!J21 -> 0 | J382: =+O_Operating_Costs!K21 -> 0 | K382: =+O_Operating_Costs!L21 -> 0 | L382: =+O_Operating_Costs!M21 -> 0 | M382: =+O_Operating_Costs!N21 -> 0 | N382: =+O_Operating_Costs!O21 -> 0 | O382: =+O_Operating_Costs!P21 -> 0 | P382: =+O_Operating_Costs!Q21 -> 0 | Q382: =+O_Operating_Costs!R21 -> 0 | R382: =+O_Operating_Costs!S21 -> 0 | S382: =+O_Operating_Costs!T21 -> 0 | T382: =+O_Operating_Costs!U21 -> 0 | U382: =+O_Operating_Costs!V21 -> 0 | V382: =+O_Operating_Costs!W21 -> 0 | W382: =+O_Operating_Costs!X21 -> 0 | X382: =+O_Operating_Costs!Y21 -> 0 | Y382: =+O_Operating_Costs!Z21 -> 0 | Z382: =+O_Operating_Costs!AA21 -> 0 | AA382: =+O_Operating_Costs!AB21 -> 0 | AB382: =+O_Operating_Costs!AC21 -> 0 | AC382: =+O_Operating_Costs!AD21 -> 0 | AD382: =+O_Operating_Costs!AE21 -> 0 | AE382: =+O_Operating_Costs!AF21 -> 0 | AF382: =+O_Operating_Costs!AG21 -> 0
A383: =+O_Operating_Costs!B18 -> Variable Costs | B383: =+O_Operating_Costs!C18 -> 51500 | C383: =+O_Operating_Costs!D18 -> 52787.5 | D383: =+O_Operating_Costs!E18 -> 54107.1875 | E383: =+O_Operating_Costs!F18 -> 55459.86719 | F383: =+O_Operating_Costs!G18 -> 56846.36387 | G383: =+O_Operating_Costs!H18 -> 58267.52296 | H383: =+O_Operating_Costs!I18 -> 59724.21104 | I383: =+O_Operating_Costs!J18 -> 61217.31631 | J383: =+O_Operating_Costs!K18 -> 62747.74922 | K383: =+O_Operating_Costs!L18 -> 64316.44295 | L383: =+O_Operating_Costs!M18 -> 65924.35403 | M383: =+O_Operating_Costs!N18 -> 67572.46288 | N383: =+O_Operating_Costs!O18 -> 69261.77445 | O383: =+O_Operating_Costs!P18 -> 70993.31881 | P383: =+O_Operating_Costs!Q18 -> 72768.15178 | Q383: =+O_Operating_Costs!R18 -> 74587.35557 | R383: =+O_Operating_Costs!S18 -> 76452.03946 | S383: =+O_Operating_Costs!T18 -> 78363.34045 | T383: =+O_Operating_Costs!U18 -> 80322.42396 | U383: =+O_Operating_Costs!V18 -> 82330.48456 | V383: =+O_Operating_Costs!W18 -> 84388.74667 | W383: =+O_Operating_Costs!X18 -> 86498.46534 | X383: =+O_Operating_Costs!Y18 -> 88660.92698 | Y383: =+O_Operating_Costs!Z18 -> 90877.45015 | Z383: =+O_Operating_Costs!AA18 -> 93149.3864 | AA383: =+O_Operating_Costs!AB18 -> 95478.12106 | AB383: =+O_Operating_Costs!AC18 -> 97865.07409 | AC383: =+O_Operating_Costs!AD18 -> 100311.7009 | AD383: =+O_Operating_Costs!AE18 -> 102819.4935 | AE383: =+O_Operating_Costs!AF18 -> 105389.9808 | AF383: =+O_Operating_Costs!AG18 -> 108024.7303
A384: =+O_Operating_Costs!B16 -> Franchise Fees | B384: =+O_Operating_Costs!C16 -> 0 | C384: =+O_Operating_Costs!D16 -> 0 | D384: =+O_Operating_Costs!E16 -> 0 | E384: =+O_Operating_Costs!F16 -> 0 | F384: =+O_Operating_Costs!G16 -> 0 | G384: =+O_Operating_Costs!H16 -> 0 | H384: =+O_Operating_Costs!I16 -> 0 | I384: =+O_Operating_Costs!J16 -> 0 | J384: =+O_Operating_Costs!K16 -> 0 | K384: =+O_Operating_Costs!L16 -> 0 | L384: =+O_Operating_Costs!M16 -> 0 | M384: =+O_Operating_Costs!N16 -> 0 | N384: =+O_Operating_Costs!O16 -> 0 | O384: =+O_Operating_Costs!P16 -> 0 | P384: =+O_Operating_Costs!Q16 -> 0 | Q384: =+O_Operating_Costs!R16 -> 0 | R384: =+O_Operating_Costs!S16 -> 0 | S384: =+O_Operating_Costs!T16 -> 0 | T384: =+O_Operating_Costs!U16 -> 0 | U384: =+O_Operating_Costs!V16 -> 0 | V384: =+O_Operating_Costs!W16 -> 0 | W384: =+O_Operating_Costs!X16 -> 0 | X384: =+O_Operating_Costs!Y16 -> 0 | Y384: =+O_Operating_Costs!Z16 -> 0 | Z384: =+O_Operating_Costs!AA16 -> 0 | AA384: =+O_Operating_Costs!AB16 -> 0 | AB384: =+O_Operating_Costs!AC16 -> 0 | AC384: =+O_Operating_Costs!AD16 -> 0 | AD384: =+O_Operating_Costs!AE16 -> 0 | AE384: =+O_Operating_Costs!AF16 -> 0 | AF384: =+O_Operating_Costs!AG16 -> 0
A385: =+O_Operating_Costs!B15 -> Major Expenses | B385: =+O_Operating_Costs!C15 -> 0 | C385: =+O_Operating_Costs!D15 -> 0 | D385: =+O_Operating_Costs!E15 -> 0 | E385: =+O_Operating_Costs!F15 -> 0 | F385: =+O_Operating_Costs!G15 -> 0 | G385: =+O_Operating_Costs!H15 -> 0 | H385: =+O_Operating_Costs!I15 -> 0 | I385: =+O_Operating_Costs!J15 -> 0 | J385: =+O_Operating_Costs!K15 -> 0 | K385: =+O_Operating_Costs!L15 -> 0 | L385: =+O_Operating_Costs!M15 -> 0 | M385: =+O_Operating_Costs!N15 -> 0 | N385: =+O_Operating_Costs!O15 -> 0 | O385: =+O_Operating_Costs!P15 -> 0 | P385: =+O_Operating_Costs!Q15 -> 0 | Q385: =+O_Operating_Costs!R15 -> 0 | R385: =+O_Operating_Costs!S15 -> 0 | S385: =+O_Operating_Costs!T15 -> 0 | T385: =+O_Operating_Costs!U15 -> 0 | U385: =+O_Operating_Costs!V15 -> 0 | V385: =+O_Operating_Costs!W15 -> 0 | W385: =+O_Operating_Costs!X15 -> 0 | X385: =+O_Operating_Costs!Y15 -> 0 | Y385: =+O_Operating_Costs!Z15 -> 0 | Z385: =+O_Operating_Costs!AA15 -> 0 | AA385: =+O_Operating_Costs!AB15 -> 0 | AB385: =+O_Operating_Costs!AC15 -> 0 | AC385: =+O_Operating_Costs!AD15 -> 0 | AD385: =+O_Operating_Costs!AE15 -> 0 | AE385: =+O_Operating_Costs!AF15 -> 0 | AF385: =+O_Operating_Costs!AG15 -> 0
A386: =+O_Operating_Costs!B13 -> Purchased Fuels | B386: =+O_Operating_Costs!C13 -> 207233.0589 | C386: =+O_Operating_Costs!D13 -> 212413.8854 | D386: =+O_Operating_Costs!E13 -> 217724.2325 | E386: =+O_Operating_Costs!F13 -> 223167.3383 | F386: =+O_Operating_Costs!G13 -> 228746.5218 | G386: =+O_Operating_Costs!H13 -> 234465.1848 | H386: =+O_Operating_Costs!I13 -> 240326.8144 | I386: =+O_Operating_Costs!J13 -> 246334.9848 | J386: =+O_Operating_Costs!K13 -> 252493.3594 | K386: =+O_Operating_Costs!L13 -> 258805.6934 | L386: =+O_Operating_Costs!M13 -> 265275.8357 | M386: =+O_Operating_Costs!N13 -> 271907.7316 | N386: =+O_Operating_Costs!O13 -> 278705.4249 | O386: =+O_Operating_Costs!P13 -> 285673.0605 | P386: =+O_Operating_Costs!Q13 -> 292814.887 | Q386: =+O_Operating_Costs!R13 -> 300135.2592 | R386: =+O_Operating_Costs!S13 -> 307638.6407 | S386: =+O_Operating_Costs!T13 -> 315329.6067 | T386: =+O_Operating_Costs!U13 -> 323212.8469 | U386: =+O_Operating_Costs!V13 -> 331293.1681 | V386: =+O_Operating_Costs!W13 -> 339575.4973 | W386: =+O_Operating_Costs!X13 -> 348064.8847 | X386: =+O_Operating_Costs!Y13 -> 356766.5068 | Y386: =+O_Operating_Costs!Z13 -> 365685.6695 | Z386: =+O_Operating_Costs!AA13 -> 374827.8112 | AA386: =+O_Operating_Costs!AB13 -> 384198.5065 | AB386: =+O_Operating_Costs!AC13 -> 393803.4692 | AC386: =+O_Operating_Costs!AD13 -> 403648.5559 | AD386: =+O_Operating_Costs!AE13 -> 413739.7698 | AE386: =+O_Operating_Costs!AF13 -> 424083.264 | AF386: =+O_Operating_Costs!AG13 -> 434685.3456
A387: Non-Fuel Purchases | B387: =+O_Operating_Costs!C14 -> 0 | C387: =+O_Operating_Costs!D14 -> 0 | D387: =+O_Operating_Costs!E14 -> 0 | E387: =+O_Operating_Costs!F14 -> 0 | F387: =+O_Operating_Costs!G14 -> 0 | G387: =+O_Operating_Costs!H14 -> 0 | H387: =+O_Operating_Costs!I14 -> 0 | I387: =+O_Operating_Costs!J14 -> 0 | J387: =+O_Operating_Costs!K14 -> 0 | K387: =+O_Operating_Costs!L14 -> 0 | L387: =+O_Operating_Costs!M14 -> 0 | M387: =+O_Operating_Costs!N14 -> 0 | N387: =+O_Operating_Costs!O14 -> 0 | O387: =+O_Operating_Costs!P14 -> 0 | P387: =+O_Operating_Costs!Q14 -> 0 | Q387: =+O_Operating_Costs!R14 -> 0 | R387: =+O_Operating_Costs!S14 -> 0 | S387: =+O_Operating_Costs!T14 -> 0 | T387: =+O_Operating_Costs!U14 -> 0 | U387: =+O_Operating_Costs!V14 -> 0 | V387: =+O_Operating_Costs!W14 -> 0 | W387: =+O_Operating_Costs!X14 -> 0 | X387: =+O_Operating_Costs!Y14 -> 0 | Y387: =+O_Operating_Costs!Z14 -> 0 | Z387: =+O_Operating_Costs!AA14 -> 0 | AA387: =+O_Operating_Costs!AB14 -> 0 | AB387: =+O_Operating_Costs!AC14 -> 0 | AC387: =+O_Operating_Costs!AD14 -> 0 | AD387: =+O_Operating_Costs!AE14 -> 0 | AE387: =+O_Operating_Costs!AF14 -> 0 | AF387: =+O_Operating_Costs!AG14 -> 0
A388: =+O_Operating_Costs!B17 ->  | B388: =+O_Operating_Costs!C17 -> 0 | C388: =+O_Operating_Costs!D17 -> 0 | D388: =+O_Operating_Costs!E17 -> 0 | E388: =+O_Operating_Costs!F17 -> 0 | F388: =+O_Operating_Costs!G17 -> 0 | G388: =+O_Operating_Costs!H17 -> 0 | H388: =+O_Operating_Costs!I17 -> 0 | I388: =+O_Operating_Costs!J17 -> 0 | J388: =+O_Operating_Costs!K17 -> 0 | K388: =+O_Operating_Costs!L17 -> 0 | L388: =+O_Operating_Costs!M17 -> 0 | M388: =+O_Operating_Costs!N17 -> 0 | N388: =+O_Operating_Costs!O17 -> 0 | O388: =+O_Operating_Costs!P17 -> 0 | P388: =+O_Operating_Costs!Q17 -> 0 | Q388: =+O_Operating_Costs!R17 -> 0 | R388: =+O_Operating_Costs!S17 -> 0 | S388: =+O_Operating_Costs!T17 -> 0 | T388: =+O_Operating_Costs!U17 -> 0 | U388: =+O_Operating_Costs!V17 -> 0 | V388: =+O_Operating_Costs!W17 -> 0 | W388: =+O_Operating_Costs!X17 -> 0 | X388: =+O_Operating_Costs!Y17 -> 0 | Y388: =+O_Operating_Costs!Z17 -> 0 | Z388: =+O_Operating_Costs!AA17 -> 0 | AA388: =+O_Operating_Costs!AB17 -> 0 | AB388: =+O_Operating_Costs!AC17 -> 0 | AC388: =+O_Operating_Costs!AD17 -> 0 | AD388: =+O_Operating_Costs!AE17 -> 0 | AE388: =+O_Operating_Costs!AF17 -> 0 | AF388: =+O_Operating_Costs!AG17 -> 0
A390: YEAR | B390: =AJ3 -> 5
A391: =+A380 ->  | B391: =VLOOKUP(A391,Table_VariableCosts,$B$390+1,FALSE)/1000 -> 0
B392: 0
... 89 more rows

Sheet Spider_Diagram
A1: RELCOST: Sensitivity Analysis | C1: =IF(ErrorLine1="","","ENABLE MACROS") -> ENABLE MACROS | D1: =IF(ErrorLine1="","","ENABLE MACROS") -> ENABLE MACROS | I1: INPUT (Edit) | J1: RESULTS (No Edits)
K3: WORKSPACE:
Q11: SAVE TO "Tables-Incentives" Sheet
B36: =IF(SpiderStatus<>"Calculating",Recalc_Message,"") -> Recalculate Spider Diagram
B37: FIGURE TITLE: | C37: =C39 ->  | H37: =J430 -> Reselect Performance Measure
B38: Project Description | C38: ='Incentive Model'!F14 -> Riverside Hotel
B39: Selected Scenario Description: | C39: ='Incentive Model'!F16 -> 
H41: =IF(SUM(K474:S474)>0,"Reselect a parameter below","") -> Reselect a parameter below
H43: =IFERROR(IF(IndicateStatusCell="",D478,""),"") -> 
H44: =B578 -> 
A45: DEFINE SCENARIOS FOR SPIDER DIAGRAM | C45: Status: | D45: Ready
B46: TIP: If you CTRL-BREAK out of a run, you must make sure Status does not say "Calculating". Delete the contents of this cell. Also, ensure sensitivity factors are all restored to 100%
B47: Instructions:
B48: 1. Select the performance measure you would like to use; e.g. Equity IRR
B49: 2. Select up to 5 parameters whose variation you would like to examine; e.g. Capital Expenditures, Plant Operating Factor, etc.
B50: 3. Enter sensitivity factors for each parameter. A sensitivity factor of 100% corresponds to 0% variation from the expected value; 80% sensitivity indicates -20% variation from the expected value
B51: 4. Click the "Recalc Spider Diagram" button to redraw the spider diagram. This process may take a few minutes. In the meantime, results are updated in the cells below and on the diagram.
B53: =H37 -> Reselect Performance Measure
A54: Scenario | B54: 1
A55: Performance Measure=> | B55: Simple Payback
A56: Show Viability Criteria | B56: Hide
B57: =IF(B66="Don't inlcude","",IF(B59="","Blank Parameter Ignored",IF(L449=-1,"Select a different parameter",""))) ->  | D57: =IF(D66="Don't inlcude","",IF(D59="","Blank Parameter Ignored",IF(N449=-1,"Select a different parameter",""))) -> Select a different parameter | F57: =IF(F66="Don't inlcude","",IF(F59="","Blank Parameter Ignored",IF(P449=-1,"Select a different parameter",""))) ->  | H57: =IF(H66="Don't inlcude","",IF(H59="","Blank Parameter Ignored",IF(R449=-1,"Select a different parameter",""))) ->  | J57: =IF(J66="Don't inlcude","",IF(J59="","Blank Parameter Ignored",IF(T449=-1,"Select a different parameter",""))) -> 
A58: Notes=>> | C58: Notes=>> | E58: Notes=>> | G58: Notes=>> | I58: Notes=>>
A59: Parameter 1=> | B59: Capital Expenses | C59: Parameter 2=> | D59: Natural Gas: CHP Fuel Price | E59: Parameter 3=> | F59: Electricity Purchase Price | G59: Parameter 4=> | H59: Electricity Purchase Price | I59: Parameter 5=> | J59: Fuel, Needs Unmet by CHP
A60: 0.8 | B60: 4.719132314 | C60: 0.9 | D60: 5.728817747 | E60: 0.9 | F60: 15.11423235 | G60: 0.9 | H60: 15.11423235 | I60: 1 | J60: 1.380073409
A61: 0.9 | B61: 6.06802764 | C61: 0.9 | D61: 5.728817747 | E61: 0.9 | F61: 15.11423235 | G61: 0.9 | H61: 15.11423235 | I61: 1 | J61: 1.953478572
A62: 1 | B62: 7.416922966 | C62: 1 | D62: 7.416922966 | E62: 1 | F62: 7.416922966 | G62: 1 | H62: 7.416922966 | I62: 1 | J62: 2.883994892
A63: 1.1 | B63: 8.765818293 | C63: 1.1 | D63: 10.51552161 | E63: 1.1 | F63: 4.91422712 | G63: 1.1 | H63: 4.91422712 | I63: 1 | J63: 4.672596521
A64: 1.2 | B64: 10.11471362 | C64: 1.2 | D64: 18.0608977 | E64: 1.2 | F64: 3.674379497 | G64: 1.2 | H64: 3.674379497 | I64: 1 | J64: 9.538288269
A65: 1.3 | B65: 11.46360895 | C65: 1.2 | D65: 18.0608977 | E65: 1.3 | F65: 2.934110509 | G65: 1.3 | H65: 2.934110509 | I65: 1 | J65: 9.538288269
B66: Include | D66: Include | F66: Include | H66: Don't inlcude | J66: Don't inlcude
A68: Notes
A70: Note: | B70: The current version of RELCOST includes sensitivity logic for Funding Sources 1, 2 and 3 only.
B71: If you have more than three funding sources that you want to appear on the spider diagram, define User-Defined Sensitivity Factors on the WhatIf tab.
B72: If you do not need to show on spider diagram, see the "Other Sensitivity Factors" area on the Funding Plan tab.
A73: Note: | B73: =B198 -> For Incentive Analysis, Select a Different LCCA Measure
A95: WORKSPACE (OPTIONAL)
B135: CHP Titles
B136: Chart Subtitle 1 | C136: =IF(C153<>C154,E136,E137) ->  | D136: Fuel Switching | E136: =IFERROR(CONCATENATE("Electricity at $",ROUND(C155,3)," / kWh, ",C153," at $",ROUND(C156,3)," / MMBtu",", ",C154," at $",ROUND(C157,3)," / MMBtu, Plant Cost= $",ROUND(C158,0)," / kW, Variable O&M = $",ROUND(C159,4)," / kWh"),"") -> 
D137: Same baseline & CHP fuel | E137: =IFERROR(CONCATENATE("Electricity at $",ROUND(C155,3)," / kWh, ",C153," at $",ROUND(C156,3)," / MMBtu",", Plant Cost= $",ROUND(C158,0)," / kW, Variable O&M = $",ROUND(C159,4)," / kWh"),"") -> Electricity at $0 / kWh, 0 at $0 / MMBtu, Plant Cost= $0 / kW, Variable O&M = $0 / kWh
B138: Chart Subtitle 2 | C138: =D138 ->  | D138: =IFERROR(CONCATENATE("Average operation is ",ROUND(C173*100,0),"% of derated capacity for ",ROUND(C172,0)," hours at ",C170*100,"% availability (",C171*100,"% in Year 1)" ),"") -> 
B139: Chart Subtitle 3 | D139: =IF(SUM('Incentive Model'!L28:L70),CONCATENATE("ODOE Max=$",ROUND(C168,0),"M",", ETO=$",ROUND(C169,2),"/kWh compared to grid, Fed ITC=",ROUND(C177*100,0),"% ",C178),"""") -> ODOE Max=$5M, ETO=$0.2/kWh compared to grid, Fed ITC=0% NWN Uncapped
B141: Non-CHP Titles
B142: Chart Subtitle 1 | C142: =IFERROR(CONCATENATE(F153," at $",ROUND(G155,3)," ",H155, ", ",C154," at $",ROUND(G156,3)," ",H156, ", Plant Cost of $",ROUND(F157,0),", Incentives= $",ROUND(F158,0)),"") -> 
B143: Chart Subtitle 2
B144: Chart Subtitle 3
B146: SELECTED TITLES
B147: Chart Subtitle 1 | C147: =IF('Incentive Model'!$F$143=0,Spider_Diagram!C142,Spider_Diagram!C136) -> 
B148: Chart Subtitle 2 | C148: =IF('Incentive Model'!$F$143=0,"",Spider_Diagram!C138) -> 
B150: Horizontal Axis Units | C150: =IF(OR(Spider_Measure=Payback_Desc_1,Spider_Measure=Payback_Desc_2),"(years)","") -> 
C152: CHP Case | F152: Biomass Boiler Case
B153: Baseline Fuel | C153: =Scenarios!C199 -> 0 | E153: =B153 -> Baseline Fuel | F153: =C153 -> 0 | G153: =VLOOKUP($F$153,Conversions_Fuel,3,FALSE) -> 
B154: CHP Fuel | C154: ='Incentive Model'!F136 ->  | E154: Biomass Fuel | F154: ='Incentive Model'!F137:G137 ->  | G154: =VLOOKUP(F154,Conversions_Fuel,3,FALSE) -> 
B155: Electricity Baseline | C155: =Scenarios!F84 -> 0 | E155: =B156 -> 0 Baseline Cost | F155: =C156 -> 0 | G155: =F155*G153 ->  | H155: =VLOOKUP(F$153,Conversions_Fuel,'Tables-Technical'!$H$104,FALSE) ->  | V155: Series 1 | X155: Series 2 | Z155: Series 3 | AB155: Series 4 | AD155: Series 5
B156: =CONCATENATE(C153," Baseline Cost") -> 0 Baseline Cost | C156: =Scenarios!M84 -> 0 | E156: Biomass Cost | F156: ='Incentive Model'!F156:G156 ->  | G156: =F156*G154 ->  | H156: =VLOOKUP(F$154,Conversions_Fuel,'Tables-Technical'!H$104,FALSE) ->  | V156: =+A58 -> Notes=>> | W156: 1st year | X156: =+C58 -> Notes=>> | Y156: Average 1st 10 years | Z156: =+E58 -> Notes=>> | AA156: Total over Life | AB156: =+G58 -> Notes=>> | AD156: =+I58 -> Notes=>>
B157: =C154 ->  | C157: ='Incentive Model'!F155 ->  | E157: =B161 -> Total Installed Cost | F157: =C161 -> 792000
B158: Plant Cost | C158: =Scenarios!D34 -> 0 | D158: per kW | E158: Grants | F158: =SUM('Incentive Model'!G33+'Incentive Model'!G45+'Incentive Model'!G58+'Incentive Model'!G63+'Incentive Model'!G67) -> 0 | V158: =+A59 -> Parameter 1=> | W158: =IF(B$59="","",IF(B$66="Include",+B$59,"")) -> Capital Expenses | X158: =+C59 -> Parameter 2=> | Y158: =IF(D59="","",IF(D$66="Include",+D59,"")) -> Natural Gas: CHP Fuel Price | Z158: =+E59 -> Parameter 3=> | AA158: =IF(F59="","",IF(F$66="Include",+F59,"")) -> Electricity Purchase Price | AB158: =+G59 -> Parameter 4=> | AC158: =IF(H59="","",IF(H$66="Include",+H59,"")) ->  | AD158: =+I59 -> Parameter 5=> | AE158: =IF(J59="","",IF(J$66="Include",+J59,"")) ->  | AI158: =CONCATENATE(Spider_Measure," Cost Effectiveness Criteria") -> Simple Payback Cost Effectiveness Criteria | AJ158: =CONCATENATE(N220,"x ") -> 0.25x | AK158: =CONCATENATE(R220,"x ") -> 0.5x | AL158: =CONCATENATE(V220,"x ") -> 0.75x | AM158: =CONCATENATE(AH220,"x ") -> 1.25x | AN158: =CONCATENATE(AL220,"x ") -> 1.5x
B159: Variable O&M | C159: =IFERROR(Scenarios!C101+Scenarios!D101,"") -> 0 | V159: =IF(AND(B$59<>"",B$66="Include"),V170,0) -> -0.2 | W159: =IF(W$158="",$T$478,IF(B$66="Include",W170,$T$478)) -> 4.719132314 | X159: =IF(AND(D$59<>"",D$66="Include"),X170,0) -> -0.1 | Y159: =IF(Y$158="",$T$478,IF(D$66="Include",Y170,$T$478)) -> 5.728817747 | Z159: =IF(AND(F$59<>"",F$66="Include"),Z170,0) -> -0.1 | AA159: =IF(AA$158="",$T$478,IF(F$66="Include",AA170,$T$478)) -> 15.11423235 | AB159: =IF(AND(H$59<>"",H$66="Include"),AB170,0) -> 0 | AC159: =IF(AC$158="",$T$478,IF(H$66="Include",AC170,$T$478)) -> 7.416922966 | AD159: =IF(AND(J$59<>"",J$66="Include"),AD170,0) -> 0 | AE159: =IF(AE$158="",$T$478,IF(J$66="Include",AE170,$T$478)) -> 7.416922966 | AG159: =MIN(V166:AE166) -> -0.2 | AH159: =C200 -> 633600 | AI159: =$B$199 ->  | AJ159: =$B$199*$N$220 ->  | AK159: =$B$199*$R$220 ->  | AL159: =AI159*$V$220 ->  | AM159: =AI159*$AH$220 ->  | AN159: =AI159*$AL$220 -> 
B160: Total Cost per kW | C160: ='Capital Expenditures'!D86 ->  | D160: per kW | V160: =IF(AND(B$59<>"",B$66="Include"),V172,0) -> -0.1 | W160: =IF(W$158="",$T$478,IF(B$66="Include",W172,$T$478)) -> 6.06802764 | X160: =IF(AND(D$59<>"",D$66="Include"),X172,0) -> -0.1 | Y160: =IF(Y$158="",$T$478,IF(D$66="Include",Y172,$T$478)) -> 5.728817747 | Z160: =IF(AND(F$59<>"",F$66="Include"),Z172,0) -> -0.1 | AA160: =IF(AA$158="",$T$478,IF(F$66="Include",AA172,$T$478)) -> 15.11423235 | AB160: =IF(AND(H$59<>"",H$66="Include"),AB172,0) -> 0 | AC160: =IF(AC$158="",$T$478,IF(H$66="Include",AC172,$T$478)) -> 7.416922966 | AD160: =IF(AND(J$59<>"",J$66="Include"),AD172,0) -> 0 | AE160: =IF(AE$158="",$T$478,IF(J$66="Include",AE172,$T$478)) -> 7.416922966 | AG160: 0 | AH160: =C201 -> 0 | AI160: =$B$199 ->  | AJ160: =$B$199*$N$220 ->  | AK160: =$B$199*$R$220 ->  | AL160: =AI160*$V$220 ->  | AM160: =AI160*$AH$220 ->  | AN160: =AI160*$AL$220 -> 
B161: Total Installed Cost | C161: =IFERROR('Capital Expenditures'!D84,"") -> 792000 | V161: =IF(AND(B$59<>"",B$66="Include"),V173,0) -> 0 | W161: =IF(W$158="",$T$478,IF(B$66="Include",W173,$T$478)) -> 7.416922966 | X161: =IF(AND(D$59<>"",D$66="Include"),X173,0) -> 0 | Y161: =IF(Y$158="",$T$478,IF(D$66="Include",Y173,$T$478)) -> 7.416922966 | Z161: =IF(AND(F$59<>"",F$66="Include"),Z173,0) -> 0 | AA161: =IF(AA$158="",$T$478,IF(F$66="Include",AA173,$T$478)) -> 7.416922966 | AB161: =IF(AND(H$59<>"",H$66="Include"),AB173,0) -> 0 | AC161: =IF(AC$158="",$T$478,IF(H$66="Include",AC173,$T$478)) -> 7.416922966 | AD161: =IF(AND(J$59<>"",J$66="Include"),AD173,0) -> 0 | AE161: =IF(AE$158="",$T$478,IF(J$66="Include",AE173,$T$478)) -> 7.416922966 | AG161: =MAX(V165:AE165) -> 0.3 | AH161: =C202 -> 1029600 | AI161: =$B$199 ->  | AJ161: =$B$199*$N$220 ->  | AK161: =$B$199*$R$220 ->  | AL161: =AI161*$V$220 ->  | AM161: =AI161*$AH$220 ->  | AN161: =AI161*$AL$220 -> 
B162: Electric Heat Rate | C162: ='Incentive Model'!F102 ->  | D162: Btu/kWh | V162: =IF(AND(B$59<>"",B$66="Include"),V174,0) -> 0.1 | W162: =IF(W$158="",$T$478,IF(B$66="Include",W174,$T$478)) -> 8.765818293 | X162: =IF(AND(D$59<>"",D$66="Include"),X174,0) -> 0.1 | Y162: =IF(Y$158="",$T$478,IF(D$66="Include",Y174,$T$478)) -> 10.51552161 | Z162: =IF(AND(F$59<>"",F$66="Include"),Z174,0) -> 0.1 | AA162: =IF(AA$158="",$T$478,IF(F$66="Include",AA174,$T$478)) -> 4.91422712 | AB162: =IF(AND(H$59<>"",H$66="Include"),AB174,0) -> 0 | AC162: =IF(AC$158="",$T$478,IF(H$66="Include",AC174,$T$478)) -> 7.416922966 | AD162: =IF(AND(J$59<>"",J$66="Include"),AD174,0) -> 0 | AE162: =IF(AE$158="",$T$478,IF(J$66="Include",AE174,$T$478)) -> 7.416922966
B163: Thermal Output | C163: ='Incentive Model'!F103 ->  | D163: Btu/kWh | V163: =IF(AND(B$59<>"",B$66="Include"),V175,0) -> 0.2 | W163: =IF(W$158="",$T$478,IF(B$66="Include",W175,$T$478)) -> 10.11471362 | X163: =IF(AND(D$59<>"",D$66="Include"),X175,0) -> 0.2 | Y163: =IF(Y$158="",$T$478,IF(D$66="Include",Y175,$T$478)) -> 18.0608977 | Z163: =IF(AND(F$59<>"",F$66="Include"),Z175,0) -> 0.2 | AA163: =IF(AA$158="",$T$478,IF(F$66="Include",AA175,$T$478)) -> 3.674379497 | AB163: =IF(AND(H$59<>"",H$66="Include"),AB175,0) -> 0 | AC163: =IF(AC$158="",$T$478,IF(H$66="Include",AC175,$T$478)) -> 7.416922966 | AD163: =IF(AND(J$59<>"",J$66="Include"),AD175,0) -> 0 | AE163: =IF(AE$158="",$T$478,IF(J$66="Include",AE175,$T$478)) -> 7.416922966
B164: Rated Power | C164: ='Incentive Model'!F100 ->  | D164: kW | V164: =IF(AND(B$59<>"",B$66="Include"),V176,0) -> 0.3 | W164: =IF(W$158="",$T$478,IF(B$66="Include",W176,$T$478)) -> 11.46360895 | X164: =IF(AND(D$59<>"",D$66="Include"),X176,0) -> 0.2 | Y164: =IF(Y$158="",$T$478,IF(D$66="Include",Y176,$T$478)) -> 18.0608977 | Z164: =IF(AND(F$59<>"",F$66="Include"),Z176,0) -> 0.3 | AA164: =IF(AA$158="",$T$478,IF(F$66="Include",AA176,$T$478)) -> 2.934110509 | AB164: =IF(AND(H$59<>"",H$66="Include"),AB176,0) -> 0 | AC164: =IF(AC$158="",$T$478,IF(H$66="Include",AC176,$T$478)) -> 7.416922966 | AD164: =IF(AND(J$59<>"",J$66="Include"),AD176,0) -> 0 | AE164: =IF(AE$158="",$T$478,IF(J$66="Include",AE176,$T$478)) -> 7.416922966
B165: Net Power | C165: ='Incentive Model'!F101 ->  | D165: kW | V165: =MAX(V159:V164) -> 0.3 | X165: =MAX(X159:X164) -> 0.2 | Z165: 0.3 | AB165: 0 | AD165: 0
B166: Electric Efficiency | C166: ='Incentive Model'!F104 ->  | V166: =MIN(V159:V164) -> -0.2 | X166: =MIN(X159:X164) -> -0.1 | Z166: =MIN(Z159:Z164) -> -0.1 | AB166: =MIN(AB159:AB164) -> 0 | AD166: =MIN(AD159:AD164) -> 0
B167: CHP Efficiency | C167: ='Incentive Model'!F105 -> 
B168: ODOE Max | C168: ='Incentive Model'!G56/10^6 -> 5 | D168: M | V168: Notes=>> | W168: 1st year | X168: Notes=>> | Y168: Average 1st 10 years | Z168: Notes=>> | AA168: Total over Life | AB168: Notes=>> | AD168: Notes=>>
B169: ETO | C169: ='Incentive Model'!G48 -> 0.2 | V169: Parameter 1=> | W169: Electricity Unit Cost | X169: Parameter 2=> | Y169: CHP Fuel Unit Cost | Z169: Parameter 3=> | AA169: Capital Expenses | AB169: Parameter 4=> | AC169: Natural Gas ECM Savings (Alt) | AD169: Parameter 5=> | AE169: Electricity ECM Savings (Alt)
B170: Availability | C170: ='Incentive Model'!F113 ->  | V170: =A60-1 -> -0.2 | W170: =B60 -> 4.719132314 | X170: =C60-1 -> -0.1 | Y170: =D60 -> 5.728817747 | Z170: =E60-1 -> -0.1 | AA170: =F60 -> 15.11423235 | AB170: =G60-1 -> -0.1 | AC170: =H60 -> 15.11423235 | AD170: =I60-1 -> 0 | AE170: =J60 -> 1.380073409
B171: Availability in Construction Year | C171: ='Incentive Model'!F114 -> 
